Workbook

Sheet INGRESOS
B2: INGRESOS DEL 05 DE SEPTIEMBRE 2024 AL 15 DE MARZO 2025
B3: INGRESOS PRINCIPALES | C3: ITEMS SECUNDARIOS | D3: EFECTIVO | E3: TRANSFERENCIA | F3: INGRESO (EFE - TRANS) | G3: VALOR (INGRESO-EGRESOS)
B4: AFILIACIONES Y PERMISOS DE FUNCIONAMIENTO SEP-DIC 2024 | D4: ='AFILIACIONES Y PERMISOS 2024'!F37 -> $ 70.00 | E4: ='AFILIACIONES Y PERMISOS 2024'!F130-INGRESOS!D4 -> $ 2,590.00 | F4: =SUM(D4:E4) -> $ 2,660.00 | G4: =SUM(D4:E4) -> $ 2,660.00
B5: AFILIACIONES Y PERMISOS DE FUNCIONAMIENTO ENE-MAR 15 | D5: 0 | E5: ='AFILIACIONES Y PERMISOS 2025'!F135 -> $ 2,462.57 | F5: =SUM(D5:E5) -> $ 2,462.57 | G5: $ 2,462.57
B6: LICENCIA DEPORTIVA ANUAL (CARNETS) SEP-DIC 2024 | D6: ='GAL''S 2024 '!C172 -> $ 332.00 | E6: ='GAL''S 2024 '!C173 -> $ 5,506.00 | F6: =D6+E6 -> $ 5,838.00 | G6: $ 5,838.00
B7: LICENCIA DEPORTIVA ANUAL (CARNETS) ENE-MAR 15 | D7: ='GAL''S 2025 '!C153 -> $ 802.00 | E7: ='GAL''S 2025 '!C154 -> $ 11,205.50 | F7: =D7+E7 -> $ 12,007.50 | G7: $ 12,007.50
B8: CERTIFICADOS DE ASCENSO SEP -DIC 2024 | D8: ='CERTIFICADOS DE ASCENSO 2024'!C109 -> $ 122.00 | E8: ='CERTIFICADOS DE ASCENSO 2024'!C110 -> $ 2,922.50 | F8: =D8+E8 -> $ 3,044.50 | G8: $ 3,044.50
B9: CERTIFICADOS DE ASCENSO ENE - MAR 15 | D9: ='CERTIFICADOS DE ASCENSO 2025'!C52 -> $ 65.50 | E9: ='CERTIFICADOS DE ASCENSO 2025'!C53 -> $ 1,165.00 | F9: =D9+E9 -> $ 1,230.50 | G9: $ 1,230.50
B10: EVENTOS | C10: III OPEN TODAS LAS CATEGORIAS ASOTKDP 16-11-24 | D10: ='III OPEN 2024'!E58 -> $ 4,373.00 | E10: ='III OPEN 2024'!F58 -> $ 8,257.00 | F10: =D10+E10 -> $ 12,630.00 | G10: ='III OPEN 2024'!C92 -> $ 8,020.08
C11: CHEQUEO TÉCNICO EDADES 2025 08-12-2024 | D11: ='CHEQUEO TÉCNICO EDADES 2025'!C45+'CHEQUEO TÉCNICO EDADES 2025'!C47 -> $ 1,049.00 | E11: ='CHEQUEO TÉCNICO EDADES 2025'!C46 -> $ 441.00 | F11: =+D11+E11 -> $ 1,490.00 | G11: ='CHEQUEO TÉCNICO EDADES 2025'!C68 -> $ 36.00
C12: CURSO ARBITRAJE 12-14 DIC 2024 | D12: ='CURSO ARBITRAJE 12-14 DIC 2024'!C76 -> $ 485.00 | E12: ='CURSO ARBITRAJE 12-14 DIC 2024'!C77 -> $ 1,380.00 | F12: =+D12+E12 -> $ 1,865.00 | G12: ='CURSO ARBITRAJE 12-14 DIC 2024'!C93 -> $ 780.00
C13: CURSO DE ACREDITACIÓN ENTRENADORES DE 14 AL 19 DE ENERO | D13: ='ACREDITACIÓN ENTRENADORES 2025'!C453 -> $ 2,894.00 | E13: ='ACREDITACIÓN ENTRENADORES 2025'!C454 -> $ 12,875.00 | F13: =SUM(D13:E13) -> $ 15,769.00 | G13: ='ACREDITACIÓN ENTRENADORES 2025'!C485 -> $ 6,945.10
C14: I SELECTIVO CADETES, JUNIOR Y JUVENIL 2025 16-02-2025 | D14: ='I SELECTIVO CAD, JUN Y JUV'!C45+'I SELECTIVO CAD, JUN Y JUV'!C47+'I SELECTIVO CAD, JUN Y JUV'!C48 -> $ 1,145.00 | E14: ='I SELECTIVO CAD, JUN Y JUV'!C46 -> $ 404.00 | F14: =SUM(D14:E14) -> $ 1,549.00 | G14: ='I SELECTIVO CAD, JUN Y JUV'!C73 -> $ (75.00)
C15: I OPEN ASOTKD 2025, I SELECTIVO POOMSAE Y II SELECTIVO CADETES Y JUNIOR, I SELECTIVO INFANTIL A, B Y SUB 21 | D15: ='I OPEN ASOTKD 2025 Y SELECTIVO'!C76+'I OPEN ASOTKD 2025 Y SELECTIVO'!C78 -> $ 4,577.00 | E15: ='I OPEN ASOTKD 2025 Y SELECTIVO'!C77 -> $ 8,226.00 | F15: =SUM(D15:E15) -> $ 12,803.00 | G15: ='I OPEN ASOTKD 2025 Y SELECTIVO'!C117 -> $ 2,490.30
B16: CHIMBACALLE | C16: MENSUALIDADES | D16: 0 | E16: $ 6,784.50 | F16: 0 | G16: =D16+E16 -> $ 6,784.50
B17: MULTAS | C17: PAGO MULTA CLUB BLS | D17: 0 | E17: $ 100.00 | F17: 0 | G17: $ 100.00
C18: PAGO MULTA CLUB TKT | D18: 0 | E18: $ 50.00 | F18: 0 | G18: $ 50.00
B19: OTROS | C19: PAGO SUPLETORIOS EVALUCAIÓN DE ACREDITACIÓN DE ENTRENADORES | D19: CUENTA DAYANA FOLLECO | E19: ='PAGO DERECHO SEGUNDO EXAMEN ACR'!E80 -> $ 340.00 | F19: 0 | G19: =E19 -> $ 340.00
D20: CUENTA ASOTKD-P | E20: ='PAGO DERECHO SEGUNDO EXAMEN ACR'!E81 -> $ 45.00 | F20: 0 | G20: =E20 -> $ 45.00
B21: TOTAL | G21: =SUM(G4:G20) -> $ 52,759.05

Sheet AFILIACIONES Y PERMISOS 2024
A9: N° | B9: CLUBES FILIALES | C9: FUNCIONAMIENTO 2023 | D9: SALDOS PENDIENTES DESDE 30 DE SEPTIEMBRE 2023 | E9: N° COMPROBANTE/FECHA | F9: P. FUNCIONAMIENTO | G9: N° COMPROBANTE/FECHA | H9: ESTADO | I9: DEUDA
B10: CLUB | C10: REPRESENTANTE
A11: 1 | B11: Apolo | C11: Mario Pinto | D11: 0 | F11: $ 70.00 | G11: BP. 34579953 13-11-2024 | H11: PAGADO | I11: 0
A12: 2 | B12: Ares | C12: Fernando Manosalvas | D12: 0 | F12: $ 70.00 | G12: BP. 69041936- 05-09-2024 | H12: PAGADO | I12: 0
A13: 3 | B13: Atlas Club | C13: Edgar Varela | D13: $ 20.00 | E13: BP. 05-02-2024 - 199487930 | F13: $ 70.00 | G13: BP. 110392984 - 13-01-2025 | H13: PAGADO | I13: 0
A14: 4 | B14: BaekJul BG | C14: Jorge Proaño | D14: 0 | F14: ANTERIOR $70 | G14: 002312977 - 18-01-2024 | H14: PAGADO | I14: 0
A15: 5 | B15: BaekJul BG (Sucursal) | C15: Daniel Ayala | D15: 0 | F15: ANTERIOR $50 | G15: BP. 160291895 - 22-01-2024 | H15: PAGADO | I15: 0
A16: 6 | B16: Bas Panthers | C16: Jonatan Bastidas | D16: 0 | F16: ANTERIOR $100 | G16: COP.P.N. 5750- 23-04-2024/ B.P. 25633758 - 14-08-2024 | H16: PAGADO | I16: 0
A17: 7 | B17: Bas Panthers Pintag (Sucursal) | C17: Jonatan Bastidas | F17: ANTERIOR $50 | G17: BG. 0001655422 - 15-08-2024 | H17: PAGADO | I17: 0
A18: 8 | B18: Borja Lions | C18: Edgar Borja | D18: 0 | F18: ANTERIOR $70 | G18: BP. 53210770 - 08-02-2024 | H18: PAGADO | I18: 0
A19: 9 | B19: Blue Drangons | C19: William Suntaxi | D19: 0 | F19: ANTERIOR $200 | G19: BP. 17281887-26-07-2024 | H19: PAGADO | I19: 0
A20: 10 | B20: Ciudad de Quito | C20: Fernando Jaramillo | D20: 0 | F20: ANTERIOR $70 | G20: 34719163 - 16-01-2024 | H20: PAGADO | I20: 0
A21: 11 | B21: Ciudad de Quito (Sucursal) | C21: Adriana Obando | D21: 0 | F21: $ 50.00 | G21: BP. 105725396- 05-09-2024 | H21: PAGADO | I21: 0
A22: 12 | B22: Condor | C22: Juan Carlos Ramírez | D22: 0 | F22: ANTERIOR $70 | H22: CRUCE DEUDA | I22: 0
A23: 13 | B23: Chen Huu | C23: Pablo Cobos | D23: 0 | F23: ANTERIOR $70 | G23: BP 29399075 15-03-2024 | H23: PAGADO | I23: 0
A24: 14 | B24: Chonkwon | C24: Luis Huaraca | D24: 0 | F24: 0 | H24: PENDIENTE | I24: 0 | J24: EN PROCESO DE DESAFILIACIÓN POR DEUDA
A25: 15 | B25: Chung Song | C25: Carlos Morocho | D25: 0 | F25: ANTERIOR $70 | G25: BP. 8942157 06-02-2024 | H25: PAGADO | I25: 0
A26: 16 | B26: Champions for live | C26: Byron Berrones | D26: 0 | F26: $ 200.00 | G26: BP. 39643133- 06-09-2024 | H26: PAGADO | I26: 0
A27: 17 | B27: Daigoro | C27: Edison Pérez V. | D27: 0 | F27: ANTERIOR $70 | G27: BP. 21042379-05-07-2024 | H27: PAGADO | I27: 0
A28: 18 | B28: Daigoro Sucursal Sector El Beaterio | C28: Edison Pérez V. | D28: 0 | F28: ANTERIOR $50 | G28: BP. 21042379-05-07-2024 | H28: PAGADO | I28: 0
A29: 19 | B29: Debak TKD | C29: Jimmy Bolaños | D29: 0 | F29: ANTERIOR $146 | G29: PASO DEUDA 18-07-2024 | H29: PAGADO | I29: 0
A30: 20 | B30: Debak TKD Colegio de Liga | C30: Fredy Hidalgo | D30: 0 | F30: ANTERIOR $50 | G30: PASO DEUDA 18-07-2024 | H30: PAGADO | I30: 0
A31: 21 | B31: Deciap | C31: Pablo Tayo | D31: 0 | F31: ANTERIOR $70 | G31: SERVICIOS PROFESIONALES | H31: CANJE | I31: 0
A32: 22 | B32: Deciap Norte | C32: Joel Mogollon | D32: 0 | F32: 0 | H32: PENDIENTE | I32: $ 50.00
A33: 23 | B33: Dojang Taekwondo Melo | C33: Vinicio Melo | D33: 0 | F33: ANTERIOR $70 | G33: 73827343 - 16-01-2024 | H33: PAGADO | I33: 0
A34: 24 | B34: Draco | C34: Edison Rodríguez | D34: 0 | F34: ANTERIOR $70 | G34: BP.55066275-8-08-2024 | H34: PAGADO | I34: 0
A35: 25 | B35: Dragon Gym | C35: Miguel Aguas | D35: 0 | F35: ANTERIOR $70 | G35: BP.103149991-03-06-2024 | H35: PAGADO | I35: 0
A36: 26 | B36: Dragon Lee Gym | C36: Edgar Lema | D36: 0 | F36: ANTERIOR $70 | G36: INICIO AÑO 2024 | H36: PAGADO | I36: 0
A37: 27 | B37: Ecuadcuba/ Black Panthers | C37: Eddy Cajigal Kindelan | D37: 0 | F37: $ 70.00 | G37: EFECTIVO 16-02-2025 | H37: PAGADO | I37: 0
A38: 28 | B38: Ecuador | C38: Jorge Astudillo | D38: 0 | F38: ANTERIOR $70 | G38: 74095048 - 16-01-2024 | H38: PAGADO | I38: 0
A39: 29 | B39: Equilibrio | C39: Juan Valencia | D39: 0 | F39: ANTERIOR $70 | G39: 690260924 - 12-01-2024 | H39: PAGADO | I39: 0
A40: 30 | B40: ESPE | C40: Eduardo Loachamín | D40: 0 | F40: ANTERIOR $70 | G40: SERVICIOS PROFESIONALES | H40: PAGADO | I40: 0
A41: 31 | B41: ESMIL - Eloy Alfaro | C41: Raúl Aucancela | D41: 0 | F41: ANTERIOR | G41: CONVENIO INTERINSTITUCIONAL | H41: CANJE | I41: 0
A42: 32 | B42: Farang | C42: Mesias Rojas | D42: 0 | F42: ANTERIOR $70 | G42: BP. 191879288 - 19-08-2024 | H42: PAGADO | I42: 0
A43: 33 | B43: Fitt kwon do | C43: Galo Garzón | D43: 0 | F43: $ 70.00 | G43: BP. 36797612-18-09-2024 | H43: PAGADO | I43: 0
A44: 34 | B44: First Class Calderon | C44: Lenin Plazarte | D44: 0 | F44: $ 70.00 | G44: B.P. 82900555-28-10-2024/ PA. 6305683 - 15-01-2025 | H44: PAGADO | I44: 0
A45: 35 | B45: Furia Negra | C45: Franklin Caiza | D45: 0 | F45: $ 70.00 | G45: BP. 46232939 - 05-09-2024 | H45: PAGADO | I45: 0
A46: 36 | B46: Grand Master | C46: César Tayo | D46: 0 | F46: $ 70.00 | G46: PAGO POR USO DE PÁGINA DE EVENTOS | H46: PAGADO | I46: 0
A47: 37 | B47: Goyang - Ideul | C47: Luis Elias Pisuña | F47: ANTERIOR $270 | G47: P.O.00077-11-04-24 | H47: PAGADO | I47: 0
A48: 38 | B48: Han Su | C48: Mauricio Valladares | D48: 0 | F48: ANTERIOR $70 | G48: PAGO POR DIPLOMAS | H48: PAGADO | I48: 0
A49: 39 | B49: Himchari Dojang | C49: Claudia Cárdenas | D49: 0 | F49: ANTERIOR $70 | G49: BP. 19157477 - 28-08-2024 | H49: PAGADO | I49: 0
A50: 40 | B50: Huang Top Gym | C50: Guido Mejia | D50: 0 | F50: $ 70.00 | G50: Pro.155311020900-22-11-24 | H50: PAGADO | I50: 0
A51: 41 | B51: Ilyo MP | C51: Miguel Parra | D51: 0 | F51: $ 75.00 | G51: Pro.155311020900-22-11-24 | H51: PAGADO | I51: 0
A52: 42 | B52: Ji Do Kwan | C52: David Del Castillo | D52: 0 | F52: ANTERIOR $70 | G52: Prod.1219880209-07-06-24 | H52: PAGADO | I52: 0
A53: 43 | B53: Joseon Legacy | C53: Fernando Moya | D53: 0 | F53: ANTERIOR $70 | G53: Pago en curso de entrenadores | H53: PAGADO | I53: 0
A54: 44 | B54: JR Sport | C54: Juan Carlos Ramírez | D54: 0 | F54: ANTERIOR $70 | G54: BG 9916798 15-03-2024 | H54: PAGADO | I54: 0
A55: 45 | B55: Juventus | C55: Jhony Pavón | D55: 0 | F55: $ 70.00 | G55: BG. 0003214632-05-09-2024 | H55: PAGADO | I55: 0
A56: 46 | B56: Jerathel | C56: Samantha Mogollon | D56: 0 | F56: $ 50.00 | G56: EN DB.P.125575249 - 28-10-2024 | H56: PAGADO | I56: 0
A57: 47 | B57: Ko América | C57: Miguel Angél Pavón | D57: 0 | F57: ANTERIOR $70 | G57: PASO SERVICIO DE INTERNET FIJO XTRIM TV CABLE | H57: PAGADO | I57: 0
A58: 48 | B58: Ko América Caupicho | C58: Bryan Chalcualan | D58: 0 | F58: ANTERIOR $50 | G58: PASO SERVICIO DE INTERNET FIJO XTRIM TV CABLE | H58: PAGADO | I58: 0
A59: 49 | B59: Ko América Santo Tomas | C59: Bryan Chalcualan | F59: ANTERIOR $50 | G59: BP. 51813288- 12-07-2024 | H59: PAGADO | I59: 0
A60: 50 | B60: Ko América Dragon de Fuego | C60: Luis Sandoval | D60: 0 | F60: $ 50.00 | G60: BP. 26570994-02-10-2024 | H60: PAGADO | I60: 0
A61: 51 | B61: Korean Dragon | C61: Fabián Moreno | D61: 0 | F61: ANTERIOR $70 | G61: BP.20228234 - 23-07-2024 | H61: PAGADO | I61: 0
A62: 52 | B62: Koryo | C62: Guillermo Puga - Sharon López | D62: 0 | F62: ANTERIOR $70 | G62: B.P. 99611502- 16-05-24 | H62: PAGADO | I62: 0
A63: 53 | B63: Koryo Sucursal | C63: Edwin Delgado | D63: 0 | F63: ANTERIOR $50 | G63: B.P. 99611502- 16-05-24 | H63: PAGADO | I63: 0
A64: 54 | B64: Koryo Sucursal | C64: Dayana Folleco | D64: 0 | F64: ANTERIOR $50 | G64: SERVICIOS PROFESIONALES | H64: PAGADO | I64: 0
A65: 55 | B65: Kukkiwon | C65: David Chicaiza | D65: 0 | F65: ANTERIOR $70 | G65: BP. 186207888 5-07-2024 | H65: PAGADO | I65: 0
A66: 56 | B66: Kumgan Dul | C66: Fabián García | D66: 0 | F66: $ 70.00 | G66: BP. 16642518-30-12-2024 | H66: PAGADO | I66: 0
A67: 57 | B67: Kyorugui Gym | C67: Vinicio Cardona | D67: 0 | F67: $ 45.00 | G67: 2024-09-06 | H67: PAGADO | I67: 0
A68: 58 | B68: León | C68: Romel Pilaquinga | D68: 0 | F68: $ 30.00 | G68: BP. 61286404- 05-09-2024 | H68: PAGADO | I68: 0
A69: 59 | B69: Liga Deportiva Cantonal Mejía | C69: Fernando Manosalvas | F69: ANTERIOR $70 | G69: BP. 6894312 10-07-2024 | H69: PAGADO | I69: 0
A70: 60 | B70: Lithe body | C70: Norma Ortíz | D70: $ 70.00 | E70: B.P. 84431747- 24-10-2023 | F70: ANTERIOR $70 | G70: BP. 41487117- 20-02-2024 | H70: PAGADO | I70: 0
A71: 61 | B71: Lobos | C71: Cristian Flores | D71: $ 70.00 | E71: BP. 16933896-29-02-2024 | F71: $ 70.00 | G71: BP. 10046769 - 15-01-2025 | H71: PAGADO | I71: 0
A72: 62 | B72: Los Pumas | C72: Galo Gavilanez | D72: 0 | F72: $ 70.00 | G72: BP. 46146086-05-09-2024 | H72: PAGADO | I72: 0
A73: 63 | B73: Master Home | C73: Marlon Lema | D73: 0 | F73: $ 70.00 | G73: DEPÓSITO 12-12-2024 | H73: PAGADO | I73: 0
A74: 64 | B74: Marcial Club Granda | C74: Luis Granda | D74: 0 | F74: ANTERIOR $70 | G74: 19254425 - 12-01-2024 | H74: PAGADO | I74: 0
A75: 65 | B75: Mercenarios | C75: Luis Cano | D75: 0 | F75: ANTERIOR $70 | G75: OPEN DE LIMA | H75: CANJE DEUDA | I75: 0
A76: 66 | B76: Mikido | C76: Daniel Guerra | F76: ANTERIOR $270 | G76: B.P. 93929997-26-03-2024 | H76: PAGADO | I76: 0
A77: 67 | B77: Millenium | C77: Jean Galora | D77: 0 | F77: ANTERIOR $70 | G77: 42113-16-05-24 | H77: PAGADO | I77: 0
A78: 68 | B78: Michay | C78: Luisa Vega | D78: $ 35.00 | E78: B.P. 20092834- 05-03-2024 CEN | F78: ANTERIOR $70 | G78: BP. 20092834- 05-03-2024 | H78: PAGADO | I78: 0
A79: 69 | B79: Minotaurus | C79: Marco Duchi | D79: $ 70.00 | E79: B.P 115490149-11-12-2023 | F79: ANTERIOR $70 | G79: 71140294 - 17-01-2024 | H79: PAGADO | I79: 0
A80: 70 | B80: Mit-TKD | C80: Mellany Inasunta | D80: 0 | F80: ANTERIOR $70 | G80: 92260917 - 04-01-2024 | H80: PAGADO | I80: 0
A81: 71 | B81: Mit -TKD Sucursal | C81: Jared Vargas | D81: 0 | F81: ANTERIOR $50 | G81: 47864538 - 16-01-2024 | H81: PAGADO | I81: 0
A82: 72 | B82: Paladins | C82: Jeann Paladines | D82: 0 | F82: $ 70.00 | G82: BP. 234822309-10-06-2024 | H82: PAGADO | I82: 0
A83: 73 | B83: Pandademon | C83: Andrés Herrera | D83: $ 70.00 | E83: PRO.840804020900.05-02-2024 | F83: $ 70.00 | G83: BP. 61932362- 13-01-2024 | H83: PAGADO | I83: 0
A84: 74 | B84: Pionero Fortis | C84: Xavier Moreira Fortis | D84: 0 | F84: $ 70.00 | G84: B.P. 3585973-13-12-20 | H84: PAGADO | I84: 0
A85: 75 | B85: Pionero Mejía | C85: Luís Burbano | D85: $ 70.00 | E85: comp 27400959-6-2-24 | F85: $ 70.00 | G85: BP. 38675762- 13-01-2025 | H85: PAGADO | I85: 0
A86: 76 | B86: Pyongyang | C86: Luisa Vega | D86: 0 | F86: ANTERIOR $70 | G86: BP. 46309319 - 24-01-2024 | H86: PAGADO | I86: 0
A87: 77 | B87: Raig de llum | C87: Fernando Ruiz | D87: 0 | F87: ANTERIOR $70 | G87: BP.29220414-22-05-2024 | H87: PAGADO | I87: 0
A88: 78 | B88: Tanaka Red | C88: Carlos Estrella | D88: 0 | F88: ANTERIOR $70 | G88: PRO.190784020900-23-01-2024 | H88: PAGADO | I88: 0
A89: 79 | B89: Renacer | C89: Milton Ramos | D89: 0 | F89: ANTERIOR $70 | G89: 2304516 - 12-01-2024 | H89: PAGADO | I89: 0
A90: 80 | B90: Rojas Iron First | C90: Jorge Rojas | D90: 0 | F90: $ 70.00 | G90: 45438497- 12-01-2024 | H90: PAGADO | I90: 0
A91: 81 | B91: S.D.Central | C91: Carlos Reinoso | D91: 0 | F91: ANTERIOR $70 | G91: BP. 7707848 - 22-01-2024 | H91: PAGADO | I91: 0
A92: 82 | B92: San Francisco Tigres | C92: Carlos Mejía | D92: 0 | F92: $ 70.00 | G92: BP. 27638772 - 05-11-2024 | H92: PAGADO | I92: 0
A93: 83 | B93: San Sebastián | C93: Raúl Tipán | D93: 0 | F93: 0 | G93: PASO DEUDA Y 1 DEP A JUEGOS | H93: PAGADO | I93: 0
A94: 84 | B94: Scorpius | C94: Dario Flores | D94: 0 | F94: $ 70.00 | G94: Prd.389542020900-05-09-24 | H94: PAGADO | I94: 0
A95: 85 | B95: Seúl | C95: Galo Garzón | D95: 0 | F95: ANTERIOR $65 | G95: 1039095 - 27-12-2023 (1 jue N) | H95: PAGADO | I95: 0
A96: 86 | B96: Seúl Capelo (Sucursal) | C96: Fredy Castillo | D96: 0 | F96: $ 50.00 | G96: BP. 44842339- 05-09-2024 | H96: PAGADO | I96: 0
A97: 87 | B97: Seúl Carapungo (Sucursal) | C97: José Donoso | D97: 0 | F97: ANTERIOR $50 | G97: B.G.2285212-2-04-24 | H97: PAGADO | I97: 0
A98: 88 | B98: Seúl Yeong-Gu Carcelen | C98: Brusby Muñoz | D98: 0 | F98: ANTERIOR $50 | G98: BP. 24853537 - 21-05-2024 | H98: PAGADO | I98: 0
A99: 89 | B99: Seúl Gedeon (Sucrusal) | C99: José Luís Palacios | D99: 0 | F99: ANTERIOR $50 | G99: BG. 0009916524 - 18-03-2024 | H99: PAGADO | I99: 0
A100: 90 | B100: Seúl Chung UI (sucursal) | C100: Juan Manuel Villacres | D100: 0 | F100: ANTERIOR $50 | G100: BP. 11085488 - 22-03-2024 | H100: PAGADO | I100: 0
A101: 91 | B101: Seúl Vale Todo Capapungo | C101: Angél Vayas | D101: 0 | F101: $ 50.00 | G101: BP. 93202077- 05-09-2024 | H101: PAGADO | I101: 0
A102: 92 | B102: Seúl La Salle | C102: Angelica Guerrero | D102: 0 | F102: ANTERIOR $50 | G102: 002-00015-22-05-2024 | H102: PAGADO | I102: 0
A103: 93 | B103: Shogun | C103: Carlos Vélez | D103: 0 | F103: ANTERIOR $70 | G103: BP. 14359822 - 21-03-2024 | H103: PAGADO | I103: 0
A104: 94 | B104: Simjang Team Club de TKD | C104: Marco Mogollon | D104: 0 | F104: ANTERIOR $270 | G104: 03-01-2024 - 20218020 | H104: PAGADO | I104: 0
A105: 95 | B105: Suryun | C105: Edison Gallardo | D105: 0 | F105: ANTERIOR $70 | G105: CANJE Y $ 20 BP. 138566834 19-08-2024 | H105: PAGADO | I105: 0
A106: 96 | B106: Tae Baek Junior | C106: Edwin Arteaga Jr. | D106: 0 | F106: $ 70.00 | G106: BP. 141222211-11-11-2024 | H106: PAGADO | I106: 0
A107: 97 | B107: Tae Baek Junior Sucursal Solanda | C107: Edwin Arteaga Jr. | D107: 0 | F107: 0 | H107: PENDIENTE | I107: $ 50.00
A108: 98 | B108: Tae Baek | C108: Edwin Arteaga | D108: $ 70.00 | E108: B.P. 38952579 -13-12-2023 | F108: $ 70.00 | G108: BP. 51380759- 05-09-2024 | H108: PAGADO | I108: 0
A109: 99 | B109: Tae Kings | C109: Jorge Astudillo S. | D109: 0 | F109: $ 70.00 | G109: Pa. 4290202-14-10-2024 | H109: PAGADO | I109: 0
A110: 100 | B110: Tae Sho Ku | C110: Marcelo Ochoa | D110: 0 | F110: ANTERIOR $70 | G110: BP. 29348779-26-06-2024 | H110: PAGADO | I110: 0
A111: 101 | B111: Tae Sho Ku | C111: Gissela Estrella | D111: 0 | F111: ANTERIOR $50 | G111: B.P. 67213266-17-05-24 | H111: PAGADO | I111: 0
A112: 102 | B112: TaeDo | C112: Vicente Lazcano | D112: 0 | F112: $ 70.00 | G112: BP. 111358254- 05-09-2024 | H112: PAGADO | I112: 0
A113: 103 | B113: Taekwondo Trainig Center | C113: Paúl Orellana | D113: 0 | F113: $ 70.00 | G113: BG. 305852 - 12-03-2025 | H113: PAGADO | I113: 0
A114: 104 | B114: Taekwondo Jitae | C114: Emperatriz Quinga | D114: 0 | F114: ANTERIOR $70 | G114: 92326958 - 17-01-2024 | H114: PAGADO | I114: 0
A115: 105 | B115: Taekwondo Jucaro | C115: Danilo Xavier Peréz | D115: 0 | F115: ANTERIOR $70 | G115: CANJE S. PROFESIONALES 03-02-2024 ($245) | H115: PAGADO | I115: 0
A116: 106 | B116: Tae Woong | C116: Patricia Tuqueres | D116: $ 100.00 | E116: B.P.27841022 - 19-10-2023 | F116: ANTERIOR $70 | G116: DEPÓSITO | H116: PAGADO | I116: 0
A117: 107 | B117: Team Tauro Taekwondo | C117: José Chiriboga | D117: 0 | F117: ANTERIOR $70 | G117: 982779 - 19-01-2024 | H117: PENDIENTE | I117: $ 150.00
A118: 108 | B118: Team Vencedores | C118: Victor Hugo Quishpe | D118: 0 | F118: $ 70.00 | G118: BP. 52426968 - 14-10-2024 | H118: PAGADO | I118: 0
A119: 109 | B119: Tekken | C119: Gustavo López | D119: 0 | F119: ANTERIOR $70 | G119: OFI. 3294433- 04-02-2024 | H119: PAGADO | I119: 0
A120: 110 | B120: Total Kombat | C120: Raúl Aucancela | D120: 0 | F120: ANTERIOR $70 | G120: SALDO A FAVOR POR PAGO DE U. H. | H120: PAGADO | I120: 0
A121: 111 | B121: Total Kombat Rhinos Sucursal | C121: Gustavo Llamuca | D121: 0 | F121: ANTERIOR $50 | G121: SALDO A FAVOR POR PAGO DE U. H. | H121: PAGADO | I121: 0
A122: 112 | B122: U San Francisco USFQ | C122: Carlos Reinoso | D122: 0 | F122: ANTERIOR $70 | G122: PASO DEUDA | H122: PAGADO | I122: 0
A123: 113 | B123: Universal | C123: Jorge Sisalema | D123: 0 | F123: ANTERIOR $70 | G123: EFECTIVO | H123: PAGADO | I123: 0
A124: 114 | B124: Universidad Central (CAMU) | C124: Anthony Rendón | D124: 0 | F124: $ 70.00 | G124: BP. 209766626-18-09-2024 | H124: PAGADO | I124: 0
A125: 115 | B125: Universidad Hemisferios | C125: Raúl Aucancela | D125: 0 | F125: ANTERIOR $267,3 | G125: BP.318788754-18/3/2024 | H125: PAGADO | I125: 0
A126: 116 | B126: Valle | C126: Jorge Portilla | F126: 0 | H126: PENDIENTE | I126: 0 | J126: EN PROCESO DE DESAFILIACIÓN POR DEUDA
A127: 117 | B127: Venom | C127: Eddy Cajigal K. | D127: 0 | F127: $ 30.00 | G127: PRO.157300020900-1-10-24 | H127: PAGADO | I127: 0
A128: 118 | B128: Vill Gym | C128: Hernán Villacis | D128: 0 | F128: ANTERIOR $70 | G128: BP. 7707848 - 22-01-2024 | H128: PAGADO | I128: 0
A129: 119 | B129: Yong Tiger | C129: Wilson Rodríguez | D129: 0 | F129: $ 70.00 | G129: DESCUENTO EN EVENTOS | H129: PAGADO | I129: 0
B130: TOTAL PAGOS SALDOS 2024 | D130: =SUM(D11:D129) -> $ 575.00 | F130: =SUM(F11:F129) -> $ 2,660.00 | I130: =SUM(I11:I129) -> $ 250.00 | J130: POR COBRAR
B133: Se descuenta 5 USD por cada alumno que participe en Juegos Nacionales
B134: AFILIACIÓN NUEVO CLUB | D134: 200
B135: PERSMISO ANUAL DE FUNCIONAMIENTO | D135: 70
B136: REAFILIACIÓN | D136: 100
B138: ACTUALIZADO HASTA EL 15-03-2025

Sheet AFILIACIONES Y PERMISOS 2025
A9: N° | B9: CLUBES FILIALES | C9: FUNCIONAMIENTO 2023 | D9: SALDOS PENDIENTES DESDE 30 DE SEPTIEMBRE 2023 | E9: N° COMPROBANTE/FECHA | F9: P. FUNCIONAMIENTO | G9: N° COMPROBANTE/FECHA | H9: ESTADO | I9: DEUDA
B10: CLUB | C10: REPRESENTANTE
A11: 1 | B11: Apolo | C11: Mario Pinto | D11: 0 | F11: 0 | H11: PENDIENTE | I11: $ 70.00
A12: 2 | B12: Ares | C12: Fernando Manosalvas | D12: 0 | F12: 0 | H12: PENDIENTE | I12: $ 70.00
A13: 3 | B13: Atlas Club | C13: Edgar Varela | D13: $ 20.00 | E13: BP. 05-02-2024 - 199487930 | F13: 0 | H13: PENDIENTE | I13: $ 70.00
A14: 4 | B14: BaekJul BG | C14: Jorge Proaño | D14: 0 | F14: $ 70.00 | G14: Pap. 3528183 - 16-01-2025 | H14: PAGADO | I14: 0
A15: 5 | B15: BaekJul Team AyalaZ (Sucursal) | C15: Daniel Ayala | D15: 0 | F15: $ 50.00 | G15: BP.13802498 - 14-01-2024 | H15: PAGADO | I15: 0
A16: 6 | B16: BaekJul Team Fernández (Sucursal) | C16: Freddy Fernández | F16: $ 50.00 | G16: BP. 67130502- 08-10-2024 | H16: PAGADO | I16: 0 | J16: NUEVO
A17: 7 | B17: Bas Panthers | C17: Jonatan Bastidas | D17: 0 | F17: 0 | H17: PENDIENTE | I17: $ 70.00
A18: 8 | B18: Bas Panthers Pintag (Sucursal) | C18: Jonatan Bastidas | F18: 0 | H18: PENDIENTE | I18: $ 50.00
A19: 9 | B19: Borja Lions | C19: Edgar Borja | D19: 0 | F19: 0 | H19: PENDIENTE | I19: $ 70.00
A20: 10 | B20: Blue Drangons | C20: William Suntaxi | D20: 0 | F20: 0 | H20: PENDIENTE | I20: $ 70.00
A21: 11 | B21: Ciudad de Quito | C21: Fernando Jaramillo | D21: 0 | F21: 0 | H21: PENDIENTE | I21: $ 70.00
A22: 12 | B22: Ciudad de Quito (Sucursal) | C22: Adriana Obando | D22: 0 | F22: 0 | H22: PENDIENTE | I22: $ 50.00
A23: 13 | B23: Condor | C23: Juan Carlos Ramírez | D23: 0 | F23: 0 | H23: PENDIENTE | I23: $ 70.00
A24: 14 | B24: Chen Huu | C24: Pablo Cobos | D24: 0 | F24: $ 70.00 | G24: BP. 165476447 - 24-02-2025 | H24: PAGADO | I24: 0
A25: 16 | B25: Chung Song | C25: Carlos Morocho | D25: 0 | F25: 0 | H25: PENDIENTE | I25: $ 70.00
A26: 17 | B26: Champions for live | C26: Byron Berrones | D26: 0 | F26: $ 65.00 | G26: BP.56940902 -04-02 2025 1 DEPORTISTA EN JJ. NN. | H26: PAGADO | I26: 0
A27: 18 | B27: Daigoro | C27: Edison Pérez V. | D27: 0 | F27: 0 | H27: PENDIENTE | I27: $ 70.00
A28: 19 | B28: Daigoro Sucursal Sector El Beaterio | C28: Edison Pérez V. | D28: 0 | F28: 0 | H28: PENDIENTE | I28: $ 50.00
A29: 20 | B29: Debak TKD | C29: Jimmy Bolaños | D29: 0 | F29: 0 | H29: PENDIENTE | I29: $ 70.00
A30: 21 | B30: Debak TKD Colegio de Liga | C30: Adrián Lara | D30: 0 | F30: 0 | H30: PENDIENTE | I30: $ 50.00
A31: 22 | B31: Debak TKD Carcelén Bajo (Sucursal) | C31: Jared Vargas | F31: $ 50.00 | G31: BP. 61173349 - 07-03-2025 | H31: PAGADO | I31: $ 50.00 | J31: NUEVO
A32: 23 | B32: Deciap | C32: Pablo Tayo | D32: 0 | F32: 0 | H32: PAGADO | I32: $ 70.00
A33: 24 | B33: Deciap Norte | C33: Joel Mogollon | D33: 0 | F33: 0 | H33: PENDIENTE | I33: $ 50.00
A34: 25 | B34: Dojang Taekwondo Melo | C34: Vinicio Melo | D34: 0 | F34: $ 70.00 | G34: BP. 22714106 - 06-03-2025 | H34: PAGADO | I34: 0
A35: 26 | B35: Draco | C35: Edison Rodríguez | D35: 0 | F35: 0 | H35: PENDIENTE | I35: $ 70.00
A36: 27 | B36: Dragon Gym | C36: Miguel Aguas | D36: 0 | F36: 0 | H36: PENDIENTE | I36: $ 70.00
A37: 28 | B37: Dragon Lee Gym | C37: Edgar Lema | D37: 0 | F37: $ 70.00 | G37: BP. 48960200- 16-01-2025 | H37: PAGADO | I37: 0
A38: 29 | B38: Ecuadcuba/ Black Panthers | C38: Eddy Cajigal Kindelan | D38: 0 | F38: 0 | H38: PENDIENTE | I38: $ 70.00
A39: 30 | B39: Ecuador | C39: Jorge Astudillo | D39: 0 | F39: $ 70.00 | G39: BP. 41631917- 08-01-2025 | H39: PAGADO | I39: 0
A40: 31 | B40: Equilibrio | C40: Juan Valencia | D40: 0 | F40: $ 70.00 | G40: BR.826500- 27-01-2025 | H40: PAGADO | I40: 0
A41: 32 | B41: ESPE | C41: Eduardo Loachamín | D41: 0 | F41: 0 | H41: PENDIENTE | I41: $ 70.00
A42: 33 | B42: ESMIL - Eloy Alfaro | C42: Raúl Aucancela | D42: 0 | F42: 0 | H42: PENDIENTE | I42: $ 70.00
A43: 34 | B43: Farang | C43: Mesias Rojas | D43: 0 | F43: 0 | H43: PENDIENTE | I43: $ 70.00
A44: 35 | B44: Fitt kwon do | C44: Galo Garzón | D44: 0 | F44: 0 | H44: PENDIENTE | I44: $ 70.00
A45: 36 | B45: First Class Calderon | C45: Lenin Plazarte | D45: 0 | F45: 0 | H45: PENDIENTE | I45: $ 70.00
A46: 37 | B46: Furia Negra | C46: Franklin Caiza | D46: 0 | F46: 0 | H46: PENDIENTE | I46: $ 70.00
A47: 38 | B47: Grand Master | C47: César Tayo | D47: 0 | F47: 0 | G47: SE ACUERDA COMPROMISO DE PAGO POR APOYO EN EVENTOS | H47: PENDIENTE | I47: $ 70.00
A48: 39 | B48: Goyang - Ideul | C48: Luis Elias Pisuña | F48: 0 | H48: PENDIENTE | I48: $ 70.00
A49: 40 | B49: Han Su | C49: Mauricio Valladares | D49: 0 | F49: 0 | G49: PAGO POR DIPLOMAS | H49: PENDIENTE | I49: $ 70.00
A50: 41 | B50: Han Kum Do | C50: Nicole Tapia | F50: $ 70.00 | G50: BG. 0000350660-13-01-2025 | H50: PENDIENTE | I50: $ 200.00 | J50: NUEVO
A51: 42 | B51: Himchari Dojang | C51: Claudia Cárdenas | D51: 0 | F51: 0 | H51: PENDIENTE | I51: $ 70.00
A52: 43 | B52: Huang Top Gym | C52: Guido Mejia | D52: 0 | F52: 0 | H52: PENDIENTE | I52: $ 70.00
A53: 44 | B53: Ilyo MP | C53: Miguel Parra | D53: 0 | F53: 0 | H53: PENDIENTE | I53: $ 70.00
A54: 45 | B54: Ji Do Kwan | C54: David Del Castillo | D54: 0 | F54: 0 | H54: PENDIENTE | I54: $ 70.00
A55: 46 | B55: Joseon Legacy | C55: Fernando Moya | D55: 0 | F55: 0 | H55: PENDIENTE | I55: $ 70.00
A56: 47 | B56: JR Sport | C56: Juan Carlos Ramírez | D56: 0 | F56: 0 | H56: PENDIENTE | I56: $ 70.00
A57: 48 | B57: Juventus | C57: Jhony Pavón | D57: 0 | F57: 0 | H57: PENDIENTE | I57: $ 70.00
A58: 49 | B58: Jerathel | C58: Samantha Mogollon | D58: 0 | F58: $ 70.00 | G58: BP. 12782374 - 28-01-2024 | H58: PAGADO | I58: 0
A59: 50 | B59: Ko América | C59: Miguel Angél Pavón | D59: 0 | F59: $ 65.00 | G59: BP.13888302-07-01-2024 1 DEPORTISTA EN JJ. NN. | H59: PAGADO | I59: 0
A60: 51 | B60: Ko América Caupicho | C60: Bryan Chalcualan | D60: 0 | F60: 0 | H60: PENDIENTE | I60: $ 50.00
A61: 52 | B61: Ko América Santo Tomas | C61: Bryan Chalcualan | F61: 0 | H61: PENDIENTE | I61: $ 50.00
A62: 53 | B62: Ko América Dragon de Fuego | C62: Luis Sandoval | D62: 0 | F62: 0 | H62: PENDIENTE | I62: $ 50.00
A63: 54 | B63: Korean Dragon | C63: Fabián Moreno | D63: 0 | F63: 0 | H63: PENDIENTE | I63: $ 70.00
A64: 55 | B64: Koryo | C64: Guillermo Puga - Sharon López | D64: 0 | F64: 0 | H64: PENDIENTE | I64: $ 70.00
A65: 56 | B65: Koryo Sucursal | C65: Edwin Delgado | D65: 0 | F65: 0 | H65: PENDIENTE | I65: $ 50.00
A66: 57 | B66: Koryo Sucursal | C66: Dayana Folleco | D66: 0 | F66: 0 | H66: PENDIENTE | I66: $ 50.00
A67: 58 | B67: Kukkiwon | C67: David Chicaiza | D67: 0 | F67: 0 | H67: PENDIENTE | I67: $ 70.00
A68: 59 | B68: Kumgan Dul | C68: Fabián García | D68: 0 | F68: 0 | H68: PENDIENTE | I68: $ 70.00
A69: 60 | B69: Kyorugui Gym | C69: Vinicio Cardona | D69: 0 | F69: 0 | H69: PENDIENTE | I69: 0
A70: 61 | B70: León | C70: Romel Pilaquinga | D70: 0 | F70: 0 | H70: PENDIENTE | I70: $ 70.00
A71: 62 | B71: León (Sucursal Norte) | C71: Ian Catota | F71: $ 50.00 | G71: BP. 15791114 - 14-01-2024 | H71: PAGADO | I71: 0 | J71: NUEVO
A72: 63 | B72: Liga Deportiva Cantonal Mejía | C72: Vladimir Viana | F72: 0 | H72: PENDIENTE | I72: $ 70.00
A73: 64 | B73: Lithe body | C73: Norma Ortíz | D73: $ 70.00 | E73: B.P. 84431747- 24-10-2023 | F73: 0 | H73: PENDIENTE | I73: 0
A74: 65 | B74: Lobos | C74: Cristian Flores | D74: $ 70.00 | E74: BP. 16933896-29-02-2024 | F74: 0 | H74: PENDIENTE | I74: $ 70.00
A75: 66 | B75: Los Pumas | C75: Galo Gavilanez | D75: 0 | F75: 0 | H75: PENDIENTE | I75: $ 70.00
A76: 67 | B76: Master Home | C76: Marlon Lema | D76: 0 | F76: 0 | H76: PENDIENTE | I76: $ 70.00
A77: 68 | B77: Marcial Club Granda | C77: Luis Granda | D77: 0 | F77: 0 | H77: PENDIENTE | I77: $ 70.00
A78: 69 | B78: Mercenarios | C78: Luis Cano | D78: 0 | F78: 0 | H78: PENDIENTE | I78: $ 70.00
A79: 70 | B79: Mikido | C79: Daniel Guerra | F79: $ 70.00 | G79: BP. 32299486 - 06-02-2025 | H79: PAGADO | I79: 0
A80: 71 | B80: Millenium | C80: Jean Galora | D80: 0 | F80: 0 | H80: PENDIENTE | I80: $ 70.00
A81: 72 | B81: Michay | C81: Luisa Vega | D81: $ 35.00 | E81: B.P. 20092834- 05-03-2024 CEN | F81: $ 70.00 | G81: BP. 88911303 - 24-02-2025 | H81: PAGADO | I81: 0
A82: 73 | B82: Minotaurus | C82: Marco Duchi | D82: $ 70.00 | E82: B.P 115490149-11-12-2023 | F82: $ 70.00 | G82: BP. 7688068 - 11-03-2025 | H82: PAGADO | I82: 0
A83: 74 | B83: Mit-TKD | C83: Mellany Inasunta | D83: 0 | F83: $ 70.00 | G83: BP. 83102853 - 05-03-2025 | H83: PAGADO | I83: 0
A84: 75 | B84: Paladins | C84: Jeann Paladines | D84: 0 | F84: 0 | H84: PENDIENTE | I84: $ 70.00
A85: 76 | B85: Pandademon | C85: Andrés Herrera | D85: $ 70.00 | E85: PRO.840804020900.05-02-2024 | F85: 0 | H85: PENDIENTE | I85: $ 70.00
A86: 77 | B86: Pionero Fortis | C86: Xavier Moreira Fortis | D86: 0 | F86: 0 | H86: PENDIENTE | I86: $ 70.00
A87: 78 | B87: Pionero Mejía | C87: Luís Burbano | D87: $ 70.00 | E87: comp 27400959-6-2-24 | F87: $ 70.00 | G87: BG. 0000519175-06-02-2025 | H87: PAGADO | I87: 0
A88: 79 | B88: Pyongyang | C88: Luisa Vega | D88: 0 | F88: $ 70.00 | G88: BP. 88911303 - 24-02-2025 | H88: PAGADO | I88: 0
A89: 80 | B89: Raig de llum | C89: Fernando Ruiz | D89: 0 | F89: 0 | H89: PENDIENTE | I89: $ 70.00
A90: 81 | B90: Tanaka Red | C90: Carlos Estrella | D90: 0 | F90: $ 70.00 | G90: PRO. 675070 - 15-01-2025 | H90: PAGADO | I90: 0
A91: 82 | B91: Renacer | C91: Milton Ramos | D91: 0 | F91: $ 70.00 | G91: PA. 8714977 - 25-02-2025 | H91: PAGADO | I91: 0
A92: 83 | B92: Ryong Tae | C92: Diego Merino | F92: $ 170.00 | G92: PA. 7302739- 14-11-2024 / PA.5069396 - 27-01-2025 | H92: PENDIENTE | I92: $ 100.00 | J92: NUEVO
A93: 84 | B93: Rojas Iron First | C93: Jorge Rojas | D93: 0 | F93: 0 | H93: PENDIENTE | I93: $ 70.00
A94: 85 | B94: S. D. Central | C94: Carlos Reinoso | D94: 0 | F94: 0 | H94: PENDIENTE | I94: $ 70.00
A95: 86 | B95: S. D. Central Carapungo (Sucursal) | C95: Guillermo Morán | F95: $ 50.00 | G95: BP. 155411989 - 11-03-2025 | H95: PAGADO | I95: 0
A96: 87 | B96: San Francisco Tigres | C96: Carlos Mejía | D96: 0 | F96: 0 | H96: PENDIENTE | I96: $ 70.00
A97: 88 | B97: San Sebastián | C97: Raúl Tipán | D97: 0 | F97: $ 60.00 | G97: BP.110817481 -10-03-2025 2 DEPORTISTAs EN JJ. NN. | H97: PAGADO | I97: 0
A98: 89 | B98: Scorpius | C98: Dario Flores | D98: 0 | F98: 0 | H98: PENDIENTE | I98: $ 70.00
A99: 90 | B99: Seúl | C99: Galo Garzón | D99: 0 | F99: 0 | H99: PENDIENTE | I99: $ 70.00
A100: 91 | B100: Seúl Capelo (Sucursal) | C100: Fredy Castillo | D100: 0 | F100: 0 | H100: PENDIENTE | I100: $ 50.00
A101: 92 | B101: Seúl Carapungo (Sucursal) | C101: José Donoso | D101: 0 | F101: 0 | H101: PENDIENTE | I101: $ 50.00
A102: 93 | B102: Seúl Yeong-Gu Carcelen | C102: Brusby Muñoz | D102: 0 | F102: 0 | H102: PENDIENTE | I102: $ 50.00
A103: 94 | B103: Seúl Gedeon (Sucrusal) | C103: José Luís Palacios | D103: 0 | F103: 0 | H103: PENDIENTE | I103: $ 50.00
A104: 95 | B104: Seúl Chung UI (sucursal) | C104: Juan Manuel Villacres | D104: 0 | F104: 0 | H104: PENDIENTE | I104: $ 50.00
A105: 96 | B105: Seúl Vale Todo Capapungo | C105: Angél Vayas | D105: 0 | F105: 0 | H105: PENDIENTE | I105: $ 50.00
A106: 97 | B106: Seúl La Salle | C106: Angelica Guerrero | D106: 0 | F106: 0 | H106: PENDIENTE | I106: $ 50.00
A107: 98 | B107: Shogun | C107: Carlos Vélez | D107: 0 | F107: $ 70.00 | G107: BP. 75401887 - 17-02-2025 | H107: PAGADO | I107: 0
A108: 99 | B108: Simjang Team Club de TKD | C108: Marco Mogollon | D108: 0 | F108: $ 70.00 | G108: BP. 12570316 - 28-01-2025 | H108: PAGADO | I108: 0
A109: 100 | B109: Suryun | C109: Edison Gallardo | D109: 0 | F109: 0 | H109: PENDIENTE | I109: $ 70.00
A110: 101 | B110: Tae Baek Junior | C110: Edwin Arteaga Jr. | D110: 0 | F110: 0 | H110: PENDIENTE | I110: $ 70.00
A111: 102 | B111: Tae Baek Junior Sucursal Solanda | C111: Edwin Arteaga Jr. | D111: 0 | F111: 0 | H111: PENDIENTE | I111: $ 50.00
A112: 103 | B112: Tae Baek | C112: Edwin Arteaga | D112: $ 70.00 | E112: B.P. 38952579 -13-12-2023 | F112: $ 70.00 | G112: BP. 2670551 - 28-01-2025 | H112: PAGADO | I112: 0
A113: 104 | B113: Tae Kings | C113: Jorge Astudillo S. | D113: 0 | F113: 0 | H113: PENDIENTE | I113: $ 70.00
A114: 105 | B114: Tae Sho Ku | C114: Marcelo Ochoa | D114: 0 | F114: 0 | H114: PENDIENTE | I114: $ 70.00
A115: 106 | B115: Tae Sho Ku Team Valle (Sucursal) | C115: Gissela Estrella | D115: 0 | F115: 0 | H115: PENDIENTE | I115: $ 50.00
A116: 107 | B116: TaeDo | C116: Vicente Lazcano | D116: 0 | F116: 0 | H116: PENDIENTE | I116: $ 70.00
A117: 108 | B117: MoodukkwanTrainig Center | C117: Paúl Orellana | D117: 0 | F117: $ 70.00 | G117: BG. 305852 - 12-03-2025 | H117: PAGADO | I117: 0
A118: 109 | B118: Taekwondo Jitae | C118: Emperatriz Quinga | D118: 0 | F118: 0 | H118: PENDIENTE | I118: $ 70.00
A119: 110 | B119: Taekwondo Jucaro | C119: Danilo Xavier Peréz | D119: 0 | F119: 0 | H119: PENDIENTE | I119: $ 70.00
A120: 111 | B120: Tae Woong | C120: Patricia Tuqueres | D120: $ 100.00 | E120: B.P.27841022 - 19-10-2023 | F120: 0 | H120: PENDIENTE | I120: $ 70.00
A121: 112 | B121: Team Tauro Taekwondo | C121: José Chiriboga | D121: 0 | F121: 0 | H121: PENDIENTE | I121: $ 70.00
A122: 113 | B122: Team Vencedores | C122: Victor Hugo Quishpe | D122: 0 | F122: 0 | H122: PENDIENTE | I122: $ 70.00
A123: 114 | B123: Tekken | C123: Gustavo López | D123: 0 | F123: $ 70.00 | G123: PA. 7152417 - 13-01-2025 | H123: PAGADO | I123: 0
A124: 115 | B124: Total Kombat | C124: Raúl Aucancela | D124: 0 | F124: 0 | H124: PENDIENTE | I124: $ 70.00
A125: 116 | B125: Total Kombat Rhinos Sucursal | C125: Gustavo Llamuca | D125: 0 | F125: 0 | H125: PENDIENTE | I125: $ 50.00
A126: 117 | B126: Total Kombat Cobra Kai | C126: Raúl Aucancela | F126: $ 50.00 | G126: VERIFICAR FORMA DE PAGO | H126: PAGADO | I126: 0 | J126: NUEVO
A127: 118 | B127: U. San Francisco USFQ | C127: Carlos Reinoso | D127: 0 | F127: 0 | H127: PENDIENTE | I127: $ 70.00
A128: 119 | B128: Universal | C128: Jorge Sisalema | D128: 0 | F128: $ 70.00 | G128: PA. 3309797 - 27-02-2025 | H128: PAGADO | I128: 0
A129: 120 | B129: Universidad Central (CAMU) | C129: Anthony Rendón | D129: 0 | F129: 0 | H129: PENDIENTE | I129: $ 70.00
A130: 121 | B130: Universidad Hemisferios | C130: Raúl Aucancela | D130: 0 | F130: 0 | H130: PENDIENTE | I130: $ 70.00
A131: 122 | B131: Universidad UTE | C131: Adriana Obando | F131: $ 262.57 | G131: BP. 11052417 - 28-01-2025 | H131: PAGADO | I131: 0
A132: 124 | B132: Venom | C132: Eddy Cajigal K. | D132: 0 | F132: 0 | H132: PENDIENTE | I132: $ 70.00
A133: 125 | B133: Vill Gym | C133: Hernán Villacis | D133: 0 | F133: 0 | H133: PENDIENTE | I133: 0
A134: 126 | B134: Yong Tiger | C134: Wilson Rodríguez | D134: 0 | F134: 0 | H134: PENDIENTE | I134: $ 70.00
B135: TOTAL PAGOS 2025 | D135: =SUM(D11:D134) -> $ 575.00 | F135: =SUM(F11:F134) -> $ 2,462.57 | I135: =SUM(I11:I134) -> $ 6,110.00 | J135: POR COBRAR
B138: Se descuenta 5 USD por cada alumno que participe en Juegos Nacionales
B139: AFILIACIÓN NUEVO CLUB | D139: 200
B140: PERSMISO ANUAL DE FUNCIONAMIENTO | D140: 70
B141: REAFILIACIÓN | D141: 100
B143: PAGOS DEL 01-01-2025 A 15-03-2025

Sheet GAL'S 2024
A2: LICENCIAS DE COMPETIDOR (05 DE SEPTIEMBRE - DICIEMBRE 2024)
A3: FECHA | B3: CLUB | C3: CANT. | D3: PRECIO UNITARIO | E3: VALOR A PAGAR | F3: EFECTIVO | G3: TRANSFERENCIA | H3: VALOR CANCELADO | I3: ESTADO | J3: SALDO | K3: COSTO | L3: GANANCIA | M3: OBSERVACIONES
A4: 2024-09-03 | B4: CAMU | C4: 1 | D4: $ 6.00 | E4: =C4*Tabla1442[[#This Row],[PRECIO UNITARIO]] -> $ 6.00 | F4: 0 | G4: $ 6.00 | H4: =F4+G4 -> $ 6.00 | I4: =IF((E4=H4),"CANCELADO","SALDO PENDIENTE") -> CANCELADO | J4: =Tabla1442[[#This Row],[VALOR A PAGAR]]-Tabla1442[[#This Row],[VALOR CANCELADO]] -> 0 | K4: =Tabla1442[[#This Row],[CANT.]]*2 -> $ 2.00 | L4: =E4-K4 -> $ 4.00
A5: 2024-09-04 | B5: RENACER | C5: 4 | D5: $ 6.00 | E5: =C5*Tabla1442[[#This Row],[PRECIO UNITARIO]] -> $ 24.00 | F5: 0 | G5: $ 24.00 | H5: $ 24.00 | I5: CANCELADO | J5: =Tabla1442[[#This Row],[VALOR A PAGAR]]-Tabla1442[[#This Row],[VALOR CANCELADO]] -> 0 | K5: =Tabla1442[[#This Row],[CANT.]]*2 -> $ 8.00 | L5: $ 16.00
A6: 2024-09-05 | B6: LEÓN | C6: 10 | D6: $ 6.00 | E6: =C6*Tabla1442[[#This Row],[PRECIO UNITARIO]] -> $ 60.00 | F6: 0 | G6: $ 60.00 | H6: $ 60.00 | I6: CANCELADO | J6: =Tabla1442[[#This Row],[VALOR A PAGAR]]-Tabla1442[[#This Row],[VALOR CANCELADO]] -> 0 | K6: =Tabla1442[[#This Row],[CANT.]]*2 -> $ 20.00 | L6: $ 40.00
A7: 2024-09-05 | B7: LEÓN | C7: 2 | D7: $ 6.00 | E7: =C7*Tabla1442[[#This Row],[PRECIO UNITARIO]] -> $ 12.00 | F7: $ 12.00 | G7: 0 | H7: $ 12.00 | I7: CANCELADO | J7: =Tabla1442[[#This Row],[VALOR A PAGAR]]-Tabla1442[[#This Row],[VALOR CANCELADO]] -> 0 | K7: =Tabla1442[[#This Row],[CANT.]]*2 -> $ 4.00 | L7: $ 8.00
A8: 2024-09-06 | B8: BORJA'S LIONS | C8: 2 | D8: $ 6.00 | E8: =C8*Tabla1442[[#This Row],[PRECIO UNITARIO]] -> $ 12.00 | F8: 0 | G8: $ 12.00 | H8: $ 12.00 | I8: CANCELADO | J8: =Tabla1442[[#This Row],[VALOR A PAGAR]]-Tabla1442[[#This Row],[VALOR CANCELADO]] -> 0 | K8: =Tabla1442[[#This Row],[CANT.]]*2 -> $ 4.00 | L8: $ 8.00
A9: 2024-09-06 | B9: KORYO | C9: 1 | D9: $ 6.00 | E9: =C9*Tabla1442[[#This Row],[PRECIO UNITARIO]] -> $ 6.00 | F9: $ 6.00 | G9: 0 | H9: $ 6.00 | I9: CANCELADO | J9: =Tabla1442[[#This Row],[VALOR A PAGAR]]-Tabla1442[[#This Row],[VALOR CANCELADO]] -> 0 | K9: =Tabla1442[[#This Row],[CANT.]]*2 -> $ 2.00 | L9: $ 4.00
A10: 2024-09-10 | B10: FARANG | C10: 1 | D10: $ 6.00 | E10: =C10*Tabla1442[[#This Row],[PRECIO UNITARIO]] -> $ 6.00 | F10: 0 | G10: $ 6.00 | H10: $ 6.00 | I10: CANCELADO | J10: =Tabla1442[[#This Row],[VALOR A PAGAR]]-Tabla1442[[#This Row],[VALOR CANCELADO]] -> 0 | K10: =Tabla1442[[#This Row],[CANT.]]*2 -> $ 2.00 | L10: $ 4.00
A11: 2024-09-10 | B11: KORYO DF DOJANG | C11: 2 | D11: $ 6.00 | E11: =C11*Tabla1442[[#This Row],[PRECIO UNITARIO]] -> $ 12.00 | F11: $ 12.00 | G11: 0 | H11: $ 12.00 | I11: CANCELADO | J11: =Tabla1442[[#This Row],[VALOR A PAGAR]]-Tabla1442[[#This Row],[VALOR CANCELADO]] -> 0 | K11: =Tabla1442[[#This Row],[CANT.]]*2 -> $ 4.00 | L11: $ 8.00
A12: 2024-09-11 | B12: ASOTKD - P CHIMBACALLE | C12: 3 | D12: $ 6.00 | E12: =C12*Tabla1442[[#This Row],[PRECIO UNITARIO]] -> $ 18.00 | F12: $ 18.00 | G12: 0 | H12: $ 18.00 | I12: CANCELADO | J12: =Tabla1442[[#This Row],[VALOR A PAGAR]]-Tabla1442[[#This Row],[VALOR CANCELADO]] -> 0 | K12: =Tabla1442[[#This Row],[CANT.]]*2 -> $ 6.00 | L12: $ 12.00
A13: 2024-09-11 | B13: SEÚL GEDEÓN | C13: 2 | D13: $ 6.00 | E13: =C13*Tabla1442[[#This Row],[PRECIO UNITARIO]] -> $ 12.00 | F13: $ 2.00 | G13: $ 10.00 | H13: $ 12.00 | I13: CANCELADO | J13: =Tabla1442[[#This Row],[VALOR A PAGAR]]-Tabla1442[[#This Row],[VALOR CANCELADO]] -> 0 | K13: =Tabla1442[[#This Row],[CANT.]]*2 -> $ 4.00 | L13: $ 8.00
A14: 2024-09-12 | B14: BORJA'S LIONS | C14: 1 | D14: $ 2.00 | E14: =C14*Tabla1442[[#This Row],[PRECIO UNITARIO]] -> $ 2.00 | F14: 0 | G14: $ 2.00 | H14: $ 2.00 | I14: CANCELADO | J14: =Tabla1442[[#This Row],[VALOR A PAGAR]]-Tabla1442[[#This Row],[VALOR CANCELADO]] -> 0 | K14: =Tabla1442[[#This Row],[CANT.]]*2 -> $ 2.00 | L14: 0
A15: 2024-09-17 | B15: CAMU | C15: 9 | D15: $ 6.00 | E15: =C15*Tabla1442[[#This Row],[PRECIO UNITARIO]] -> $ 54.00 | F15: 0 | G15: $ 54.00 | H15: $ 54.00 | I15: CANCELADO | J15: =Tabla1442[[#This Row],[VALOR A PAGAR]]-Tabla1442[[#This Row],[VALOR CANCELADO]] -> 0 | K15: =Tabla1442[[#This Row],[CANT.]]*2 -> $ 18.00 | L15: $ 36.00
A16: 2024-09-17 | B16: DEBAK TKD | C16: 14 | D16: $ 6.00 | E16: =C16*Tabla1442[[#This Row],[PRECIO UNITARIO]] -> $ 84.00 | F16: 0 | G16: $ 84.00 | H16: $ 84.00 | I16: CANCELADO | J16: =Tabla1442[[#This Row],[VALOR A PAGAR]]-Tabla1442[[#This Row],[VALOR CANCELADO]] -> 0 | K16: =Tabla1442[[#This Row],[CANT.]]*2 -> $ 28.00 | L16: $ 56.00
A17: 2024-09-18 | B17: DEBAK TKD | C17: 1 | D17: $ 6.00 | E17: =C17*Tabla1442[[#This Row],[PRECIO UNITARIO]] -> $ 6.00 | F17: 0 | G17: $ 6.00 | H17: $ 6.00 | I17: CANCELADO | J17: =Tabla1442[[#This Row],[VALOR A PAGAR]]-Tabla1442[[#This Row],[VALOR CANCELADO]] -> 0 | K17: =Tabla1442[[#This Row],[CANT.]]*2 -> $ 2.00 | L17: $ 4.00 | M17: 1º TRÁMITE DEL 18-09-2024
A18: 2024-09-18 | B18: DEBAK TKD | C18: 1 | D18: $ 6.00 | E18: =C18*Tabla1442[[#This Row],[PRECIO UNITARIO]] -> $ 6.00 | F18: 0 | G18: $ 6.00 | H18: $ 6.00 | I18: CANCELADO | J18: =Tabla1442[[#This Row],[VALOR A PAGAR]]-Tabla1442[[#This Row],[VALOR CANCELADO]] -> 0 | K18: =Tabla1442[[#This Row],[CANT.]]*2 -> $ 2.00 | L18: $ 4.00 | M18: 2º TRÁMITE DEL 18-09-2024
A19: 2024-09-19 | B19: S. D. CENTRAL (LIVEO NAVAL) | C19: 11 | D19: $ 6.00 | E19: =C19*Tabla1442[[#This Row],[PRECIO UNITARIO]] -> $ 66.00 | F19: 0 | G19: $ 66.00 | H19: $ 66.00 | I19: CANCELADO | J19: =Tabla1442[[#This Row],[VALOR A PAGAR]]-Tabla1442[[#This Row],[VALOR CANCELADO]] -> 0 | K19: =Tabla1442[[#This Row],[CANT.]]*2 -> $ 22.00 | L19: $ 44.00
A20: 2024-09-19 | B20: EQUILIBRIO | C20: 1 | D20: $ 6.00 | E20: =C20*Tabla1442[[#This Row],[PRECIO UNITARIO]] -> $ 6.00 | F20: 0 | G20: $ 6.00 | H20: $ 6.00 | I20: CANCELADO | J20: =Tabla1442[[#This Row],[VALOR A PAGAR]]-Tabla1442[[#This Row],[VALOR CANCELADO]] -> 0 | K20: =Tabla1442[[#This Row],[CANT.]]*2 -> $ 2.00 | L20: $ 4.00
A21: 2024-09-19 | B21: SEÚL GEDEÓN | C21: 1 | D21: $ 2.00 | E21: =C21*Tabla1442[[#This Row],[PRECIO UNITARIO]] -> $ 2.00 | F21: 0 | G21: $ 2.00 | H21: $ 2.00 | I21: CANCELADO | J21: =Tabla1442[[#This Row],[VALOR A PAGAR]]-Tabla1442[[#This Row],[VALOR CANCELADO]] -> 0 | K21: =Tabla1442[[#This Row],[CANT.]]*2 -> $ 2.00 | L21: 0
A22: 2024-09-24 | B22: KO AMÉRICA | C22: 6 | D22: $ 6.00 | E22: =C22*Tabla1442[[#This Row],[PRECIO UNITARIO]] -> $ 36.00 | F22: 0 | G22: $ 36.00 | H22: $ 36.00 | I22: CANCELADO | J22: =Tabla1442[[#This Row],[VALOR A PAGAR]]-Tabla1442[[#This Row],[VALOR CANCELADO]] -> 0 | K22: =Tabla1442[[#This Row],[CANT.]]*2 -> $ 12.00 | L22: $ 24.00
A23: 2024-09-24 | B23: KO AMÉRICA | C23: 1 | D23: $ 6.00 | E23: =C23*Tabla1442[[#This Row],[PRECIO UNITARIO]] -> $ 6.00 | F23: 0 | G23: $ 6.00 | H23: $ 6.00 | I23: CANCELADO | J23: =Tabla1442[[#This Row],[VALOR A PAGAR]]-Tabla1442[[#This Row],[VALOR CANCELADO]] -> 0 | K23: =Tabla1442[[#This Row],[CANT.]]*2 -> $ 2.00 | L23: $ 4.00
A24: 2024-09-24 | B24: DOJANG TKD MELO | C24: 4 | D24: $ 6.00 | E24: =C24*Tabla1442[[#This Row],[PRECIO UNITARIO]] -> $ 24.00 | F24: 0 | G24: $ 24.00 | H24: $ 24.00 | I24: CANCELADO | J24: =Tabla1442[[#This Row],[VALOR A PAGAR]]-Tabla1442[[#This Row],[VALOR CANCELADO]] -> 0 | K24: =Tabla1442[[#This Row],[CANT.]]*2 -> $ 8.00 | L24: $ 16.00
A25: 2024-09-25 | B25: RENACER | C25: 1 | D25: $ 2.00 | E25: =C25*Tabla1442[[#This Row],[PRECIO UNITARIO]] -> $ 2.00 | F25: 0 | G25: $ 2.00 | H25: $ 2.00 | I25: CANCELADO | J25: =Tabla1442[[#This Row],[VALOR A PAGAR]]-Tabla1442[[#This Row],[VALOR CANCELADO]] -> 0 | K25: =Tabla1442[[#This Row],[CANT.]]*2 -> $ 2.00 | L25: 0 | M25: REIMPRESIÓN
A26: 2024-09-26 | B26: TAE KING'S | C26: 3 | D26: $ 6.00 | E26: =C26*Tabla1442[[#This Row],[PRECIO UNITARIO]] -> $ 18.00 | F26: 0 | G26: $ 18.00 | H26: $ 18.00 | I26: CANCELADO | J26: =Tabla1442[[#This Row],[VALOR A PAGAR]]-Tabla1442[[#This Row],[VALOR CANCELADO]] -> 0 | K26: =Tabla1442[[#This Row],[CANT.]]*2 -> $ 6.00 | L26: $ 12.00
A27: 2024-09-27 | B27: DEBAK TKD | C27: 1 | D27: $ 2.00 | E27: =C27*Tabla1442[[#This Row],[PRECIO UNITARIO]] -> $ 2.00 | F27: 0 | G27: $ 2.00 | H27: $ 2.00 | I27: CANCELADO | J27: =Tabla1442[[#This Row],[VALOR A PAGAR]]-Tabla1442[[#This Row],[VALOR CANCELADO]] -> 0 | K27: =Tabla1442[[#This Row],[CANT.]]*2 -> $ 2.00 | L27: 0
A28: 2024-10-01 | B28: ESPE | C28: 15 | D28: $ 6.00 | E28: =C28*Tabla1442[[#This Row],[PRECIO UNITARIO]] -> $ 90.00 | F28: 0 | G28: $ 90.00 | H28: $ 90.00 | I28: CANCELADO | J28: =Tabla1442[[#This Row],[VALOR A PAGAR]]-Tabla1442[[#This Row],[VALOR CANCELADO]] -> 0 | K28: =Tabla1442[[#This Row],[CANT.]]*2 -> $ 30.00 | L28: $ 60.00
A29: 2024-10-01 | B29: BAEKJUL AYALAZ | C29: 8 | D29: $ 6.00 | E29: =C29*Tabla1442[[#This Row],[PRECIO UNITARIO]] -> $ 48.00 | F29: 0 | G29: $ 48.00 | H29: $ 48.00 | I29: CANCELADO | J29: =Tabla1442[[#This Row],[VALOR A PAGAR]]-Tabla1442[[#This Row],[VALOR CANCELADO]] -> 0 | K29: =Tabla1442[[#This Row],[CANT.]]*2 -> $ 16.00 | L29: $ 32.00
A30: 2024-10-02 | B30: DEBAK TKD | C30: 1 | D30: $ 6.00 | E30: =C30*Tabla1442[[#This Row],[PRECIO UNITARIO]] -> $ 6.00 | F30: 0 | G30: $ 6.00 | H30: $ 6.00 | I30: CANCELADO | J30: =Tabla1442[[#This Row],[VALOR A PAGAR]]-Tabla1442[[#This Row],[VALOR CANCELADO]] -> 0 | K30: =Tabla1442[[#This Row],[CANT.]]*2 -> $ 2.00 | L30: $ 4.00
A31: 2024-10-03 | B31: ASOTKD - P CHIMBACALLE | C31: 11 | D31: $ 6.00 | E31: =C31*Tabla1442[[#This Row],[PRECIO UNITARIO]] -> $ 66.00 | F31: $ 66.00 | G31: 0 | H31: $ 66.00 | I31: CANCELADO | J31: =Tabla1442[[#This Row],[VALOR A PAGAR]]-Tabla1442[[#This Row],[VALOR CANCELADO]] -> 0 | K31: =Tabla1442[[#This Row],[CANT.]]*2 -> $ 22.00 | L31: $ 44.00
A32: 2024-10-04 | B32: TAEKWONDO TRAINING CENTER | C32: 1 | D32: $ 6.00 | E32: =C32*Tabla1442[[#This Row],[PRECIO UNITARIO]] -> $ 6.00 | F32: 0 | G32: $ 6.00 | H32: $ 6.00 | I32: CANCELADO | J32: =Tabla1442[[#This Row],[VALOR A PAGAR]]-Tabla1442[[#This Row],[VALOR CANCELADO]] -> 0 | K32: =Tabla1442[[#This Row],[CANT.]]*2 -> $ 2.00 | L32: $ 4.00
A33: 2024-10-07 | B33: ASOTKD - P CHIMBACALLE | C33: 1 | D33: $ 6.00 | E33: =C33*Tabla1442[[#This Row],[PRECIO UNITARIO]] -> $ 6.00 | F33: $ 6.00 | G33: 0 | H33: $ 6.00 | I33: CANCELADO | J33: =Tabla1442[[#This Row],[VALOR A PAGAR]]-Tabla1442[[#This Row],[VALOR CANCELADO]] -> 0 | K33: =Tabla1442[[#This Row],[CANT.]]*2 -> $ 2.00 | L33: $ 4.00
A34: 2024-10-08 | B34: JIDOKWAN | C34: 1 | D34: $ 6.00 | E34: =C34*Tabla1442[[#This Row],[PRECIO UNITARIO]] -> $ 6.00 | F34: $ 6.00 | G34: 0 | H34: $ 6.00 | I34: CANCELADO | J34: =Tabla1442[[#This Row],[VALOR A PAGAR]]-Tabla1442[[#This Row],[VALOR CANCELADO]] -> 0 | K34: =Tabla1442[[#This Row],[CANT.]]*2 -> $ 2.00 | L34: $ 4.00
A35: 2024-10-08 | B35: MINOTAUROS | C35: 9 | D35: $ 6.00 | E35: =C35*Tabla1442[[#This Row],[PRECIO UNITARIO]] -> $ 54.00 | F35: 0 | G35: $ 54.00 | H35: $ 54.00 | I35: CANCELADO | J35: =Tabla1442[[#This Row],[VALOR A PAGAR]]-Tabla1442[[#This Row],[VALOR CANCELADO]] -> 0 | K35: =Tabla1442[[#This Row],[CANT.]]*2 -> $ 18.00 | L35: $ 36.00
A36: 2024-10-09 | B36: KO AMÉRICA DRAGON FIRE | C36: 4 | D36: $ 6.00 | E36: =C36*Tabla1442[[#This Row],[PRECIO UNITARIO]] -> $ 24.00 | F36: 0 | G36: $ 24.00 | H36: =F36+G36 -> $ 24.00 | I36: =IF((E36=H36),"CANCELADO","SALDO PENDIENTE") -> CANCELADO | J36: =Tabla1442[[#This Row],[VALOR A PAGAR]]-Tabla1442[[#This Row],[VALOR CANCELADO]] -> 0 | K36: =Tabla1442[[#This Row],[CANT.]]*2 -> $ 8.00 | L36: =E36-K36 -> $ 16.00
A37: 2024-10-16 | B37: ARES | C37: 1 | D37: $ 6.00 | E37: =C37*Tabla1442[[#This Row],[PRECIO UNITARIO]] -> $ 6.00 | F37: 0 | G37: $ 6.00 | H37: $ 6.00 | I37: CANCELADO | J37: =Tabla1442[[#This Row],[VALOR A PAGAR]]-Tabla1442[[#This Row],[VALOR CANCELADO]] -> 0 | K37: =Tabla1442[[#This Row],[CANT.]]*2 -> $ 2.00 | L37: $ 4.00
A38: 2024-10-18 | B38: ASOTKD - P CHIMBACALLE | C38: 5 | D38: $ 6.00 | E38: =C38*Tabla1442[[#This Row],[PRECIO UNITARIO]] -> $ 30.00 | F38: $ 30.00 | G38: 0 | H38: $ 30.00 | I38: CANCELADO | J38: =Tabla1442[[#This Row],[VALOR A PAGAR]]-Tabla1442[[#This Row],[VALOR CANCELADO]] -> 0 | K38: =Tabla1442[[#This Row],[CANT.]]*2 -> $ 10.00 | L38: $ 20.00
A39: 2024-10-18 | B39: MILLENIUM | C39: 3 | D39: $ 6.00 | E39: =C39*Tabla1442[[#This Row],[PRECIO UNITARIO]] -> $ 18.00 | F39: 0 | G39: $ 18.00 | H39: $ 18.00 | I39: CANCELADO | J39: =Tabla1442[[#This Row],[VALOR A PAGAR]]-Tabla1442[[#This Row],[VALOR CANCELADO]] -> 0 | K39: =Tabla1442[[#This Row],[CANT.]]*2 -> $ 6.00 | L39: $ 12.00
A40: 2024-10-22 | B40: DRAGON GYM | C40: 15 | D40: $ 6.00 | E40: =C40*Tabla1442[[#This Row],[PRECIO UNITARIO]] -> $ 90.00 | F40: 0 | G40: $ 90.00 | H40: $ 90.00 | I40: CANCELADO | J40: =Tabla1442[[#This Row],[VALOR A PAGAR]]-Tabla1442[[#This Row],[VALOR CANCELADO]] -> 0 | K40: =Tabla1442[[#This Row],[CANT.]]*2 -> $ 30.00 | L40: $ 60.00
A41: 2024-10-22 | B41: DRAGON GYM | C41: 1 | D41: $ 6.00 | E41: =C41*Tabla1442[[#This Row],[PRECIO UNITARIO]] -> $ 6.00 | F41: 0 | G41: $ 6.00 | H41: $ 6.00 | I41: CANCELADO | J41: =Tabla1442[[#This Row],[VALOR A PAGAR]]-Tabla1442[[#This Row],[VALOR CANCELADO]] -> 0 | K41: =Tabla1442[[#This Row],[CANT.]]*2 -> $ 2.00 | L41: $ 4.00
A42: 2024-10-23 | B42: DRAGON GYM | C42: 7 | D42: $ 6.00 | E42: =C42*Tabla1442[[#This Row],[PRECIO UNITARIO]] -> $ 42.00 | F42: 0 | G42: $ 42.00 | H42: $ 42.00 | I42: CANCELADO | J42: =Tabla1442[[#This Row],[VALOR A PAGAR]]-Tabla1442[[#This Row],[VALOR CANCELADO]] -> 0 | K42: =Tabla1442[[#This Row],[CANT.]]*2 -> $ 14.00 | L42: $ 28.00 | M42: REIMPRESIÓN AÑOS ANTERIORES
A43: 2024-10-25 | B43: DRAGON GYM | C43: 1 | D43: $ 2.00 | E43: =C43*Tabla1442[[#This Row],[PRECIO UNITARIO]] -> $ 2.00 | F43: 0 | G43: $ 2.00 | H43: $ 2.00 | I43: CANCELADO | J43: =Tabla1442[[#This Row],[VALOR A PAGAR]]-Tabla1442[[#This Row],[VALOR CANCELADO]] -> 0 | K43: =Tabla1442[[#This Row],[CANT.]]*2 -> $ 2.00 | L43: 0 | M43: REIMPRESIÓN AÑOS ANTERIORES
A44: 2024-11-05 | B44: BAS PANTHERS | C44: 6 | D44: $ 8.00 | E44: =C44*Tabla1442[[#This Row],[PRECIO UNITARIO]] -> $ 48.00 | F44: 0 | G44: $ 48.00 | H44: $ 48.00 | I44: CANCELADO | J44: =Tabla1442[[#This Row],[VALOR A PAGAR]]-Tabla1442[[#This Row],[VALOR CANCELADO]] -> 0 | K44: =Tabla1442[[#This Row],[CANT.]]*2 -> $ 12.00 | L44: $ 36.00 | M44: GAL'S CON VIGENCIA 2025
A45: 2024-11-05 | B45: SAN FRANCISCO TIGRES | C45: 2 | D45: $ 6.00 | E45: =C45*Tabla1442[[#This Row],[PRECIO UNITARIO]] -> $ 12.00 | F45: 0 | G45: $ 12.00 | H45: $ 12.00 | I45: CANCELADO | J45: =Tabla1442[[#This Row],[VALOR A PAGAR]]-Tabla1442[[#This Row],[VALOR CANCELADO]] -> 0 | K45: =Tabla1442[[#This Row],[CANT.]]*2 -> $ 4.00 | L45: $ 8.00 | M45: GAL'S CON VIGENCIA 2025
A46: 2024-11-07 | B46: MIKIDO | C46: 6 | D46: $ 8.00 | E46: =C46*Tabla1442[[#This Row],[PRECIO UNITARIO]] -> $ 48.00 | F46: 0 | G46: $ 48.00 | H46: $ 48.00 | I46: CANCELADO | J46: =Tabla1442[[#This Row],[VALOR A PAGAR]]-Tabla1442[[#This Row],[VALOR CANCELADO]] -> 0 | K46: =Tabla1442[[#This Row],[CANT.]]*2 -> $ 12.00 | L46: $ 36.00 | M46: GAL'S CON VIGENCIA 2025
A47: 2024-11-07 | B47: MARCIAL GRANDA | C47: 6 | D47: $ 8.00 | E47: =C47*Tabla1442[[#This Row],[PRECIO UNITARIO]] -> $ 48.00 | F47: 0 | G47: $ 48.00 | H47: $ 48.00 | I47: CANCELADO | J47: =Tabla1442[[#This Row],[VALOR A PAGAR]]-Tabla1442[[#This Row],[VALOR CANCELADO]] -> 0 | K47: =Tabla1442[[#This Row],[CANT.]]*2 -> $ 12.00 | L47: $ 36.00 | M47: GAL'S CON VIGENCIA 2025
A48: 2024-11-08 | B48: DEBAK TKD | C48: 15 | D48: $ 8.00 | E48: =C48*Tabla1442[[#This Row],[PRECIO UNITARIO]] -> $ 120.00 | F48: 0 | G48: $ 120.00 | H48: $ 120.00 | I48: CANCELADO | J48: =Tabla1442[[#This Row],[VALOR A PAGAR]]-Tabla1442[[#This Row],[VALOR CANCELADO]] -> 0 | K48: =Tabla1442[[#This Row],[CANT.]]*2 -> $ 30.00 | L48: $ 90.00 | M48: GAL'S CON VIGENCIA 2025
A49: 2024-11-11 | B49: KYORUGUI GYM | C49: 9 | D49: $ 8.00 | E49: =C49*Tabla1442[[#This Row],[PRECIO UNITARIO]] -> $ 72.00 | F49: 0 | G49: $ 72.00 | H49: $ 72.00 | I49: CANCELADO | J49: =Tabla1442[[#This Row],[VALOR A PAGAR]]-Tabla1442[[#This Row],[VALOR CANCELADO]] -> 0 | K49: =Tabla1442[[#This Row],[CANT.]]*2 -> $ 18.00 | L49: $ 54.00 | M49: GAL'S CON VIGENCIA 2025
A50: 2024-11-11 | B50: SURYUN | C50: 17 | D50: $ 6.00 | E50: =C50*Tabla1442[[#This Row],[PRECIO UNITARIO]] -> $ 102.00 | F50: 0 | G50: $ 102.00 | H50: $ 102.00 | I50: CANCELADO | J50: =Tabla1442[[#This Row],[VALOR A PAGAR]]-Tabla1442[[#This Row],[VALOR CANCELADO]] -> 0 | K50: =Tabla1442[[#This Row],[CANT.]]*2 -> $ 34.00 | L50: $ 68.00 | M50: GAL'S CON VIGENCIA 2025
A51: 2024-11-12 | B51: SAN SEBASTIÁN (LUIS TIPÁN) | C51: 4 | D51: $ 6.00 | E51: =C51*Tabla1442[[#This Row],[PRECIO UNITARIO]] -> $ 24.00 | F51: 0 | G51: $ 24.00 | H51: $ 24.00 | I51: CANCELADO | J51: =Tabla1442[[#This Row],[VALOR A PAGAR]]-Tabla1442[[#This Row],[VALOR CANCELADO]] -> 0 | K51: =Tabla1442[[#This Row],[CANT.]]*2 -> $ 8.00 | L51: $ 16.00 | M51: GAL'S CON VIGENCIA 2025
A52: 2024-11-12 | B52: MARCIAL GRANDA | C52: 1 | D52: $ 8.00 | E52: =C52*Tabla1442[[#This Row],[PRECIO UNITARIO]] -> $ 8.00 | F52: 0 | G52: $ 8.00 | H52: $ 8.00 | I52: CANCELADO | J52: =Tabla1442[[#This Row],[VALOR A PAGAR]]-Tabla1442[[#This Row],[VALOR CANCELADO]] -> 0 | K52: =Tabla1442[[#This Row],[CANT.]]*2 -> $ 2.00 | L52: $ 6.00 | M52: GAL'S CON VIGENCIA 2025
A53: 2024-11-12 | B53: SURYUN | C53: 9 | D53: $ 6.00 | E53: =C53*Tabla1442[[#This Row],[PRECIO UNITARIO]] -> $ 54.00 | F53: 0 | G53: $ 54.00 | H53: $ 54.00 | I53: CANCELADO | J53: =Tabla1442[[#This Row],[VALOR A PAGAR]]-Tabla1442[[#This Row],[VALOR CANCELADO]] -> 0 | K53: =Tabla1442[[#This Row],[CANT.]]*2 -> $ 18.00 | L53: $ 36.00 | M53: GAL'S CON VIGENCIA 2025
A54: 2024-11-12 | B54: DOJANG TKD MELO | C54: 1 | D54: $ 6.00 | E54: =C54*Tabla1442[[#This Row],[PRECIO UNITARIO]] -> $ 6.00 | F54: 0 | G54: $ 6.00 | H54: $ 6.00 | I54: CANCELADO | J54: =Tabla1442[[#This Row],[VALOR A PAGAR]]-Tabla1442[[#This Row],[VALOR CANCELADO]] -> 0 | K54: =Tabla1442[[#This Row],[CANT.]]*2 -> $ 2.00 | L54: $ 4.00 | M54: GAL'S CON VIGENCIA 2025
A55: 2024-11-12 | B55: TAEGUK JUCARO | C55: 10 | D55: $ 8.00 | E55: =C55*Tabla1442[[#This Row],[PRECIO UNITARIO]] -> $ 80.00 | F55: 0 | G55: $ 80.00 | H55: $ 80.00 | I55: CANCELADO | J55: =Tabla1442[[#This Row],[VALOR A PAGAR]]-Tabla1442[[#This Row],[VALOR CANCELADO]] -> 0 | K55: =Tabla1442[[#This Row],[CANT.]]*2 -> $ 20.00 | L55: $ 60.00 | M55: GAL'S CON VIGENCIA 2025
A56: 2024-11-12 | B56: SEUL GEDEON | C56: 2 | D56: $ 8.00 | E56: =C56*Tabla1442[[#This Row],[PRECIO UNITARIO]] -> $ 16.00 | F56: 0 | G56: $ 16.00 | H56: $ 16.00 | I56: CANCELADO | J56: =Tabla1442[[#This Row],[VALOR A PAGAR]]-Tabla1442[[#This Row],[VALOR CANCELADO]] -> 0 | K56: =Tabla1442[[#This Row],[CANT.]]*2 -> $ 4.00 | L56: $ 12.00 | M56: GAL'S CON VIGENCIA 2025
A57: 2024-11-12 | B57: APOLO | C57: 11 | D57: $ 6.00 | E57: =C57*Tabla1442[[#This Row],[PRECIO UNITARIO]] -> $ 66.00 | F57: 0 | G57: $ 66.00 | H57: $ 66.00 | I57: CANCELADO | J57: =Tabla1442[[#This Row],[VALOR A PAGAR]]-Tabla1442[[#This Row],[VALOR CANCELADO]] -> 0 | K57: =Tabla1442[[#This Row],[CANT.]]*2 -> $ 22.00 | L57: $ 44.00 | M57: GAL'S CON VIGENCIA 2025
A58: 2024-11-12 | B58: APOLO | C58: 9 | D58: $ 6.00 | E58: =C58*Tabla1442[[#This Row],[PRECIO UNITARIO]] -> $ 54.00 | F58: 0 | G58: $ 54.00 | H58: $ 54.00 | I58: CANCELADO | J58: =Tabla1442[[#This Row],[VALOR A PAGAR]]-Tabla1442[[#This Row],[VALOR CANCELADO]] -> 0 | K58: =Tabla1442[[#This Row],[CANT.]]*2 -> $ 18.00 | L58: $ 36.00 | M58: GAL'S CON VIGENCIA 2025
A59: 2024-11-13 | B59: SURYUN | C59: 1 | D59: $ 6.00 | E59: =C59*Tabla1442[[#This Row],[PRECIO UNITARIO]] -> $ 6.00 | F59: 0 | G59: $ 6.00 | H59: $ 6.00 | I59: CANCELADO | J59: =Tabla1442[[#This Row],[VALOR A PAGAR]]-Tabla1442[[#This Row],[VALOR CANCELADO]] -> 0 | K59: =Tabla1442[[#This Row],[CANT.]]*2 -> $ 2.00 | L59: $ 4.00 | M59: GAL'S CON VIGENCIA 2025
A60: 2024-11-13 | B60: USFQ | C60: 1 | D60: $ 6.00 | E60: =C60*Tabla1442[[#This Row],[PRECIO UNITARIO]] -> $ 6.00 | F60: 0 | G60: $ 6.00 | H60: $ 6.00 | I60: CANCELADO | J60: =Tabla1442[[#This Row],[VALOR A PAGAR]]-Tabla1442[[#This Row],[VALOR CANCELADO]] -> 0 | K60: =Tabla1442[[#This Row],[CANT.]]*2 -> $ 2.00 | L60: $ 4.00 | M60: GAL'S CON VIGENCIA 2025
A61: 2024-11-13 | B61: USFQ | C61: 3 | D61: $ 6.00 | E61: =C61*Tabla1442[[#This Row],[PRECIO UNITARIO]] -> $ 18.00 | F61: 0 | G61: $ 18.00 | H61: $ 18.00 | I61: CANCELADO | J61: =Tabla1442[[#This Row],[VALOR A PAGAR]]-Tabla1442[[#This Row],[VALOR CANCELADO]] -> 0 | K61: =Tabla1442[[#This Row],[CANT.]]*2 -> $ 6.00 | L61: $ 12.00 | M61: GAL'S CON VIGENCIA 2025
A62: 2024-11-13 | B62: MARCIAL GRANDA | C62: 1 | D62: $ 8.00 | E62: =C62*Tabla1442[[#This Row],[PRECIO UNITARIO]] -> $ 8.00 | F62: 0 | G62: $ 8.00 | H62: $ 8.00 | I62: CANCELADO | J62: =Tabla1442[[#This Row],[VALOR A PAGAR]]-Tabla1442[[#This Row],[VALOR CANCELADO]] -> 0 | K62: =Tabla1442[[#This Row],[CANT.]]*2 -> $ 2.00 | L62: $ 6.00 | M62: GAL'S CON VIGENCIA 2025
A63: 2024-11-13 | B63: BORJA'S LIONS | C63: 3 | D63: $ 6.00 | E63: =C63*Tabla1442[[#This Row],[PRECIO UNITARIO]] -> $ 18.00 | F63: 0 | G63: $ 18.00 | H63: $ 18.00 | I63: CANCELADO | J63: =Tabla1442[[#This Row],[VALOR A PAGAR]]-Tabla1442[[#This Row],[VALOR CANCELADO]] -> 0 | K63: =Tabla1442[[#This Row],[CANT.]]*2 -> $ 6.00 | L63: $ 12.00 | M63: GAL'S CON VIGENCIA 2025
A64: 2024-11-13 | B64: KUMGANG DUL | C64: 4 | D64: $ 6.00 | E64: =C64*Tabla1442[[#This Row],[PRECIO UNITARIO]] -> $ 24.00 | F64: 0 | G64: $ 24.00 | H64: $ 24.00 | I64: CANCELADO | J64: =Tabla1442[[#This Row],[VALOR A PAGAR]]-Tabla1442[[#This Row],[VALOR CANCELADO]] -> 0 | K64: =Tabla1442[[#This Row],[CANT.]]*2 -> $ 8.00 | L64: $ 16.00 | M64: GAL'S CON VIGENCIA 2025
A65: 2024-11-13 | B65: L. D. C. MEJÍA | C65: 2 | D65: $ 8.00 | E65: =C65*Tabla1442[[#This Row],[PRECIO UNITARIO]] -> $ 16.00 | F65: 0 | G65: $ 16.00 | H65: $ 16.00 | I65: CANCELADO | J65: =Tabla1442[[#This Row],[VALOR A PAGAR]]-Tabla1442[[#This Row],[VALOR CANCELADO]] -> 0 | K65: =Tabla1442[[#This Row],[CANT.]]*2 -> $ 4.00 | L65: $ 12.00 | M65: GAL'S CON VIGENCIA 2025
A66: 2024-11-13 | B66: ARES | C66: 2 | D66: $ 8.00 | E66: =C66*Tabla1442[[#This Row],[PRECIO UNITARIO]] -> $ 16.00 | F66: 0 | G66: $ 16.00 | H66: $ 16.00 | I66: CANCELADO | J66: =Tabla1442[[#This Row],[VALOR A PAGAR]]-Tabla1442[[#This Row],[VALOR CANCELADO]] -> 0 | K66: =Tabla1442[[#This Row],[CANT.]]*2 -> $ 4.00 | L66: $ 12.00 | M66: GAL'S CON VIGENCIA 2025
A67: 2024-11-14 | B67: BLUE DRAGONS | C67: 10 | D67: $ 8.00 | E67: =C67*Tabla1442[[#This Row],[PRECIO UNITARIO]] -> $ 80.00 | F67: 0 | G67: $ 80.00 | H67: $ 80.00 | I67: CANCELADO | J67: =Tabla1442[[#This Row],[VALOR A PAGAR]]-Tabla1442[[#This Row],[VALOR CANCELADO]] -> 0 | K67: =Tabla1442[[#This Row],[CANT.]]*2 -> $ 20.00 | L67: $ 60.00 | M67: GAL'S CON VIGENCIA 2025
A68: 2024-11-14 | B68: BORJA'S LIONS | C68: 4 | D68: $ 6.00 | E68: =C68*Tabla1442[[#This Row],[PRECIO UNITARIO]] -> $ 24.00 | F68: 0 | G68: $ 24.00 | H68: =F68+G68 -> $ 24.00 | I68: =IF((E68=H68),"CANCELADO","SALDO PENDIENTE") -> CANCELADO | J68: =Tabla1442[[#This Row],[VALOR A PAGAR]]-Tabla1442[[#This Row],[VALOR CANCELADO]] -> 0 | K68: =Tabla1442[[#This Row],[CANT.]]*2 -> $ 8.00 | L68: =E68-K68 -> $ 16.00 | M68: GAL'S CON VIGENCIA 2025
A69: 2024-11-14 | B69: TOTAL KOMBAT | C69: 5 | D69: $ 6.00 | E69: =C69*Tabla1442[[#This Row],[PRECIO UNITARIO]] -> $ 30.00 | F69: 0 | G69: $ 30.00 | H69: $ 30.00 | I69: CANCELADO | J69: =Tabla1442[[#This Row],[VALOR A PAGAR]]-Tabla1442[[#This Row],[VALOR CANCELADO]] -> 0 | K69: =Tabla1442[[#This Row],[CANT.]]*2 -> $ 10.00 | L69: $ 20.00 | M69: CANCELA EN TRES DEPÓSITOS (13 Y 14 DE NOV 2024)
A70: 2024-11-14 | B70: BLUE DRAGONS | C70: 1 | D70: $ 8.00 | E70: =C70*Tabla1442[[#This Row],[PRECIO UNITARIO]] -> $ 8.00 | F70: 0 | G70: $ 8.00 | H70: $ 8.00 | I70: CANCELADO | J70: =Tabla1442[[#This Row],[VALOR A PAGAR]]-Tabla1442[[#This Row],[VALOR CANCELADO]] -> 0 | K70: =Tabla1442[[#This Row],[CANT.]]*2 -> $ 2.00 | L70: $ 6.00 | M70: GAL'S CON VIGENCIA 2025
A71: 2024-11-14 | B71: BAEKJUL AYALAZ | C71: 8 | D71: $ 8.00 | E71: =C71*Tabla1442[[#This Row],[PRECIO UNITARIO]] -> $ 64.00 | F71: 0 | G71: $ 64.00 | H71: $ 64.00 | I71: CANCELADO | J71: =Tabla1442[[#This Row],[VALOR A PAGAR]]-Tabla1442[[#This Row],[VALOR CANCELADO]] -> 0 | K71: =Tabla1442[[#This Row],[CANT.]]*2 -> $ 16.00 | L71: $ 48.00 | M71: GAL'S CON VIGENCIA 2025
A72: 2024-11-14 | B72: BAEKJUL AYALAZ | C72: 1 | D72: $ 8.00 | E72: =C72*Tabla1442[[#This Row],[PRECIO UNITARIO]] -> $ 8.00 | F72: 0 | G72: $ 8.00 | H72: $ 8.00 | I72: CANCELADO | J72: =Tabla1442[[#This Row],[VALOR A PAGAR]]-Tabla1442[[#This Row],[VALOR CANCELADO]] -> 0 | K72: =Tabla1442[[#This Row],[CANT.]]*2 -> $ 2.00 | L72: $ 6.00 | M72: GAL'S CON VIGENCIA 2025
A73: 2024-11-14 | B73: EQUILIBRIO | C73: 22 | D73: $ 8.00 | E73: =C73*Tabla1442[[#This Row],[PRECIO UNITARIO]] -> $ 176.00 | F73: 0 | G73: $ 176.00 | H73: $ 176.00 | I73: CANCELADO | J73: =Tabla1442[[#This Row],[VALOR A PAGAR]]-Tabla1442[[#This Row],[VALOR CANCELADO]] -> 0 | K73: =Tabla1442[[#This Row],[CANT.]]*2 -> $ 44.00 | L73: $ 132.00 | M73: GAL'S CON VIGENCIA 2025
A74: 2024-11-14 | B74: EQUILIBRIO | C74: 2 | D74: $ 6.00 | E74: =C74*Tabla1442[[#This Row],[PRECIO UNITARIO]] -> $ 12.00 | F74: 0 | G74: $ 12.00 | H74: $ 12.00 | I74: CANCELADO | J74: =Tabla1442[[#This Row],[VALOR A PAGAR]]-Tabla1442[[#This Row],[VALOR CANCELADO]] -> 0 | K74: =Tabla1442[[#This Row],[CANT.]]*2 -> $ 4.00 | L74: $ 8.00 | M74: GAL'S CON VIGENCIA 2025
A75: 2024-11-14 | B75: SEUL | C75: 1 | D75: $ 6.00 | E75: =C75*Tabla1442[[#This Row],[PRECIO UNITARIO]] -> $ 6.00 | F75: 0 | G75: $ 6.00 | H75: $ 6.00 | I75: CANCELADO | J75: =Tabla1442[[#This Row],[VALOR A PAGAR]]-Tabla1442[[#This Row],[VALOR CANCELADO]] -> 0 | K75: =Tabla1442[[#This Row],[CANT.]]*2 -> $ 2.00 | L75: $ 4.00 | M75: GAL'S CON VIGENCIA 2025
A76: 2024-11-14 | B76: SEUL | C76: 1 | D76: $ 6.00 | E76: =C76*Tabla1442[[#This Row],[PRECIO UNITARIO]] -> $ 6.00 | F76: 0 | G76: $ 6.00 | H76: $ 6.00 | I76: CANCELADO | J76: =Tabla1442[[#This Row],[VALOR A PAGAR]]-Tabla1442[[#This Row],[VALOR CANCELADO]] -> 0 | K76: =Tabla1442[[#This Row],[CANT.]]*2 -> $ 2.00 | L76: $ 4.00 | M76: GAL'S CON VIGENCIA 2025
A77: 2024-11-14 | B77: BAEKJUL | C77: 4 | D77: $ 6.00 | E77: =C77*Tabla1442[[#This Row],[PRECIO UNITARIO]] -> $ 24.00 | F77: 0 | G77: $ 24.00 | H77: $ 24.00 | I77: CANCELADO | J77: =Tabla1442[[#This Row],[VALOR A PAGAR]]-Tabla1442[[#This Row],[VALOR CANCELADO]] -> 0 | K77: =Tabla1442[[#This Row],[CANT.]]*2 -> $ 8.00 | L77: $ 16.00 | M77: GAL'S CON VIGENCIA 2025
A78: 2024-11-14 | B78: BAEKJUL | C78: 1 | D78: $ 6.00 | E78: =C78*Tabla1442[[#This Row],[PRECIO UNITARIO]] -> $ 6.00 | F78: 0 | G78: $ 6.00 | H78: $ 6.00 | I78: CANCELADO | J78: =Tabla1442[[#This Row],[VALOR A PAGAR]]-Tabla1442[[#This Row],[VALOR CANCELADO]] -> 0 | K78: =Tabla1442[[#This Row],[CANT.]]*2 -> $ 2.00 | L78: $ 4.00 | M78: GAL'S CON VIGENCIA 2025
A79: 2024-11-14 | B79: ASOTKD - P CHIMBACALLE | C79: 6 | D79: $ 8.00 | E79: =C79*Tabla1442[[#This Row],[PRECIO UNITARIO]] -> $ 48.00 | F79: $ 48.00 | G79: 0 | H79: $ 48.00 | I79: CANCELADO | J79: =Tabla1442[[#This Row],[VALOR A PAGAR]]-Tabla1442[[#This Row],[VALOR CANCELADO]] -> 0 | K79: =Tabla1442[[#This Row],[CANT.]]*2 -> $ 12.00 | L79: $ 36.00 | M79: GAL'S CON VIGENCIA 2025
A80: 2024-11-14 | B80: SEUL | C80: 1 | D80: $ 8.00 | E80: =C80*Tabla1442[[#This Row],[PRECIO UNITARIO]] -> $ 8.00 | F80: 0 | G80: $ 8.00 | H80: $ 8.00 | I80: CANCELADO | J80: =Tabla1442[[#This Row],[VALOR A PAGAR]]-Tabla1442[[#This Row],[VALOR CANCELADO]] -> 0 | K80: =Tabla1442[[#This Row],[CANT.]]*2 -> $ 2.00 | L80: $ 6.00 | M80: GAL'S CON VIGENCIA 2025
A81: 2024-11-14 | B81: APOLO | C81: 5 | D81: $ 6.00 | E81: =C81*Tabla1442[[#This Row],[PRECIO UNITARIO]] -> $ 30.00 | F81: 0 | G81: $ 30.00 | H81: $ 30.00 | I81: CANCELADO | J81: =Tabla1442[[#This Row],[VALOR A PAGAR]]-Tabla1442[[#This Row],[VALOR CANCELADO]] -> 0 | K81: =Tabla1442[[#This Row],[CANT.]]*2 -> $ 10.00 | L81: $ 20.00 | M81: GAL'S CON VIGENCIA 2025
A82: 2024-11-14 | B82: APOLO | C82: 1 | D82: $ 6.00 | E82: =C82*Tabla1442[[#This Row],[PRECIO UNITARIO]] -> $ 6.00 | F82: 0 | G82: $ 6.00 | H82: $ 6.00 | I82: CANCELADO | J82: =Tabla1442[[#This Row],[VALOR A PAGAR]]-Tabla1442[[#This Row],[VALOR CANCELADO]] -> 0 | K82: =Tabla1442[[#This Row],[CANT.]]*2 -> $ 2.00 | L82: $ 4.00 | M82: GAL'S CON VIGENCIA 2025
A83: 2024-11-14 | B83: FURIA NEGRA | C83: 2 | D83: $ 8.00 | E83: =C83*Tabla1442[[#This Row],[PRECIO UNITARIO]] -> $ 16.00 | F83: 0 | G83: $ 16.00 | H83: $ 16.00 | I83: CANCELADO | J83: =Tabla1442[[#This Row],[VALOR A PAGAR]]-Tabla1442[[#This Row],[VALOR CANCELADO]] -> 0 | K83: =Tabla1442[[#This Row],[CANT.]]*2 -> $ 4.00 | L83: $ 12.00 | M83: GAL'S CON VIGENCIA 2025
A84: 2024-11-14 | B84: FURIA NEGRA | C84: 1 | D84: $ 6.00 | E84: =C84*Tabla1442[[#This Row],[PRECIO UNITARIO]] -> $ 6.00 | F84: 0 | G84: $ 6.00 | H84: $ 6.00 | I84: CANCELADO | J84: =Tabla1442[[#This Row],[VALOR A PAGAR]]-Tabla1442[[#This Row],[VALOR CANCELADO]] -> 0 | K84: =Tabla1442[[#This Row],[CANT.]]*2 -> $ 2.00 | L84: $ 4.00 | M84: GAL'S CON VIGENCIA 2025
A85: 2024-11-14 | B85: PVM - ROJAS IAN IRON FIST | C85: 1 | D85: $ 6.00 | E85: =C85*Tabla1442[[#This Row],[PRECIO UNITARIO]] -> $ 6.00 | F85: 0 | G85: $ 6.00 | H85: $ 6.00 | I85: CANCELADO | J85: =Tabla1442[[#This Row],[VALOR A PAGAR]]-Tabla1442[[#This Row],[VALOR CANCELADO]] -> 0 | K85: =Tabla1442[[#This Row],[CANT.]]*2 -> $ 2.00 | L85: $ 4.00 | M85: GAL'S CON VIGENCIA 2025
A86: 2024-11-14 | B86: JUVENTUS | C86: 1 | D86: $ 6.00 | E86: =C86*Tabla1442[[#This Row],[PRECIO UNITARIO]] -> $ 6.00 | F86: $ 6.00 | G86: 0 | H86: $ 6.00 | I86: CANCELADO | J86: =Tabla1442[[#This Row],[VALOR A PAGAR]]-Tabla1442[[#This Row],[VALOR CANCELADO]] -> 0 | K86: =Tabla1442[[#This Row],[CANT.]]*2 -> $ 2.00 | L86: $ 4.00 | M86: GAL'S CON VIGENCIA 2025
A87: 2024-11-14 | B87: TAEKWONDO TRAINING CENTER | C87: 4 | D87: $ 8.00 | E87: =C87*Tabla1442[[#This Row],[PRECIO UNITARIO]] -> $ 32.00 | F87: 0 | G87: $ 32.00 | H87: $ 32.00 | I87: CANCELADO | J87: =Tabla1442[[#This Row],[VALOR A PAGAR]]-Tabla1442[[#This Row],[VALOR CANCELADO]] -> 0 | K87: =Tabla1442[[#This Row],[CANT.]]*2 -> $ 8.00 | L87: $ 24.00 | M87: GAL'S CON VIGENCIA 2025
A88: 2024-11-14 | B88: TAEKWONDO TRAINING CENTER | C88: 8 | D88: $ 6.00 | E88: =C88*Tabla1442[[#This Row],[PRECIO UNITARIO]] -> $ 48.00 | F88: 0 | G88: $ 48.00 | H88: $ 48.00 | I88: CANCELADO | J88: =Tabla1442[[#This Row],[VALOR A PAGAR]]-Tabla1442[[#This Row],[VALOR CANCELADO]] -> 0 | K88: =Tabla1442[[#This Row],[CANT.]]*2 -> $ 16.00 | L88: $ 32.00 | M88: GAL'S CON VIGENCIA 2025
A89: 2024-11-15 | B89: ESPE | C89: 1 | D89: $ 6.00 | E89: =C89*Tabla1442[[#This Row],[PRECIO UNITARIO]] -> $ 6.00 | F89: 0 | G89: $ 6.00 | H89: $ 6.00 | I89: CANCELADO | J89: =Tabla1442[[#This Row],[VALOR A PAGAR]]-Tabla1442[[#This Row],[VALOR CANCELADO]] -> 0 | K89: =Tabla1442[[#This Row],[CANT.]]*2 -> $ 2.00 | L89: $ 4.00 | M89: GAL'S CON VIGENCIA 2025
A90: 2024-11-15 | B90: KUMGANG DUL | C90: 3 | D90: $ 6.00 | E90: =C90*Tabla1442[[#This Row],[PRECIO UNITARIO]] -> $ 18.00 | F90: 0 | G90: $ 18.00 | H90: $ 18.00 | I90: CANCELADO | J90: =Tabla1442[[#This Row],[VALOR A PAGAR]]-Tabla1442[[#This Row],[VALOR CANCELADO]] -> 0 | K90: =Tabla1442[[#This Row],[CANT.]]*2 -> $ 6.00 | L90: $ 12.00 | M90: GAL'S CON VIGENCIA 2025
A91: 2024-11-15 | B91: KUMGANG DUL | C91: 2 | D91: $ 6.00 | E91: =C91*Tabla1442[[#This Row],[PRECIO UNITARIO]] -> $ 12.00 | F91: 0 | G91: $ 12.00 | H91: $ 12.00 | I91: CANCELADO | J91: =Tabla1442[[#This Row],[VALOR A PAGAR]]-Tabla1442[[#This Row],[VALOR CANCELADO]] -> 0 | K91: =Tabla1442[[#This Row],[CANT.]]*2 -> $ 4.00 | L91: $ 8.00 | M91: GAL'S CON VIGENCIA 2025
A92: 2024-11-15 | B92: SEUL GEDEON | C92: 2 | D92: $ 8.00 | E92: =C92*Tabla1442[[#This Row],[PRECIO UNITARIO]] -> $ 16.00 | F92: $ 16.00 | G92: 0 | H92: $ 16.00 | I92: CANCELADO | J92: =Tabla1442[[#This Row],[VALOR A PAGAR]]-Tabla1442[[#This Row],[VALOR CANCELADO]] -> 0 | K92: =Tabla1442[[#This Row],[CANT.]]*2 -> $ 4.00 | L92: $ 12.00 | M92: GAL'S CON VIGENCIA 2025
A93: 2024-11-15 | B93: APOLO | C93: 2 | D93: $ 6.00 | E93: =C93*Tabla1442[[#This Row],[PRECIO UNITARIO]] -> $ 12.00 | F93: 0 | G93: $ 12.00 | H93: $ 12.00 | I93: CANCELADO | J93: =Tabla1442[[#This Row],[VALOR A PAGAR]]-Tabla1442[[#This Row],[VALOR CANCELADO]] -> 0 | K93: =Tabla1442[[#This Row],[CANT.]]*2 -> $ 4.00 | L93: $ 8.00 | M93: GAL'S CON VIGENCIA 2025
A94: 2024-11-15 | B94: PVM - ROJAS IAN IRON FIST | C94: 2 | D94: $ 6.00 | E94: =C94*Tabla1442[[#This Row],[PRECIO UNITARIO]] -> $ 12.00 | F94: 0 | G94: $ 12.00 | H94: $ 12.00 | I94: CANCELADO | J94: =Tabla1442[[#This Row],[VALOR A PAGAR]]-Tabla1442[[#This Row],[VALOR CANCELADO]] -> 0 | K94: =Tabla1442[[#This Row],[CANT.]]*2 -> $ 4.00 | L94: $ 8.00 | M94: GAL'S CON VIGENCIA 2025
A95: 2024-11-15 | B95: ILYO M. P. | C95: 8 | D95: $ 6.00 | E95: =C95*Tabla1442[[#This Row],[PRECIO UNITARIO]] -> $ 48.00 | F95: $ 48.00 | G95: 0 | H95: $ 48.00 | I95: CANCELADO | J95: =Tabla1442[[#This Row],[VALOR A PAGAR]]-Tabla1442[[#This Row],[VALOR CANCELADO]] -> 0 | K95: =Tabla1442[[#This Row],[CANT.]]*2 -> $ 16.00 | L95: $ 32.00 | M95: GAL'S CON VIGENCIA 2025
A96: 2024-11-19 | B96: JOSEON LEGACY | C96: 15 | D96: $ 8.00 | E96: =C96*Tabla1442[[#This Row],[PRECIO UNITARIO]] -> $ 120.00 | F96: 0 | G96: $ 134.00 | H96: $ 134.00 | I96: SALDO A FAVOR DEL CLUB | J96: =Tabla1442[[#This Row],[VALOR A PAGAR]]-Tabla1442[[#This Row],[VALOR CANCELADO]] -> $ (14.00) | K96: =Tabla1442[[#This Row],[CANT.]]*2 -> $ 30.00 | L96: $ 90.00 | M96: SALDO A FAVR DEL CLUB $14
A97: 2024-11-19 | B97: PALADINS MARCIAL CLUB | C97: 2 | D97: $ 8.00 | E97: =C97*Tabla1442[[#This Row],[PRECIO UNITARIO]] -> $ 16.00 | F97: 0 | G97: $ 16.00 | H97: $ 16.00 | I97: CANCELADO | J97: =Tabla1442[[#This Row],[VALOR A PAGAR]]-Tabla1442[[#This Row],[VALOR CANCELADO]] -> 0 | K97: =Tabla1442[[#This Row],[CANT.]]*2 -> $ 4.00 | L97: $ 12.00 | M97: GAL'S CON VIGENCIA 2025
A98: 2024-11-19 | B98: GOYANG - IDEUL | C98: 1 | D98: $ 8.00 | E98: =C98*Tabla1442[[#This Row],[PRECIO UNITARIO]] -> $ 8.00 | F98: 0 | G98: $ 8.00 | H98: $ 8.00 | I98: CANCELADO | J98: =Tabla1442[[#This Row],[VALOR A PAGAR]]-Tabla1442[[#This Row],[VALOR CANCELADO]] -> 0 | K98: =Tabla1442[[#This Row],[CANT.]]*2 -> $ 2.00 | L98: $ 6.00 | M98: GAL'S CON VIGENCIA 2025
A99: 2024-11-20 | B99: SEUL CARAPUNGO | C99: 4 | D99: $ 8.00 | E99: =C99*Tabla1442[[#This Row],[PRECIO UNITARIO]] -> $ 32.00 | F99: 0 | G99: $ 32.00 | H99: $ 32.00 | I99: CANCELADO | J99: =Tabla1442[[#This Row],[VALOR A PAGAR]]-Tabla1442[[#This Row],[VALOR CANCELADO]] -> 0 | K99: =Tabla1442[[#This Row],[CANT.]]*2 -> $ 8.00 | L99: $ 24.00 | M99: GAL'S CON VIGENCIA 2025
A100: 2024-11-21 | B100: TAE SHO KU (TEAM VALLE) | C100: 2 | D100: $ 6.00 | E100: =C100*Tabla1442[[#This Row],[PRECIO UNITARIO]] -> $ 12.00 | F100: 0 | G100: $ 12.00 | H100: =F100+G100 -> $ 12.00 | I100: =IF((E100=H100),"CANCELADO","SALDO PENDIENTE") -> CANCELADO | J100: =Tabla1442[[#This Row],[VALOR A PAGAR]]-Tabla1442[[#This Row],[VALOR CANCELADO]] -> 0 | K100: =Tabla1442[[#This Row],[CANT.]]*2 -> $ 4.00 | L100: =E100-K100 -> $ 8.00 | M100: GAL'S CON VIGENCIA 2025
A101: 2024-11-22 | B101: ECUADOR | C101: 13 | D101: $ 6.00 | E101: =C101*Tabla1442[[#This Row],[PRECIO UNITARIO]] -> $ 78.00 | F101: 0 | G101: $ 78.00 | H101: $ 78.00 | I101: CANCELADO | J101: =Tabla1442[[#This Row],[VALOR A PAGAR]]-Tabla1442[[#This Row],[VALOR CANCELADO]] -> 0 | K101: =Tabla1442[[#This Row],[CANT.]]*2 -> $ 26.00 | L101: $ 52.00 | M101: GAL'S CON VIGENCIA 2025
A102: 2024-11-25 | B102: MARCIAL GRANDA | C102: 1 | D102: $ 8.00 | E102: =C102*Tabla1442[[#This Row],[PRECIO UNITARIO]] -> $ 8.00 | F102: 0 | G102: $ 8.00 | H102: $ 8.00 | I102: CANCELADO | J102: =Tabla1442[[#This Row],[VALOR A PAGAR]]-Tabla1442[[#This Row],[VALOR CANCELADO]] -> 0 | K102: =Tabla1442[[#This Row],[CANT.]]*2 -> $ 2.00 | L102: $ 6.00 | M102: GAL'S CON VIGENCIA 2025
A103: 2024-11-26 | B103: ILYO M. P. | C103: 17 | D103: $ 6.00 | E103: =C103*Tabla1442[[#This Row],[PRECIO UNITARIO]] -> $ 102.00 | F103: 0 | G103: $ 102.00 | H103: $ 102.00 | I103: CANCELADO | J103: =Tabla1442[[#This Row],[VALOR A PAGAR]]-Tabla1442[[#This Row],[VALOR CANCELADO]] -> 0 | K103: =Tabla1442[[#This Row],[CANT.]]*2 -> $ 34.00 | L103: $ 68.00 | M103: GAL'S CON VIGENCIA 2025
A104: 2024-11-26 | B104: ASOTKD - P CHIMBACALLE | C104: 2 | D104: $ 8.00 | E104: =C104*Tabla1442[[#This Row],[PRECIO UNITARIO]] -> $ 16.00 | F104: $ 16.00 | G104: 0 | H104: $ 16.00 | I104: CANCELADO | J104: =Tabla1442[[#This Row],[VALOR A PAGAR]]-Tabla1442[[#This Row],[VALOR CANCELADO]] -> 0 | K104: =Tabla1442[[#This Row],[CANT.]]*2 -> $ 4.00 | L104: $ 12.00 | M104: GAL'S CON VIGENCIA 2025
A105: 2024-11-27 | B105: FITTKWONDO MEJÍA | C105: 1 | D105: $ 8.00 | E105: =C105*Tabla1442[[#This Row],[PRECIO UNITARIO]] -> $ 8.00 | F105: 0 | G105: $ 8.00 | H105: $ 8.00 | I105: CANCELADO | J105: =Tabla1442[[#This Row],[VALOR A PAGAR]]-Tabla1442[[#This Row],[VALOR CANCELADO]] -> 0 | K105: =Tabla1442[[#This Row],[CANT.]]*2 -> $ 2.00 | L105: $ 6.00 | M105: GAL'S CON VIGENCIA 2025
A106: 2024-11-28 | B106: CIUDAD DE QUITO | C106: 2 | D106: $ 8.00 | E106: =C106*Tabla1442[[#This Row],[PRECIO UNITARIO]] -> $ 16.00 | F106: 0 | G106: $ 16.00 | H106: $ 16.00 | I106: CANCELADO | J106: =Tabla1442[[#This Row],[VALOR A PAGAR]]-Tabla1442[[#This Row],[VALOR CANCELADO]] -> 0 | K106: =Tabla1442[[#This Row],[CANT.]]*2 -> $ 4.00 | L106: $ 12.00 | M106: GAL'S CON VIGENCIA 2025
A107: 2024-11-29 | B107: TEAM TAURO | C107: 32 | D107: $ 8.00 | E107: =C107*Tabla1442[[#This Row],[PRECIO UNITARIO]] -> $ 256.00 | F107: 0 | G107: $ 256.00 | H107: $ 256.00 | I107: CANCELADO | J107: =Tabla1442[[#This Row],[VALOR A PAGAR]]-Tabla1442[[#This Row],[VALOR CANCELADO]] -> 0 | K107: =Tabla1442[[#This Row],[CANT.]]*2 -> $ 64.00 | L107: $ 192.00 | M107: GAL'S CON VIGENCIA 2025
A108: 2024-11-29 | B108: HUANG TOP GYM | C108: 2 | D108: $ 6.00 | E108: =C108*Tabla1442[[#This Row],[PRECIO UNITARIO]] -> $ 12.00 | F108: 0 | G108: $ 12.00 | H108: $ 12.00 | I108: CANCELADO | J108: =Tabla1442[[#This Row],[VALOR A PAGAR]]-Tabla1442[[#This Row],[VALOR CANCELADO]] -> 0 | K108: =Tabla1442[[#This Row],[CANT.]]*2 -> $ 4.00 | L108: $ 8.00 | M108: GAL'S CON VIGENCIA 2025
A109: 2024-11-29 | B109: PYONGYANG | C109: 4 | D109: $ 8.00 | E109: =C109*Tabla1442[[#This Row],[PRECIO UNITARIO]] -> $ 32.00 | F109: 0 | G109: $ 32.00 | H109: $ 32.00 | I109: CANCELADO | J109: =Tabla1442[[#This Row],[VALOR A PAGAR]]-Tabla1442[[#This Row],[VALOR CANCELADO]] -> 0 | K109: =Tabla1442[[#This Row],[CANT.]]*2 -> $ 8.00 | L109: $ 24.00 | M109: GAL'S CON VIGENCIA 2025
A110: 2024-12-02 | B110: TAEBAEK ECUADOR | C110: 2 | D110: $ 8.00 | E110: =C110*Tabla1442[[#This Row],[PRECIO UNITARIO]] -> $ 16.00 | F110: 0 | G110: $ 16.00 | H110: $ 16.00 | I110: CANCELADO | J110: =Tabla1442[[#This Row],[VALOR A PAGAR]]-Tabla1442[[#This Row],[VALOR CANCELADO]] -> 0 | K110: =Tabla1442[[#This Row],[CANT.]]*2 -> $ 4.00 | L110: $ 12.00 | M110: GAL'S CON VIGENCIA 2025
A111: 2024-12-03 | B111: ILYO M. P. | C111: 1 | D111: $ 6.00 | E111: =C111*Tabla1442[[#This Row],[PRECIO UNITARIO]] -> $ 6.00 | F111: 0 | G111: $ 6.00 | H111: $ 6.00 | I111: CANCELADO | J111: =Tabla1442[[#This Row],[VALOR A PAGAR]]-Tabla1442[[#This Row],[VALOR CANCELADO]] -> 0 | K111: =Tabla1442[[#This Row],[CANT.]]*2 -> $ 2.00 | L111: $ 4.00 | M111: GAL'S CON VIGENCIA 2025
A112: 2024-12-03 | B112: SEUL GEDEON | C112: 1 | D112: $ 8.00 | E112: =C112*Tabla1442[[#This Row],[PRECIO UNITARIO]] -> $ 8.00 | F112: $ 8.00 | G112: 0 | H112: $ 8.00 | I112: CANCELADO | J112: =Tabla1442[[#This Row],[VALOR A PAGAR]]-Tabla1442[[#This Row],[VALOR CANCELADO]] -> 0 | K112: =Tabla1442[[#This Row],[CANT.]]*2 -> $ 2.00 | L112: $ 6.00 | M112: GAL'S CON VIGENCIA 2025
A113: 2024-12-04 | B113: TAEBAEK ECUADOR | C113: 1 | D113: $ 8.00 | E113: =C113*Tabla1442[[#This Row],[PRECIO UNITARIO]] -> $ 8.00 | F113: 0 | G113: $ 8.00 | H113: $ 8.00 | I113: CANCELADO | J113: =Tabla1442[[#This Row],[VALOR A PAGAR]]-Tabla1442[[#This Row],[VALOR CANCELADO]] -> 0 | K113: =Tabla1442[[#This Row],[CANT.]]*2 -> $ 2.00 | L113: $ 6.00 | M113: GAL'S CON VIGENCIA 2025
A114: 2024-12-04 | B114: SHOGUN | C114: 8 | D114: $ 8.00 | E114: =C114*Tabla1442[[#This Row],[PRECIO UNITARIO]] -> $ 64.00 | F114: 0 | G114: $ 64.00 | H114: $ 64.00 | I114: CANCELADO | J114: =Tabla1442[[#This Row],[VALOR A PAGAR]]-Tabla1442[[#This Row],[VALOR CANCELADO]] -> 0 | K114: =Tabla1442[[#This Row],[CANT.]]*2 -> $ 16.00 | L114: $ 48.00 | M114: GAL'S CON VIGENCIA 2025
A115: 2024-12-04 | B115: KYORUGUI GYM | C115: 4 | D115: $ 8.00 | E115: =C115*Tabla1442[[#This Row],[PRECIO UNITARIO]] -> $ 32.00 | F115: 0 | G115: $ 32.00 | H115: $ 32.00 | I115: CANCELADO | J115: =Tabla1442[[#This Row],[VALOR A PAGAR]]-Tabla1442[[#This Row],[VALOR CANCELADO]] -> 0 | K115: =Tabla1442[[#This Row],[CANT.]]*2 -> $ 8.00 | L115: $ 24.00 | M115: GAL'S CON VIGENCIA 2025
A116: 2024-12-04 | B116: TOTAL KOMBAT | C116: 26 | D116: $ 6.00 | E116: =C116*Tabla1442[[#This Row],[PRECIO UNITARIO]] -> $ 156.00 | F116: 0 | G116: $ 156.00 | H116: $ 156.00 | I116: CANCELADO | J116: =Tabla1442[[#This Row],[VALOR A PAGAR]]-Tabla1442[[#This Row],[VALOR CANCELADO]] -> 0 | K116: =Tabla1442[[#This Row],[CANT.]]*2 -> $ 52.00 | L116: $ 104.00 | M116: GAL'S CON VIGENCIA 2025
A117: 2024-12-04 | B117: TOTAL KOMBAT RHINOS | C117: 33 | D117: $ 6.00 | E117: =C117*Tabla1442[[#This Row],[PRECIO UNITARIO]] -> $ 198.00 | F117: 0 | G117: $ 198.00 | H117: $ 198.00 | I117: CANCELADO | J117: =Tabla1442[[#This Row],[VALOR A PAGAR]]-Tabla1442[[#This Row],[VALOR CANCELADO]] -> 0 | K117: =Tabla1442[[#This Row],[CANT.]]*2 -> $ 66.00 | L117: $ 132.00 | M117: GAL'S CON VIGENCIA 2025
A118: 2024-12-04 | B118: KO AMÉRICA | C118: 74 | D118: $ 6.00 | E118: =C118*Tabla1442[[#This Row],[PRECIO UNITARIO]] -> $ 444.00 | F118: 0 | G118: $ 444.00 | H118: $ 444.00 | I118: CANCELADO | J118: =Tabla1442[[#This Row],[VALOR A PAGAR]]-Tabla1442[[#This Row],[VALOR CANCELADO]] -> 0 | K118: =Tabla1442[[#This Row],[CANT.]]*2 -> $ 148.00 | L118: $ 296.00 | M118: GAL'S CON VIGENCIA 2025
A119: 2024-12-04 | B119: BORJA'S LIONS | C119: 12 | D119: $ 6.00 | E119: =C119*Tabla1442[[#This Row],[PRECIO UNITARIO]] -> $ 72.00 | F119: 0 | G119: $ 76.00 | H119: $ 76.00 | I119: SALDO A FAVOR DEL CLUB | J119: =Tabla1442[[#This Row],[VALOR A PAGAR]]-Tabla1442[[#This Row],[VALOR CANCELADO]] -> $ (4.00) | K119: =Tabla1442[[#This Row],[CANT.]]*2 -> $ 24.00 | L119: $ 48.00 | M119: SALDO A FAVOR DEL CLUB $4
A120: 2024-12-04 | B120: TAE BAEK ECUADOR JR. | C120: 8 | D120: $ 8.00 | E120: =C120*Tabla1442[[#This Row],[PRECIO UNITARIO]] -> $ 64.00 | F120: 0 | G120: $ 64.00 | H120: $ 64.00 | I120: CANCELADO | J120: =Tabla1442[[#This Row],[VALOR A PAGAR]]-Tabla1442[[#This Row],[VALOR CANCELADO]] -> 0 | K120: =Tabla1442[[#This Row],[CANT.]]*2 -> $ 16.00 | L120: $ 48.00 | M120: GAL'S CON VIGENCIA 2025
A121: 2024-12-04 | B121: TAE BAEK ECUADOR JR. | C121: 7 | D121: $ 6.00 | E121: =C121*Tabla1442[[#This Row],[PRECIO UNITARIO]] -> $ 42.00 | F121: 0 | G121: $ 42.00 | H121: $ 42.00 | I121: CANCELADO | J121: =Tabla1442[[#This Row],[VALOR A PAGAR]]-Tabla1442[[#This Row],[VALOR CANCELADO]] -> 0 | K121: =Tabla1442[[#This Row],[CANT.]]*2 -> $ 14.00 | L121: $ 28.00 | M121: GAL'S CON VIGENCIA 2025
A122: 2024-12-04 | B122: JI TAE | C122: 2 | D122: $ 8.00 | E122: =C122*Tabla1442[[#This Row],[PRECIO UNITARIO]] -> $ 16.00 | F122: 0 | G122: $ 16.00 | H122: $ 16.00 | I122: CANCELADO | J122: =Tabla1442[[#This Row],[VALOR A PAGAR]]-Tabla1442[[#This Row],[VALOR CANCELADO]] -> 0 | K122: =Tabla1442[[#This Row],[CANT.]]*2 -> $ 4.00 | L122: $ 12.00 | M122: GAL'S CON VIGENCIA 2025
A123: 2024-12-04 | B123: SIMJANG | C123: 2 | D123: $ 8.00 | E123: =C123*Tabla1442[[#This Row],[PRECIO UNITARIO]] -> $ 16.00 | F123: 0 | G123: $ 16.00 | H123: $ 16.00 | I123: CANCELADO | J123: =Tabla1442[[#This Row],[VALOR A PAGAR]]-Tabla1442[[#This Row],[VALOR CANCELADO]] -> 0 | K123: =Tabla1442[[#This Row],[CANT.]]*2 -> $ 4.00 | L123: $ 12.00 | M123: GAL'S CON VIGENCIA 2025
A124: 2024-12-04 | B124: TAE WOONG | C124: 9 | D124: $ 6.00 | E124: =C124*Tabla1442[[#This Row],[PRECIO UNITARIO]] -> $ 54.00 | F124: 0 | G124: $ 54.00 | H124: $ 54.00 | I124: CANCELADO | J124: =Tabla1442[[#This Row],[VALOR A PAGAR]]-Tabla1442[[#This Row],[VALOR CANCELADO]] -> 0 | K124: =Tabla1442[[#This Row],[CANT.]]*2 -> $ 18.00 | L124: $ 36.00 | M124: GAL'S CON VIGENCIA 2025
A125: 2024-12-04 | B125: KUMGANG DUL | C125: 1 | D125: $ 8.00 | E125: =C125*Tabla1442[[#This Row],[PRECIO UNITARIO]] -> $ 8.00 | F125: 0 | G125: $ 8.00 | H125: $ 8.00 | I125: CANCELADO | J125: =Tabla1442[[#This Row],[VALOR A PAGAR]]-Tabla1442[[#This Row],[VALOR CANCELADO]] -> 0 | K125: =Tabla1442[[#This Row],[CANT.]]*2 -> $ 2.00 | L125: $ 6.00 | M125: GAL'S CON VIGENCIA 2025
A126: 2024-12-04 | B126: KUMGANG DUL | C126: 1 | D126: $ 8.00 | E126: =C126*Tabla1442[[#This Row],[PRECIO UNITARIO]] -> $ 8.00 | F126: 0 | G126: $ 8.00 | H126: $ 8.00 | I126: CANCELADO | J126: =Tabla1442[[#This Row],[VALOR A PAGAR]]-Tabla1442[[#This Row],[VALOR CANCELADO]] -> 0 | K126: =Tabla1442[[#This Row],[CANT.]]*2 -> $ 2.00 | L126: $ 6.00 | M126: GAL'S CON VIGENCIA 2025
A127: 2024-12-04 | B127: DRAGON LEE GYM | C127: 2 | D127: $ 8.00 | E127: =C127*Tabla1442[[#This Row],[PRECIO UNITARIO]] -> $ 16.00 | F127: 0 | G127: $ 16.00 | H127: $ 16.00 | I127: CANCELADO | J127: =Tabla1442[[#This Row],[VALOR A PAGAR]]-Tabla1442[[#This Row],[VALOR CANCELADO]] -> 0 | K127: =Tabla1442[[#This Row],[CANT.]]*2 -> $ 4.00 | L127: $ 12.00 | M127: GAL'S CON VIGENCIA 2025
A128: 2024-12-05 | B128: KUMGANG DUL | C128: 1 | D128: $ 8.00 | E128: =C128*Tabla1442[[#This Row],[PRECIO UNITARIO]] -> $ 8.00 | F128: 0 | G128: $ 8.00 | H128: $ 8.00 | I128: CANCELADO | J128: =Tabla1442[[#This Row],[VALOR A PAGAR]]-Tabla1442[[#This Row],[VALOR CANCELADO]] -> 0 | K128: =Tabla1442[[#This Row],[CANT.]]*2 -> $ 2.00 | L128: $ 6.00 | M128: GAL'S CON VIGENCIA 2025
A129: 2024-12-05 | B129: KOREAN DRAGON | C129: 1 | D129: $ 8.00 | E129: =C129*Tabla1442[[#This Row],[PRECIO UNITARIO]] -> $ 8.00 | F129: 0 | G129: $ 8.00 | H129: $ 8.00 | I129: CANCELADO | J129: =Tabla1442[[#This Row],[VALOR A PAGAR]]-Tabla1442[[#This Row],[VALOR CANCELADO]] -> 0 | K129: =Tabla1442[[#This Row],[CANT.]]*2 -> $ 2.00 | L129: $ 6.00 | M129: GAL'S CON VIGENCIA 2025
A130: 2024-12-05 | B130: KOREAN DRAGON | C130: 2 | D130: $ 6.00 | E130: =C130*Tabla1442[[#This Row],[PRECIO UNITARIO]] -> $ 12.00 | F130: 0 | G130: $ 12.00 | H130: $ 12.00 | I130: CANCELADO | J130: =Tabla1442[[#This Row],[VALOR A PAGAR]]-Tabla1442[[#This Row],[VALOR CANCELADO]] -> 0 | K130: =Tabla1442[[#This Row],[CANT.]]*2 -> $ 4.00 | L130: $ 8.00 | M130: GAL'S CON VIGENCIA 2025
A131: 2024-12-05 | B131: ASOTKD - P CHIMBACALLE | C131: 4 | D131: $ 8.00 | E131: =C131*Tabla1442[[#This Row],[PRECIO UNITARIO]] -> $ 32.00 | F131: $ 32.00 | G131: 0 | H131: $ 32.00 | I131: CANCELADO | J131: =Tabla1442[[#This Row],[VALOR A PAGAR]]-Tabla1442[[#This Row],[VALOR CANCELADO]] -> 0 | K131: =Tabla1442[[#This Row],[CANT.]]*2 -> $ 8.00 | L131: $ 24.00 | M131: GAL'S CON VIGENCIA 2025
A132: 2024-12-05 | B132: MERCENARIOS | C132: 4 | D132: $ 6.00 | E132: =C132*Tabla1442[[#This Row],[PRECIO UNITARIO]] -> $ 24.00 | F132: 0 | G132: $ 24.00 | H132: =F132+G132 -> $ 24.00 | I132: =IF((E132=H132),"CANCELADO","SALDO PENDIENTE") -> CANCELADO | J132: =Tabla1442[[#This Row],[VALOR A PAGAR]]-Tabla1442[[#This Row],[VALOR CANCELADO]] -> 0 | K132: =Tabla1442[[#This Row],[CANT.]]*2 -> $ 8.00 | L132: =E132-K132 -> $ 16.00 | M132: GAL'S CON VIGENCIA 2025
A133: 2024-12-05 | B133: TAE KING'S | C133: 2 | D133: $ 6.00 | E133: =C133*Tabla1442[[#This Row],[PRECIO UNITARIO]] -> $ 12.00 | F133: 0 | G133: $ 12.00 | H133: $ 12.00 | I133: CANCELADO | J133: =Tabla1442[[#This Row],[VALOR A PAGAR]]-Tabla1442[[#This Row],[VALOR CANCELADO]] -> 0 | K133: =Tabla1442[[#This Row],[CANT.]]*2 -> $ 4.00 | L133: $ 8.00 | M133: GAL'S CON VIGENCIA 2025
A134: 2024-12-05 | B134: DECIAP | C134: 11 | D134: $ 6.00 | E134: =C134*Tabla1442[[#This Row],[PRECIO UNITARIO]] -> $ 66.00 | F134: 0 | G134: $ 66.00 | H134: $ 66.00 | I134: CANCELADO | J134: =Tabla1442[[#This Row],[VALOR A PAGAR]]-Tabla1442[[#This Row],[VALOR CANCELADO]] -> 0 | K134: =Tabla1442[[#This Row],[CANT.]]*2 -> $ 22.00 | L134: $ 44.00 | M134: GAL'S CON VIGENCIA 2025
A135: 2024-12-05 | B135: SEUL CHUNG UI | C135: 4 | D135: $ 8.00 | E135: =C135*Tabla1442[[#This Row],[PRECIO UNITARIO]] -> $ 32.00 | F135: 0 | G135: $ 32.00 | H135: $ 32.00 | I135: CANCELADO | J135: =Tabla1442[[#This Row],[VALOR A PAGAR]]-Tabla1442[[#This Row],[VALOR CANCELADO]] -> 0 | K135: =Tabla1442[[#This Row],[CANT.]]*2 -> $ 8.00 | L135: $ 24.00 | M135: GAL'S CON VIGENCIA 2025
A136: 2024-12-05 | B136: TAE DO ACADEMY | C136: 1 | D136: $ 6.00 | E136: =C136*Tabla1442[[#This Row],[PRECIO UNITARIO]] -> $ 6.00 | F136: 0 | G136: $ 6.00 | H136: $ 6.00 | I136: CANCELADO | J136: =Tabla1442[[#This Row],[VALOR A PAGAR]]-Tabla1442[[#This Row],[VALOR CANCELADO]] -> 0 | K136: =Tabla1442[[#This Row],[CANT.]]*2 -> $ 2.00 | L136: $ 4.00 | M136: GAL'S CON VIGENCIA 2025
A137: 2024-12-05 | B137: TAE SHO KU | C137: 4 | D137: $ 8.00 | E137: =C137*Tabla1442[[#This Row],[PRECIO UNITARIO]] -> $ 32.00 | F137: 0 | G137: $ 32.00 | H137: $ 32.00 | I137: CANCELADO | J137: =Tabla1442[[#This Row],[VALOR A PAGAR]]-Tabla1442[[#This Row],[VALOR CANCELADO]] -> 0 | K137: =Tabla1442[[#This Row],[CANT.]]*2 -> $ 8.00 | L137: $ 24.00 | M137: GAL'S CON VIGENCIA 2025
A138: 2024-12-05 | B138: CAMU | C138: 22 | D138: $ 8.00 | E138: =C138*Tabla1442[[#This Row],[PRECIO UNITARIO]] -> $ 176.00 | F138: 0 | G138: $ 176.00 | H138: $ 176.00 | I138: CANCELADO | J138: =Tabla1442[[#This Row],[VALOR A PAGAR]]-Tabla1442[[#This Row],[VALOR CANCELADO]] -> 0 | K138: =Tabla1442[[#This Row],[CANT.]]*2 -> $ 44.00 | L138: $ 132.00 | M138: GAL'S CON VIGENCIA 2025
A139: 2024-12-05 | B139: ARES | C139: 2 | D139: $ 6.00 | E139: =C139*Tabla1442[[#This Row],[PRECIO UNITARIO]] -> $ 12.00 | F139: 0 | G139: $ 12.00 | H139: $ 12.00 | I139: CANCELADO | J139: =Tabla1442[[#This Row],[VALOR A PAGAR]]-Tabla1442[[#This Row],[VALOR CANCELADO]] -> 0 | K139: =Tabla1442[[#This Row],[CANT.]]*2 -> $ 4.00 | L139: $ 8.00 | M139: GAL'S CON VIGENCIA 2025
A140: 2024-12-05 | B140: ARES | C140: 8 | D140: $ 8.00 | E140: =C140*Tabla1442[[#This Row],[PRECIO UNITARIO]] -> $ 64.00 | F140: 0 | G140: $ 64.00 | H140: $ 64.00 | I140: CANCELADO | J140: =Tabla1442[[#This Row],[VALOR A PAGAR]]-Tabla1442[[#This Row],[VALOR CANCELADO]] -> 0 | K140: =Tabla1442[[#This Row],[CANT.]]*2 -> $ 16.00 | L140: $ 48.00 | M140: GAL'S CON VIGENCIA 2025
A141: 2024-12-06 | B141: KORYO | C141: 3 | D141: $ 6.00 | E141: =C141*Tabla1442[[#This Row],[PRECIO UNITARIO]] -> $ 18.00 | F141: 0 | G141: $ 18.00 | H141: $ 18.00 | I141: CANCELADO | J141: =Tabla1442[[#This Row],[VALOR A PAGAR]]-Tabla1442[[#This Row],[VALOR CANCELADO]] -> 0 | K141: =Tabla1442[[#This Row],[CANT.]]*2 -> $ 6.00 | L141: $ 12.00 | M141: GAL'S CON VIGENCIA 2025
A142: 2024-12-06 | B142: HANSU CAYAMBE | C142: 1 | D142: $ 8.00 | E142: =C142*Tabla1442[[#This Row],[PRECIO UNITARIO]] -> $ 8.00 | F142: 0 | G142: $ 8.00 | H142: $ 8.00 | I142: CANCELADO | J142: =Tabla1442[[#This Row],[VALOR A PAGAR]]-Tabla1442[[#This Row],[VALOR CANCELADO]] -> 0 | K142: =Tabla1442[[#This Row],[CANT.]]*2 -> $ 2.00 | L142: $ 6.00 | M142: GAL'S CON VIGENCIA 2025
A143: 2024-12-06 | B143: KO AMÉRICA | C143: 2 | D143: $ 6.00 | E143: =C143*Tabla1442[[#This Row],[PRECIO UNITARIO]] -> $ 12.00 | F143: 0 | G143: $ 12.00 | H143: $ 12.00 | I143: CANCELADO | J143: =Tabla1442[[#This Row],[VALOR A PAGAR]]-Tabla1442[[#This Row],[VALOR CANCELADO]] -> 0 | K143: =Tabla1442[[#This Row],[CANT.]]*2 -> $ 4.00 | L143: $ 8.00 | M143: GAL'S CON VIGENCIA 2025
A144: 2024-12-07 | B144: SEUL | C144: 1 | D144: $ 6.00 | E144: =C144*Tabla1442[[#This Row],[PRECIO UNITARIO]] -> $ 6.00 | F144: 0 | G144: $ 6.00 | H144: $ 6.00 | I144: CANCELADO | J144: =Tabla1442[[#This Row],[VALOR A PAGAR]]-Tabla1442[[#This Row],[VALOR CANCELADO]] -> 0 | K144: =Tabla1442[[#This Row],[CANT.]]*2 -> $ 2.00 | L144: $ 4.00 | M144: GAL'S CON VIGENCIA 2025
A145: 2024-12-08 | B145: BAEKJUL | C145: 12 | D145: $ 6.00 | E145: =C145*Tabla1442[[#This Row],[PRECIO UNITARIO]] -> $ 72.00 | F145: 0 | G145: $ 72.00 | H145: $ 72.00 | I145: CANCELADO | J145: =Tabla1442[[#This Row],[VALOR A PAGAR]]-Tabla1442[[#This Row],[VALOR CANCELADO]] -> 0 | K145: =Tabla1442[[#This Row],[CANT.]]*2 -> $ 24.00 | L145: $ 48.00 | M145: PAGO EN EVENTO / GAL'S CON VIGENCIA 2025
A146: 2024-12-08 | B146: FIRST CLASS | C146: 1 | D146: $ 8.00 | E146: =C146*Tabla1442[[#This Row],[PRECIO UNITARIO]] -> $ 8.00 | F146: 0 | G146: $ 8.00 | H146: $ 8.00 | I146: CANCELADO | J146: =Tabla1442[[#This Row],[VALOR A PAGAR]]-Tabla1442[[#This Row],[VALOR CANCELADO]] -> 0 | K146: =Tabla1442[[#This Row],[CANT.]]*2 -> $ 2.00 | L146: $ 6.00 | M146: PAGO EN EVENTO / GAL'S CON VIGENCIA 2025
A147: 2024-12-08 | B147: FURIA NEGRA | C147: 3 | D147: $ 8.00 | E147: =C147*Tabla1442[[#This Row],[PRECIO UNITARIO]] -> $ 24.00 | F147: 0 | G147: $ 24.00 | H147: $ 24.00 | I147: CANCELADO | J147: =Tabla1442[[#This Row],[VALOR A PAGAR]]-Tabla1442[[#This Row],[VALOR CANCELADO]] -> 0 | K147: =Tabla1442[[#This Row],[CANT.]]*2 -> $ 6.00 | L147: $ 18.00 | M147: PAGO EN EVENTO / GAL'S CON VIGENCIA 2025
A148: 2024-12-08 | B148: HUANG TOP GYM | C148: 1 | D148: $ 8.00 | E148: =C148*Tabla1442[[#This Row],[PRECIO UNITARIO]] -> $ 8.00 | F148: 0 | G148: $ 8.00 | H148: $ 8.00 | I148: CANCELADO | J148: =Tabla1442[[#This Row],[VALOR A PAGAR]]-Tabla1442[[#This Row],[VALOR CANCELADO]] -> 0 | K148: =Tabla1442[[#This Row],[CANT.]]*2 -> $ 2.00 | L148: $ 6.00 | M148: PAGO EN EVENTO / GAL'S CON VIGENCIA 2025
A149: 2024-12-08 | B149: JIDOKWAN | C149: 1 | D149: $ 6.00 | E149: =C149*Tabla1442[[#This Row],[PRECIO UNITARIO]] -> $ 6.00 | F149: 0 | G149: $ 6.00 | H149: $ 6.00 | I149: CANCELADO | J149: =Tabla1442[[#This Row],[VALOR A PAGAR]]-Tabla1442[[#This Row],[VALOR CANCELADO]] -> 0 | K149: =Tabla1442[[#This Row],[CANT.]]*2 -> $ 2.00 | L149: $ 4.00 | M149: PAGO EN EVENTO / GAL'S CON VIGENCIA 2025
A150: 2024-12-08 | B150: SAN SEBASTIÁN | C150: 3 | D150: $ 8.00 | E150: =C150*Tabla1442[[#This Row],[PRECIO UNITARIO]] -> $ 24.00 | F150: 0 | G150: $ 24.00 | H150: $ 24.00 | I150: CANCELADO | J150: =Tabla1442[[#This Row],[VALOR A PAGAR]]-Tabla1442[[#This Row],[VALOR CANCELADO]] -> 0 | K150: =Tabla1442[[#This Row],[CANT.]]*2 -> $ 6.00 | L150: $ 18.00 | M150: PAGO EN EVENTO / GAL'S CON VIGENCIA 2025
A151: 2024-12-08 | B151: SAN SEBASTIÁN | C151: 1 | D151: $ 6.00 | E151: =C151*Tabla1442[[#This Row],[PRECIO UNITARIO]] -> $ 6.00 | F151: 0 | G151: $ 6.00 | H151: $ 6.00 | I151: CANCELADO | J151: =Tabla1442[[#This Row],[VALOR A PAGAR]]-Tabla1442[[#This Row],[VALOR CANCELADO]] -> 0 | K151: =Tabla1442[[#This Row],[CANT.]]*2 -> $ 2.00 | L151: $ 4.00 | M151: PAGO EN EVENTO / GAL'S CON VIGENCIA 2025
A152: 2024-12-08 | B152: SHOGUN | C152: 1 | D152: $ 8.00 | E152: =C152*Tabla1442[[#This Row],[PRECIO UNITARIO]] -> $ 8.00 | F152: 0 | G152: $ 8.00 | H152: $ 8.00 | I152: CANCELADO | J152: =Tabla1442[[#This Row],[VALOR A PAGAR]]-Tabla1442[[#This Row],[VALOR CANCELADO]] -> 0 | K152: =Tabla1442[[#This Row],[CANT.]]*2 -> $ 2.00 | L152: $ 6.00 | M152: PAGO EN EVENTO / GAL'S CON VIGENCIA 2025
A153: 2024-12-08 | B153: SOCIEDAD DEPORTIVA CENTRAL | C153: 21 | D153: $ 6.00 | E153: =C153*Tabla1442[[#This Row],[PRECIO UNITARIO]] -> $ 126.00 | F153: 0 | G153: $ 126.00 | H153: =F153+G153 -> $ 126.00 | I153: =IF((E153=H153),"CANCELADO","SALDO PENDIENTE") -> CANCELADO | J153: =Tabla1442[[#This Row],[VALOR A PAGAR]]-Tabla1442[[#This Row],[VALOR CANCELADO]] -> 0 | K153: =Tabla1442[[#This Row],[CANT.]]*2 -> $ 42.00 | L153: =E153-K153 -> $ 84.00 | M153: PAGO EN EVENTO / GAL'S CON VIGENCIA 2025
A154: 2024-12-08 | B154: YONG TIGER | C154: 2 | D154: $ 8.00 | E154: =C154*Tabla1442[[#This Row],[PRECIO UNITARIO]] -> $ 16.00 | F154: 0 | G154: $ 16.00 | H154: =F154+G154 -> $ 16.00 | I154: =IF((E154=H154),"CANCELADO","SALDO PENDIENTE") -> CANCELADO | J154: =Tabla1442[[#This Row],[VALOR A PAGAR]]-Tabla1442[[#This Row],[VALOR CANCELADO]] -> 0 | K154: =Tabla1442[[#This Row],[CANT.]]*2 -> $ 4.00 | L154: =E154-K154 -> $ 12.00 | M154: PAGO EN EVENTO / GAL'S CON VIGENCIA 2025
A155: 2024-12-08 | B155: YONG TIGER | C155: 4 | D155: $ 6.00 | E155: =C155*Tabla1442[[#This Row],[PRECIO UNITARIO]] -> $ 24.00 | F155: 0 | G155: $ 24.00 | H155: =F155+G155 -> $ 24.00 | I155: =IF((E155=H155),"CANCELADO","SALDO PENDIENTE") -> CANCELADO | J155: =Tabla1442[[#This Row],[VALOR A PAGAR]]-Tabla1442[[#This Row],[VALOR CANCELADO]] -> 0 | K155: =Tabla1442[[#This Row],[CANT.]]*2 -> $ 8.00 | L155: =E155-K155 -> $ 16.00 | M155: PAGO EN EVENTO / GAL'S CON VIGENCIA 2025
A156: 2024-12-09 | B156: TKT - KUKKIWON - C.C | C156: 4 | D156: $ 6.00 | E156: =C156*Tabla1442[[#This Row],[PRECIO UNITARIO]] -> $ 24.00 | F156: 0 | G156: $ 24.00 | H156: $ 24.00 | I156: CANCELADO | J156: =Tabla1442[[#This Row],[VALOR A PAGAR]]-Tabla1442[[#This Row],[VALOR CANCELADO]] -> 0 | K156: =Tabla1442[[#This Row],[CANT.]]*2 -> $ 8.00 | L156: $ 16.00 | M156: GAL'S CON VIGENCIA 2025
A157: 2024-12-09 | B157: DRACO | C157: 11 | D157: $ 6.00 | E157: =C157*Tabla1442[[#This Row],[PRECIO UNITARIO]] -> $ 66.00 | F157: 0 | G157: $ 66.00 | H157: $ 66.00 | I157: CANCELADO | J157: =Tabla1442[[#This Row],[VALOR A PAGAR]]-Tabla1442[[#This Row],[VALOR CANCELADO]] -> 0 | K157: =Tabla1442[[#This Row],[CANT.]]*2 -> $ 22.00 | L157: $ 44.00 | M157: GAL'S CON VIGENCIA 2025
A158: 2024-12-09 | B158: CHAMPIONS FOR LIFE | C158: 2 | D158: $ 6.00 | E158: =C158*Tabla1442[[#This Row],[PRECIO UNITARIO]] -> $ 12.00 | F158: 0 | G158: $ 12.00 | H158: $ 12.00 | I158: CANCELADO | J158: =Tabla1442[[#This Row],[VALOR A PAGAR]]-Tabla1442[[#This Row],[VALOR CANCELADO]] -> 0 | K158: =Tabla1442[[#This Row],[CANT.]]*2 -> $ 4.00 | L158: $ 8.00 | M158: PAGO EN EVENTO / GAL'S CON VIGENCIA 2025
A159: 2024-12-09 | B159: RAIG DE LLUM | C159: 16 | D159: $ 8.00 | E159: =C159*Tabla1442[[#This Row],[PRECIO UNITARIO]] -> $ 128.00 | F159: 0 | G159: $ 128.00 | H159: =F159+G159 -> $ 128.00 | I159: =IF((E159=H159),"CANCELADO","SALDO PENDIENTE") -> CANCELADO | J159: =Tabla1442[[#This Row],[VALOR A PAGAR]]-Tabla1442[[#This Row],[VALOR CANCELADO]] -> 0 | K159: =Tabla1442[[#This Row],[CANT.]]*2 -> $ 32.00 | L159: =E159-K159 -> $ 96.00 | M159: GAL'S CON VIGENCIA 2025
A160: 2025-12-10 | B160: SHOGUN | C160: 3 | D160: $ 6.00 | E160: =C160*Tabla1442[[#This Row],[PRECIO UNITARIO]] -> $ 18.00 | F160: 0 | G160: $ 18.00 | H160: =F160+G160 -> $ 18.00 | I160: =IF((E160=H160),"CANCELADO","SALDO PENDIENTE") -> CANCELADO | J160: =Tabla1442[[#This Row],[VALOR A PAGAR]]-Tabla1442[[#This Row],[VALOR CANCELADO]] -> 0 | K160: =Tabla1442[[#This Row],[CANT.]]*2 -> $ 6.00 | L160: =E160-K160 -> $ 12.00 | M160: GAL'S CON VIGENCIA 2025
A161: 2025-12-10 | B161: LEÓN | C161: 6 | D161: $ 6.00 | E161: =C161*Tabla1442[[#This Row],[PRECIO UNITARIO]] -> $ 36.00 | F161: 0 | G161: $ 36.00 | H161: =F161+G161 -> $ 36.00 | I161: =IF((E161=H161),"CANCELADO","SALDO PENDIENTE") -> CANCELADO | J161: =Tabla1442[[#This Row],[VALOR A PAGAR]]-Tabla1442[[#This Row],[VALOR CANCELADO]] -> 0 | K161: =Tabla1442[[#This Row],[CANT.]]*2 -> $ 12.00 | L161: =E161-K161 -> $ 24.00 | M161: GAL'S CON VIGENCIA 2025
A162: 2024-12-11 | B162: YONG TIGER | C162: 4 | D162: $ 6.00 | E162: =C162*Tabla1442[[#This Row],[PRECIO UNITARIO]] -> $ 24.00 | F162: 0 | G162: $ 24.00 | H162: $ 24.00 | I162: CANCELADO | J162: =Tabla1442[[#This Row],[VALOR A PAGAR]]-Tabla1442[[#This Row],[VALOR CANCELADO]] -> 0 | K162: =Tabla1442[[#This Row],[CANT.]]*2 -> $ 8.00 | L162: $ 16.00 | M162: GAL'S CON VIGENCIA 2025
A163: 2024-12-11 | B163: YONG TIGER | C163: 10 | D163: $ 6.00 | E163: =C163*Tabla1442[[#This Row],[PRECIO UNITARIO]] -> $ 60.00 | F163: 0 | G163: $ 60.00 | H163: $ 60.00 | I163: CANCELADO | J163: =Tabla1442[[#This Row],[VALOR A PAGAR]]-Tabla1442[[#This Row],[VALOR CANCELADO]] -> 0 | K163: =Tabla1442[[#This Row],[CANT.]]*2 -> $ 20.00 | L163: $ 40.00 | M163: GAL'S CON VIGENCIA 2025
A164: 2024-12-12 | B164: TAE WOONG | C164: 3 | D164: $ 6.00 | E164: =C164*Tabla1442[[#This Row],[PRECIO UNITARIO]] -> $ 18.00 | F164: 0 | G164: $ 18.00 | H164: $ 18.00 | I164: CANCELADO | J164: =Tabla1442[[#This Row],[VALOR A PAGAR]]-Tabla1442[[#This Row],[VALOR CANCELADO]] -> 0 | K164: =Tabla1442[[#This Row],[CANT.]]*2 -> $ 6.00 | L164: $ 12.00 | M164: GAL'S CON VIGENCIA 2025
A165: 2024-12-12 | B165: KOREAN DRAGON | C165: 1 | D165: $ 6.00 | E165: =C165*Tabla1442[[#This Row],[PRECIO UNITARIO]] -> $ 6.00 | F165: 0 | G165: $ 6.00 | H165: $ 6.00 | I165: CANCELADO | J165: =Tabla1442[[#This Row],[VALOR A PAGAR]]-Tabla1442[[#This Row],[VALOR CANCELADO]] -> 0 | K165: =Tabla1442[[#This Row],[CANT.]]*2 -> $ 2.00 | L165: $ 4.00 | M165: GAL'S CON VIGENCIA 2025
A166: 2024-12-13 | B166: ARES | C166: 1 | D166: $ 8.00 | E166: =C166*Tabla1442[[#This Row],[PRECIO UNITARIO]] -> $ 8.00 | F166: 0 | G166: $ 8.00 | H166: $ 8.00 | I166: CANCELADO | J166: =Tabla1442[[#This Row],[VALOR A PAGAR]]-Tabla1442[[#This Row],[VALOR CANCELADO]] -> 0 | K166: =Tabla1442[[#This Row],[CANT.]]*2 -> $ 2.00 | L166: $ 6.00 | M166: GAL'S CON VIGENCIA 2025
B167: TOTAL | C167: =SUM(C4:C166) -> 878 | E167: =SUBTOTAL(109,Tabla1442[VALOR A PAGAR]) -> $5,820.00 | F167: =SUM(F4:F166) -> $332.00 | G167: =SUM(G4:G166) -> $5,506.00 | H167: =SUM(H4:H166) -> $5,838.00
C168: GAL ELABORADOS | E168: A RECAUDARSE | F168: RECAUDADO EN EFECTIVO | G168: RECAUDADO EN TRANSFERENCIA
B171: RECAUDADO | C171: MONTO
B172: EFECTIVO | C172: =F167 -> $332.00
B173: TRANSFERENCIA | C173: =G167 -> $5,506.00
B174: TOTAL | C174: =SUM(C172:C173) -> $5,838.00
B177: POR COBRAR | C177: MONTO
B179: TOTAL | C179: =SUM(C178:C178) -> $0.00
B182: DEVOLVER O HACER PASO | C182: MONTO
B183: =B96 -> JOSEON LEGACY | C183: $14.00
B184: =B119 -> BORJA'S LIONS | C184: $4.00
B185: TOTAL | C185: =SUM(C183:C184) -> $18.00
C1539: BENJAMIN MATIAS

Sheet GAL'S 2025
A2: LICENCIAS DE COMPETIDOR (ENERO - 15 DE MARZO DE 2025)
A3: FECHA | B3: CLUB | C3: CANT. | D3: PRECIO UNITARIO | E3: VALOR A PAGAR | F3: EFECTIVO | G3: TRANSFERENCIA | H3: VALOR CANCELADO | I3: ESTADO | J3: SALDO | K3: COSTO | L3: GANANCIA | M3: OBSERVACIONES
A4: 2025-01-07 | B4: MARCIAL GRANDA | C4: 4 | D4: $ 8.00 | E4: =C4*Tabla144[[#This Row],[PRECIO UNITARIO]] -> $ 32.00 | F4: 0 | G4: $ 32.00 | H4: =F4+G4 -> $ 32.00 | I4: =IF((E4=H4),"CANCELADO","SALDO PENDIENTE") -> CANCELADO | J4: =Tabla144[[#This Row],[VALOR A PAGAR]]-Tabla144[[#This Row],[VALOR CANCELADO]] -> 0 | K4: =Tabla144[[#This Row],[CANT.]]*2 -> $ 8.00 | L4: =E4-K4 -> $ 24.00
A5: 2025-01-08 | B5: CHUNG SONG | C5: 8 | D5: $ 6.00 | E5: =C5*Tabla144[[#This Row],[PRECIO UNITARIO]] -> $ 48.00 | F5: 0 | G5: $ 48.00 | H5: $ 48.00 | I5: CANCELADO | J5: =Tabla144[[#This Row],[VALOR A PAGAR]]-Tabla144[[#This Row],[VALOR CANCELADO]] -> 0 | K5: =Tabla144[[#This Row],[CANT.]]*2 -> $ 16.00 | L5: $ 32.00
A6: 2025-01-08 | B6: TAE BAEK ECUADOR JR. | C6: 1 | D6: $ 2.00 | E6: =C6*Tabla144[[#This Row],[PRECIO UNITARIO]] -> $ 2.00 | F6: 0 | G6: $ 2.00 | H6: $ 2.00 | I6: CANCELADO | J6: =Tabla144[[#This Row],[VALOR A PAGAR]]-Tabla144[[#This Row],[VALOR CANCELADO]] -> 0 | K6: =Tabla144[[#This Row],[CANT.]]*2 -> $ 2.00 | L6: 0
A7: 2025-01-10 | B7: PVM - ROJAS IAN IRON FIST | C7: 36 | D7: $ 8.00 | E7: =C7*Tabla144[[#This Row],[PRECIO UNITARIO]] -> $ 288.00 | F7: 0 | G7: $ 288.00 | H7: $ 288.00 | I7: CANCELADO | J7: =Tabla144[[#This Row],[VALOR A PAGAR]]-Tabla144[[#This Row],[VALOR CANCELADO]] -> 0 | K7: =Tabla144[[#This Row],[CANT.]]*2 -> $ 72.00 | L7: $ 216.00
A8: 2025-01-10 | B8: PVM - ROJAS IAN IRON FIST | C8: 2 | D8: $ 2.00 | E8: =C8*Tabla144[[#This Row],[PRECIO UNITARIO]] -> $ 4.00 | F8: 0 | G8: $ 4.00 | H8: $ 4.00 | I8: CANCELADO | J8: =Tabla144[[#This Row],[VALOR A PAGAR]]-Tabla144[[#This Row],[VALOR CANCELADO]] -> 0 | K8: =Tabla144[[#This Row],[CANT.]]*2 -> $ 4.00 | L8: 0
A9: 2025-01-12 | B9: MOODUKKWAN TRAINING CENTER | C9: 4 | D9: $ 6.00 | E9: =C9*Tabla144[[#This Row],[PRECIO UNITARIO]] -> $ 24.00 | F9: 0 | G9: $ 24.00 | H9: $ 24.00 | I9: CANCELADO | J9: =Tabla144[[#This Row],[VALOR A PAGAR]]-Tabla144[[#This Row],[VALOR CANCELADO]] -> 0 | K9: =Tabla144[[#This Row],[CANT.]]*2 -> $ 8.00 | L9: $ 16.00
A10: 2025-01-13 | B10: APOLO | C10: 3 | D10: $ 6.00 | E10: =C10*Tabla144[[#This Row],[PRECIO UNITARIO]] -> $ 18.00 | F10: 0 | G10: $ 18.00 | H10: $ 18.00 | I10: CANCELADO | J10: =Tabla144[[#This Row],[VALOR A PAGAR]]-Tabla144[[#This Row],[VALOR CANCELADO]] -> 0 | K10: =Tabla144[[#This Row],[CANT.]]*2 -> $ 6.00 | L10: $ 12.00
A11: 2025-01-15 | B11: MIT-TKD | C11: 15 | D11: $ 8.00 | E11: =C11*Tabla144[[#This Row],[PRECIO UNITARIO]] -> $ 120.00 | F11: 0 | G11: $ 120.00 | H11: $ 120.00 | I11: CANCELADO | J11: =Tabla144[[#This Row],[VALOR A PAGAR]]-Tabla144[[#This Row],[VALOR CANCELADO]] -> 0 | K11: =Tabla144[[#This Row],[CANT.]]*2 -> $ 30.00 | L11: $ 90.00
A12: 2025-01-15 | B12: MOODUKKWAN TRAINING CENTER | C12: 2 | D12: $ 6.00 | E12: =C12*Tabla144[[#This Row],[PRECIO UNITARIO]] -> $ 12.00 | F12: 0 | G12: $ 12.00 | H12: $ 12.00 | I12: CANCELADO | J12: =Tabla144[[#This Row],[VALOR A PAGAR]]-Tabla144[[#This Row],[VALOR CANCELADO]] -> 0 | K12: =Tabla144[[#This Row],[CANT.]]*2 -> $ 4.00 | L12: $ 8.00
A13: 2025-01-16 | B13: SCORPIUS | C13: 1 | D13: $ 6.00 | E13: =C13*Tabla144[[#This Row],[PRECIO UNITARIO]] -> $ 6.00 | F13: 0 | G13: $ 6.00 | H13: $ 6.00 | I13: CANCELADO | J13: =Tabla144[[#This Row],[VALOR A PAGAR]]-Tabla144[[#This Row],[VALOR CANCELADO]] -> 0 | K13: =Tabla144[[#This Row],[CANT.]]*2 -> $ 2.00 | L13: $ 4.00
A14: 2025-01-17 | B14: TAE DO ACADEMY | C14: 10 | D14: $ 6.00 | E14: =C14*Tabla144[[#This Row],[PRECIO UNITARIO]] -> $ 60.00 | F14: 0 | G14: $ 60.00 | H14: $ 60.00 | I14: CANCELADO | J14: =Tabla144[[#This Row],[VALOR A PAGAR]]-Tabla144[[#This Row],[VALOR CANCELADO]] -> 0 | K14: =Tabla144[[#This Row],[CANT.]]*2 -> $ 20.00 | L14: $ 40.00
A15: 2025-01-20 | B15: ASOTKD - P CHIMBACALLE | C15: 17 | D15: $ 8.00 | E15: =C15*Tabla144[[#This Row],[PRECIO UNITARIO]] -> $ 136.00 | F15: $ 136.00 | G15: 0 | H15: $ 136.00 | I15: CANCELADO | J15: =Tabla144[[#This Row],[VALOR A PAGAR]]-Tabla144[[#This Row],[VALOR CANCELADO]] -> 0 | K15: =Tabla144[[#This Row],[CANT.]]*2 -> $ 34.00 | L15: $ 102.00
A16: 2025-01-20 | B16: ASOTKD - P CHIMBACALLE | C16: 1 | D16: $ 2.00 | E16: =C16*Tabla144[[#This Row],[PRECIO UNITARIO]] -> $ 2.00 | F16: $ 2.00 | G16: 0 | H16: $ 2.00 | I16: CANCELADO | J16: =Tabla144[[#This Row],[VALOR A PAGAR]]-Tabla144[[#This Row],[VALOR CANCELADO]] -> 0 | K16: =Tabla144[[#This Row],[CANT.]]*2 -> $ 2.00 | L16: 0
A17: 2025-01-20 | B17: MSA GRAND MASTER | C17: 12 | D17: $ 6.00 | E17: =C17*Tabla144[[#This Row],[PRECIO UNITARIO]] -> $ 72.00 | F17: 0 | G17: $ 72.00 | H17: $ 72.00 | I17: CANCELADO | J17: =Tabla144[[#This Row],[VALOR A PAGAR]]-Tabla144[[#This Row],[VALOR CANCELADO]] -> 0 | K17: =Tabla144[[#This Row],[CANT.]]*2 -> $ 24.00 | L17: $ 48.00
A18: 2025-01-22 | B18: KUMGANG DUL | C18: 3 | D18: $ 6.00 | E18: =C18*Tabla144[[#This Row],[PRECIO UNITARIO]] -> $ 18.00 | F18: 0 | G18: $ 18.00 | H18: $ 18.00 | I18: CANCELADO | J18: =Tabla144[[#This Row],[VALOR A PAGAR]]-Tabla144[[#This Row],[VALOR CANCELADO]] -> 0 | K18: =Tabla144[[#This Row],[CANT.]]*2 -> $ 6.00 | L18: $ 12.00 | M18: PAGO CON DIPLOMAS Y CURSO DE ENTRENADORES
A19: 2025-01-24 | B19: TAE WOONG | C19: 25 | D19: $ 8.00 | E19: =C19*Tabla144[[#This Row],[PRECIO UNITARIO]] -> $ 200.00 | F19: 0 | G19: $ 200.00 | H19: $ 200.00 | I19: CANCELADO | J19: =Tabla144[[#This Row],[VALOR A PAGAR]]-Tabla144[[#This Row],[VALOR CANCELADO]] -> 0 | K19: =Tabla144[[#This Row],[CANT.]]*2 -> $ 50.00 | L19: $ 150.00
A20: 2025-01-24 | B20: TAE WOONG | C20: 2 | D20: $ 6.00 | E20: =C20*Tabla144[[#This Row],[PRECIO UNITARIO]] -> $ 12.00 | F20: 0 | G20: $ 12.00 | H20: $ 12.00 | I20: CANCELADO | J20: =Tabla144[[#This Row],[VALOR A PAGAR]]-Tabla144[[#This Row],[VALOR CANCELADO]] -> 0 | K20: =Tabla144[[#This Row],[CANT.]]*2 -> $ 4.00 | L20: $ 8.00
A21: 2025-01-24 | B21: TAE WOONG | C21: 5 | D21: $ 2.00 | E21: =C21*Tabla144[[#This Row],[PRECIO UNITARIO]] -> $ 10.00 | F21: 0 | G21: $ 10.00 | H21: $ 10.00 | I21: CANCELADO | J21: =Tabla144[[#This Row],[VALOR A PAGAR]]-Tabla144[[#This Row],[VALOR CANCELADO]] -> 0 | K21: =Tabla144[[#This Row],[CANT.]]*2 -> $ 10.00 | L21: 0 | M21: SOLO IMPRESIÓN
A22: 2025-01-24 | B22: EQUILIBRIO | C22: 11 | D22: $ 8.00 | E22: =C22*Tabla144[[#This Row],[PRECIO UNITARIO]] -> $ 88.00 | F22: 0 | G22: $ 88.00 | H22: $ 88.00 | I22: CANCELADO | J22: =Tabla144[[#This Row],[VALOR A PAGAR]]-Tabla144[[#This Row],[VALOR CANCELADO]] -> 0 | K22: =Tabla144[[#This Row],[CANT.]]*2 -> $ 22.00 | L22: $ 66.00
A23: 2025-01-24 | B23: EQUILIBRIO | C23: 2 | D23: $ 6.00 | E23: =C23*Tabla144[[#This Row],[PRECIO UNITARIO]] -> $ 12.00 | F23: 0 | G23: $ 12.00 | H23: $ 12.00 | I23: CANCELADO | J23: =Tabla144[[#This Row],[VALOR A PAGAR]]-Tabla144[[#This Row],[VALOR CANCELADO]] -> 0 | K23: =Tabla144[[#This Row],[CANT.]]*2 -> $ 4.00 | L23: $ 8.00
A24: 2025-01-24 | B24: MOODUKKWAN TRAINING CENTER | C24: 3 | D24: $ 6.00 | E24: =C24*Tabla144[[#This Row],[PRECIO UNITARIO]] -> $ 18.00 | F24: 0 | G24: $ 18.00 | H24: $ 18.00 | I24: CANCELADO | J24: =Tabla144[[#This Row],[VALOR A PAGAR]]-Tabla144[[#This Row],[VALOR CANCELADO]] -> 0 | K24: =Tabla144[[#This Row],[CANT.]]*2 -> $ 6.00 | L24: $ 12.00
A25: 2025-01-25 | B25: PVM - ROJAS IAN IRON FIST | C25: 4 | D25: $ 8.00 | E25: =C25*Tabla144[[#This Row],[PRECIO UNITARIO]] -> $ 32.00 | F25: 0 | G25: $ 32.00 | H25: $ 32.00 | I25: CANCELADO | J25: =Tabla144[[#This Row],[VALOR A PAGAR]]-Tabla144[[#This Row],[VALOR CANCELADO]] -> 0 | K25: =Tabla144[[#This Row],[CANT.]]*2 -> $ 8.00 | L25: $ 24.00
A26: 2025-01-27 | B26: HAN KUM DO | C26: 18 | D26: $ 8.00 | E26: =C26*Tabla144[[#This Row],[PRECIO UNITARIO]] -> $ 144.00 | F26: 0 | G26: $ 144.00 | H26: $ 144.00 | I26: CANCELADO | J26: =Tabla144[[#This Row],[VALOR A PAGAR]]-Tabla144[[#This Row],[VALOR CANCELADO]] -> 0 | K26: =Tabla144[[#This Row],[CANT.]]*2 -> $ 36.00 | L26: $ 108.00
A27: 2025-01-27 | B27: TAE SHO KU | C27: 7 | D27: $ 8.00 | E27: =C27*Tabla144[[#This Row],[PRECIO UNITARIO]] -> $ 56.00 | F27: 0 | G27: $ 56.00 | H27: $ 56.00 | I27: CANCELADO | J27: =Tabla144[[#This Row],[VALOR A PAGAR]]-Tabla144[[#This Row],[VALOR CANCELADO]] -> 0 | K27: =Tabla144[[#This Row],[CANT.]]*2 -> $ 14.00 | L27: $ 42.00
A28: 2025-01-27 | B28: TAE SHO KU | C28: 9 | D28: $ 6.00 | E28: =C28*Tabla144[[#This Row],[PRECIO UNITARIO]] -> $ 54.00 | F28: 0 | G28: $ 54.00 | H28: $ 54.00 | I28: CANCELADO | J28: =Tabla144[[#This Row],[VALOR A PAGAR]]-Tabla144[[#This Row],[VALOR CANCELADO]] -> 0 | K28: =Tabla144[[#This Row],[CANT.]]*2 -> $ 18.00 | L28: $ 36.00
A29: 2025-01-27 | B29: BAEKJUL | C29: 26 | D29: $ 8.00 | E29: =C29*Tabla144[[#This Row],[PRECIO UNITARIO]] -> $ 208.00 | F29: 0 | G29: $ 208.00 | H29: $ 208.00 | I29: CANCELADO | J29: =Tabla144[[#This Row],[VALOR A PAGAR]]-Tabla144[[#This Row],[VALOR CANCELADO]] -> 0 | K29: =Tabla144[[#This Row],[CANT.]]*2 -> $ 52.00 | L29: $ 156.00
A30: 2025-01-28 | B30: KO AMÉRICA | C30: 2 | D30: $ 6.00 | E30: =C30*Tabla144[[#This Row],[PRECIO UNITARIO]] -> $ 12.00 | F30: 0 | G30: $ 12.00 | H30: $ 12.00 | I30: CANCELADO | J30: =Tabla144[[#This Row],[VALOR A PAGAR]]-Tabla144[[#This Row],[VALOR CANCELADO]] -> 0 | K30: =Tabla144[[#This Row],[CANT.]]*2 -> $ 4.00 | L30: $ 8.00
A31: 2025-01-28 | B31: BAEKJUL TEAM AYALAZ | C31: 31 | D31: $ 8.00 | E31: =C31*Tabla144[[#This Row],[PRECIO UNITARIO]] -> $ 248.00 | F31: 0 | G31: $ 248.00 | H31: $ 248.00 | I31: CANCELADO | J31: =Tabla144[[#This Row],[VALOR A PAGAR]]-Tabla144[[#This Row],[VALOR CANCELADO]] -> 0 | K31: =Tabla144[[#This Row],[CANT.]]*2 -> $ 62.00 | L31: $ 186.00
A32: 2025-01-28 | B32: SIMJANG | C32: 13 | D32: $ 8.00 | E32: =C32*Tabla144[[#This Row],[PRECIO UNITARIO]] -> $ 104.00 | F32: 0 | G32: $ 104.00 | H32: $ 104.00 | I32: CANCELADO | J32: =Tabla144[[#This Row],[VALOR A PAGAR]]-Tabla144[[#This Row],[VALOR CANCELADO]] -> 0 | K32: =Tabla144[[#This Row],[CANT.]]*2 -> $ 26.00 | L32: $ 78.00
A33: 2025-01-28 | B33: SIMJANG | C33: 17 | D33: $ 6.00 | E33: =C33*Tabla144[[#This Row],[PRECIO UNITARIO]] -> $ 102.00 | F33: 0 | G33: $ 102.00 | H33: $ 102.00 | I33: CANCELADO | J33: =Tabla144[[#This Row],[VALOR A PAGAR]]-Tabla144[[#This Row],[VALOR CANCELADO]] -> 0 | K33: =Tabla144[[#This Row],[CANT.]]*2 -> $ 34.00 | L33: $ 68.00
A34: 2025-01-28 | B34: ASOTKD - P VICENTINA | C34: 1 | D34: $ 6.00 | E34: =C34*Tabla144[[#This Row],[PRECIO UNITARIO]] -> $ 6.00 | F34: $ 6.00 | G34: 0 | H34: $ 6.00 | I34: CANCELADO | J34: =Tabla144[[#This Row],[VALOR A PAGAR]]-Tabla144[[#This Row],[VALOR CANCELADO]] -> 0 | K34: =Tabla144[[#This Row],[CANT.]]*2 -> $ 2.00 | L34: $ 4.00
A35: 2025-01-29 | B35: HUANG TOP GYM | C35: 9 | D35: $ 8.00 | E35: =C35*Tabla144[[#This Row],[PRECIO UNITARIO]] -> $ 72.00 | F35: 0 | G35: $ 72.00 | H35: $ 72.00 | I35: CANCELADO | J35: =Tabla144[[#This Row],[VALOR A PAGAR]]-Tabla144[[#This Row],[VALOR CANCELADO]] -> 0 | K35: =Tabla144[[#This Row],[CANT.]]*2 -> $ 18.00 | L35: $ 54.00
A36: 2025-01-29 | B36: ECUADOR | C36: 94 | D36: $ 6.00 | E36: =C36*Tabla144[[#This Row],[PRECIO UNITARIO]] -> $ 564.00 | F36: 0 | G36: $ 564.00 | H36: =F36+G36 -> $ 564.00 | I36: =IF((E36=H36),"CANCELADO","SALDO PENDIENTE") -> CANCELADO | J36: =Tabla144[[#This Row],[VALOR A PAGAR]]-Tabla144[[#This Row],[VALOR CANCELADO]] -> 0 | K36: =Tabla144[[#This Row],[CANT.]]*2 -> $ 188.00 | L36: =E36-K36 -> $ 376.00
A37: 2025-01-29 | B37: FARANG | C37: 12 | D37: $ 8.00 | E37: =C37*Tabla144[[#This Row],[PRECIO UNITARIO]] -> $ 96.00 | F37: 0 | G37: $ 96.00 | H37: $ 96.00 | I37: CANCELADO | J37: =Tabla144[[#This Row],[VALOR A PAGAR]]-Tabla144[[#This Row],[VALOR CANCELADO]] -> 0 | K37: =Tabla144[[#This Row],[CANT.]]*2 -> $ 24.00 | L37: $ 72.00
A38: 2025-01-29 | B38: RYONG TAE | C38: 1 | D38: $ 6.00 | E38: =C38*Tabla144[[#This Row],[PRECIO UNITARIO]] -> $ 6.00 | F38: 0 | G38: $ 7.50 | H38: $ 7.50 | I38: SALDO PENDIENTE | J38: =Tabla144[[#This Row],[VALOR A PAGAR]]-Tabla144[[#This Row],[VALOR CANCELADO]] -> $ (1.50) | K38: =Tabla144[[#This Row],[CANT.]]*2 -> $ 2.00 | L38: $ 4.00 | M38: USA $2,50 PARA CERTIFICADO DE ASCENSO QUEDA A FAVOR 1,50
A39: 2025-01-30 | B39: UNIVERSIDAD DE LOS HEMISFERIOS | C39: 1 | D39: $ 6.00 | E39: =C39*Tabla144[[#This Row],[PRECIO UNITARIO]] -> $ 6.00 | F39: $ 6.00 | G39: 0 | H39: $ 6.00 | I39: CANCELADO | J39: =Tabla144[[#This Row],[VALOR A PAGAR]]-Tabla144[[#This Row],[VALOR CANCELADO]] -> 0 | K39: =Tabla144[[#This Row],[CANT.]]*2 -> $ 2.00 | L39: $ 4.00
A40: 2025-01-31 | B40: BAEKJUL TEAM AYALAZ | C40: 2 | D40: $ 8.00 | E40: =C40*Tabla144[[#This Row],[PRECIO UNITARIO]] -> $ 16.00 | F40: 0 | G40: $ 16.00 | H40: $ 16.00 | I40: CANCELADO | J40: =Tabla144[[#This Row],[VALOR A PAGAR]]-Tabla144[[#This Row],[VALOR CANCELADO]] -> 0 | K40: =Tabla144[[#This Row],[CANT.]]*2 -> $ 4.00 | L40: $ 12.00
A41: 2025-01-31 | B41: CIUDAD DE QUITO | C41: 12 | D41: $ 8.00 | E41: =C41*Tabla144[[#This Row],[PRECIO UNITARIO]] -> $ 96.00 | F41: 0 | G41: $ 96.00 | H41: $ 96.00 | I41: CANCELADO | J41: =Tabla144[[#This Row],[VALOR A PAGAR]]-Tabla144[[#This Row],[VALOR CANCELADO]] -> 0 | K41: =Tabla144[[#This Row],[CANT.]]*2 -> $ 24.00 | L41: $ 72.00 | M41: CANCELA EN DOS PAGOS
A42: 2025-01-31 | B42: TEAM VENCEDORES | C42: 1 | D42: $ 8.00 | E42: =C42*Tabla144[[#This Row],[PRECIO UNITARIO]] -> $ 8.00 | F42: 0 | G42: $ 8.00 | H42: $ 8.00 | I42: CANCELADO | J42: =Tabla144[[#This Row],[VALOR A PAGAR]]-Tabla144[[#This Row],[VALOR CANCELADO]] -> 0 | K42: =Tabla144[[#This Row],[CANT.]]*2 -> $ 2.00 | L42: $ 6.00
A43: 2025-01-31 | B43: SOCIEDAD DEPORTIVA CENTRAL | C43: 19 | D43: $ 8.00 | E43: =C43*Tabla144[[#This Row],[PRECIO UNITARIO]] -> $ 152.00 | F43: $ 152.00 | G43: 0 | H43: $ 152.00 | I43: CANCELADO | J43: =Tabla144[[#This Row],[VALOR A PAGAR]]-Tabla144[[#This Row],[VALOR CANCELADO]] -> 0 | K43: =Tabla144[[#This Row],[CANT.]]*2 -> $ 38.00 | L43: $ 114.00
A44: 2025-02-04 | B44: MOODUKKWAN TRAINING CENTER | C44: 1 | D44: $ 8.00 | E44: =C44*Tabla144[[#This Row],[PRECIO UNITARIO]] -> $ 8.00 | F44: 0 | G44: $ 8.00 | H44: $ 8.00 | I44: CANCELADO | J44: =Tabla144[[#This Row],[VALOR A PAGAR]]-Tabla144[[#This Row],[VALOR CANCELADO]] -> 0 | K44: =Tabla144[[#This Row],[CANT.]]*2 -> $ 2.00 | L44: $ 6.00
A45: 2025-02-04 | B45: MOODUKKWAN TRAINING CENTER | C45: 5 | D45: $ 6.00 | E45: =C45*Tabla144[[#This Row],[PRECIO UNITARIO]] -> $ 30.00 | G45: $ 30.00 | H45: $ 30.00 | I45: CANCELADO | J45: =Tabla144[[#This Row],[VALOR A PAGAR]]-Tabla144[[#This Row],[VALOR CANCELADO]] -> 0 | K45: =Tabla144[[#This Row],[CANT.]]*2 -> $ 10.00 | L45: $ 20.00
A46: 2025-02-04 | B46: JR SPORT | C46: 1 | D46: $ 8.00 | E46: =C46*Tabla144[[#This Row],[PRECIO UNITARIO]] -> $ 8.00 | F46: $ 8.00 | G46: 0 | H46: $ 8.00 | I46: CANCELADO | J46: =Tabla144[[#This Row],[VALOR A PAGAR]]-Tabla144[[#This Row],[VALOR CANCELADO]] -> 0 | K46: =Tabla144[[#This Row],[CANT.]]*2 -> $ 2.00 | L46: $ 6.00
A47: 2025-02-04 | B47: DRAGON LEE GYM | C47: 1 | D47: $ 8.00 | E47: =C47*Tabla144[[#This Row],[PRECIO UNITARIO]] -> $ 8.00 | F47: 0 | G47: $ 8.00 | H47: $ 8.00 | I47: CANCELADO | J47: =Tabla144[[#This Row],[VALOR A PAGAR]]-Tabla144[[#This Row],[VALOR CANCELADO]] -> 0 | K47: =Tabla144[[#This Row],[CANT.]]*2 -> $ 2.00 | L47: $ 6.00
A48: 2025-02-05 | B48: BAS PANTHERS | C48: 25 | D48: $ 8.00 | E48: =C48*Tabla144[[#This Row],[PRECIO UNITARIO]] -> $ 200.00 | F48: 0 | G48: $ 200.00 | H48: $ 200.00 | I48: CANCELADO | J48: =Tabla144[[#This Row],[VALOR A PAGAR]]-Tabla144[[#This Row],[VALOR CANCELADO]] -> 0 | K48: =Tabla144[[#This Row],[CANT.]]*2 -> $ 50.00 | L48: $ 150.00 | M48: PASO CON JARROS NAVIDEÑOS SELECCIONADOS PROVINCIALES
A49: 2025-02-05 | B49: CHUNG SONG | C49: 5 | D49: $ 6.00 | E49: =C49*Tabla144[[#This Row],[PRECIO UNITARIO]] -> $ 30.00 | F49: 0 | G49: $ 30.00 | H49: $ 30.00 | I49: CANCELADO | J49: =Tabla144[[#This Row],[VALOR A PAGAR]]-Tabla144[[#This Row],[VALOR CANCELADO]] -> 0 | K49: =Tabla144[[#This Row],[CANT.]]*2 -> $ 10.00 | L49: $ 20.00
A50: 2025-02-05 | B50: PIONERO FORTIS | C50: 39 | D50: $ 8.00 | E50: =C50*Tabla144[[#This Row],[PRECIO UNITARIO]] -> $ 312.00 | F50: 0 | G50: $ 312.00 | H50: $ 312.00 | I50: CANCELADO | J50: =Tabla144[[#This Row],[VALOR A PAGAR]]-Tabla144[[#This Row],[VALOR CANCELADO]] -> 0 | K50: =Tabla144[[#This Row],[CANT.]]*2 -> $ 78.00 | L50: $ 234.00
A51: 2025-02-07 | B51: FIRST CLASS | C51: 12 | D51: $ 8.00 | E51: =C51*Tabla144[[#This Row],[PRECIO UNITARIO]] -> $ 96.00 | F51: 0 | G51: $ 96.00 | H51: $ 96.00 | I51: CANCELADO | J51: =Tabla144[[#This Row],[VALOR A PAGAR]]-Tabla144[[#This Row],[VALOR CANCELADO]] -> 0 | K51: =Tabla144[[#This Row],[CANT.]]*2 -> $ 24.00 | L51: $ 72.00
A52: 2025-02-07 | B52: FIRST CLASS | C52: 3 | D52: $ 6.00 | E52: =C52*Tabla144[[#This Row],[PRECIO UNITARIO]] -> $ 18.00 | F52: 0 | G52: $ 18.00 | H52: $ 18.00 | I52: CANCELADO | J52: =Tabla144[[#This Row],[VALOR A PAGAR]]-Tabla144[[#This Row],[VALOR CANCELADO]] -> 0 | K52: =Tabla144[[#This Row],[CANT.]]*2 -> $ 6.00 | L52: $ 12.00
A53: 2025-02-10 | B53: BAS PANTHERS | C53: 5 | D53: $ 8.00 | E53: =C53*Tabla144[[#This Row],[PRECIO UNITARIO]] -> $ 40.00 | F53: $ 40.00 | G53: 0 | H53: $ 40.00 | I53: CANCELADO | J53: =Tabla144[[#This Row],[VALOR A PAGAR]]-Tabla144[[#This Row],[VALOR CANCELADO]] -> 0 | K53: =Tabla144[[#This Row],[CANT.]]*2 -> $ 10.00 | L53: $ 30.00 | M53: PASO CON JARROS NAVIDEÑOS SELECCIONADOS PROVINCIALES
A54: 2025-02-10 | B54: MICHAYDO | C54: 3 | D54: $ 8.00 | E54: =C54*Tabla144[[#This Row],[PRECIO UNITARIO]] -> $ 24.00 | F54: 0 | G54: $ 24.00 | H54: $ 24.00 | I54: CANCELADO | J54: =Tabla144[[#This Row],[VALOR A PAGAR]]-Tabla144[[#This Row],[VALOR CANCELADO]] -> 0 | K54: =Tabla144[[#This Row],[CANT.]]*2 -> $ 6.00 | L54: $ 18.00
A55: 2025-02-10 | B55: L. D. C. MEJÍA | C55: 24 | D55: $ 8.00 | E55: =C55*Tabla144[[#This Row],[PRECIO UNITARIO]] -> $ 192.00 | F55: 0 | G55: $ 192.00 | H55: $ 192.00 | I55: CANCELADO | J55: =Tabla144[[#This Row],[VALOR A PAGAR]]-Tabla144[[#This Row],[VALOR CANCELADO]] -> 0 | K55: =Tabla144[[#This Row],[CANT.]]*2 -> $ 48.00 | L55: $ 144.00
A56: 2025-02-10 | B56: JERATHEL | C56: 28 | D56: $ 8.00 | E56: =C56*Tabla144[[#This Row],[PRECIO UNITARIO]] -> $ 224.00 | F56: 0 | G56: $ 224.00 | H56: $ 224.00 | I56: CANCELADO | J56: =Tabla144[[#This Row],[VALOR A PAGAR]]-Tabla144[[#This Row],[VALOR CANCELADO]] -> 0 | K56: =Tabla144[[#This Row],[CANT.]]*2 -> $ 56.00 | L56: $ 168.00
A57: 2025-02-10 | B57: JERATHEL | C57: 3 | D57: $ 6.00 | E57: =C57*Tabla144[[#This Row],[PRECIO UNITARIO]] -> $ 18.00 | F57: 0 | G57: $ 18.00 | H57: $ 18.00 | I57: CANCELADO | J57: =Tabla144[[#This Row],[VALOR A PAGAR]]-Tabla144[[#This Row],[VALOR CANCELADO]] -> 0 | K57: =Tabla144[[#This Row],[CANT.]]*2 -> $ 6.00 | L57: $ 12.00
A58: 2025-02-10 | B58: PYONGYANG | C58: 21 | D58: $ 8.00 | E58: =C58*Tabla144[[#This Row],[PRECIO UNITARIO]] -> $ 168.00 | F58: 0 | G58: $ 168.00 | H58: $ 168.00 | I58: CANCELADO | J58: =Tabla144[[#This Row],[VALOR A PAGAR]]-Tabla144[[#This Row],[VALOR CANCELADO]] -> 0 | K58: =Tabla144[[#This Row],[CANT.]]*2 -> $ 42.00 | L58: $ 126.00
A59: 2025-02-10 | B59: DOJANG TKD MELO | C59: 16 | D59: $ 8.00 | E59: =C59*Tabla144[[#This Row],[PRECIO UNITARIO]] -> $ 128.00 | F59: 0 | G59: $ 128.00 | H59: $ 128.00 | I59: CANCELADO | J59: =Tabla144[[#This Row],[VALOR A PAGAR]]-Tabla144[[#This Row],[VALOR CANCELADO]] -> 0 | K59: =Tabla144[[#This Row],[CANT.]]*2 -> $ 32.00 | L59: $ 96.00
A60: 2025-02-11 | B60: SHOGUN | C60: 28 | D60: $ 6.00 | E60: =C60*Tabla144[[#This Row],[PRECIO UNITARIO]] -> $ 168.00 | F60: 0 | G60: $ 168.00 | H60: $ 168.00 | I60: CANCELADO | J60: =Tabla144[[#This Row],[VALOR A PAGAR]]-Tabla144[[#This Row],[VALOR CANCELADO]] -> 0 | K60: =Tabla144[[#This Row],[CANT.]]*2 -> $ 56.00 | L60: $ 112.00
A61: 2025-02-11 | B61: LOS PUMAS | C61: 47 | D61: $ 6.00 | E61: =C61*Tabla144[[#This Row],[PRECIO UNITARIO]] -> $ 282.00 | F61: 0 | G61: $ 282.00 | H61: $ 282.00 | I61: CANCELADO | J61: =Tabla144[[#This Row],[VALOR A PAGAR]]-Tabla144[[#This Row],[VALOR CANCELADO]] -> 0 | K61: =Tabla144[[#This Row],[CANT.]]*2 -> $ 94.00 | L61: $ 188.00
A62: 2025-02-11 | B62: SEUL CAPELO | C62: 3 | D62: $ 8.00 | E62: =C62*Tabla144[[#This Row],[PRECIO UNITARIO]] -> $ 24.00 | F62: 0 | G62: $ 24.00 | H62: $ 24.00 | I62: CANCELADO | J62: =Tabla144[[#This Row],[VALOR A PAGAR]]-Tabla144[[#This Row],[VALOR CANCELADO]] -> 0 | K62: =Tabla144[[#This Row],[CANT.]]*2 -> $ 6.00 | L62: $ 18.00
A63: 2025-02-11 | B63: SEUL CAPELO | C63: 1 | D63: $ 6.00 | E63: =C63*Tabla144[[#This Row],[PRECIO UNITARIO]] -> $ 6.00 | F63: 0 | G63: $ 6.00 | H63: $ 6.00 | I63: CANCELADO | J63: =Tabla144[[#This Row],[VALOR A PAGAR]]-Tabla144[[#This Row],[VALOR CANCELADO]] -> 0 | K63: =Tabla144[[#This Row],[CANT.]]*2 -> $ 2.00 | L63: $ 4.00
A64: 2025-02-12 | B64: BAEKJUL | C64: 1 | D64: $ 8.00 | E64: =C64*Tabla144[[#This Row],[PRECIO UNITARIO]] -> $ 8.00 | F64: 0 | G64: $ 8.00 | H64: $ 8.00 | I64: CANCELADO | J64: =Tabla144[[#This Row],[VALOR A PAGAR]]-Tabla144[[#This Row],[VALOR CANCELADO]] -> 0 | K64: =Tabla144[[#This Row],[CANT.]]*2 -> $ 2.00 | L64: $ 6.00
A65: 2025-02-12 | B65: KO AMÉRICA | C65: 7 | D65: $ 6.00 | E65: =C65*Tabla144[[#This Row],[PRECIO UNITARIO]] -> $ 42.00 | F65: 0 | G65: $ 42.00 | H65: $ 42.00 | I65: CANCELADO | J65: =Tabla144[[#This Row],[VALOR A PAGAR]]-Tabla144[[#This Row],[VALOR CANCELADO]] -> 0 | K65: =Tabla144[[#This Row],[CANT.]]*2 -> $ 14.00 | L65: $ 28.00
A66: 2025-02-12 | B66: BLUE DRAGONS | C66: 4 | D66: $ 8.00 | E66: =C66*Tabla144[[#This Row],[PRECIO UNITARIO]] -> $ 32.00 | F66: 0 | G66: $ 32.00 | H66: $ 32.00 | I66: CANCELADO | J66: =Tabla144[[#This Row],[VALOR A PAGAR]]-Tabla144[[#This Row],[VALOR CANCELADO]] -> 0 | K66: =Tabla144[[#This Row],[CANT.]]*2 -> $ 8.00 | L66: $ 24.00
A67: 2025-02-12 | B67: TAEBAEK ECUADOR | C67: 1 | D67: $ 6.00 | E67: =C67*Tabla144[[#This Row],[PRECIO UNITARIO]] -> $ 6.00 | F67: 0 | G67: $ 6.00 | H67: $ 6.00 | I67: CANCELADO | J67: =Tabla144[[#This Row],[VALOR A PAGAR]]-Tabla144[[#This Row],[VALOR CANCELADO]] -> 0 | K67: =Tabla144[[#This Row],[CANT.]]*2 -> $ 2.00 | L67: $ 4.00
A68: 2025-02-12 | B68: MERCENARIOS | C68: 40 | D68: $ 8.00 | E68: =C68*Tabla144[[#This Row],[PRECIO UNITARIO]] -> $ 320.00 | F68: 0 | G68: $ 320.00 | H68: =F68+G68 -> $ 320.00 | I68: =IF((E68=H68),"CANCELADO","SALDO PENDIENTE") -> CANCELADO | J68: =Tabla144[[#This Row],[VALOR A PAGAR]]-Tabla144[[#This Row],[VALOR CANCELADO]] -> 0 | K68: =Tabla144[[#This Row],[CANT.]]*2 -> $ 80.00 | L68: =E68-K68 -> $ 240.00
A69: 2025-02-12 | B69: MERCENARIOS | C69: 2 | D69: $ 2.00 | E69: =C69*Tabla144[[#This Row],[PRECIO UNITARIO]] -> $ 4.00 | F69: 0 | G69: $ 4.00 | H69: $ 4.00 | I69: CANCELADO | J69: =Tabla144[[#This Row],[VALOR A PAGAR]]-Tabla144[[#This Row],[VALOR CANCELADO]] -> 0 | K69: =Tabla144[[#This Row],[CANT.]]*2 -> $ 4.00 | L69: 0
A70: 2025-02-12 | B70: SEUL | C70: 1 | D70: $ 6.00 | E70: =C70*Tabla144[[#This Row],[PRECIO UNITARIO]] -> $ 6.00 | F70: 0 | G70: $ 6.00 | H70: $ 6.00 | I70: CANCELADO | J70: =Tabla144[[#This Row],[VALOR A PAGAR]]-Tabla144[[#This Row],[VALOR CANCELADO]] -> 0 | K70: =Tabla144[[#This Row],[CANT.]]*2 -> $ 2.00 | L70: $ 4.00
A71: 2025-02-13 | B71: FURIA NEGRA | C71: 3 | D71: $ 8.00 | E71: =C71*Tabla144[[#This Row],[PRECIO UNITARIO]] -> $ 24.00 | F71: 0 | G71: $ 24.00 | H71: $ 24.00 | I71: CANCELADO | J71: =Tabla144[[#This Row],[VALOR A PAGAR]]-Tabla144[[#This Row],[VALOR CANCELADO]] -> 0 | K71: =Tabla144[[#This Row],[CANT.]]*2 -> $ 6.00 | L71: $ 18.00
A72: 2025-02-13 | B72: KYORUGUI GYM | C72: 25 | D72: $ 8.00 | E72: =C72*Tabla144[[#This Row],[PRECIO UNITARIO]] -> $ 200.00 | F72: 0 | G72: $ 200.00 | H72: $ 200.00 | I72: CANCELADO | J72: =Tabla144[[#This Row],[VALOR A PAGAR]]-Tabla144[[#This Row],[VALOR CANCELADO]] -> 0 | K72: =Tabla144[[#This Row],[CANT.]]*2 -> $ 50.00 | L72: $ 150.00
A73: 2025-02-13 | B73: MOODUKKWAN TRAINING CENTER | C73: 3 | D73: $ 8.00 | E73: =C73*Tabla144[[#This Row],[PRECIO UNITARIO]] -> $ 24.00 | F73: 0 | G73: $ 24.00 | H73: $ 24.00 | I73: CANCELADO | J73: =Tabla144[[#This Row],[VALOR A PAGAR]]-Tabla144[[#This Row],[VALOR CANCELADO]] -> 0 | K73: =Tabla144[[#This Row],[CANT.]]*2 -> $ 6.00 | L73: $ 18.00
A74: 2025-02-13 | B74: ARES | C74: 1 | D74: $ 8.00 | E74: =C74*Tabla144[[#This Row],[PRECIO UNITARIO]] -> $ 8.00 | F74: 0 | G74: $ 8.00 | H74: $ 8.00 | I74: CANCELADO | J74: =Tabla144[[#This Row],[VALOR A PAGAR]]-Tabla144[[#This Row],[VALOR CANCELADO]] -> 0 | K74: =Tabla144[[#This Row],[CANT.]]*2 -> $ 2.00 | L74: $ 6.00
A75: 2025-02-13 | B75: KUMGANG DUL | C75: 1 | D75: $ 6.00 | E75: =C75*Tabla144[[#This Row],[PRECIO UNITARIO]] -> $ 6.00 | F75: 0 | G75: $ 6.00 | H75: $ 6.00 | I75: CANCELADO | J75: =Tabla144[[#This Row],[VALOR A PAGAR]]-Tabla144[[#This Row],[VALOR CANCELADO]] -> 0 | K75: =Tabla144[[#This Row],[CANT.]]*2 -> $ 2.00 | L75: $ 4.00
A76: 2025-02-17 | B76: KYORUGUI GYM | C76: 1 | D76: $ 8.00 | E76: =C76*Tabla144[[#This Row],[PRECIO UNITARIO]] -> $ 8.00 | F76: 0 | G76: $ 8.00 | H76: $ 8.00 | I76: CANCELADO | J76: =Tabla144[[#This Row],[VALOR A PAGAR]]-Tabla144[[#This Row],[VALOR CANCELADO]] -> 0 | K76: =Tabla144[[#This Row],[CANT.]]*2 -> $ 2.00 | L76: $ 6.00
A77: 2025-02-17 | B77: BAEKJUL | C77: 1 | D77: $ 8.00 | E77: =C77*Tabla144[[#This Row],[PRECIO UNITARIO]] -> $ 8.00 | F77: 0 | G77: $ 8.00 | H77: $ 8.00 | I77: CANCELADO | J77: =Tabla144[[#This Row],[VALOR A PAGAR]]-Tabla144[[#This Row],[VALOR CANCELADO]] -> 0 | K77: =Tabla144[[#This Row],[CANT.]]*2 -> $ 2.00 | L77: $ 6.00
A78: 2025-02-17 | B78: FITTKWONDO MEJÍA | C78: 8 | D78: $ 8.00 | E78: =C78*Tabla144[[#This Row],[PRECIO UNITARIO]] -> $ 64.00 | F78: 0 | G78: $ 64.00 | H78: $ 64.00 | I78: CANCELADO | J78: =Tabla144[[#This Row],[VALOR A PAGAR]]-Tabla144[[#This Row],[VALOR CANCELADO]] -> 0 | K78: =Tabla144[[#This Row],[CANT.]]*2 -> $ 16.00 | L78: $ 48.00
A79: 2025-02-18 | B79: PIONERO | C79: 1 | D79: $ 6.00 | E79: =C79*Tabla144[[#This Row],[PRECIO UNITARIO]] -> $ 6.00 | F79: 0 | G79: $ 6.00 | H79: $ 6.00 | I79: CANCELADO | J79: =Tabla144[[#This Row],[VALOR A PAGAR]]-Tabla144[[#This Row],[VALOR CANCELADO]] -> 0 | K79: =Tabla144[[#This Row],[CANT.]]*2 -> $ 2.00 | L79: $ 4.00
A80: 2025-02-18 | B80: HIMCHARI | C80: 60 | D80: $ 8.00 | E80: =C80*Tabla144[[#This Row],[PRECIO UNITARIO]] -> $ 480.00 | F80: 0 | G80: $ 480.00 | H80: $ 480.00 | I80: CANCELADO | J80: =Tabla144[[#This Row],[VALOR A PAGAR]]-Tabla144[[#This Row],[VALOR CANCELADO]] -> 0 | K80: =Tabla144[[#This Row],[CANT.]]*2 -> $ 120.00 | L80: $ 360.00
A81: 2025-02-18 | B81: EQUILIBRIO | C81: 1 | D81: $ 8.00 | E81: =C81*Tabla144[[#This Row],[PRECIO UNITARIO]] -> $ 8.00 | F81: 0 | G81: $ 8.00 | H81: $ 8.00 | I81: CANCELADO | J81: =Tabla144[[#This Row],[VALOR A PAGAR]]-Tabla144[[#This Row],[VALOR CANCELADO]] -> 0 | K81: =Tabla144[[#This Row],[CANT.]]*2 -> $ 2.00 | L81: $ 6.00
A82: 2025-02-19 | B82: CHUNG SONG | C82: 13 | D82: $ 6.00 | E82: =C82*Tabla144[[#This Row],[PRECIO UNITARIO]] -> $ 78.00 | F82: 0 | G82: $ 78.00 | H82: $ 78.00 | I82: CANCELADO | J82: =Tabla144[[#This Row],[VALOR A PAGAR]]-Tabla144[[#This Row],[VALOR CANCELADO]] -> 0 | K82: =Tabla144[[#This Row],[CANT.]]*2 -> $ 26.00 | L82: $ 52.00
A83: 2025-02-19 | B83: SAN SEBASTIÁN (RAÚL TIPÁN) | C83: 4 | D83: $ 6.00 | E83: =C83*Tabla144[[#This Row],[PRECIO UNITARIO]] -> $ 24.00 | F83: 0 | G83: $ 24.00 | H83: $ 24.00 | I83: CANCELADO | J83: =Tabla144[[#This Row],[VALOR A PAGAR]]-Tabla144[[#This Row],[VALOR CANCELADO]] -> 0 | K83: =Tabla144[[#This Row],[CANT.]]*2 -> $ 8.00 | L83: $ 16.00
A84: 2025-02-19 | B84: CIUDAD DE QUITO | C84: 1 | D84: $ 6.00 | E84: =C84*Tabla144[[#This Row],[PRECIO UNITARIO]] -> $ 6.00 | F84: 0 | G84: $ 6.00 | H84: $ 6.00 | I84: CANCELADO | J84: =Tabla144[[#This Row],[VALOR A PAGAR]]-Tabla144[[#This Row],[VALOR CANCELADO]] -> 0 | K84: =Tabla144[[#This Row],[CANT.]]*2 -> $ 2.00 | L84: $ 4.00
A85: 2025-02-19 | B85: SOCIEDAD DEPORTIVA CENTRAL | C85: 49 | D85: $ 8.00 | E85: =C85*Tabla144[[#This Row],[PRECIO UNITARIO]] -> $ 392.00 | F85: 0 | G85: $ 392.00 | H85: $ 392.00 | I85: CANCELADO | J85: =Tabla144[[#This Row],[VALOR A PAGAR]]-Tabla144[[#This Row],[VALOR CANCELADO]] -> 0 | K85: =Tabla144[[#This Row],[CANT.]]*2 -> $ 98.00 | L85: $ 294.00 | M85: CRUCE DEUDA IMPLEMENTOS(TATAMI)
A86: 2025-02-20 | B86: SEUL CHUNG UI | C86: 27 | D86: $ 8.00 | E86: =C86*Tabla144[[#This Row],[PRECIO UNITARIO]] -> $ 216.00 | F86: 0 | G86: $ 216.00 | H86: $ 216.00 | I86: CANCELADO | J86: =Tabla144[[#This Row],[VALOR A PAGAR]]-Tabla144[[#This Row],[VALOR CANCELADO]] -> 0 | K86: =Tabla144[[#This Row],[CANT.]]*2 -> $ 54.00 | L86: $ 162.00
A87: 2025-02-20 | B87: TAEGUK JUCARO | C87: 4 | D87: $ 8.00 | E87: =C87*Tabla144[[#This Row],[PRECIO UNITARIO]] -> $ 32.00 | F87: 0 | G87: $ 32.00 | H87: $ 32.00 | I87: CANCELADO | J87: =Tabla144[[#This Row],[VALOR A PAGAR]]-Tabla144[[#This Row],[VALOR CANCELADO]] -> 0 | K87: =Tabla144[[#This Row],[CANT.]]*2 -> $ 8.00 | L87: $ 24.00
A88: 2025-02-20 | B88: YONG TIGER | C88: 1 | D88: $ 6.00 | E88: =C88*Tabla144[[#This Row],[PRECIO UNITARIO]] -> $ 6.00 | F88: 0 | G88: $ 10.00 | H88: $ 10.00 | I88: SALDO PENDIENTE | J88: =Tabla144[[#This Row],[VALOR A PAGAR]]-Tabla144[[#This Row],[VALOR CANCELADO]] -> $ (4.00) | K88: =Tabla144[[#This Row],[CANT.]]*2 -> $ 2.00 | L88: $ 4.00
A89: 2025-02-21 | B89: LEÓN | C89: 66 | D89: $ 8.00 | E89: =C89*Tabla144[[#This Row],[PRECIO UNITARIO]] -> $ 528.00 | F89: $ 200.00 | G89: $ 328.00 | H89: $ 528.00 | I89: CANCELADO | J89: =Tabla144[[#This Row],[VALOR A PAGAR]]-Tabla144[[#This Row],[VALOR CANCELADO]] -> 0 | K89: =Tabla144[[#This Row],[CANT.]]*2 -> $ 132.00 | L89: $ 396.00
A90: 2025-02-21 | B90: BLUE DRAGONS | C90: 20 | D90: $ 8.00 | E90: =C90*Tabla144[[#This Row],[PRECIO UNITARIO]] -> $ 160.00 | F90: 0 | G90: $ 160.00 | H90: $ 160.00 | I90: CANCELADO | J90: =Tabla144[[#This Row],[VALOR A PAGAR]]-Tabla144[[#This Row],[VALOR CANCELADO]] -> 0 | K90: =Tabla144[[#This Row],[CANT.]]*2 -> $ 40.00 | L90: $ 120.00 | M90: CANCELA EN DOS DEPÓSITOS
A91: 2025-02-21 | B91: BORJA'S LIONS | C91: 10 | D91: $ 8.00 | E91: =C91*Tabla144[[#This Row],[PRECIO UNITARIO]] -> $ 80.00 | F91: 0 | G91: $ 80.00 | H91: $ 80.00 | I91: CANCELADO | J91: =Tabla144[[#This Row],[VALOR A PAGAR]]-Tabla144[[#This Row],[VALOR CANCELADO]] -> 0 | K91: =Tabla144[[#This Row],[CANT.]]*2 -> $ 20.00 | L91: $ 60.00
A92: 2025-02-21 | B92: SAN FRANCISCO TIGRES | C92: 9 | D92: $ 6.00 | E92: =C92*Tabla144[[#This Row],[PRECIO UNITARIO]] -> $ 54.00 | F92: 0 | G92: $ 54.00 | H92: $ 54.00 | I92: CANCELADO | J92: =Tabla144[[#This Row],[VALOR A PAGAR]]-Tabla144[[#This Row],[VALOR CANCELADO]] -> 0 | K92: =Tabla144[[#This Row],[CANT.]]*2 -> $ 18.00 | L92: $ 36.00
A93: 2025-02-24 | B93: SURYUN | C93: 1 | D93: $ 6.00 | E93: =C93*Tabla144[[#This Row],[PRECIO UNITARIO]] -> $ 6.00 | F93: 0 | G93: $ 6.00 | H93: $ 6.00 | I93: CANCELADO | J93: =Tabla144[[#This Row],[VALOR A PAGAR]]-Tabla144[[#This Row],[VALOR CANCELADO]] -> 0 | K93: =Tabla144[[#This Row],[CANT.]]*2 -> $ 2.00 | L93: $ 4.00
A94: 2025-02-24 | B94: SAN SEBASTIÁN | C94: 16 | D94: $ 8.00 | E94: =C94*Tabla144[[#This Row],[PRECIO UNITARIO]] -> $ 128.00 | F94: 0 | G94: $ 128.00 | H94: $ 128.00 | I94: CANCELADO | J94: =Tabla144[[#This Row],[VALOR A PAGAR]]-Tabla144[[#This Row],[VALOR CANCELADO]] -> 0 | K94: =Tabla144[[#This Row],[CANT.]]*2 -> $ 32.00 | L94: $ 96.00
A95: 2025-02-24 | B95: SAN SEBASTIÁN | C95: 2 | D95: $ 2.00 | E95: =C95*Tabla144[[#This Row],[PRECIO UNITARIO]] -> $ 4.00 | F95: 0 | G95: $ 4.00 | H95: $ 4.00 | I95: CANCELADO | J95: =Tabla144[[#This Row],[VALOR A PAGAR]]-Tabla144[[#This Row],[VALOR CANCELADO]] -> 0 | K95: =Tabla144[[#This Row],[CANT.]]*2 -> $ 4.00 | L95: 0 | M95: SOLO IMPRESIÓN
A96: 2025-02-24 | B96: CHUNG SONG | C96: 76 | D96: $ 6.00 | E96: =C96*Tabla144[[#This Row],[PRECIO UNITARIO]] -> $ 456.00 | F96: 0 | G96: $ 456.00 | H96: $ 456.00 | I96: CANCELADO | J96: =Tabla144[[#This Row],[VALOR A PAGAR]]-Tabla144[[#This Row],[VALOR CANCELADO]] -> 0 | K96: =Tabla144[[#This Row],[CANT.]]*2 -> $ 152.00 | L96: $ 304.00
A97: 2025-02-24 | B97: BAEJUL TEAM FERNÁNDEZ | C97: 2 | D97: $ 8.00 | E97: =C97*Tabla144[[#This Row],[PRECIO UNITARIO]] -> $ 16.00 | F97: 0 | G97: $ 16.00 | H97: $ 16.00 | I97: CANCELADO | J97: =Tabla144[[#This Row],[VALOR A PAGAR]]-Tabla144[[#This Row],[VALOR CANCELADO]] -> 0 | K97: =Tabla144[[#This Row],[CANT.]]*2 -> $ 4.00 | L97: $ 12.00
A98: 2025-02-24 | B98: BORJA'S LIONS | C98: 10 | D98: $ 6.00 | E98: =C98*Tabla144[[#This Row],[PRECIO UNITARIO]] -> $ 60.00 | F98: 0 | G98: $ 60.00 | H98: $ 60.00 | I98: CANCELADO | J98: =Tabla144[[#This Row],[VALOR A PAGAR]]-Tabla144[[#This Row],[VALOR CANCELADO]] -> 0 | K98: =Tabla144[[#This Row],[CANT.]]*2 -> $ 20.00 | L98: $ 40.00
A99: 2025-02-24 | B99: BORJA'S LIONS | C99: 24 | D99: $ 8.00 | E99: =C99*Tabla144[[#This Row],[PRECIO UNITARIO]] -> $ 192.00 | F99: 0 | G99: $ 192.00 | H99: $ 192.00 | I99: CANCELADO | J99: =Tabla144[[#This Row],[VALOR A PAGAR]]-Tabla144[[#This Row],[VALOR CANCELADO]] -> 0 | K99: =Tabla144[[#This Row],[CANT.]]*2 -> $ 48.00 | L99: $ 144.00
A100: 2025-02-24 | B100: LOS PUMAS | C100: 4 | D100: $ 6.00 | E100: =C100*Tabla144[[#This Row],[PRECIO UNITARIO]] -> $ 24.00 | F100: 0 | G100: $ 24.00 | H100: =F100+G100 -> $ 24.00 | I100: =IF((E100=H100),"CANCELADO","SALDO PENDIENTE") -> CANCELADO | J100: =Tabla144[[#This Row],[VALOR A PAGAR]]-Tabla144[[#This Row],[VALOR CANCELADO]] -> 0 | K100: =Tabla144[[#This Row],[CANT.]]*2 -> $ 8.00 | L100: =E100-K100 -> $ 16.00
A101: 2025-02-24 | B101: KOREAN DRAGON | C101: 2 | D101: $ 8.00 | E101: =C101*Tabla144[[#This Row],[PRECIO UNITARIO]] -> $ 16.00 | F101: 0 | G101: $ 16.00 | H101: $ 16.00 | I101: CANCELADO | J101: =Tabla144[[#This Row],[VALOR A PAGAR]]-Tabla144[[#This Row],[VALOR CANCELADO]] -> 0 | K101: =Tabla144[[#This Row],[CANT.]]*2 -> $ 4.00 | L101: $ 12.00
A102: 2025-02-24 | B102: FARANG | C102: 7 | D102: $ 8.00 | E102: =C102*Tabla144[[#This Row],[PRECIO UNITARIO]] -> $ 56.00 | F102: 0 | G102: $ 56.00 | H102: $ 56.00 | I102: CANCELADO | J102: =Tabla144[[#This Row],[VALOR A PAGAR]]-Tabla144[[#This Row],[VALOR CANCELADO]] -> 0 | K102: =Tabla144[[#This Row],[CANT.]]*2 -> $ 14.00 | L102: $ 42.00
A103: 2025-02-24 | B103: TAEBAEK ECUADOR | C103: 1 | D103: $ 8.00 | E103: =C103*Tabla144[[#This Row],[PRECIO UNITARIO]] -> $ 8.00 | F103: 0 | G103: $ 8.00 | H103: $ 8.00 | I103: CANCELADO | J103: =Tabla144[[#This Row],[VALOR A PAGAR]]-Tabla144[[#This Row],[VALOR CANCELADO]] -> 0 | K103: =Tabla144[[#This Row],[CANT.]]*2 -> $ 2.00 | L103: $ 6.00
A104: 2025-02-24 | B104: KUKKIWON | C104: 1 | D104: $ 6.00 | E104: =C104*Tabla144[[#This Row],[PRECIO UNITARIO]] -> $ 6.00 | F104: 0 | G104: $ 6.00 | H104: $ 6.00 | I104: CANCELADO | J104: =Tabla144[[#This Row],[VALOR A PAGAR]]-Tabla144[[#This Row],[VALOR CANCELADO]] -> 0 | K104: =Tabla144[[#This Row],[CANT.]]*2 -> $ 2.00 | L104: $ 4.00
A105: 2025-02-24 | B105: KUKKIWON | C105: 8 | D105: $ 8.00 | E105: =C105*Tabla144[[#This Row],[PRECIO UNITARIO]] -> $ 64.00 | F105: 0 | G105: $ 64.00 | H105: $ 64.00 | I105: CANCELADO | J105: =Tabla144[[#This Row],[VALOR A PAGAR]]-Tabla144[[#This Row],[VALOR CANCELADO]] -> 0 | K105: =Tabla144[[#This Row],[CANT.]]*2 -> $ 16.00 | L105: $ 48.00
A106: 2025-02-24 | B106: MINOTAUROS | C106: 12 | D106: $ 8.00 | E106: =C106*Tabla144[[#This Row],[PRECIO UNITARIO]] -> $ 96.00 | F106: 0 | G106: $ 96.00 | H106: $ 96.00 | I106: CANCELADO | J106: =Tabla144[[#This Row],[VALOR A PAGAR]]-Tabla144[[#This Row],[VALOR CANCELADO]] -> 0 | K106: =Tabla144[[#This Row],[CANT.]]*2 -> $ 24.00 | L106: $ 72.00 | M106: CANCELA EN DOS PAGOS
A107: 2025-02-24 | B107: APOLO | C107: 26 | D107: $ 6.00 | E107: =C107*Tabla144[[#This Row],[PRECIO UNITARIO]] -> $ 156.00 | F107: 0 | G107: $ 156.00 | H107: $ 156.00 | I107: CANCELADO | J107: =Tabla144[[#This Row],[VALOR A PAGAR]]-Tabla144[[#This Row],[VALOR CANCELADO]] -> 0 | K107: =Tabla144[[#This Row],[CANT.]]*2 -> $ 52.00 | L107: $ 104.00
A108: 2025-02-24 | B108: DRAGON GYM | C108: 8 | D108: $ 8.00 | E108: =C108*Tabla144[[#This Row],[PRECIO UNITARIO]] -> $ 64.00 | F108: 0 | G108: $ 64.00 | H108: $ 64.00 | I108: CANCELADO | J108: =Tabla144[[#This Row],[VALOR A PAGAR]]-Tabla144[[#This Row],[VALOR CANCELADO]] -> 0 | K108: =Tabla144[[#This Row],[CANT.]]*2 -> $ 16.00 | L108: $ 48.00
A109: 2025-02-24 | B109: ATLAS CLUB | C109: 2 | D109: $ 8.00 | E109: =C109*Tabla144[[#This Row],[PRECIO UNITARIO]] -> $ 16.00 | F109: 0 | G109: $ 16.00 | H109: $ 16.00 | I109: CANCELADO | J109: =Tabla144[[#This Row],[VALOR A PAGAR]]-Tabla144[[#This Row],[VALOR CANCELADO]] -> 0 | K109: =Tabla144[[#This Row],[CANT.]]*2 -> $ 4.00 | L109: $ 12.00
A110: 2025-02-24 | B110: ATLAS CLUB | C110: 9 | D110: $ 6.00 | E110: =C110*Tabla144[[#This Row],[PRECIO UNITARIO]] -> $ 54.00 | F110: 0 | G110: $ 54.00 | H110: $ 54.00 | I110: CANCELADO | J110: =Tabla144[[#This Row],[VALOR A PAGAR]]-Tabla144[[#This Row],[VALOR CANCELADO]] -> 0 | K110: =Tabla144[[#This Row],[CANT.]]*2 -> $ 18.00 | L110: $ 36.00
A111: 2025-02-24 | B111: ATLAS CLUB | C111: 2 | D111: $ 3.00 | E111: =C111*Tabla144[[#This Row],[PRECIO UNITARIO]] -> $ 6.00 | F111: 0 | G111: $ 6.00 | H111: $ 6.00 | I111: CANCELADO | J111: =Tabla144[[#This Row],[VALOR A PAGAR]]-Tabla144[[#This Row],[VALOR CANCELADO]] -> 0 | K111: =Tabla144[[#This Row],[CANT.]]*2 -> $ 4.00 | L111: $ 2.00 | M111: 50% TARIFA POR CAPACIDADES ESPECIALES
A112: 2025-02-24 | B112: MINOTAUROS | C112: 12 | D112: $ 8.00 | E112: =C112*Tabla144[[#This Row],[PRECIO UNITARIO]] -> $ 96.00 | F112: 0 | G112: $ 96.00 | H112: $ 96.00 | I112: CANCELADO | J112: =Tabla144[[#This Row],[VALOR A PAGAR]]-Tabla144[[#This Row],[VALOR CANCELADO]] -> 0 | K112: =Tabla144[[#This Row],[CANT.]]*2 -> $ 24.00 | L112: $ 72.00
A113: 2025-02-24 | B113: MOODUKKWAN TRAINING CENTER | C113: 10 | D113: $ 6.00 | E113: =C113*Tabla144[[#This Row],[PRECIO UNITARIO]] -> $ 60.00 | F113: 0 | G113: $ 60.00 | H113: $ 60.00 | I113: CANCELADO | J113: =Tabla144[[#This Row],[VALOR A PAGAR]]-Tabla144[[#This Row],[VALOR CANCELADO]] -> 0 | K113: =Tabla144[[#This Row],[CANT.]]*2 -> $ 20.00 | L113: $ 40.00 | M113: CANCELA EN DOS PAGOS
A114: 2025-02-24 | B114: MOODUKKWAN TRAINING CENTER | C114: 15 | D114: $ 8.00 | E114: =C114*Tabla144[[#This Row],[PRECIO UNITARIO]] -> $ 120.00 | F114: 0 | G114: $ 120.00 | H114: $ 120.00 | I114: CANCELADO | J114: =Tabla144[[#This Row],[VALOR A PAGAR]]-Tabla144[[#This Row],[VALOR CANCELADO]] -> 0 | K114: =Tabla144[[#This Row],[CANT.]]*2 -> $ 30.00 | L114: $ 90.00
A115: 2025-02-24 | B115: TAE DO ACADEMY | C115: 1 | D115: $ 6.00 | E115: =C115*Tabla144[[#This Row],[PRECIO UNITARIO]] -> $ 6.00 | F115: 0 | G115: $ 6.00 | H115: $ 6.00 | I115: CANCELADO | J115: =Tabla144[[#This Row],[VALOR A PAGAR]]-Tabla144[[#This Row],[VALOR CANCELADO]] -> 0 | K115: =Tabla144[[#This Row],[CANT.]]*2 -> $ 2.00 | L115: $ 4.00
A116: 2025-02-24 | B116: TAE DO ACADEMY | C116: 19 | D116: $ 8.00 | E116: =C116*Tabla144[[#This Row],[PRECIO UNITARIO]] -> $ 152.00 | F116: 0 | G116: $ 152.00 | H116: $ 152.00 | I116: CANCELADO | J116: =Tabla144[[#This Row],[VALOR A PAGAR]]-Tabla144[[#This Row],[VALOR CANCELADO]] -> 0 | K116: =Tabla144[[#This Row],[CANT.]]*2 -> $ 38.00 | L116: $ 114.00
A117: 2025-02-24 | B117: ARES | C117: 21 | D117: $ 6.00 | E117: =C117*Tabla144[[#This Row],[PRECIO UNITARIO]] -> $ 126.00 | F117: 0 | G117: $ 126.00 | H117: $ 126.00 | I117: CANCELADO | J117: =Tabla144[[#This Row],[VALOR A PAGAR]]-Tabla144[[#This Row],[VALOR CANCELADO]] -> 0 | K117: =Tabla144[[#This Row],[CANT.]]*2 -> $ 42.00 | L117: $ 84.00
A118: 2025-02-24 | B118: JOSEON LEGACY | C118: 15 | D118: $ 6.00 | E118: =C118*Tabla144[[#This Row],[PRECIO UNITARIO]] -> $ 90.00 | F118: 0 | G118: $ 90.00 | H118: $ 90.00 | I118: CANCELADO | J118: =Tabla144[[#This Row],[VALOR A PAGAR]]-Tabla144[[#This Row],[VALOR CANCELADO]] -> 0 | K118: =Tabla144[[#This Row],[CANT.]]*2 -> $ 30.00 | L118: $ 60.00
A119: 2025-02-24 | B119: JOSEON LEGACY | C119: 22 | D119: $ 8.00 | E119: =C119*Tabla144[[#This Row],[PRECIO UNITARIO]] -> $ 176.00 | F119: 0 | G119: $ 176.00 | H119: $ 176.00 | I119: CANCELADO | J119: =Tabla144[[#This Row],[VALOR A PAGAR]]-Tabla144[[#This Row],[VALOR CANCELADO]] -> 0 | K119: =Tabla144[[#This Row],[CANT.]]*2 -> $ 44.00 | L119: $ 132.00
A120: 2025-02-24 | B120: ESPE | C120: 10 | D120: $ 6.00 | E120: =C120*Tabla144[[#This Row],[PRECIO UNITARIO]] -> $ 60.00 | F120: 0 | G120: $ 60.00 | H120: $ 60.00 | I120: CANCELADO | J120: =Tabla144[[#This Row],[VALOR A PAGAR]]-Tabla144[[#This Row],[VALOR CANCELADO]] -> 0 | K120: =Tabla144[[#This Row],[CANT.]]*2 -> $ 20.00 | L120: $ 40.00
A121: 2025-02-24 | B121: ESPE | C121: 15 | D121: $ 8.00 | E121: =C121*Tabla144[[#This Row],[PRECIO UNITARIO]] -> $ 120.00 | F121: 0 | G121: $ 120.00 | H121: $ 120.00 | I121: CANCELADO | J121: =Tabla144[[#This Row],[VALOR A PAGAR]]-Tabla144[[#This Row],[VALOR CANCELADO]] -> 0 | K121: =Tabla144[[#This Row],[CANT.]]*2 -> $ 30.00 | L121: $ 90.00
A122: 2025-02-24 | B122: MARCIAL GRANDA | C122: 9 | D122: $ 8.00 | E122: =C122*Tabla144[[#This Row],[PRECIO UNITARIO]] -> $ 72.00 | F122: 0 | G122: $ 72.00 | H122: $ 72.00 | I122: CANCELADO | J122: =Tabla144[[#This Row],[VALOR A PAGAR]]-Tabla144[[#This Row],[VALOR CANCELADO]] -> 0 | K122: =Tabla144[[#This Row],[CANT.]]*2 -> $ 18.00 | L122: $ 54.00
A123: 2025-02-24 | B123: SEUL YEONG GU | C123: 3 | D123: $ 8.00 | E123: =C123*Tabla144[[#This Row],[PRECIO UNITARIO]] -> $ 24.00 | F123: 0 | G123: $ 24.00 | H123: $ 24.00 | I123: CANCELADO | J123: =Tabla144[[#This Row],[VALOR A PAGAR]]-Tabla144[[#This Row],[VALOR CANCELADO]] -> 0 | K123: =Tabla144[[#This Row],[CANT.]]*2 -> $ 6.00 | L123: $ 18.00
A124: 2025-02-24 | B124: CHAMPIONS FOR LIFE | C124: 9 | D124: $ 6.00 | E124: =C124*Tabla144[[#This Row],[PRECIO UNITARIO]] -> $ 54.00 | F124: 0 | G124: $ 54.00 | H124: $ 54.00 | I124: CANCELADO | J124: =Tabla144[[#This Row],[VALOR A PAGAR]]-Tabla144[[#This Row],[VALOR CANCELADO]] -> 0 | K124: =Tabla144[[#This Row],[CANT.]]*2 -> $ 18.00 | L124: $ 36.00
A125: 2025-02-24 | B125: UTE | C125: 4 | D125: $ 8.00 | E125: =C125*Tabla144[[#This Row],[PRECIO UNITARIO]] -> $ 32.00 | F125: 0 | G125: $ 32.00 | H125: $ 32.00 | I125: CANCELADO | J125: =Tabla144[[#This Row],[VALOR A PAGAR]]-Tabla144[[#This Row],[VALOR CANCELADO]] -> 0 | K125: =Tabla144[[#This Row],[CANT.]]*2 -> $ 8.00 | L125: $ 24.00
A126: 2025-02-25 | B126: DRACO | C126: 16 | D126: $ 6.00 | E126: =C126*Tabla144[[#This Row],[PRECIO UNITARIO]] -> $ 96.00 | F126: 0 | G126: $ 96.00 | H126: $ 96.00 | I126: CANCELADO | J126: =Tabla144[[#This Row],[VALOR A PAGAR]]-Tabla144[[#This Row],[VALOR CANCELADO]] -> 0 | K126: =Tabla144[[#This Row],[CANT.]]*2 -> $ 32.00 | L126: $ 64.00
A127: 2025-02-25 | B127: KUMGANG DUL | C127: 2 | D127: $ 6.00 | E127: =C127*Tabla144[[#This Row],[PRECIO UNITARIO]] -> $ 12.00 | F127: 0 | G127: $ 12.00 | H127: $ 12.00 | I127: CANCELADO | J127: =Tabla144[[#This Row],[VALOR A PAGAR]]-Tabla144[[#This Row],[VALOR CANCELADO]] -> 0 | K127: =Tabla144[[#This Row],[CANT.]]*2 -> $ 4.00 | L127: $ 8.00
A128: 2025-02-25 | B128: JIDOKWAN | C128: 1 | D128: $ 6.00 | E128: =C128*Tabla144[[#This Row],[PRECIO UNITARIO]] -> $ 6.00 | F128: 0 | G128: $ 6.00 | H128: $ 6.00 | I128: CANCELADO | J128: =Tabla144[[#This Row],[VALOR A PAGAR]]-Tabla144[[#This Row],[VALOR CANCELADO]] -> 0 | K128: =Tabla144[[#This Row],[CANT.]]*2 -> $ 2.00 | L128: $ 4.00
A129: 2025-02-25 | B129: MOODUKKWAN TRAINING CENTER | C129: 1 | D129: $ 6.00 | E129: =C129*Tabla144[[#This Row],[PRECIO UNITARIO]] -> $ 6.00 | F129: 0 | G129: $ 6.00 | H129: $ 6.00 | I129: CANCELADO | J129: =Tabla144[[#This Row],[VALOR A PAGAR]]-Tabla144[[#This Row],[VALOR CANCELADO]] -> 0 | K129: =Tabla144[[#This Row],[CANT.]]*2 -> $ 2.00 | L129: $ 4.00
A130: 2025-02-26 | B130: ASOTKD - VICENTINA | C130: 4 | D130: $ 6.00 | E130: =C130*Tabla144[[#This Row],[PRECIO UNITARIO]] -> $ 24.00 | F130: $ 24.00 | G130: 0 | H130: $ 24.00 | I130: CANCELADO | J130: =Tabla144[[#This Row],[VALOR A PAGAR]]-Tabla144[[#This Row],[VALOR CANCELADO]] -> 0 | K130: =Tabla144[[#This Row],[CANT.]]*2 -> $ 8.00 | L130: $ 16.00
A131: 2025-02-26 | B131: ASOTKD - VICENTINA | C131: 7 | D131: $ 8.00 | E131: =C131*Tabla144[[#This Row],[PRECIO UNITARIO]] -> $ 56.00 | F131: $ 56.00 | G131: 0 | H131: $ 56.00 | I131: CANCELADO | J131: =Tabla144[[#This Row],[VALOR A PAGAR]]-Tabla144[[#This Row],[VALOR CANCELADO]] -> 0 | K131: =Tabla144[[#This Row],[CANT.]]*2 -> $ 14.00 | L131: $ 42.00
A132: 2025-02-27 | B132: BAS PANTHERS | C132: 1 | D132: $ 8.00 | E132: =C132*Tabla144[[#This Row],[PRECIO UNITARIO]] -> $ 8.00 | F132: 0 | G132: $ 8.00 | H132: =F132+G132 -> $ 8.00 | I132: =IF((E132=H132),"CANCELADO","SALDO PENDIENTE") -> CANCELADO | J132: =Tabla144[[#This Row],[VALOR A PAGAR]]-Tabla144[[#This Row],[VALOR CANCELADO]] -> 0 | K132: =Tabla144[[#This Row],[CANT.]]*2 -> $ 2.00 | L132: =E132-K132 -> $ 6.00
A133: 2025-02-27 | B133: SCORPIUS | C133: 80 | D133: $ 8.00 | E133: =C133*Tabla144[[#This Row],[PRECIO UNITARIO]] -> $ 640.00 | F133: 0 | G133: $ 640.00 | H133: $ 640.00 | I133: CANCELADO | J133: =Tabla144[[#This Row],[VALOR A PAGAR]]-Tabla144[[#This Row],[VALOR CANCELADO]] -> 0 | K133: =Tabla144[[#This Row],[CANT.]]*2 -> $ 160.00 | L133: $ 480.00
A134: 2025-02-27 | B134: SEUL GEDEON | C134: 10 | D134: $ 8.00 | E134: =C134*Tabla144[[#This Row],[PRECIO UNITARIO]] -> $ 80.00 | F134: 0 | G134: $ 80.00 | H134: $ 80.00 | I134: CANCELADO | J134: =Tabla144[[#This Row],[VALOR A PAGAR]]-Tabla144[[#This Row],[VALOR CANCELADO]] -> 0 | K134: =Tabla144[[#This Row],[CANT.]]*2 -> $ 20.00 | L134: $ 60.00
A135: 2025-02-28 | B135: PIONERO FORTIS | C135: 1 | D135: $ 2.00 | E135: =C135*Tabla144[[#This Row],[PRECIO UNITARIO]] -> $ 2.00 | F135: $ 2.00 | G135: 0 | H135: $ 2.00 | I135: CANCELADO | J135: =Tabla144[[#This Row],[VALOR A PAGAR]]-Tabla144[[#This Row],[VALOR CANCELADO]] -> 0 | K135: =Tabla144[[#This Row],[CANT.]]*2 -> $ 2.00 | L135: 0
A136: 2025-02-28 | B136: PIONERO FORTIS | C136: 1 | D136: $ 8.00 | E136: =C136*Tabla144[[#This Row],[PRECIO UNITARIO]] -> $ 8.00 | F136: $ 8.00 | G136: 0 | H136: $ 8.00 | I136: CANCELADO | J136: =Tabla144[[#This Row],[VALOR A PAGAR]]-Tabla144[[#This Row],[VALOR CANCELADO]] -> 0 | K136: =Tabla144[[#This Row],[CANT.]]*2 -> $ 2.00 | L136: $ 6.00
A137: 2025-02-28 | B137: TAE BAEK ECUADOR JR. | C137: 1 | D137: $ 2.00 | E137: =C137*Tabla144[[#This Row],[PRECIO UNITARIO]] -> $ 2.00 | F137: $ 2.00 | G137: 0 | H137: $ 2.00 | I137: CANCELADO | J137: =Tabla144[[#This Row],[VALOR A PAGAR]]-Tabla144[[#This Row],[VALOR CANCELADO]] -> 0 | K137: =Tabla144[[#This Row],[CANT.]]*2 -> $ 2.00 | L137: 0
A138: 2025-02-28 | B138: UNIVERSAL | C138: 6 | D138: $ 8.00 | E138: =C138*Tabla144[[#This Row],[PRECIO UNITARIO]] -> $ 48.00 | F138: 0 | G138: $ 48.00 | H138: $ 48.00 | I138: CANCELADO | J138: =Tabla144[[#This Row],[VALOR A PAGAR]]-Tabla144[[#This Row],[VALOR CANCELADO]] -> 0 | K138: =Tabla144[[#This Row],[CANT.]]*2 -> $ 12.00 | L138: $ 36.00
A139: 2025-02-28 | B139: KORYO | C139: 2 | D139: $ 6.00 | E139: =C139*Tabla144[[#This Row],[PRECIO UNITARIO]] -> $ 12.00 | F139: 0 | G139: $ 12.00 | H139: $ 12.00 | I139: CANCELADO | J139: =Tabla144[[#This Row],[VALOR A PAGAR]]-Tabla144[[#This Row],[VALOR CANCELADO]] -> 0 | K139: =Tabla144[[#This Row],[CANT.]]*2 -> $ 4.00 | L139: $ 8.00
A140: 2025-03-06 | B140: DRAGON GYM | C140: 28 | D140: $ 8.00 | E140: =C140*Tabla144[[#This Row],[PRECIO UNITARIO]] -> $ 224.00 | F140: 0 | G140: $ 224.00 | H140: $ 224.00 | I140: CANCELADO | J140: =Tabla144[[#This Row],[VALOR A PAGAR]]-Tabla144[[#This Row],[VALOR CANCELADO]] -> 0 | K140: =Tabla144[[#This Row],[CANT.]]*2 -> $ 56.00 | L140: $ 168.00
A141: 2025-03-07 | B141: SAN SEBASTIÁN (LUIS TIPÁN) | C141: 1 | D141: $ 6.00 | E141: =C141*Tabla144[[#This Row],[PRECIO UNITARIO]] -> $ 6.00 | F141: 0 | G141: $ 6.00 | H141: $ 6.00 | I141: CANCELADO | J141: =Tabla144[[#This Row],[VALOR A PAGAR]]-Tabla144[[#This Row],[VALOR CANCELADO]] -> 0 | K141: =Tabla144[[#This Row],[CANT.]]*2 -> $ 2.00 | L141: $ 4.00
A142: 2025-03-12 | B142: ASOTKD - VICENTINA | C142: 3 | D142: $ 6.00 | E142: =C142*Tabla144[[#This Row],[PRECIO UNITARIO]] -> $ 18.00 | F142: $ 18.00 | G142: 0 | H142: $ 18.00 | I142: CANCELADO | J142: =Tabla144[[#This Row],[VALOR A PAGAR]]-Tabla144[[#This Row],[VALOR CANCELADO]] -> 0 | K142: =Tabla144[[#This Row],[CANT.]]*2 -> $ 6.00 | L142: $ 12.00
A143: 2025-03-12 | B143: ASOTKD - VICENTINA | C143: 5 | D143: $ 8.00 | E143: =C143*Tabla144[[#This Row],[PRECIO UNITARIO]] -> $ 40.00 | F143: $ 40.00 | G143: 0 | H143: $ 40.00 | I143: CANCELADO | J143: =Tabla144[[#This Row],[VALOR A PAGAR]]-Tabla144[[#This Row],[VALOR CANCELADO]] -> 0 | K143: =Tabla144[[#This Row],[CANT.]]*2 -> $ 10.00 | L143: $ 30.00
A144: 2025-03-12 | B144: SAN FRANCISCO TIGRES | C144: 1 | D144: $ 6.00 | E144: =C144*Tabla144[[#This Row],[PRECIO UNITARIO]] -> $ 6.00 | F144: 0 | G144: $ 6.00 | H144: $ 6.00 | I144: CANCELADO | J144: =Tabla144[[#This Row],[VALOR A PAGAR]]-Tabla144[[#This Row],[VALOR CANCELADO]] -> 0 | K144: =Tabla144[[#This Row],[CANT.]]*2 -> $ 2.00 | L144: $ 4.00
A145: 2025-03-12 | B145: MOODUKKWAN TRAINING CENTER | C145: 1 | D145: $ 6.00 | E145: =C145*Tabla144[[#This Row],[PRECIO UNITARIO]] -> $ 6.00 | F145: 0 | G145: $ 6.00 | H145: $ 6.00 | I145: CANCELADO | J145: =Tabla144[[#This Row],[VALOR A PAGAR]]-Tabla144[[#This Row],[VALOR CANCELADO]] -> 0 | K145: =Tabla144[[#This Row],[CANT.]]*2 -> $ 2.00 | L145: $ 4.00
A146: 2025-03-13 | B146: USFQ | C146: 1 | D146: $ 6.00 | E146: =C146*Tabla144[[#This Row],[PRECIO UNITARIO]] -> $ 6.00 | F146: 0 | G146: $ 6.00 | H146: $ 6.00 | I146: CANCELADO | J146: =Tabla144[[#This Row],[VALOR A PAGAR]]-Tabla144[[#This Row],[VALOR CANCELADO]] -> 0 | K146: =Tabla144[[#This Row],[CANT.]]*2 -> $ 2.00 | L146: $ 4.00
A147: 2025-03-12 | B147: ASOTKD - P CHIMBACALLE | C147: 17 | D147: $ 6.00 | E147: =C147*Tabla144[[#This Row],[PRECIO UNITARIO]] -> $ 102.00 | F147: $ 102.00 | G147: 0 | H147: $ 102.00 | I147: CANCELADO | J147: =Tabla144[[#This Row],[VALOR A PAGAR]]-Tabla144[[#This Row],[VALOR CANCELADO]] -> 0 | K147: =Tabla144[[#This Row],[CANT.]]*2 -> $ 34.00 | L147: $ 68.00
B148: TOTAL | C148: =SUM(C4:C147) -> 1650 | E148: =SUBTOTAL(109,Tabla144[VALOR A PAGAR]) -> $12,002.00 | F148: =SUM(F4:F147) -> $802.00 | G148: =SUM(G4:G147) -> $11,205.50 | H148: =SUM(H4:H147) -> $12,007.50
C149: GAL ELABORADOS | E149: A RECAUDARSE | F149: RECAUDADO EN EFECTIVO | G149: RECAUDADO EN TRANSFERENCIA
B152: RECAUDADO | C152: MONTO
B153: EFECTIVO | C153: =F148 -> $802.00
B154: TRANSFERENCIA | C154: =G148 -> $11,205.50
B155: TOTAL | C155: =SUM(C153:C154) -> $12,007.50
B158: POR COBRAR | C158: MONTO
B160: TOTAL | C160: =SUM(C159:C159) -> $0.00
B163: DEVOLVER O HACER PASO | C163: MONTO
B164: =B38 -> RYONG TAE | C164: $1.50
B165: =B88 -> YONG TIGER | C165: $4.00
B166: TOTAL | C166: =SUM(C164:C165) -> $5.50
C1520: BENJAMIN MATIAS

Sheet CERTIFICADOS DE ASCENSO 2024
A1: DIPLOMAS DE ASCENSO (5 SEPTIEMBRE - DICIEMBRE 2024)
A3: FECHA | B3: CLUB | C3: CANT. | D3: PRECIO UNITARIO | E3: VALOR A PAGAR | F3: EFECTIVO | G3: TRANSFERENCIA | H3: VALOR CANCELADO | I3: ESTADO | J3: SALDO | K3: COSTO | L3: GANANCIA | M3: OBSERVACIONES | O3: TOTAL EFECTIVO
A4: 2024-09-04 | B4: RENACER | C4: 4 | D4: $ 2.00 | E4: =Tabla14253[[#This Row],[CANT.]]*Tabla14253[[#This Row],[PRECIO UNITARIO]] -> $8.00 | F4: 0 | G4: $ 8.00 | H4: =Tabla14253[[#This Row],[EFECTIVO]]+Tabla14253[[#This Row],[TRANSFERENCIA]] -> $ 8.00 | I4: =IF((E4=H4),"CANCELADO","SALDO PENDIENTE") -> CANCELADO | J4: =Tabla14253[[#This Row],[VALOR A PAGAR]]-Tabla14253[[#This Row],[VALOR CANCELADO]] -> 0 | K4: =Tabla14253[[#This Row],[VALOR A PAGAR]]*0.5 -> $ 4.00 | L4: =Tabla14253[[#This Row],[VALOR A PAGAR]]-Tabla14253[[#This Row],[COSTO]] -> $ 4.00
A5: 2024-09-05 | B5: LEÓN | C5: 22 | D5: $ 2.00 | E5: =Tabla14253[[#This Row],[CANT.]]*Tabla14253[[#This Row],[PRECIO UNITARIO]] -> $44.00 | F5: 0 | G5: $ 44.00 | H5: =Tabla14253[[#This Row],[EFECTIVO]]+Tabla14253[[#This Row],[TRANSFERENCIA]] -> $ 44.00 | I5: CANCELADO | J5: =Tabla14253[[#This Row],[VALOR A PAGAR]]-Tabla14253[[#This Row],[VALOR CANCELADO]] -> 0 | K5: =Tabla14253[[#This Row],[VALOR A PAGAR]]*0.5 -> $ 22.00 | L5: =Tabla14253[[#This Row],[VALOR A PAGAR]]-Tabla14253[[#This Row],[COSTO]] -> $ 22.00
A6: 2024-09-06 | B6: KORYO | C6: 1 | D6: $ 2.00 | E6: =Tabla14253[[#This Row],[CANT.]]*Tabla14253[[#This Row],[PRECIO UNITARIO]] -> $2.00 | F6: $ 2.00 | G6: 0 | H6: =Tabla14253[[#This Row],[EFECTIVO]]+Tabla14253[[#This Row],[TRANSFERENCIA]] -> $ 2.00 | I6: CANCELADO | J6: =Tabla14253[[#This Row],[VALOR A PAGAR]]-Tabla14253[[#This Row],[VALOR CANCELADO]] -> 0 | K6: =Tabla14253[[#This Row],[VALOR A PAGAR]]*0.5 -> $ 1.00 | L6: =Tabla14253[[#This Row],[VALOR A PAGAR]]-Tabla14253[[#This Row],[COSTO]] -> $ 1.00
A7: 2024-09-06 | B7: BORJA'S LIONS | C7: 1 | D7: $ 2.00 | E7: =Tabla14253[[#This Row],[CANT.]]*Tabla14253[[#This Row],[PRECIO UNITARIO]] -> $2.00 | F7: $ 2.00 | G7: 0 | H7: =Tabla14253[[#This Row],[EFECTIVO]]+Tabla14253[[#This Row],[TRANSFERENCIA]] -> $ 2.00 | I7: CANCELADO | J7: =Tabla14253[[#This Row],[VALOR A PAGAR]]-Tabla14253[[#This Row],[VALOR CANCELADO]] -> 0 | K7: =Tabla14253[[#This Row],[VALOR A PAGAR]]*0.5 -> $ 1.00 | L7: =Tabla14253[[#This Row],[VALOR A PAGAR]]-Tabla14253[[#This Row],[COSTO]] -> $ 1.00 | M7: REIMPRESIÓN
A8: 2024-09-09 | B8: KO AMÉRICA | C8: 4 | D8: $ 2.00 | E8: =Tabla14253[[#This Row],[CANT.]]*Tabla14253[[#This Row],[PRECIO UNITARIO]] -> $8.00 | F8: 0 | G8: $ 8.00 | H8: =Tabla14253[[#This Row],[EFECTIVO]]+Tabla14253[[#This Row],[TRANSFERENCIA]] -> $ 8.00 | I8: CANCELADO | J8: =Tabla14253[[#This Row],[VALOR A PAGAR]]-Tabla14253[[#This Row],[VALOR CANCELADO]] -> 0 | K8: =Tabla14253[[#This Row],[VALOR A PAGAR]]*0.5 -> $ 4.00 | L8: =Tabla14253[[#This Row],[VALOR A PAGAR]]-Tabla14253[[#This Row],[COSTO]] -> $ 4.00
A9: 2024-09-10 | B9: KORYO DF DOJANG | C9: 7 | D9: $ 2.00 | E9: =Tabla14253[[#This Row],[CANT.]]*Tabla14253[[#This Row],[PRECIO UNITARIO]] -> $14.00 | F9: $ 14.00 | G9: 0 | H9: =Tabla14253[[#This Row],[EFECTIVO]]+Tabla14253[[#This Row],[TRANSFERENCIA]] -> $ 14.00 | I9: CANCELADO | J9: =Tabla14253[[#This Row],[VALOR A PAGAR]]-Tabla14253[[#This Row],[VALOR CANCELADO]] -> 0 | K9: =Tabla14253[[#This Row],[VALOR A PAGAR]]*0.5 -> $ 7.00 | L9: =Tabla14253[[#This Row],[VALOR A PAGAR]]-Tabla14253[[#This Row],[COSTO]] -> $ 7.00
A10: 2024-09-12 | B10: ECUADOR | C10: 1 | D10: $ 2.00 | E10: =Tabla14253[[#This Row],[CANT.]]*Tabla14253[[#This Row],[PRECIO UNITARIO]] -> $2.00 | F10: 0 | G10: $ 2.00 | H10: =Tabla14253[[#This Row],[EFECTIVO]]+Tabla14253[[#This Row],[TRANSFERENCIA]] -> $ 2.00 | I10: CANCELADO | J10: =Tabla14253[[#This Row],[VALOR A PAGAR]]-Tabla14253[[#This Row],[VALOR CANCELADO]] -> 0 | K10: =Tabla14253[[#This Row],[VALOR A PAGAR]]*0.5 -> $ 1.00 | L10: =Tabla14253[[#This Row],[VALOR A PAGAR]]-Tabla14253[[#This Row],[COSTO]] -> $ 1.00
A11: 2024-09-12 | B11: BORJA'S LIONS | C11: 2 | D11: $ 2.00 | E11: =Tabla14253[[#This Row],[CANT.]]*Tabla14253[[#This Row],[PRECIO UNITARIO]] -> $4.00 | F11: 0 | G11: $ 4.00 | H11: =Tabla14253[[#This Row],[EFECTIVO]]+Tabla14253[[#This Row],[TRANSFERENCIA]] -> $ 4.00 | I11: CANCELADO | J11: =Tabla14253[[#This Row],[VALOR A PAGAR]]-Tabla14253[[#This Row],[VALOR CANCELADO]] -> 0 | K11: =Tabla14253[[#This Row],[VALOR A PAGAR]]*0.5 -> $ 2.00 | L11: =Tabla14253[[#This Row],[VALOR A PAGAR]]-Tabla14253[[#This Row],[COSTO]] -> $ 2.00
A12: 2024-09-13 | B12: JR SPORT | C12: 1 | D12: $ 2.00 | E12: =Tabla14253[[#This Row],[CANT.]]*Tabla14253[[#This Row],[PRECIO UNITARIO]] -> $2.00 | F12: $ 2.00 | G12: 0 | H12: =Tabla14253[[#This Row],[EFECTIVO]]+Tabla14253[[#This Row],[TRANSFERENCIA]] -> $ 2.00 | I12: CANCELADO | J12: =Tabla14253[[#This Row],[VALOR A PAGAR]]-Tabla14253[[#This Row],[VALOR CANCELADO]] -> 0 | K12: =Tabla14253[[#This Row],[VALOR A PAGAR]]*0.5 -> $ 1.00 | L12: =Tabla14253[[#This Row],[VALOR A PAGAR]]-Tabla14253[[#This Row],[COSTO]] -> $ 1.00
A13: 2024-09-17 | B13: CAMU | C13: 15 | D13: $ 2.00 | E13: =Tabla14253[[#This Row],[CANT.]]*Tabla14253[[#This Row],[PRECIO UNITARIO]] -> $30.00 | F13: 0 | G13: $ 30.00 | H13: =Tabla14253[[#This Row],[EFECTIVO]]+Tabla14253[[#This Row],[TRANSFERENCIA]] -> $ 30.00 | I13: CANCELADO | J13: =Tabla14253[[#This Row],[VALOR A PAGAR]]-Tabla14253[[#This Row],[VALOR CANCELADO]] -> 0 | K13: =Tabla14253[[#This Row],[VALOR A PAGAR]]*0.5 -> $ 15.00 | L13: =Tabla14253[[#This Row],[VALOR A PAGAR]]-Tabla14253[[#This Row],[COSTO]] -> $ 15.00
A14: 2024-09-19 | B14: S. D. CENTRAL (LIVEO NAVAL) | C14: 11 | D14: $ 2.00 | E14: =Tabla14253[[#This Row],[CANT.]]*Tabla14253[[#This Row],[PRECIO UNITARIO]] -> $22.00 | F14: 0 | G14: $ 22.00 | H14: =Tabla14253[[#This Row],[EFECTIVO]]+Tabla14253[[#This Row],[TRANSFERENCIA]] -> $ 22.00 | I14: CANCELADO | J14: =Tabla14253[[#This Row],[VALOR A PAGAR]]-Tabla14253[[#This Row],[VALOR CANCELADO]] -> 0 | K14: =Tabla14253[[#This Row],[VALOR A PAGAR]]*0.5 -> $ 11.00 | L14: =Tabla14253[[#This Row],[VALOR A PAGAR]]-Tabla14253[[#This Row],[COSTO]] -> $ 11.00 | M14: CANJE
A15: 2024-09-19 | B15: EQUILIBRIO | C15: 9 | D15: $ 2.00 | E15: =Tabla14253[[#This Row],[CANT.]]*Tabla14253[[#This Row],[PRECIO UNITARIO]] -> $18.00 | F15: 0 | G15: $ 18.00 | H15: =Tabla14253[[#This Row],[EFECTIVO]]+Tabla14253[[#This Row],[TRANSFERENCIA]] -> $ 18.00 | I15: CANCELADO | J15: =Tabla14253[[#This Row],[VALOR A PAGAR]]-Tabla14253[[#This Row],[VALOR CANCELADO]] -> 0 | K15: =Tabla14253[[#This Row],[VALOR A PAGAR]]*0.5 -> $ 9.00 | L15: =Tabla14253[[#This Row],[VALOR A PAGAR]]-Tabla14253[[#This Row],[COSTO]] -> $ 9.00
A16: 2024-09-19 | B16: SEUL LA SALLE | C16: SALDO ANTERIOR | D16: $ 7.00 | E16: $7.00 | F16: 0 | G16: $ 7.00 | H16: =Tabla14253[[#This Row],[EFECTIVO]]+Tabla14253[[#This Row],[TRANSFERENCIA]] -> $ 7.00 | I16: CANCELADO | J16: =Tabla14253[[#This Row],[VALOR A PAGAR]]-Tabla14253[[#This Row],[VALOR CANCELADO]] -> 0 | K16: =Tabla14253[[#This Row],[VALOR A PAGAR]]*0.5 -> $ 3.50 | L16: =Tabla14253[[#This Row],[VALOR A PAGAR]]-Tabla14253[[#This Row],[COSTO]] -> $ 3.50 | M16: PAGO SALDO DE 28-05-2024
A17: 2024-09-19 | B17: SEÚL GEDEÓN | C17: 2 | D17: $ 2.00 | E17: =Tabla14253[[#This Row],[CANT.]]*Tabla14253[[#This Row],[PRECIO UNITARIO]] -> $4.00 | F17: 0 | G17: $ 4.00 | H17: =Tabla14253[[#This Row],[EFECTIVO]]+Tabla14253[[#This Row],[TRANSFERENCIA]] -> $ 4.00 | I17: CANCELADO | J17: =Tabla14253[[#This Row],[VALOR A PAGAR]]-Tabla14253[[#This Row],[VALOR CANCELADO]] -> 0 | K17: =Tabla14253[[#This Row],[VALOR A PAGAR]]*0.5 -> $ 2.00 | L17: =Tabla14253[[#This Row],[VALOR A PAGAR]]-Tabla14253[[#This Row],[COSTO]] -> $ 2.00
A18: 2024-09-24 | B18: KO AMÉRICA | C18: 12 | D18: $ 2.00 | E18: =Tabla14253[[#This Row],[CANT.]]*Tabla14253[[#This Row],[PRECIO UNITARIO]] -> $24.00 | F18: 0 | G18: $ 24.00 | H18: =Tabla14253[[#This Row],[EFECTIVO]]+Tabla14253[[#This Row],[TRANSFERENCIA]] -> $ 24.00 | I18: CANCELADO | J18: =Tabla14253[[#This Row],[VALOR A PAGAR]]-Tabla14253[[#This Row],[VALOR CANCELADO]] -> 0 | K18: =Tabla14253[[#This Row],[VALOR A PAGAR]]*0.5 -> $ 12.00 | L18: =Tabla14253[[#This Row],[VALOR A PAGAR]]-Tabla14253[[#This Row],[COSTO]] -> $ 12.00
A19: 2024-09-24 | B19: DOJANG TKD MELO | C19: 4 | D19: $ 2.00 | E19: =Tabla14253[[#This Row],[CANT.]]*Tabla14253[[#This Row],[PRECIO UNITARIO]] -> $8.00 | F19: 0 | G19: $ 8.00 | H19: =Tabla14253[[#This Row],[EFECTIVO]]+Tabla14253[[#This Row],[TRANSFERENCIA]] -> $ 8.00 | I19: CANCELADO | J19: =Tabla14253[[#This Row],[VALOR A PAGAR]]-Tabla14253[[#This Row],[VALOR CANCELADO]] -> 0 | K19: =Tabla14253[[#This Row],[VALOR A PAGAR]]*0.5 -> $ 4.00 | L19: =Tabla14253[[#This Row],[VALOR A PAGAR]]-Tabla14253[[#This Row],[COSTO]] -> $ 4.00
A20: 2024-09-26 | B20: TAE KING'S | C20: 6 | D20: $ 2.00 | E20: =Tabla14253[[#This Row],[CANT.]]*Tabla14253[[#This Row],[PRECIO UNITARIO]] -> $12.00 | F20: 0 | G20: $ 12.00 | H20: =Tabla14253[[#This Row],[EFECTIVO]]+Tabla14253[[#This Row],[TRANSFERENCIA]] -> $ 12.00 | I20: CANCELADO | J20: =Tabla14253[[#This Row],[VALOR A PAGAR]]-Tabla14253[[#This Row],[VALOR CANCELADO]] -> 0 | K20: =Tabla14253[[#This Row],[VALOR A PAGAR]]*0.5 -> $ 6.00 | L20: =Tabla14253[[#This Row],[VALOR A PAGAR]]-Tabla14253[[#This Row],[COSTO]] -> $ 6.00
A21: 2024-09-27 | B21: KORYO | C21: 1 | D21: $ 2.00 | E21: =Tabla14253[[#This Row],[CANT.]]*Tabla14253[[#This Row],[PRECIO UNITARIO]] -> $2.00 | F21: $ 2.00 | G21: 0 | H21: =Tabla14253[[#This Row],[EFECTIVO]]+Tabla14253[[#This Row],[TRANSFERENCIA]] -> $ 2.00 | I21: CANCELADO | J21: =Tabla14253[[#This Row],[VALOR A PAGAR]]-Tabla14253[[#This Row],[VALOR CANCELADO]] -> 0 | K21: =Tabla14253[[#This Row],[VALOR A PAGAR]]*0.5 -> $ 1.00 | L21: =Tabla14253[[#This Row],[VALOR A PAGAR]]-Tabla14253[[#This Row],[COSTO]] -> $ 1.00
A22: 2024-10-01 | B22: ESPE | C22: 15 | D22: $ 2.00 | E22: =Tabla14253[[#This Row],[CANT.]]*Tabla14253[[#This Row],[PRECIO UNITARIO]] -> $30.00 | F22: 0 | G22: $ 30.00 | H22: =Tabla14253[[#This Row],[EFECTIVO]]+Tabla14253[[#This Row],[TRANSFERENCIA]] -> $ 30.00 | I22: CANCELADO | J22: =Tabla14253[[#This Row],[VALOR A PAGAR]]-Tabla14253[[#This Row],[VALOR CANCELADO]] -> 0 | K22: =Tabla14253[[#This Row],[VALOR A PAGAR]]*0.5 -> $ 15.00 | L22: =Tabla14253[[#This Row],[VALOR A PAGAR]]-Tabla14253[[#This Row],[COSTO]] -> $ 15.00
A23: 2024-10-01 | B23: BAEKJUL AYALAZ | C23: 19 | D23: $ 2.00 | E23: =Tabla14253[[#This Row],[CANT.]]*Tabla14253[[#This Row],[PRECIO UNITARIO]] -> $38.00 | F23: 0 | G23: $ 38.00 | H23: =Tabla14253[[#This Row],[EFECTIVO]]+Tabla14253[[#This Row],[TRANSFERENCIA]] -> $ 38.00 | I23: CANCELADO | J23: =Tabla14253[[#This Row],[VALOR A PAGAR]]-Tabla14253[[#This Row],[VALOR CANCELADO]] -> 0 | K23: =Tabla14253[[#This Row],[VALOR A PAGAR]]*0.5 -> $ 19.00 | L23: =Tabla14253[[#This Row],[VALOR A PAGAR]]-Tabla14253[[#This Row],[COSTO]] -> $ 19.00
A24: 2024-10-04 | B24: SEÚL GEDEÓN | C24: 1 | D24: $ 2.00 | E24: =Tabla14253[[#This Row],[CANT.]]*Tabla14253[[#This Row],[PRECIO UNITARIO]] -> $2.00 | F24: $ 2.00 | G24: 0 | H24: =Tabla14253[[#This Row],[EFECTIVO]]+Tabla14253[[#This Row],[TRANSFERENCIA]] -> $ 2.00 | I24: CANCELADO | J24: =Tabla14253[[#This Row],[VALOR A PAGAR]]-Tabla14253[[#This Row],[VALOR CANCELADO]] -> 0 | K24: =Tabla14253[[#This Row],[VALOR A PAGAR]]*0.5 -> $ 1.00 | L24: =Tabla14253[[#This Row],[VALOR A PAGAR]]-Tabla14253[[#This Row],[COSTO]] -> $ 1.00
A25: 2024-10-04 | B25: TAEKWONDO TRAINING CENTER | C25: 1 | D25: $ 2.00 | E25: =Tabla14253[[#This Row],[CANT.]]*Tabla14253[[#This Row],[PRECIO UNITARIO]] -> $2.00 | F25: 0 | G25: $ 2.00 | H25: =Tabla14253[[#This Row],[EFECTIVO]]+Tabla14253[[#This Row],[TRANSFERENCIA]] -> $ 2.00 | I25: CANCELADO | J25: =Tabla14253[[#This Row],[VALOR A PAGAR]]-Tabla14253[[#This Row],[VALOR CANCELADO]] -> 0 | K25: =Tabla14253[[#This Row],[VALOR A PAGAR]]*0.5 -> $ 1.00 | L25: =Tabla14253[[#This Row],[VALOR A PAGAR]]-Tabla14253[[#This Row],[COSTO]] -> $ 1.00
A26: 2024-10-08 | B26: JIDOKWAN | C26: 1 | D26: $ 2.00 | E26: =Tabla14253[[#This Row],[CANT.]]*Tabla14253[[#This Row],[PRECIO UNITARIO]] -> $2.00 | F26: $ 2.00 | G26: 0 | H26: =Tabla14253[[#This Row],[EFECTIVO]]+Tabla14253[[#This Row],[TRANSFERENCIA]] -> $ 2.00 | I26: CANCELADO | J26: =Tabla14253[[#This Row],[VALOR A PAGAR]]-Tabla14253[[#This Row],[VALOR CANCELADO]] -> 0 | K26: =Tabla14253[[#This Row],[VALOR A PAGAR]]*0.5 -> $ 1.00 | L26: =Tabla14253[[#This Row],[VALOR A PAGAR]]-Tabla14253[[#This Row],[COSTO]] -> $ 1.00
A27: 2024-10-08 | B27: MINOTAUROS | C27: 12 | D27: $ 2.00 | E27: =Tabla14253[[#This Row],[CANT.]]*Tabla14253[[#This Row],[PRECIO UNITARIO]] -> $24.00 | F27: 0 | G27: $ 24.00 | H27: =Tabla14253[[#This Row],[EFECTIVO]]+Tabla14253[[#This Row],[TRANSFERENCIA]] -> $ 24.00 | I27: CANCELADO | J27: =Tabla14253[[#This Row],[VALOR A PAGAR]]-Tabla14253[[#This Row],[VALOR CANCELADO]] -> 0 | K27: =Tabla14253[[#This Row],[VALOR A PAGAR]]*0.5 -> $ 12.00 | L27: =Tabla14253[[#This Row],[VALOR A PAGAR]]-Tabla14253[[#This Row],[COSTO]] -> $ 12.00
A28: 2024-10-09 | B28: KO AMÉRICA DRAGON FIRE | C28: 6 | D28: $ 2.00 | E28: =Tabla14253[[#This Row],[CANT.]]*Tabla14253[[#This Row],[PRECIO UNITARIO]] -> $12.00 | F28: 0 | G28: $ 12.00 | H28: =Tabla14253[[#This Row],[EFECTIVO]]+Tabla14253[[#This Row],[TRANSFERENCIA]] -> $ 12.00 | I28: CANCELADO | J28: =Tabla14253[[#This Row],[VALOR A PAGAR]]-Tabla14253[[#This Row],[VALOR CANCELADO]] -> 0 | K28: =Tabla14253[[#This Row],[VALOR A PAGAR]]*0.5 -> $ 6.00 | L28: =Tabla14253[[#This Row],[VALOR A PAGAR]]-Tabla14253[[#This Row],[COSTO]] -> $ 6.00
A29: 2024-10-16 | B29: TAEKWONDO TRAINING CENTER | C29: 22 | D29: $ 2.00 | E29: =Tabla14253[[#This Row],[CANT.]]*Tabla14253[[#This Row],[PRECIO UNITARIO]] -> $44.00 | F29: 0 | G29: $ 44.00 | H29: =Tabla14253[[#This Row],[EFECTIVO]]+Tabla14253[[#This Row],[TRANSFERENCIA]] -> $ 44.00 | I29: CANCELADO | J29: =Tabla14253[[#This Row],[VALOR A PAGAR]]-Tabla14253[[#This Row],[VALOR CANCELADO]] -> 0 | K29: =Tabla14253[[#This Row],[VALOR A PAGAR]]*0.5 -> $ 22.00 | L29: =Tabla14253[[#This Row],[VALOR A PAGAR]]-Tabla14253[[#This Row],[COSTO]] -> $ 22.00
A30: 2024-10-17 | B30: BAEKJUL | C30: 6 | D30: $ 2.00 | E30: =Tabla14253[[#This Row],[CANT.]]*Tabla14253[[#This Row],[PRECIO UNITARIO]] -> $12.00 | F30: 0 | G30: $ 12.00 | H30: =Tabla14253[[#This Row],[EFECTIVO]]+Tabla14253[[#This Row],[TRANSFERENCIA]] -> $ 12.00 | I30: CANCELADO | J30: =Tabla14253[[#This Row],[VALOR A PAGAR]]-Tabla14253[[#This Row],[VALOR CANCELADO]] -> 0 | K30: =Tabla14253[[#This Row],[VALOR A PAGAR]]*0.5 -> $ 6.00 | L30: =Tabla14253[[#This Row],[VALOR A PAGAR]]-Tabla14253[[#This Row],[COSTO]] -> $ 6.00
A31: 2024-10-18 | B31: MICHAY DO | C31: 5 | D31: $ 2.00 | E31: =Tabla14253[[#This Row],[CANT.]]*Tabla14253[[#This Row],[PRECIO UNITARIO]] -> $10.00 | F31: 0 | G31: $ 10.00 | H31: =Tabla14253[[#This Row],[EFECTIVO]]+Tabla14253[[#This Row],[TRANSFERENCIA]] -> $ 10.00 | I31: CANCELADO | J31: =Tabla14253[[#This Row],[VALOR A PAGAR]]-Tabla14253[[#This Row],[VALOR CANCELADO]] -> 0 | K31: =Tabla14253[[#This Row],[VALOR A PAGAR]]*0.5 -> $ 5.00 | L31: =Tabla14253[[#This Row],[VALOR A PAGAR]]-Tabla14253[[#This Row],[COSTO]] -> $ 5.00
A32: 2024-10-18 | B32: BAEKJUL | C32: 1 | D32: $ 2.00 | E32: =Tabla14253[[#This Row],[CANT.]]*Tabla14253[[#This Row],[PRECIO UNITARIO]] -> $2.00 | F32: 0 | G32: $ 2.00 | H32: =Tabla14253[[#This Row],[EFECTIVO]]+Tabla14253[[#This Row],[TRANSFERENCIA]] -> $ 2.00 | I32: CANCELADO | J32: =Tabla14253[[#This Row],[VALOR A PAGAR]]-Tabla14253[[#This Row],[VALOR CANCELADO]] -> 0 | K32: =Tabla14253[[#This Row],[VALOR A PAGAR]]*0.5 -> $ 1.00 | L32: =Tabla14253[[#This Row],[VALOR A PAGAR]]-Tabla14253[[#This Row],[COSTO]] -> $ 1.00
A33: 2024-10-18 | B33: MILLENIUM | C33: 7 | D33: $ 2.00 | E33: =Tabla14253[[#This Row],[CANT.]]*Tabla14253[[#This Row],[PRECIO UNITARIO]] -> $14.00 | F33: 0 | G33: $ 14.00 | H33: =Tabla14253[[#This Row],[EFECTIVO]]+Tabla14253[[#This Row],[TRANSFERENCIA]] -> $ 14.00 | I33: CANCELADO | J33: =Tabla14253[[#This Row],[VALOR A PAGAR]]-Tabla14253[[#This Row],[VALOR CANCELADO]] -> 0 | K33: =Tabla14253[[#This Row],[VALOR A PAGAR]]*0.5 -> $ 7.00 | L33: =Tabla14253[[#This Row],[VALOR A PAGAR]]-Tabla14253[[#This Row],[COSTO]] -> $ 7.00
A34: 2024-10-22 | B34: DRAGON GYM | C34: 60 | D34: $ 2.00 | E34: =Tabla14253[[#This Row],[CANT.]]*Tabla14253[[#This Row],[PRECIO UNITARIO]] -> $120.00 | F34: 0 | G34: $ 120.00 | H34: =Tabla14253[[#This Row],[EFECTIVO]]+Tabla14253[[#This Row],[TRANSFERENCIA]] -> $ 120.00 | I34: CANCELADO | J34: =Tabla14253[[#This Row],[VALOR A PAGAR]]-Tabla14253[[#This Row],[VALOR CANCELADO]] -> 0 | K34: =Tabla14253[[#This Row],[VALOR A PAGAR]]*0.5 -> $ 60.00 | L34: =Tabla14253[[#This Row],[VALOR A PAGAR]]-Tabla14253[[#This Row],[COSTO]] -> $ 60.00
A35: 2024-10-22 | B35: DRAGON GYM | C35: 2 | D35: $ 2.00 | E35: =Tabla14253[[#This Row],[CANT.]]*Tabla14253[[#This Row],[PRECIO UNITARIO]] -> $4.00 | F35: 0 | G35: $ 4.00 | H35: =Tabla14253[[#This Row],[EFECTIVO]]+Tabla14253[[#This Row],[TRANSFERENCIA]] -> $ 4.00 | I35: =IF((E35=H35),"CANCELADO","SALDO PENDIENTE") -> CANCELADO | J35: =Tabla14253[[#This Row],[VALOR A PAGAR]]-Tabla14253[[#This Row],[VALOR CANCELADO]] -> 0 | K35: =Tabla14253[[#This Row],[VALOR A PAGAR]]*0.5 -> $ 2.00 | L35: =Tabla14253[[#This Row],[VALOR A PAGAR]]-Tabla14253[[#This Row],[COSTO]] -> $ 2.00
A36: 2024-10-22 | B36: JERATHEL | C36: 14 | D36: $ 2.00 | E36: =Tabla14253[[#This Row],[CANT.]]*Tabla14253[[#This Row],[PRECIO UNITARIO]] -> $28.00 | F36: 0 | G36: $ 28.00 | H36: =Tabla14253[[#This Row],[EFECTIVO]]+Tabla14253[[#This Row],[TRANSFERENCIA]] -> $ 28.00 | I36: CANCELADO | J36: =Tabla14253[[#This Row],[VALOR A PAGAR]]-Tabla14253[[#This Row],[VALOR CANCELADO]] -> 0 | K36: =Tabla14253[[#This Row],[VALOR A PAGAR]]*0.5 -> $ 14.00 | L36: =Tabla14253[[#This Row],[VALOR A PAGAR]]-Tabla14253[[#This Row],[COSTO]] -> $ 14.00
A37: 2024-10-25 | B37: DRAGON GYM | C37: 2 | D37: $ 2.00 | E37: =Tabla14253[[#This Row],[CANT.]]*Tabla14253[[#This Row],[PRECIO UNITARIO]] -> $4.00 | F37: 0 | G37: $ 4.00 | H37: =Tabla14253[[#This Row],[EFECTIVO]]+Tabla14253[[#This Row],[TRANSFERENCIA]] -> $ 4.00 | I37: CANCELADO | J37: =Tabla14253[[#This Row],[VALOR A PAGAR]]-Tabla14253[[#This Row],[VALOR CANCELADO]] -> 0 | K37: =Tabla14253[[#This Row],[VALOR A PAGAR]]*0.5 -> $ 2.00 | L37: =Tabla14253[[#This Row],[VALOR A PAGAR]]-Tabla14253[[#This Row],[COSTO]] -> $ 2.00
A38: 2024-10-25 | B38: KORYO DF DOJANG | C38: 1 | D38: $ 2.00 | E38: =Tabla14253[[#This Row],[CANT.]]*Tabla14253[[#This Row],[PRECIO UNITARIO]] -> $2.00 | F38: $ 2.00 | G38: 0 | H38: =Tabla14253[[#This Row],[EFECTIVO]]+Tabla14253[[#This Row],[TRANSFERENCIA]] -> $ 2.00 | I38: CANCELADO | J38: =Tabla14253[[#This Row],[VALOR A PAGAR]]-Tabla14253[[#This Row],[VALOR CANCELADO]] -> 0 | K38: =Tabla14253[[#This Row],[VALOR A PAGAR]]*0.5 -> $ 1.00 | L38: =Tabla14253[[#This Row],[VALOR A PAGAR]]-Tabla14253[[#This Row],[COSTO]] -> $ 1.00
A39: 2024-11-05 | B39: BAS PANTHERS | C39: 30 | D39: $ 2.00 | E39: =Tabla14253[[#This Row],[CANT.]]*Tabla14253[[#This Row],[PRECIO UNITARIO]] -> $60.00 | F39: 0 | G39: $ 60.00 | H39: =Tabla14253[[#This Row],[EFECTIVO]]+Tabla14253[[#This Row],[TRANSFERENCIA]] -> $ 60.00 | I39: CANCELADO | J39: =Tabla14253[[#This Row],[VALOR A PAGAR]]-Tabla14253[[#This Row],[VALOR CANCELADO]] -> 0 | K39: =Tabla14253[[#This Row],[VALOR A PAGAR]]*0.5 -> $ 30.00 | L39: =Tabla14253[[#This Row],[VALOR A PAGAR]]-Tabla14253[[#This Row],[COSTO]] -> $ 30.00
A40: 2024-11-06 | B40: BAS PANTHERS | C40: 1 | D40: $ 2.00 | E40: =Tabla14253[[#This Row],[CANT.]]*Tabla14253[[#This Row],[PRECIO UNITARIO]] -> $2.00 | F40: $ 2.00 | G40: 0 | H40: =Tabla14253[[#This Row],[EFECTIVO]]+Tabla14253[[#This Row],[TRANSFERENCIA]] -> $ 2.00 | I40: CANCELADO | J40: =Tabla14253[[#This Row],[VALOR A PAGAR]]-Tabla14253[[#This Row],[VALOR CANCELADO]] -> 0 | K40: =Tabla14253[[#This Row],[VALOR A PAGAR]]*0.5 -> $ 1.00 | L40: =Tabla14253[[#This Row],[VALOR A PAGAR]]-Tabla14253[[#This Row],[COSTO]] -> $ 1.00
A41: 2024-11-07 | B41: MIKIDO | C41: 20 | D41: $ 2.00 | E41: =Tabla14253[[#This Row],[CANT.]]*Tabla14253[[#This Row],[PRECIO UNITARIO]] -> $40.00 | F41: 0 | G41: $ 40.00 | H41: =Tabla14253[[#This Row],[EFECTIVO]]+Tabla14253[[#This Row],[TRANSFERENCIA]] -> $ 40.00 | I41: CANCELADO | J41: =Tabla14253[[#This Row],[VALOR A PAGAR]]-Tabla14253[[#This Row],[VALOR CANCELADO]] -> 0 | K41: =Tabla14253[[#This Row],[VALOR A PAGAR]]*0.5 -> $ 20.00 | L41: =Tabla14253[[#This Row],[VALOR A PAGAR]]-Tabla14253[[#This Row],[COSTO]] -> $ 20.00
A42: 2024-11-11 | B42: KYORUGUI GYM | C42: 27 | D42: $ 2.00 | E42: =Tabla14253[[#This Row],[CANT.]]*Tabla14253[[#This Row],[PRECIO UNITARIO]] -> $54.00 | F42: 0 | G42: $ 54.00 | H42: =Tabla14253[[#This Row],[EFECTIVO]]+Tabla14253[[#This Row],[TRANSFERENCIA]] -> $ 54.00 | I42: CANCELADO | J42: =Tabla14253[[#This Row],[VALOR A PAGAR]]-Tabla14253[[#This Row],[VALOR CANCELADO]] -> 0 | K42: =Tabla14253[[#This Row],[VALOR A PAGAR]]*0.5 -> $ 27.00 | L42: =Tabla14253[[#This Row],[VALOR A PAGAR]]-Tabla14253[[#This Row],[COSTO]] -> $ 27.00
A43: 2024-11-12 | B43: TAE BAEK ECUADOR JR. | C43: 2 | D43: $ 2.00 | E43: =Tabla14253[[#This Row],[CANT.]]*Tabla14253[[#This Row],[PRECIO UNITARIO]] -> $4.00 | F43: 0 | G43: $ 4.00 | H43: =Tabla14253[[#This Row],[EFECTIVO]]+Tabla14253[[#This Row],[TRANSFERENCIA]] -> $ 4.00 | I43: CANCELADO | J43: =Tabla14253[[#This Row],[VALOR A PAGAR]]-Tabla14253[[#This Row],[VALOR CANCELADO]] -> 0 | K43: =Tabla14253[[#This Row],[VALOR A PAGAR]]*0.5 -> $ 2.00 | L43: =Tabla14253[[#This Row],[VALOR A PAGAR]]-Tabla14253[[#This Row],[COSTO]] -> $ 2.00
A44: 2024-11-19 | B44: MIKIDO | C44: 6 | D44: $ 2.00 | E44: =Tabla14253[[#This Row],[CANT.]]*Tabla14253[[#This Row],[PRECIO UNITARIO]] -> $12.00 | F44: 0 | G44: $ 12.00 | H44: =Tabla14253[[#This Row],[EFECTIVO]]+Tabla14253[[#This Row],[TRANSFERENCIA]] -> $ 12.00 | I44: CANCELADO | J44: =Tabla14253[[#This Row],[VALOR A PAGAR]]-Tabla14253[[#This Row],[VALOR CANCELADO]] -> 0 | K44: =Tabla14253[[#This Row],[VALOR A PAGAR]]*0.5 -> $ 6.00 | L44: =Tabla14253[[#This Row],[VALOR A PAGAR]]-Tabla14253[[#This Row],[COSTO]] -> $ 6.00
A45: 2024-11-19 | B45: JOSEON LEGACY | C45: 40 | D45: $ 2.00 | E45: =Tabla14253[[#This Row],[CANT.]]*Tabla14253[[#This Row],[PRECIO UNITARIO]] -> $80.00 | F45: 0 | G45: $ 80.00 | H45: =Tabla14253[[#This Row],[EFECTIVO]]+Tabla14253[[#This Row],[TRANSFERENCIA]] -> $ 80.00 | I45: CANCELADO | J45: =Tabla14253[[#This Row],[VALOR A PAGAR]]-Tabla14253[[#This Row],[VALOR CANCELADO]] -> 0 | K45: =Tabla14253[[#This Row],[VALOR A PAGAR]]*0.5 -> $ 40.00 | L45: =Tabla14253[[#This Row],[VALOR A PAGAR]]-Tabla14253[[#This Row],[COSTO]] -> $ 40.00
A46: 2024-11-19 | B46: PALADINS MARCIAL CLUB | C46: 3 | D46: $ 2.00 | E46: =Tabla14253[[#This Row],[CANT.]]*Tabla14253[[#This Row],[PRECIO UNITARIO]] -> $6.00 | F46: 0 | G46: $ 6.00 | H46: =Tabla14253[[#This Row],[EFECTIVO]]+Tabla14253[[#This Row],[TRANSFERENCIA]] -> $ 6.00 | I46: CANCELADO | J46: =Tabla14253[[#This Row],[VALOR A PAGAR]]-Tabla14253[[#This Row],[VALOR CANCELADO]] -> 0 | K46: =Tabla14253[[#This Row],[VALOR A PAGAR]]*0.5 -> $ 3.00 | L46: =Tabla14253[[#This Row],[VALOR A PAGAR]]-Tabla14253[[#This Row],[COSTO]] -> $ 3.00
A47: 2024-11-19 | B47: GOYANG - IDEUL | C47: 1 | D47: $ 2.00 | E47: =Tabla14253[[#This Row],[CANT.]]*Tabla14253[[#This Row],[PRECIO UNITARIO]] -> $2.00 | F47: 0 | G47: $ 2.00 | H47: =Tabla14253[[#This Row],[EFECTIVO]]+Tabla14253[[#This Row],[TRANSFERENCIA]] -> $ 2.00 | I47: CANCELADO | J47: =Tabla14253[[#This Row],[VALOR A PAGAR]]-Tabla14253[[#This Row],[VALOR CANCELADO]] -> 0 | K47: =Tabla14253[[#This Row],[VALOR A PAGAR]]*0.5 -> $ 1.00 | L47: =Tabla14253[[#This Row],[VALOR A PAGAR]]-Tabla14253[[#This Row],[COSTO]] -> $ 1.00
A48: 2024-11-20 | B48: GOYANG - IDEUL | C48: 1 | D48: $ 2.00 | E48: =Tabla14253[[#This Row],[CANT.]]*Tabla14253[[#This Row],[PRECIO UNITARIO]] -> $2.00 | F48: 0 | G48: $ 2.00 | H48: =Tabla14253[[#This Row],[EFECTIVO]]+Tabla14253[[#This Row],[TRANSFERENCIA]] -> $ 2.00 | I48: CANCELADO | J48: =Tabla14253[[#This Row],[VALOR A PAGAR]]-Tabla14253[[#This Row],[VALOR CANCELADO]] -> 0 | K48: =Tabla14253[[#This Row],[VALOR A PAGAR]]*0.5 -> $ 1.00 | L48: =Tabla14253[[#This Row],[VALOR A PAGAR]]-Tabla14253[[#This Row],[COSTO]] -> $ 1.00
A49: 2024-11-21 | B49: TAE SHO KU TEAM VALLE | C49: 3 | D49: $ 2.00 | E49: =Tabla14253[[#This Row],[CANT.]]*Tabla14253[[#This Row],[PRECIO UNITARIO]] -> $6.00 | F49: $ 2.00 | G49: $ 4.00 | H49: =Tabla14253[[#This Row],[EFECTIVO]]+Tabla14253[[#This Row],[TRANSFERENCIA]] -> $ 6.00 | I49: CANCELADO | J49: =Tabla14253[[#This Row],[VALOR A PAGAR]]-Tabla14253[[#This Row],[VALOR CANCELADO]] -> 0 | K49: =Tabla14253[[#This Row],[VALOR A PAGAR]]*0.5 -> $ 3.00 | L49: =Tabla14253[[#This Row],[VALOR A PAGAR]]-Tabla14253[[#This Row],[COSTO]] -> $ 3.00
A50: 2024-11-22 | B50: ECUADOR | C50: 39 | D50: $ 2.00 | E50: =Tabla14253[[#This Row],[CANT.]]*Tabla14253[[#This Row],[PRECIO UNITARIO]] -> $78.00 | F50: 0 | G50: $ 78.00 | H50: =Tabla14253[[#This Row],[EFECTIVO]]+Tabla14253[[#This Row],[TRANSFERENCIA]] -> $ 78.00 | I50: CANCELADO | J50: =Tabla14253[[#This Row],[VALOR A PAGAR]]-Tabla14253[[#This Row],[VALOR CANCELADO]] -> 0 | K50: =Tabla14253[[#This Row],[VALOR A PAGAR]]*0.5 -> $ 39.00 | L50: =Tabla14253[[#This Row],[VALOR A PAGAR]]-Tabla14253[[#This Row],[COSTO]] -> $ 39.00
A51: 2024-11-25 | B51: TAE WOONG | C51: 2 | D51: $ 2.00 | E51: =Tabla14253[[#This Row],[CANT.]]*Tabla14253[[#This Row],[PRECIO UNITARIO]] -> $4.00 | F51: 0 | G51: $ 4.00 | H51: =Tabla14253[[#This Row],[EFECTIVO]]+Tabla14253[[#This Row],[TRANSFERENCIA]] -> $ 4.00 | I51: CANCELADO | J51: =Tabla14253[[#This Row],[VALOR A PAGAR]]-Tabla14253[[#This Row],[VALOR CANCELADO]] -> 0 | K51: =Tabla14253[[#This Row],[VALOR A PAGAR]]*0.5 -> $ 2.00 | L51: =Tabla14253[[#This Row],[VALOR A PAGAR]]-Tabla14253[[#This Row],[COSTO]] -> $ 2.00
A52: 2024-11-25 | B52: MARCIAL CLUB GRANDA | C52: 28 | D52: $ 2.00 | E52: =Tabla14253[[#This Row],[CANT.]]*Tabla14253[[#This Row],[PRECIO UNITARIO]] -> $56.00 | F52: 0 | G52: $ 58.00 | H52: =Tabla14253[[#This Row],[EFECTIVO]]+Tabla14253[[#This Row],[TRANSFERENCIA]] -> $ 58.00 | I52: SALDO A FAVOR DEL CLUB | J52: =Tabla14253[[#This Row],[VALOR A PAGAR]]-Tabla14253[[#This Row],[VALOR CANCELADO]] -> $ (2.00) | K52: =Tabla14253[[#This Row],[VALOR A PAGAR]]*0.5 -> $ 28.00 | L52: =Tabla14253[[#This Row],[VALOR A PAGAR]]-Tabla14253[[#This Row],[COSTO]] -> $ 28.00 | M52: TIENE UN SALDO A FAVOR DE $2
A53: 2024-11-26 | B53: ILYO M. P. | C53: 26 | D53: $ 2.00 | E53: =Tabla14253[[#This Row],[CANT.]]*Tabla14253[[#This Row],[PRECIO UNITARIO]] -> $52.00 | F53: 0 | G53: $ 52.00 | H53: =Tabla14253[[#This Row],[EFECTIVO]]+Tabla14253[[#This Row],[TRANSFERENCIA]] -> $ 52.00 | I53: CANCELADO | J53: =Tabla14253[[#This Row],[VALOR A PAGAR]]-Tabla14253[[#This Row],[VALOR CANCELADO]] -> 0 | K53: =Tabla14253[[#This Row],[VALOR A PAGAR]]*0.5 -> $ 26.00 | L53: =Tabla14253[[#This Row],[VALOR A PAGAR]]-Tabla14253[[#This Row],[COSTO]] -> $ 26.00
A54: 2024-11-27 | B54: SEUL LA ESTANCILLA | C54: 15 | D54: $ 2.00 | E54: =Tabla14253[[#This Row],[CANT.]]*Tabla14253[[#This Row],[PRECIO UNITARIO]] -> $30.00 | F54: 0 | G54: $ 30.00 | H54: =Tabla14253[[#This Row],[EFECTIVO]]+Tabla14253[[#This Row],[TRANSFERENCIA]] -> $ 30.00 | I54: CANCELADO | J54: =Tabla14253[[#This Row],[VALOR A PAGAR]]-Tabla14253[[#This Row],[VALOR CANCELADO]] -> 0 | K54: =Tabla14253[[#This Row],[VALOR A PAGAR]]*0.5 -> $ 15.00 | L54: =Tabla14253[[#This Row],[VALOR A PAGAR]]-Tabla14253[[#This Row],[COSTO]] -> $ 15.00
A55: 2024-11-27 | B55: SEUL YEONG GU | C55: 1 | D55: $ 2.00 | E55: =Tabla14253[[#This Row],[CANT.]]*Tabla14253[[#This Row],[PRECIO UNITARIO]] -> $2.00 | F55: 0 | G55: $ 2.00 | H55: =Tabla14253[[#This Row],[EFECTIVO]]+Tabla14253[[#This Row],[TRANSFERENCIA]] -> $ 2.00 | I55: CANCELADO | J55: =Tabla14253[[#This Row],[VALOR A PAGAR]]-Tabla14253[[#This Row],[VALOR CANCELADO]] -> 0 | K55: =Tabla14253[[#This Row],[VALOR A PAGAR]]*0.5 -> $ 1.00 | L55: =Tabla14253[[#This Row],[VALOR A PAGAR]]-Tabla14253[[#This Row],[COSTO]] -> $ 1.00
A56: 2024-11-27 | B56: SEUL CAPELO | C56: 9 | D56: $ 2.00 | E56: =Tabla14253[[#This Row],[CANT.]]*Tabla14253[[#This Row],[PRECIO UNITARIO]] -> $18.00 | F56: 0 | G56: $ 18.00 | H56: =Tabla14253[[#This Row],[EFECTIVO]]+Tabla14253[[#This Row],[TRANSFERENCIA]] -> $ 18.00 | I56: CANCELADO | J56: =Tabla14253[[#This Row],[VALOR A PAGAR]]-Tabla14253[[#This Row],[VALOR CANCELADO]] -> 0 | K56: =Tabla14253[[#This Row],[VALOR A PAGAR]]*0.5 -> $ 9.00 | L56: =Tabla14253[[#This Row],[VALOR A PAGAR]]-Tabla14253[[#This Row],[COSTO]] -> $ 9.00
A57: 2024-11-27 | B57: SEUL | C57: 1 | D57: $ 2.00 | E57: =Tabla14253[[#This Row],[CANT.]]*Tabla14253[[#This Row],[PRECIO UNITARIO]] -> $2.00 | F57: 0 | G57: $ 2.00 | H57: =Tabla14253[[#This Row],[EFECTIVO]]+Tabla14253[[#This Row],[TRANSFERENCIA]] -> $ 2.00 | I57: CANCELADO | J57: =Tabla14253[[#This Row],[VALOR A PAGAR]]-Tabla14253[[#This Row],[VALOR CANCELADO]] -> 0 | K57: =Tabla14253[[#This Row],[VALOR A PAGAR]]*0.5 -> $ 1.00 | L57: =Tabla14253[[#This Row],[VALOR A PAGAR]]-Tabla14253[[#This Row],[COSTO]] -> $ 1.00
A58: 2024-11-27 | B58: SEUL | C58: 60 | D58: $ 2.00 | E58: =Tabla14253[[#This Row],[CANT.]]*Tabla14253[[#This Row],[PRECIO UNITARIO]] -> $120.00 | F58: 0 | G58: $ 120.00 | H58: =Tabla14253[[#This Row],[EFECTIVO]]+Tabla14253[[#This Row],[TRANSFERENCIA]] -> $ 120.00 | I58: CANCELADO | J58: =Tabla14253[[#This Row],[VALOR A PAGAR]]-Tabla14253[[#This Row],[VALOR CANCELADO]] -> 0 | K58: =Tabla14253[[#This Row],[VALOR A PAGAR]]*0.5 -> $ 60.00 | L58: =Tabla14253[[#This Row],[VALOR A PAGAR]]-Tabla14253[[#This Row],[COSTO]] -> $ 60.00
A59: 2024-11-27 | B59: FITTKWONDO MEJÍA | C59: 5 | D59: $ 2.00 | E59: =Tabla14253[[#This Row],[CANT.]]*Tabla14253[[#This Row],[PRECIO UNITARIO]] -> $10.00 | F59: 0 | G59: $ 10.00 | H59: =Tabla14253[[#This Row],[EFECTIVO]]+Tabla14253[[#This Row],[TRANSFERENCIA]] -> $ 10.00 | I59: CANCELADO | J59: =Tabla14253[[#This Row],[VALOR A PAGAR]]-Tabla14253[[#This Row],[VALOR CANCELADO]] -> 0 | K59: =Tabla14253[[#This Row],[VALOR A PAGAR]]*0.5 -> $ 5.00 | L59: =Tabla14253[[#This Row],[VALOR A PAGAR]]-Tabla14253[[#This Row],[COSTO]] -> $ 5.00
A60: 2024-11-29 | B60: PYONGYANG | C60: 17 | D60: $ 2.00 | E60: =Tabla14253[[#This Row],[CANT.]]*Tabla14253[[#This Row],[PRECIO UNITARIO]] -> $34.00 | F60: 0 | G60: $ 34.00 | H60: =Tabla14253[[#This Row],[EFECTIVO]]+Tabla14253[[#This Row],[TRANSFERENCIA]] -> $ 34.00 | I60: CANCELADO | J60: =Tabla14253[[#This Row],[VALOR A PAGAR]]-Tabla14253[[#This Row],[VALOR CANCELADO]] -> 0 | K60: =Tabla14253[[#This Row],[VALOR A PAGAR]]*0.5 -> $ 17.00 | L60: =Tabla14253[[#This Row],[VALOR A PAGAR]]-Tabla14253[[#This Row],[COSTO]] -> $ 17.00
A61: 2024-11-29 | B61: HUANG TOP GYM | C61: 5 | D61: $ 2.00 | E61: =Tabla14253[[#This Row],[CANT.]]*Tabla14253[[#This Row],[PRECIO UNITARIO]] -> $10.00 | F61: 0 | G61: $ 10.00 | H61: =Tabla14253[[#This Row],[EFECTIVO]]+Tabla14253[[#This Row],[TRANSFERENCIA]] -> $ 10.00 | I61: CANCELADO | J61: =Tabla14253[[#This Row],[VALOR A PAGAR]]-Tabla14253[[#This Row],[VALOR CANCELADO]] -> 0 | K61: =Tabla14253[[#This Row],[VALOR A PAGAR]]*0.5 -> $ 5.00 | L61: =Tabla14253[[#This Row],[VALOR A PAGAR]]-Tabla14253[[#This Row],[COSTO]] -> $ 5.00
A62: 2024-11-29 | B62: TEAM TAURO | C62: 32 | D62: $ 2.00 | E62: =Tabla14253[[#This Row],[CANT.]]*Tabla14253[[#This Row],[PRECIO UNITARIO]] -> $64.00 | F62: 0 | G62: $ 44.00 | H62: =Tabla14253[[#This Row],[EFECTIVO]]+Tabla14253[[#This Row],[TRANSFERENCIA]] -> $ 44.00 | I62: SALDO PENDIENTE | J62: =Tabla14253[[#This Row],[VALOR A PAGAR]]-Tabla14253[[#This Row],[VALOR CANCELADO]] -> $ 20.00 | K62: =Tabla14253[[#This Row],[VALOR A PAGAR]]*0.5 -> $ 32.00 | L62: =Tabla14253[[#This Row],[VALOR A PAGAR]]-Tabla14253[[#This Row],[COSTO]] -> $ 32.00 | M62: POR PAGAR $20
A63: 2024-12-02 | B63: SEUL CARAPUNGO | C63: 17 | D63: $ 2.00 | E63: =Tabla14253[[#This Row],[CANT.]]*Tabla14253[[#This Row],[PRECIO UNITARIO]] -> $34.00 | F63: 0 | G63: $ 34.00 | H63: =Tabla14253[[#This Row],[EFECTIVO]]+Tabla14253[[#This Row],[TRANSFERENCIA]] -> $ 34.00 | I63: CANCELADO | J63: =Tabla14253[[#This Row],[VALOR A PAGAR]]-Tabla14253[[#This Row],[VALOR CANCELADO]] -> 0 | K63: =Tabla14253[[#This Row],[VALOR A PAGAR]]*0.5 -> $ 17.00 | L63: =Tabla14253[[#This Row],[VALOR A PAGAR]]-Tabla14253[[#This Row],[COSTO]] -> $ 17.00
A64: 2024-12-02 | B64: TAE BAEK ECUADOR | C64: 2 | D64: $ 2.00 | E64: =Tabla14253[[#This Row],[CANT.]]*Tabla14253[[#This Row],[PRECIO UNITARIO]] -> $4.00 | F64: 0 | G64: $ 4.00 | H64: =Tabla14253[[#This Row],[EFECTIVO]]+Tabla14253[[#This Row],[TRANSFERENCIA]] -> $ 4.00 | I64: CANCELADO | J64: =Tabla14253[[#This Row],[VALOR A PAGAR]]-Tabla14253[[#This Row],[VALOR CANCELADO]] -> 0 | K64: =Tabla14253[[#This Row],[VALOR A PAGAR]]*0.5 -> $ 2.00 | L64: =Tabla14253[[#This Row],[VALOR A PAGAR]]-Tabla14253[[#This Row],[COSTO]] -> $ 2.00
A65: 2024-12-02 | B65: SAN FRANCISCO TIGRES | C65: 19 | D65: $ 2.00 | E65: =Tabla14253[[#This Row],[CANT.]]*Tabla14253[[#This Row],[PRECIO UNITARIO]] -> $38.00 | F65: 0 | G65: $ 38.00 | H65: =Tabla14253[[#This Row],[EFECTIVO]]+Tabla14253[[#This Row],[TRANSFERENCIA]] -> $ 38.00 | I65: CANCELADO | J65: =Tabla14253[[#This Row],[VALOR A PAGAR]]-Tabla14253[[#This Row],[VALOR CANCELADO]] -> 0 | K65: =Tabla14253[[#This Row],[VALOR A PAGAR]]*0.5 -> $ 19.00 | L65: =Tabla14253[[#This Row],[VALOR A PAGAR]]-Tabla14253[[#This Row],[COSTO]] -> $ 19.00 | M65: PAGO EN DOS DEPÓSITO
A66: 2024-12-03 | B66: SEUL CHUNG UI | C66: 32 | D66: $ 2.00 | E66: =Tabla14253[[#This Row],[CANT.]]*Tabla14253[[#This Row],[PRECIO UNITARIO]] -> $64.00 | F66: 0 | G66: $ 64.00 | H66: =Tabla14253[[#This Row],[EFECTIVO]]+Tabla14253[[#This Row],[TRANSFERENCIA]] -> $ 64.00 | I66: CANCELADO | J66: =Tabla14253[[#This Row],[VALOR A PAGAR]]-Tabla14253[[#This Row],[VALOR CANCELADO]] -> 0 | K66: =Tabla14253[[#This Row],[VALOR A PAGAR]]*0.5 -> $ 32.00 | L66: =Tabla14253[[#This Row],[VALOR A PAGAR]]-Tabla14253[[#This Row],[COSTO]] -> $ 32.00
A67: 2024-12-03 | B67: SEUL YEONG GU | C67: 42 | D67: $ 2.00 | E67: =Tabla14253[[#This Row],[CANT.]]*Tabla14253[[#This Row],[PRECIO UNITARIO]] -> $84.00 | F67: 0 | G67: $ 84.00 | H67: =Tabla14253[[#This Row],[EFECTIVO]]+Tabla14253[[#This Row],[TRANSFERENCIA]] -> $ 84.00 | I67: =IF((E67=H67),"CANCELADO","SALDO PENDIENTE") -> CANCELADO | J67: =Tabla14253[[#This Row],[VALOR A PAGAR]]-Tabla14253[[#This Row],[VALOR CANCELADO]] -> 0 | K67: =Tabla14253[[#This Row],[VALOR A PAGAR]]*0.5 -> $ 42.00 | L67: =Tabla14253[[#This Row],[VALOR A PAGAR]]-Tabla14253[[#This Row],[COSTO]] -> $ 42.00
A68: 2024-12-03 | B68: EQUILIBRIO | C68: 16 | D68: $ 2.00 | E68: =Tabla14253[[#This Row],[CANT.]]*Tabla14253[[#This Row],[PRECIO UNITARIO]] -> $32.00 | F68: 0 | G68: $ 32.00 | H68: =Tabla14253[[#This Row],[EFECTIVO]]+Tabla14253[[#This Row],[TRANSFERENCIA]] -> $ 32.00 | I68: CANCELADO | J68: =Tabla14253[[#This Row],[VALOR A PAGAR]]-Tabla14253[[#This Row],[VALOR CANCELADO]] -> 0 | K68: =Tabla14253[[#This Row],[VALOR A PAGAR]]*0.5 -> $ 16.00 | L68: =Tabla14253[[#This Row],[VALOR A PAGAR]]-Tabla14253[[#This Row],[COSTO]] -> $ 16.00
A69: 2024-12-03 | B69: ILYO M. P. | C69: 3 | D69: $ 2.00 | E69: =Tabla14253[[#This Row],[CANT.]]*Tabla14253[[#This Row],[PRECIO UNITARIO]] -> $6.00 | F69: 0 | G69: $ 7.50 | H69: =Tabla14253[[#This Row],[EFECTIVO]]+Tabla14253[[#This Row],[TRANSFERENCIA]] -> $ 7.50 | I69: SALDO A FAVOR DEL CLUB | J69: =Tabla14253[[#This Row],[VALOR A PAGAR]]-Tabla14253[[#This Row],[VALOR CANCELADO]] -> $ (1.50) | K69: =Tabla14253[[#This Row],[VALOR A PAGAR]]*0.5 -> $ 3.00 | L69: =Tabla14253[[#This Row],[VALOR A PAGAR]]-Tabla14253[[#This Row],[COSTO]] -> $ 3.00 | M69: TIENE UN SALDO A FAVOR DE $1,5
A70: 2024-12-03 | B70: TAEGUK JUCARO | C70: 1 | D70: $ 2.00 | E70: =Tabla14253[[#This Row],[CANT.]]*Tabla14253[[#This Row],[PRECIO UNITARIO]] -> $2.00 | F70: 0 | G70: $ 2.00 | H70: =Tabla14253[[#This Row],[EFECTIVO]]+Tabla14253[[#This Row],[TRANSFERENCIA]] -> $ 2.00 | I70: CANCELADO | J70: =Tabla14253[[#This Row],[VALOR A PAGAR]]-Tabla14253[[#This Row],[VALOR CANCELADO]] -> 0 | K70: =Tabla14253[[#This Row],[VALOR A PAGAR]]*0.5 -> $ 1.00 | L70: =Tabla14253[[#This Row],[VALOR A PAGAR]]-Tabla14253[[#This Row],[COSTO]] -> $ 1.00
A71: 2024-12-04 | B71: SHOGUN | C71: 34 | D71: $ 2.00 | E71: =Tabla14253[[#This Row],[CANT.]]*Tabla14253[[#This Row],[PRECIO UNITARIO]] -> $68.00 | F71: 0 | G71: $ 68.00 | H71: =Tabla14253[[#This Row],[EFECTIVO]]+Tabla14253[[#This Row],[TRANSFERENCIA]] -> $ 68.00 | I71: CANCELADO | J71: =Tabla14253[[#This Row],[VALOR A PAGAR]]-Tabla14253[[#This Row],[VALOR CANCELADO]] -> 0 | K71: =Tabla14253[[#This Row],[VALOR A PAGAR]]*0.5 -> $ 34.00 | L71: =Tabla14253[[#This Row],[VALOR A PAGAR]]-Tabla14253[[#This Row],[COSTO]] -> $ 34.00 | M71: PAGO EN DOS DEPÓSITOS
A72: 2024-12-04 | B72: KYORUGUI GYM | C72: 2 | D72: $ 2.00 | E72: =Tabla14253[[#This Row],[CANT.]]*Tabla14253[[#This Row],[PRECIO UNITARIO]] -> $4.00 | F72: 0 | G72: $ 4.00 | H72: =Tabla14253[[#This Row],[EFECTIVO]]+Tabla14253[[#This Row],[TRANSFERENCIA]] -> $ 4.00 | I72: CANCELADO | J72: =Tabla14253[[#This Row],[VALOR A PAGAR]]-Tabla14253[[#This Row],[VALOR CANCELADO]] -> 0 | K72: =Tabla14253[[#This Row],[VALOR A PAGAR]]*0.5 -> $ 2.00 | L72: =Tabla14253[[#This Row],[VALOR A PAGAR]]-Tabla14253[[#This Row],[COSTO]] -> $ 2.00
A73: 2024-12-04 | B73: TAE BAEK ECUADOR | C73: 1 | D73: $ 2.00 | E73: =Tabla14253[[#This Row],[CANT.]]*Tabla14253[[#This Row],[PRECIO UNITARIO]] -> $2.00 | F73: 0 | G73: $ 2.00 | H73: =Tabla14253[[#This Row],[EFECTIVO]]+Tabla14253[[#This Row],[TRANSFERENCIA]] -> $ 2.00 | I73: CANCELADO | J73: =Tabla14253[[#This Row],[VALOR A PAGAR]]-Tabla14253[[#This Row],[VALOR CANCELADO]] -> 0 | K73: =Tabla14253[[#This Row],[VALOR A PAGAR]]*0.5 -> $ 1.00 | L73: =Tabla14253[[#This Row],[VALOR A PAGAR]]-Tabla14253[[#This Row],[COSTO]] -> $ 1.00
A74: 2024-12-04 | B74: APOLO | C74: 47 | D74: $ 2.00 | E74: =Tabla14253[[#This Row],[CANT.]]*Tabla14253[[#This Row],[PRECIO UNITARIO]] -> $94.00 | F74: 0 | G74: $ 94.00 | H74: =Tabla14253[[#This Row],[EFECTIVO]]+Tabla14253[[#This Row],[TRANSFERENCIA]] -> $ 94.00 | I74: CANCELADO | J74: =Tabla14253[[#This Row],[VALOR A PAGAR]]-Tabla14253[[#This Row],[VALOR CANCELADO]] -> 0 | K74: =Tabla14253[[#This Row],[VALOR A PAGAR]]*0.5 -> $ 47.00 | L74: =Tabla14253[[#This Row],[VALOR A PAGAR]]-Tabla14253[[#This Row],[COSTO]] -> $ 47.00 | M74: PAGO EN TRES DEPÓSITOS
A75: 2024-12-04 | B75: JI TAE | C75: 2 | D75: $ 2.00 | E75: =Tabla14253[[#This Row],[CANT.]]*Tabla14253[[#This Row],[PRECIO UNITARIO]] -> $4.00 | F75: 0 | G75: $ 4.00 | H75: =Tabla14253[[#This Row],[EFECTIVO]]+Tabla14253[[#This Row],[TRANSFERENCIA]] -> $ 4.00 | I75: CANCELADO | J75: =Tabla14253[[#This Row],[VALOR A PAGAR]]-Tabla14253[[#This Row],[VALOR CANCELADO]] -> 0 | K75: =Tabla14253[[#This Row],[VALOR A PAGAR]]*0.5 -> $ 2.00 | L75: =Tabla14253[[#This Row],[VALOR A PAGAR]]-Tabla14253[[#This Row],[COSTO]] -> $ 2.00
A76: 2024-12-04 | B76: DRAGON LEE GYM | C76: 2 | D76: $ 2.00 | E76: =Tabla14253[[#This Row],[CANT.]]*Tabla14253[[#This Row],[PRECIO UNITARIO]] -> $4.00 | F76: 0 | G76: $ 4.00 | H76: =Tabla14253[[#This Row],[EFECTIVO]]+Tabla14253[[#This Row],[TRANSFERENCIA]] -> $ 4.00 | I76: CANCELADO | J76: =Tabla14253[[#This Row],[VALOR A PAGAR]]-Tabla14253[[#This Row],[VALOR CANCELADO]] -> 0 | K76: =Tabla14253[[#This Row],[VALOR A PAGAR]]*0.5 -> $ 2.00 | L76: =Tabla14253[[#This Row],[VALOR A PAGAR]]-Tabla14253[[#This Row],[COSTO]] -> $ 2.00
A77: 2024-12-04 | B77: SEUL GEDEON | C77: 20 | D77: $ 2.00 | E77: =Tabla14253[[#This Row],[CANT.]]*Tabla14253[[#This Row],[PRECIO UNITARIO]] -> $40.00 | F77: 0 | G77: $ 40.00 | H77: =Tabla14253[[#This Row],[EFECTIVO]]+Tabla14253[[#This Row],[TRANSFERENCIA]] -> $ 40.00 | I77: CANCELADO | J77: =Tabla14253[[#This Row],[VALOR A PAGAR]]-Tabla14253[[#This Row],[VALOR CANCELADO]] -> 0 | K77: =Tabla14253[[#This Row],[VALOR A PAGAR]]*0.5 -> $ 20.00 | L77: =Tabla14253[[#This Row],[VALOR A PAGAR]]-Tabla14253[[#This Row],[COSTO]] -> $ 20.00
A78: 2024-12-05 | B78: CAMU | C78: 44 | D78: $ 2.00 | E78: =Tabla14253[[#This Row],[CANT.]]*Tabla14253[[#This Row],[PRECIO UNITARIO]] -> $88.00 | F78: 0 | G78: $ 88.00 | H78: =Tabla14253[[#This Row],[EFECTIVO]]+Tabla14253[[#This Row],[TRANSFERENCIA]] -> $ 88.00 | I78: CANCELADO | J78: =Tabla14253[[#This Row],[VALOR A PAGAR]]-Tabla14253[[#This Row],[VALOR CANCELADO]] -> 0 | K78: =Tabla14253[[#This Row],[VALOR A PAGAR]]*0.5 -> $ 44.00 | L78: =Tabla14253[[#This Row],[VALOR A PAGAR]]-Tabla14253[[#This Row],[COSTO]] -> $ 44.00
A79: 2024-12-05 | B79: KOREAN DRAGON | C79: 26 | D79: $ 2.00 | E79: =Tabla14253[[#This Row],[CANT.]]*Tabla14253[[#This Row],[PRECIO UNITARIO]] -> $52.00 | F79: 0 | G79: $ 52.00 | H79: =Tabla14253[[#This Row],[EFECTIVO]]+Tabla14253[[#This Row],[TRANSFERENCIA]] -> $ 52.00 | I79: CANCELADO | J79: =Tabla14253[[#This Row],[VALOR A PAGAR]]-Tabla14253[[#This Row],[VALOR CANCELADO]] -> 0 | K79: =Tabla14253[[#This Row],[VALOR A PAGAR]]*0.5 -> $ 26.00 | L79: =Tabla14253[[#This Row],[VALOR A PAGAR]]-Tabla14253[[#This Row],[COSTO]] -> $ 26.00
A80: 2024-12-05 | B80: TAE KING'S | C80: 2 | D80: $ 2.00 | E80: =Tabla14253[[#This Row],[CANT.]]*Tabla14253[[#This Row],[PRECIO UNITARIO]] -> $4.00 | F80: 0 | G80: $ 4.00 | H80: =Tabla14253[[#This Row],[EFECTIVO]]+Tabla14253[[#This Row],[TRANSFERENCIA]] -> $ 4.00 | I80: CANCELADO | J80: =Tabla14253[[#This Row],[VALOR A PAGAR]]-Tabla14253[[#This Row],[VALOR CANCELADO]] -> 0 | K80: =Tabla14253[[#This Row],[VALOR A PAGAR]]*0.5 -> $ 2.00 | L80: =Tabla14253[[#This Row],[VALOR A PAGAR]]-Tabla14253[[#This Row],[COSTO]] -> $ 2.00
A81: 2024-12-08 | B81: BORJA'S LIONS | C81: 18 | D81: $ 2.00 | E81: =Tabla14253[[#This Row],[CANT.]]*Tabla14253[[#This Row],[PRECIO UNITARIO]] -> $36.00 | F81: 0 | G81: $ 36.00 | H81: =Tabla14253[[#This Row],[EFECTIVO]]+Tabla14253[[#This Row],[TRANSFERENCIA]] -> $ 36.00 | I81: CANCELADO | J81: =Tabla14253[[#This Row],[VALOR A PAGAR]]-Tabla14253[[#This Row],[VALOR CANCELADO]] -> 0 | K81: =Tabla14253[[#This Row],[VALOR A PAGAR]]*0.5 -> $ 18.00 | L81: =Tabla14253[[#This Row],[VALOR A PAGAR]]-Tabla14253[[#This Row],[COSTO]] -> $ 18.00
A82: 2024-12-09 | B82: TOTAL KOMBAT | C82: 26 | D82: $ 2.00 | E82: =Tabla14253[[#This Row],[CANT.]]*Tabla14253[[#This Row],[PRECIO UNITARIO]] -> $52.00 | F82: 0 | G82: $ 65.00 | H82: =Tabla14253[[#This Row],[EFECTIVO]]+Tabla14253[[#This Row],[TRANSFERENCIA]] -> $ 65.00 | I82: SALDO A FAVOR DEL CLUB | J82: =Tabla14253[[#This Row],[VALOR A PAGAR]]-Tabla14253[[#This Row],[VALOR CANCELADO]] -> $ (13.00) | K82: =Tabla14253[[#This Row],[VALOR A PAGAR]]*0.5 -> $ 26.00 | L82: =Tabla14253[[#This Row],[VALOR A PAGAR]]-Tabla14253[[#This Row],[COSTO]] -> $ 26.00
A83: 2024-12-09 | B83: TOTAL KOMBAT RHINOS | C83: 33 | D83: $ 2.00 | E83: =Tabla14253[[#This Row],[CANT.]]*Tabla14253[[#This Row],[PRECIO UNITARIO]] -> $66.00 | F83: 0 | G83: $ 85.00 | H83: =Tabla14253[[#This Row],[EFECTIVO]]+Tabla14253[[#This Row],[TRANSFERENCIA]] -> $ 85.00 | I83: SALDO A FAVOR DEL CLUB | J83: =Tabla14253[[#This Row],[VALOR A PAGAR]]-Tabla14253[[#This Row],[VALOR CANCELADO]] -> $ (19.00) | K83: =Tabla14253[[#This Row],[VALOR A PAGAR]]*0.5 -> $ 33.00 | L83: =Tabla14253[[#This Row],[VALOR A PAGAR]]-Tabla14253[[#This Row],[COSTO]] -> $ 33.00
A84: 2024-12-09 | B84: TKT - KUKKIWON C. C | C84: 4 | D84: $ 2.00 | E84: =Tabla14253[[#This Row],[CANT.]]*Tabla14253[[#This Row],[PRECIO UNITARIO]] -> $8.00 | F84: 0 | G84: $ 10.00 | H84: =Tabla14253[[#This Row],[EFECTIVO]]+Tabla14253[[#This Row],[TRANSFERENCIA]] -> $ 10.00 | I84: SALDO A FAVOR DEL CLUB | J84: =Tabla14253[[#This Row],[VALOR A PAGAR]]-Tabla14253[[#This Row],[VALOR CANCELADO]] -> $ (2.00) | K84: =Tabla14253[[#This Row],[VALOR A PAGAR]]*0.5 -> $ 4.00 | L84: =Tabla14253[[#This Row],[VALOR A PAGAR]]-Tabla14253[[#This Row],[COSTO]] -> $ 4.00
A85: 2024-12-09 | B85: BAEKJUL | C85: 31 | D85: $ 2.00 | E85: =Tabla14253[[#This Row],[CANT.]]*Tabla14253[[#This Row],[PRECIO UNITARIO]] -> $62.00 | F85: 0 | G85: $ 62.00 | H85: =Tabla14253[[#This Row],[EFECTIVO]]+Tabla14253[[#This Row],[TRANSFERENCIA]] -> $ 62.00 | I85: CANCELADO | J85: =Tabla14253[[#This Row],[VALOR A PAGAR]]-Tabla14253[[#This Row],[VALOR CANCELADO]] -> 0 | K85: =Tabla14253[[#This Row],[VALOR A PAGAR]]*0.5 -> $ 31.00 | L85: =Tabla14253[[#This Row],[VALOR A PAGAR]]-Tabla14253[[#This Row],[COSTO]] -> $ 31.00
A86: 2024-12-09 | B86: ARES | C86: 26 | D86: $ 2.00 | E86: =Tabla14253[[#This Row],[CANT.]]*Tabla14253[[#This Row],[PRECIO UNITARIO]] -> $52.00 | F86: 0 | G86: $ 52.00 | H86: =Tabla14253[[#This Row],[EFECTIVO]]+Tabla14253[[#This Row],[TRANSFERENCIA]] -> $ 52.00 | I86: CANCELADO | J86: =Tabla14253[[#This Row],[VALOR A PAGAR]]-Tabla14253[[#This Row],[VALOR CANCELADO]] -> 0 | K86: =Tabla14253[[#This Row],[VALOR A PAGAR]]*0.5 -> $ 26.00 | L86: =Tabla14253[[#This Row],[VALOR A PAGAR]]-Tabla14253[[#This Row],[COSTO]] -> $ 26.00 | M86: PAGO EN DOS DEPÓSITOS
A87: 2024-12-09 | B87: RAIG DE LLUM | C87: 16 | D87: $ 2.00 | E87: =Tabla14253[[#This Row],[CANT.]]*Tabla14253[[#This Row],[PRECIO UNITARIO]] -> $32.00 | F87: 0 | G87: $ 32.00 | H87: =Tabla14253[[#This Row],[EFECTIVO]]+Tabla14253[[#This Row],[TRANSFERENCIA]] -> $ 32.00 | I87: CANCELADO | J87: =Tabla14253[[#This Row],[VALOR A PAGAR]]-Tabla14253[[#This Row],[VALOR CANCELADO]] -> 0 | K87: =Tabla14253[[#This Row],[VALOR A PAGAR]]*0.5 -> $ 16.00 | L87: =Tabla14253[[#This Row],[VALOR A PAGAR]]-Tabla14253[[#This Row],[COSTO]] -> $ 16.00
A88: 2024-12-09 | B88: TAE DO ACADEMY | C88: 64 | D88: $ 2.00 | E88: =Tabla14253[[#This Row],[CANT.]]*Tabla14253[[#This Row],[PRECIO UNITARIO]] -> $128.00 | F88: 0 | G88: $ 130.00 | H88: =Tabla14253[[#This Row],[EFECTIVO]]+Tabla14253[[#This Row],[TRANSFERENCIA]] -> $ 130.00 | I88: SALDO A FAVOR DEL CLUB | J88: =Tabla14253[[#This Row],[VALOR A PAGAR]]-Tabla14253[[#This Row],[VALOR CANCELADO]] -> $ (2.00) | K88: =Tabla14253[[#This Row],[VALOR A PAGAR]]*0.5 -> $ 64.00 | L88: =Tabla14253[[#This Row],[VALOR A PAGAR]]-Tabla14253[[#This Row],[COSTO]] -> $ 64.00 | M88: TIENE UN SALDO A FAVOR DE $2
A89: 2024-12-10 | B89: KUKKIWON | C89: 2 | D89: $ 2.00 | E89: =Tabla14253[[#This Row],[CANT.]]*Tabla14253[[#This Row],[PRECIO UNITARIO]] -> $4.00 | F89: 0 | G89: $ 4.00 | H89: =Tabla14253[[#This Row],[EFECTIVO]]+Tabla14253[[#This Row],[TRANSFERENCIA]] -> $ 4.00 | I89: CANCELADO | J89: =Tabla14253[[#This Row],[VALOR A PAGAR]]-Tabla14253[[#This Row],[VALOR CANCELADO]] -> 0 | K89: =Tabla14253[[#This Row],[VALOR A PAGAR]]*0.5 -> $ 2.00 | L89: =Tabla14253[[#This Row],[VALOR A PAGAR]]-Tabla14253[[#This Row],[COSTO]] -> $ 2.00
A90: 2024-12-10 | B90: SURYUN | C90: 10 | D90: $ 2.00 | E90: =Tabla14253[[#This Row],[CANT.]]*Tabla14253[[#This Row],[PRECIO UNITARIO]] -> $20.00 | F90: 0 | G90: $ 20.00 | H90: =Tabla14253[[#This Row],[EFECTIVO]]+Tabla14253[[#This Row],[TRANSFERENCIA]] -> $ 20.00 | I90: CANCELADO | J90: =Tabla14253[[#This Row],[VALOR A PAGAR]]-Tabla14253[[#This Row],[VALOR CANCELADO]] -> 0 | K90: =Tabla14253[[#This Row],[VALOR A PAGAR]]*0.5 -> $ 10.00 | L90: =Tabla14253[[#This Row],[VALOR A PAGAR]]-Tabla14253[[#This Row],[COSTO]] -> $ 10.00
A91: 2024-12-10 | B91: BLUE DRAGONS | C91: 29 | D91: $ 2.00 | E91: =Tabla14253[[#This Row],[CANT.]]*Tabla14253[[#This Row],[PRECIO UNITARIO]] -> $58.00 | F91: 0 | G91: $ 58.00 | H91: =Tabla14253[[#This Row],[EFECTIVO]]+Tabla14253[[#This Row],[TRANSFERENCIA]] -> $ 58.00 | I91: CANCELADO | J91: =Tabla14253[[#This Row],[VALOR A PAGAR]]-Tabla14253[[#This Row],[VALOR CANCELADO]] -> 0 | K91: =Tabla14253[[#This Row],[VALOR A PAGAR]]*0.5 -> $ 29.00 | L91: =Tabla14253[[#This Row],[VALOR A PAGAR]]-Tabla14253[[#This Row],[COSTO]] -> $ 29.00
A92: 2024-12-10 | B92: LEÓN | C92: 14 | D92: $ 2.00 | E92: =Tabla14253[[#This Row],[CANT.]]*Tabla14253[[#This Row],[PRECIO UNITARIO]] -> $28.00 | F92: 0 | G92: $ 28.00 | H92: =Tabla14253[[#This Row],[EFECTIVO]]+Tabla14253[[#This Row],[TRANSFERENCIA]] -> $ 28.00 | I92: CANCELADO | J92: =Tabla14253[[#This Row],[VALOR A PAGAR]]-Tabla14253[[#This Row],[VALOR CANCELADO]] -> 0 | K92: =Tabla14253[[#This Row],[VALOR A PAGAR]]*0.5 -> $ 14.00 | L92: =Tabla14253[[#This Row],[VALOR A PAGAR]]-Tabla14253[[#This Row],[COSTO]] -> $ 14.00 | M92: PAGA EL 10-01-2025 FECHA EN LA QUE SE HACE EL TRÁMITE
A93: 2024-12-10 | B93: SEUL LA ESTANCILLA | C93: 1 | D93: $ 2.00 | E93: =Tabla14253[[#This Row],[CANT.]]*Tabla14253[[#This Row],[PRECIO UNITARIO]] -> $2.00 | F93: 0 | G93: $ 2.00 | H93: =Tabla14253[[#This Row],[EFECTIVO]]+Tabla14253[[#This Row],[TRANSFERENCIA]] -> $ 2.00 | I93: CANCELADO | J93: =Tabla14253[[#This Row],[VALOR A PAGAR]]-Tabla14253[[#This Row],[VALOR CANCELADO]] -> 0 | K93: =Tabla14253[[#This Row],[VALOR A PAGAR]]*0.5 -> $ 1.00 | L93: =Tabla14253[[#This Row],[VALOR A PAGAR]]-Tabla14253[[#This Row],[COSTO]] -> $ 1.00
A94: 2024-12-11 | B94: YONG TIGER | C94: 10 | D94: $ 2.00 | E94: =Tabla14253[[#This Row],[CANT.]]*Tabla14253[[#This Row],[PRECIO UNITARIO]] -> $20.00 | F94: 0 | G94: $ 20.00 | H94: =Tabla14253[[#This Row],[EFECTIVO]]+Tabla14253[[#This Row],[TRANSFERENCIA]] -> $ 20.00 | I94: CANCELADO | J94: =Tabla14253[[#This Row],[VALOR A PAGAR]]-Tabla14253[[#This Row],[VALOR CANCELADO]] -> 0 | K94: =Tabla14253[[#This Row],[VALOR A PAGAR]]*0.5 -> $ 10.00 | L94: =Tabla14253[[#This Row],[VALOR A PAGAR]]-Tabla14253[[#This Row],[COSTO]] -> $ 10.00 | M94: JULIO 2024 FECHA DE CERTIFICADOS
A95: 2024-12-11 | B95: YONG TIGER | C95: 15 | D95: $ 2.00 | E95: =Tabla14253[[#This Row],[CANT.]]*Tabla14253[[#This Row],[PRECIO UNITARIO]] -> $30.00 | F95: 0 | G95: $ 30.00 | H95: =Tabla14253[[#This Row],[EFECTIVO]]+Tabla14253[[#This Row],[TRANSFERENCIA]] -> $ 30.00 | I95: CANCELADO | J95: =Tabla14253[[#This Row],[VALOR A PAGAR]]-Tabla14253[[#This Row],[VALOR CANCELADO]] -> 0 | K95: =Tabla14253[[#This Row],[VALOR A PAGAR]]*0.5 -> $ 15.00 | L95: =Tabla14253[[#This Row],[VALOR A PAGAR]]-Tabla14253[[#This Row],[COSTO]] -> $ 15.00 | M95: DICIEMBRE 2024 FECHA DE CERTIFICADOS
A96: 2024-12-12 | B96: DECIAP | C96: 83 | D96: $ 2.00 | E96: =Tabla14253[[#This Row],[CANT.]]*Tabla14253[[#This Row],[PRECIO UNITARIO]] -> $166.00 | F96: 0 | G96: $ 166.00 | H96: =Tabla14253[[#This Row],[EFECTIVO]]+Tabla14253[[#This Row],[TRANSFERENCIA]] -> $ 166.00 | I96: CANCELADO | J96: =Tabla14253[[#This Row],[VALOR A PAGAR]]-Tabla14253[[#This Row],[VALOR CANCELADO]] -> 0 | K96: =Tabla14253[[#This Row],[VALOR A PAGAR]]*0.5 -> $ 83.00 | L96: =Tabla14253[[#This Row],[VALOR A PAGAR]]-Tabla14253[[#This Row],[COSTO]] -> $ 83.00
A97: 2024-12-12 | B97: TAE WOONG | C97: 21 | D97: $ 2.00 | E97: =Tabla14253[[#This Row],[CANT.]]*Tabla14253[[#This Row],[PRECIO UNITARIO]] -> $42.00 | F97: 0 | G97: $ 42.00 | H97: =Tabla14253[[#This Row],[EFECTIVO]]+Tabla14253[[#This Row],[TRANSFERENCIA]] -> $ 42.00 | I97: CANCELADO | J97: =Tabla14253[[#This Row],[VALOR A PAGAR]]-Tabla14253[[#This Row],[VALOR CANCELADO]] -> 0 | K97: =Tabla14253[[#This Row],[VALOR A PAGAR]]*0.5 -> $ 21.00 | L97: =Tabla14253[[#This Row],[VALOR A PAGAR]]-Tabla14253[[#This Row],[COSTO]] -> $ 21.00
A98: 2024-12-12 | B98: KO AMÉRICA CAUPICHO | C98: 70 | D98: $ 2.00 | E98: =Tabla14253[[#This Row],[CANT.]]*Tabla14253[[#This Row],[PRECIO UNITARIO]] -> $140.00 | F98: 0 | G98: $ 140.00 | H98: =Tabla14253[[#This Row],[EFECTIVO]]+Tabla14253[[#This Row],[TRANSFERENCIA]] -> $ 140.00 | I98: CANCELADO | J98: =Tabla14253[[#This Row],[VALOR A PAGAR]]-Tabla14253[[#This Row],[VALOR CANCELADO]] -> 0 | K98: =Tabla14253[[#This Row],[VALOR A PAGAR]]*0.5 -> $ 70.00 | L98: =Tabla14253[[#This Row],[VALOR A PAGAR]]-Tabla14253[[#This Row],[COSTO]] -> $ 70.00
A99: 2024-12-13 | B99: FITTKWONDO MEJÍA | C99: 1 | D99: $ 2.00 | E99: =Tabla14253[[#This Row],[CANT.]]*Tabla14253[[#This Row],[PRECIO UNITARIO]] -> $2.00 | F99: 0 | G99: $ 2.00 | H99: =Tabla14253[[#This Row],[EFECTIVO]]+Tabla14253[[#This Row],[TRANSFERENCIA]] -> $ 2.00 | I99: =IF((E99=H99),"CANCELADO","SALDO PENDIENTE") -> CANCELADO | J99: =Tabla14253[[#This Row],[VALOR A PAGAR]]-Tabla14253[[#This Row],[VALOR CANCELADO]] -> 0 | K99: =Tabla14253[[#This Row],[VALOR A PAGAR]]*0.5 -> $ 1.00 | L99: =Tabla14253[[#This Row],[VALOR A PAGAR]]-Tabla14253[[#This Row],[COSTO]] -> $ 1.00
A100: 2024-12-13 | B100: FIRST CLASS | C100: 9 | D100: $ 2.00 | E100: =Tabla14253[[#This Row],[CANT.]]*Tabla14253[[#This Row],[PRECIO UNITARIO]] -> $18.00 | F100: 0 | G100: $ 18.00 | H100: =Tabla14253[[#This Row],[EFECTIVO]]+Tabla14253[[#This Row],[TRANSFERENCIA]] -> $ 18.00 | I100: CANCELADO | J100: =Tabla14253[[#This Row],[VALOR A PAGAR]]-Tabla14253[[#This Row],[VALOR CANCELADO]] -> 0 | K100: =Tabla14253[[#This Row],[VALOR A PAGAR]]*0.5 -> $ 9.00 | L100: =Tabla14253[[#This Row],[VALOR A PAGAR]]-Tabla14253[[#This Row],[COSTO]] -> $ 9.00
A101: 2024-12-14 | B101: ASOTKD - P CHIMBACALLE | C101: 45 | D101: $ 2.00 | E101: =Tabla14253[[#This Row],[CANT.]]*Tabla14253[[#This Row],[PRECIO UNITARIO]] -> $90.00 | F101: $ 90.00 | G101: 0 | H101: =Tabla14253[[#This Row],[EFECTIVO]]+Tabla14253[[#This Row],[TRANSFERENCIA]] -> $ 90.00 | I101: CANCELADO | J101: =Tabla14253[[#This Row],[VALOR A PAGAR]]-Tabla14253[[#This Row],[VALOR CANCELADO]] -> 0 | K101: =Tabla14253[[#This Row],[VALOR A PAGAR]]*0.5 -> $ 45.00 | L101: =Tabla14253[[#This Row],[VALOR A PAGAR]]-Tabla14253[[#This Row],[COSTO]] -> $ 45.00
A102: 2024-12-19 | B102: DECIAP | C102: 3 | D102: $ 2.00 | E102: =Tabla14253[[#This Row],[CANT.]]*Tabla14253[[#This Row],[PRECIO UNITARIO]] -> $6.00 | F102: 0 | G102: $ 6.00 | H102: =Tabla14253[[#This Row],[EFECTIVO]]+Tabla14253[[#This Row],[TRANSFERENCIA]] -> $ 6.00 | I102: CANCELADO | J102: =Tabla14253[[#This Row],[VALOR A PAGAR]]-Tabla14253[[#This Row],[VALOR CANCELADO]] -> 0 | K102: =Tabla14253[[#This Row],[VALOR A PAGAR]]*0.5 -> $ 3.00 | L102: =Tabla14253[[#This Row],[VALOR A PAGAR]]-Tabla14253[[#This Row],[COSTO]] -> $ 3.00
A103: 2024-12-21 | B103: KO AMÉRICA | C103: 14 | D103: $ 2.00 | E103: =Tabla14253[[#This Row],[CANT.]]*Tabla14253[[#This Row],[PRECIO UNITARIO]] -> $28.00 | F103: 0 | G103: $ 28.00 | H103: =Tabla14253[[#This Row],[EFECTIVO]]+Tabla14253[[#This Row],[TRANSFERENCIA]] -> $ 28.00 | I103: CANCELADO | J103: =Tabla14253[[#This Row],[VALOR A PAGAR]]-Tabla14253[[#This Row],[VALOR CANCELADO]] -> 0 | K103: =Tabla14253[[#This Row],[VALOR A PAGAR]]*0.5 -> $ 14.00 | L103: =Tabla14253[[#This Row],[VALOR A PAGAR]]-Tabla14253[[#This Row],[COSTO]] -> $ 14.00
A104: TOTAL | C104: =SUM(C4:C103) -> 1509 | E104: =SUM(Tabla14253[VALOR A PAGAR]) -> $3,025.00 | F104: =SUM(F4:F103) -> $122.00 | G104: =SUM(G4:G103) -> $2,922.50 | H104: =SUM(H4:H103) -> $3,044.50 | K104: =SUM(K4:K103) -> $1,512.50 | L104: =SUM(L4:L103) -> $1,512.50
C105: DIPLOMAS ELABORADOS | E105: A RECAUDARSE | F105: RECAUDADO EN EFECTIVO | G105: RECAUDADO EN TRANSFERENCIA
B108: RECAUDADO | C108: MONTO
B109: EFECTIVO | C109: =F104 -> $122.00
B110: TRANSFERENCIA | C110: =G104 -> $2,922.50
B111: TOTAL | C111: =SUM(C109:C110) -> $3,044.50
B114: POR COBRAR | C114: MONTO
B115: =B62 -> TEAM TAURO | C115: $20.00
B116: TOTAL | C116: =SUM(C115:C115) -> $20.00
B119: DEVOLVER O HACER PASO | C119: MONTO
B120: MARCIAL CLUB GRANDA | C120: $2.00
B121: ILYO M. P. | C121: $1.50
B122: TAE DO ACADEMY | C122: $2.00
B123: TOTAL KOMBAT | C123: $34.00
B124: TOTAL | C124: =SUM(C120:C123) -> $39.50

Sheet CERTIFICADOS DE ASCENSO 2025
A1: DIPLOMAS DE ASCENSO (ENERO - 15 DE MARZO DE 2025)
A3: FECHA | B3: CLUB | C3: CANT. | D3: PRECIO UNITARIO | E3: VALOR A PAGAR | F3: EFECTIVO | G3: TRANSFERENCIA | H3: VALOR CANCELADO | I3: ESTADO | J3: SALDO | K3: COSTO | L3: GANANCIA | M3: OBSERVACIONES | O3: TOTAL EFECTIVO
A4: 2025-01-06 | B4: JITAE | C4: 1 | D4: $ 2.50 | E4: =Tabla1425[[#This Row],[CANT.]]*Tabla1425[[#This Row],[PRECIO UNITARIO]] -> $2.50 | F4: $ 2.50 | G4: 0 | H4: =Tabla1425[[#This Row],[EFECTIVO]]+Tabla1425[[#This Row],[TRANSFERENCIA]] -> $ 2.50 | I4: =IF((E4=H4),"CANCELADO","SALDO PENDIENTE") -> CANCELADO | J4: =Tabla1425[[#This Row],[VALOR A PAGAR]]-Tabla1425[[#This Row],[VALOR CANCELADO]] -> 0 | K4: =Tabla1425[[#This Row],[VALOR A PAGAR]]*0.5 -> $ 1.25 | L4: =Tabla1425[[#This Row],[VALOR A PAGAR]]-Tabla1425[[#This Row],[COSTO]] -> $ 1.25
A5: 2025-01-07 | B5: MARCIAL CLUB GRANDA | C5: 4 | D5: $ 2.50 | E5: =Tabla1425[[#This Row],[CANT.]]*Tabla1425[[#This Row],[PRECIO UNITARIO]] -> $10.00 | F5: 0 | G5: $ 10.00 | H5: =Tabla1425[[#This Row],[EFECTIVO]]+Tabla1425[[#This Row],[TRANSFERENCIA]] -> $ 10.00 | I5: CANCELADO | J5: =Tabla1425[[#This Row],[VALOR A PAGAR]]-Tabla1425[[#This Row],[VALOR CANCELADO]] -> 0 | K5: =Tabla1425[[#This Row],[VALOR A PAGAR]]*0.5 -> $ 5.00 | L5: =Tabla1425[[#This Row],[VALOR A PAGAR]]-Tabla1425[[#This Row],[COSTO]] -> $ 5.00 | M5: USO DE SALDO A FAVOR EL 20-01-2025SALDO A FAVOR DEL CLUB $5
A6: 2025-01-08 | B6: CHUNG SONG | C6: 8 | D6: $ 2.50 | E6: =Tabla1425[[#This Row],[CANT.]]*Tabla1425[[#This Row],[PRECIO UNITARIO]] -> $20.00 | F6: 0 | G6: $ 20.00 | H6: =Tabla1425[[#This Row],[EFECTIVO]]+Tabla1425[[#This Row],[TRANSFERENCIA]] -> $ 20.00 | I6: CANCELADO | J6: =Tabla1425[[#This Row],[VALOR A PAGAR]]-Tabla1425[[#This Row],[VALOR CANCELADO]] -> 0 | K6: =Tabla1425[[#This Row],[VALOR A PAGAR]]*0.5 -> $ 10.00 | L6: =Tabla1425[[#This Row],[VALOR A PAGAR]]-Tabla1425[[#This Row],[COSTO]] -> $ 10.00
A7: 2025-01-08 | B7: SCORPIUS | C7: 1 | D7: $ 2.50 | E7: =Tabla1425[[#This Row],[CANT.]]*Tabla1425[[#This Row],[PRECIO UNITARIO]] -> $2.50 | F7: 0 | G7: $ 2.50 | H7: =Tabla1425[[#This Row],[EFECTIVO]]+Tabla1425[[#This Row],[TRANSFERENCIA]] -> $ 2.50 | I7: CANCELADO | J7: =Tabla1425[[#This Row],[VALOR A PAGAR]]-Tabla1425[[#This Row],[VALOR CANCELADO]] -> 0 | K7: =Tabla1425[[#This Row],[VALOR A PAGAR]]*0.5 -> $ 1.25 | L7: =Tabla1425[[#This Row],[VALOR A PAGAR]]-Tabla1425[[#This Row],[COSTO]] -> $ 1.25
A8: 2025-01-10 | B8: MOODUKKWAN TRAINING CENTER | C8: 27 | D8: $ 2.50 | E8: =Tabla1425[[#This Row],[CANT.]]*Tabla1425[[#This Row],[PRECIO UNITARIO]] -> $67.50 | F8: 0 | G8: $ 67.50 | H8: =Tabla1425[[#This Row],[EFECTIVO]]+Tabla1425[[#This Row],[TRANSFERENCIA]] -> $ 67.50 | I8: CANCELADO | J8: =Tabla1425[[#This Row],[VALOR A PAGAR]]-Tabla1425[[#This Row],[VALOR CANCELADO]] -> 0 | K8: =Tabla1425[[#This Row],[VALOR A PAGAR]]*0.5 -> $ 33.75 | L8: =Tabla1425[[#This Row],[VALOR A PAGAR]]-Tabla1425[[#This Row],[COSTO]] -> $ 33.75 | M8: HACE USO DE SALDO A FAVOR
A9: 2025-01-15 | B9: MIT-TKD | C9: 14 | D9: $ 2.50 | E9: =Tabla1425[[#This Row],[CANT.]]*Tabla1425[[#This Row],[PRECIO UNITARIO]] -> $35.00 | F9: 0 | G9: $ 35.00 | H9: =Tabla1425[[#This Row],[EFECTIVO]]+Tabla1425[[#This Row],[TRANSFERENCIA]] -> $ 35.00 | I9: CANCELADO | J9: =Tabla1425[[#This Row],[VALOR A PAGAR]]-Tabla1425[[#This Row],[VALOR CANCELADO]] -> 0 | K9: =Tabla1425[[#This Row],[VALOR A PAGAR]]*0.5 -> $ 17.50 | L9: =Tabla1425[[#This Row],[VALOR A PAGAR]]-Tabla1425[[#This Row],[COSTO]] -> $ 17.50
A10: 2025-01-20 | B10: MARCIAL CLUB GRANDA | C10: 2 | D10: $ 2.50 | E10: =Tabla1425[[#This Row],[CANT.]]*Tabla1425[[#This Row],[PRECIO UNITARIO]] -> $5.00 | F10: 0 | G10: $ 5.00 | H10: =Tabla1425[[#This Row],[EFECTIVO]]+Tabla1425[[#This Row],[TRANSFERENCIA]] -> $ 5.00 | I10: CANCELADO | J10: =Tabla1425[[#This Row],[VALOR A PAGAR]]-Tabla1425[[#This Row],[VALOR CANCELADO]] -> 0 | K10: =Tabla1425[[#This Row],[VALOR A PAGAR]]*0.5 -> $ 2.50 | L10: =Tabla1425[[#This Row],[VALOR A PAGAR]]-Tabla1425[[#This Row],[COSTO]] -> $ 2.50 | M10: HACE USO DE SALDO A FAVOR 07-01-2025
A11: 2025-01-20 | B11: ASOTKD - P CHIMBACALLE | C11: 2 | D11: $ 2.50 | E11: =Tabla1425[[#This Row],[CANT.]]*Tabla1425[[#This Row],[PRECIO UNITARIO]] -> $5.00 | F11: 0 | G11: $ 5.00 | H11: =Tabla1425[[#This Row],[EFECTIVO]]+Tabla1425[[#This Row],[TRANSFERENCIA]] -> $ 5.00 | I11: CANCELADO | J11: =Tabla1425[[#This Row],[VALOR A PAGAR]]-Tabla1425[[#This Row],[VALOR CANCELADO]] -> 0 | K11: =Tabla1425[[#This Row],[VALOR A PAGAR]]*0.5 -> $ 2.50 | L11: =Tabla1425[[#This Row],[VALOR A PAGAR]]-Tabla1425[[#This Row],[COSTO]] -> $ 2.50
A12: 2025-01-20 | B12: MSA GRAND MASTER | C12: 26 | D12: $ 2.50 | E12: =Tabla1425[[#This Row],[CANT.]]*Tabla1425[[#This Row],[PRECIO UNITARIO]] -> $65.00 | F12: 0 | G12: $ 65.00 | H12: =Tabla1425[[#This Row],[EFECTIVO]]+Tabla1425[[#This Row],[TRANSFERENCIA]] -> $ 65.00 | I12: CANCELADO | J12: =Tabla1425[[#This Row],[VALOR A PAGAR]]-Tabla1425[[#This Row],[VALOR CANCELADO]] -> 0 | K12: =Tabla1425[[#This Row],[VALOR A PAGAR]]*0.5 -> $ 32.50 | L12: =Tabla1425[[#This Row],[VALOR A PAGAR]]-Tabla1425[[#This Row],[COSTO]] -> $ 32.50
A13: 2025-01-21 | B13: KO AMÉRICA | C13: 15 | D13: $ 2.50 | E13: =Tabla1425[[#This Row],[CANT.]]*Tabla1425[[#This Row],[PRECIO UNITARIO]] -> $37.50 | F13: 0 | G13: $ 37.50 | H13: =Tabla1425[[#This Row],[EFECTIVO]]+Tabla1425[[#This Row],[TRANSFERENCIA]] -> $ 37.50 | I13: CANCELADO | J13: =Tabla1425[[#This Row],[VALOR A PAGAR]]-Tabla1425[[#This Row],[VALOR CANCELADO]] -> 0 | K13: =Tabla1425[[#This Row],[VALOR A PAGAR]]*0.5 -> $ 18.75 | L13: =Tabla1425[[#This Row],[VALOR A PAGAR]]-Tabla1425[[#This Row],[COSTO]] -> $ 18.75
A14: 2025-01-25 | B14: PVM - ROJAS IAN IRON FIST | C14: 33 | D14: $ 2.50 | E14: =Tabla1425[[#This Row],[CANT.]]*Tabla1425[[#This Row],[PRECIO UNITARIO]] -> $82.50 | F14: 0 | G14: $ 82.50 | H14: =Tabla1425[[#This Row],[EFECTIVO]]+Tabla1425[[#This Row],[TRANSFERENCIA]] -> $ 82.50 | I14: CANCELADO | J14: =Tabla1425[[#This Row],[VALOR A PAGAR]]-Tabla1425[[#This Row],[VALOR CANCELADO]] -> 0 | K14: =Tabla1425[[#This Row],[VALOR A PAGAR]]*0.5 -> $ 41.25 | L14: =Tabla1425[[#This Row],[VALOR A PAGAR]]-Tabla1425[[#This Row],[COSTO]] -> $ 41.25
A15: 2025-01-25 | B15: DRACO | C15: 44 | D15: $ 2.00 | E15: =Tabla1425[[#This Row],[CANT.]]*Tabla1425[[#This Row],[PRECIO UNITARIO]] -> $88.00 | F15: 0 | G15: $ 88.00 | H15: =Tabla1425[[#This Row],[EFECTIVO]]+Tabla1425[[#This Row],[TRANSFERENCIA]] -> $ 88.00 | I15: CANCELADO | J15: =Tabla1425[[#This Row],[VALOR A PAGAR]]-Tabla1425[[#This Row],[VALOR CANCELADO]] -> 0 | K15: =Tabla1425[[#This Row],[VALOR A PAGAR]]*0.5 -> $ 44.00 | L15: =Tabla1425[[#This Row],[VALOR A PAGAR]]-Tabla1425[[#This Row],[COSTO]] -> $ 44.00 | M15: PAGA EL 26-12-2024 Y ENVÍA DATOS 25-01-2025
A16: 2025-01-27 | B16: TAE SHO KU | C16: 11 | D16: $ 2.50 | E16: =Tabla1425[[#This Row],[CANT.]]*Tabla1425[[#This Row],[PRECIO UNITARIO]] -> $27.50 | F16: 0 | G16: $ 27.50 | H16: =Tabla1425[[#This Row],[EFECTIVO]]+Tabla1425[[#This Row],[TRANSFERENCIA]] -> $ 27.50 | I16: CANCELADO | J16: =Tabla1425[[#This Row],[VALOR A PAGAR]]-Tabla1425[[#This Row],[VALOR CANCELADO]] -> 0 | K16: =Tabla1425[[#This Row],[VALOR A PAGAR]]*0.5 -> $ 13.75 | L16: =Tabla1425[[#This Row],[VALOR A PAGAR]]-Tabla1425[[#This Row],[COSTO]] -> $ 13.75 | M16: PAGO EN DOS DEPÓSITOS
A17: 2025-01-28 | B17: BAEKJUL TEAM AYALAZ | C17: 23 | D17: $ 2.50 | E17: =Tabla1425[[#This Row],[CANT.]]*Tabla1425[[#This Row],[PRECIO UNITARIO]] -> $57.50 | F17: 0 | G17: $ 57.50 | H17: =Tabla1425[[#This Row],[EFECTIVO]]+Tabla1425[[#This Row],[TRANSFERENCIA]] -> $ 57.50 | I17: CANCELADO | J17: =Tabla1425[[#This Row],[VALOR A PAGAR]]-Tabla1425[[#This Row],[VALOR CANCELADO]] -> 0 | K17: =Tabla1425[[#This Row],[VALOR A PAGAR]]*0.5 -> $ 28.75 | L17: =Tabla1425[[#This Row],[VALOR A PAGAR]]-Tabla1425[[#This Row],[COSTO]] -> $ 28.75
A18: 2025-01-29 | B18: ECUADOR | C18: 38 | D18: $ 2.50 | E18: =Tabla1425[[#This Row],[CANT.]]*Tabla1425[[#This Row],[PRECIO UNITARIO]] -> $95.00 | F18: 0 | G18: $ 95.00 | H18: =Tabla1425[[#This Row],[EFECTIVO]]+Tabla1425[[#This Row],[TRANSFERENCIA]] -> $ 95.00 | I18: CANCELADO | J18: =Tabla1425[[#This Row],[VALOR A PAGAR]]-Tabla1425[[#This Row],[VALOR CANCELADO]] -> 0 | K18: =Tabla1425[[#This Row],[VALOR A PAGAR]]*0.5 -> $ 47.50 | L18: =Tabla1425[[#This Row],[VALOR A PAGAR]]-Tabla1425[[#This Row],[COSTO]] -> $ 47.50
A19: 2025-01-29 | B19: FARANG | C19: 4 | D19: $ 2.50 | E19: =Tabla1425[[#This Row],[CANT.]]*Tabla1425[[#This Row],[PRECIO UNITARIO]] -> $10.00 | F19: 0 | G19: $ 10.00 | H19: =Tabla1425[[#This Row],[EFECTIVO]]+Tabla1425[[#This Row],[TRANSFERENCIA]] -> $ 10.00 | I19: CANCELADO | J19: =Tabla1425[[#This Row],[VALOR A PAGAR]]-Tabla1425[[#This Row],[VALOR CANCELADO]] -> 0 | K19: =Tabla1425[[#This Row],[VALOR A PAGAR]]*0.5 -> $ 5.00 | L19: =Tabla1425[[#This Row],[VALOR A PAGAR]]-Tabla1425[[#This Row],[COSTO]] -> $ 5.00
A20: 2025-01-30 | B20: UNIVERSIDAD DE LOS HEMISFERIOS | C20: 1 | D20: $ 2.50 | E20: =Tabla1425[[#This Row],[CANT.]]*Tabla1425[[#This Row],[PRECIO UNITARIO]] -> $2.50 | F20: $ 2.50 | G20: 0 | H20: =Tabla1425[[#This Row],[EFECTIVO]]+Tabla1425[[#This Row],[TRANSFERENCIA]] -> $ 2.50 | I20: CANCELADO | J20: =Tabla1425[[#This Row],[VALOR A PAGAR]]-Tabla1425[[#This Row],[VALOR CANCELADO]] -> 0 | K20: =Tabla1425[[#This Row],[VALOR A PAGAR]]*0.5 -> $ 1.25 | L20: =Tabla1425[[#This Row],[VALOR A PAGAR]]-Tabla1425[[#This Row],[COSTO]] -> $ 1.25
A21: 2025-01-31 | B21: PVM - ROJAS IAN IRON FIST | C21: 2 | D21: $ 2.50 | E21: =Tabla1425[[#This Row],[CANT.]]*Tabla1425[[#This Row],[PRECIO UNITARIO]] -> $5.00 | F21: $ 5.00 | G21: 0 | H21: =Tabla1425[[#This Row],[EFECTIVO]]+Tabla1425[[#This Row],[TRANSFERENCIA]] -> $ 5.00 | I21: CANCELADO | J21: =Tabla1425[[#This Row],[VALOR A PAGAR]]-Tabla1425[[#This Row],[VALOR CANCELADO]] -> 0 | K21: =Tabla1425[[#This Row],[VALOR A PAGAR]]*0.5 -> $ 2.50 | L21: =Tabla1425[[#This Row],[VALOR A PAGAR]]-Tabla1425[[#This Row],[COSTO]] -> $ 2.50
A22: 2025-01-31 | B22: TEAM VENCEDORES | C22: 1 | D22: $ 2.50 | E22: =Tabla1425[[#This Row],[CANT.]]*Tabla1425[[#This Row],[PRECIO UNITARIO]] -> $2.50 | F22: 0 | G22: $ 2.50 | H22: =Tabla1425[[#This Row],[EFECTIVO]]+Tabla1425[[#This Row],[TRANSFERENCIA]] -> $ 2.50 | I22: CANCELADO | J22: =Tabla1425[[#This Row],[VALOR A PAGAR]]-Tabla1425[[#This Row],[VALOR CANCELADO]] -> 0 | K22: =Tabla1425[[#This Row],[VALOR A PAGAR]]*0.5 -> $ 1.25 | L22: =Tabla1425[[#This Row],[VALOR A PAGAR]]-Tabla1425[[#This Row],[COSTO]] -> $ 1.25
A23: 2025-02-04 | B23: DRAGON LEE GYM | C23: 1 | D23: $ 2.50 | E23: =Tabla1425[[#This Row],[CANT.]]*Tabla1425[[#This Row],[PRECIO UNITARIO]] -> $2.50 | F23: $ 0.50 | G23: $ 2.00 | H23: =Tabla1425[[#This Row],[EFECTIVO]]+Tabla1425[[#This Row],[TRANSFERENCIA]] -> $ 2.50 | I23: CANCELADO | J23: =Tabla1425[[#This Row],[VALOR A PAGAR]]-Tabla1425[[#This Row],[VALOR CANCELADO]] -> 0 | K23: =Tabla1425[[#This Row],[VALOR A PAGAR]]*0.5 -> $ 1.25 | L23: =Tabla1425[[#This Row],[VALOR A PAGAR]]-Tabla1425[[#This Row],[COSTO]] -> $ 1.25
A24: 2025-02-05 | B24: BAS PANTHERS | C24: 27 | D24: $ 2.50 | E24: =Tabla1425[[#This Row],[CANT.]]*Tabla1425[[#This Row],[PRECIO UNITARIO]] -> $67.50 | F24: 0 | G24: $ 67.50 | H24: =Tabla1425[[#This Row],[EFECTIVO]]+Tabla1425[[#This Row],[TRANSFERENCIA]] -> $ 67.50 | I24: CANCELADO | J24: =Tabla1425[[#This Row],[VALOR A PAGAR]]-Tabla1425[[#This Row],[VALOR CANCELADO]] -> 0 | K24: =Tabla1425[[#This Row],[VALOR A PAGAR]]*0.5 -> $ 33.75 | L24: =Tabla1425[[#This Row],[VALOR A PAGAR]]-Tabla1425[[#This Row],[COSTO]] -> $ 33.75 | M24: PASO CON JARROS NAVIDEÑOS SELECCIONADOS PROVINCIALES
A25: 2025-02-05 | B25: CHUNG SONG | C25: 8 | D25: $ 2.50 | E25: =Tabla1425[[#This Row],[CANT.]]*Tabla1425[[#This Row],[PRECIO UNITARIO]] -> $20.00 | F25: 0 | G25: $ 20.00 | H25: =Tabla1425[[#This Row],[EFECTIVO]]+Tabla1425[[#This Row],[TRANSFERENCIA]] -> $ 20.00 | I25: CANCELADO | J25: =Tabla1425[[#This Row],[VALOR A PAGAR]]-Tabla1425[[#This Row],[VALOR CANCELADO]] -> 0 | K25: =Tabla1425[[#This Row],[VALOR A PAGAR]]*0.5 -> $ 10.00 | L25: =Tabla1425[[#This Row],[VALOR A PAGAR]]-Tabla1425[[#This Row],[COSTO]] -> $ 10.00
A26: 2025-02-05 | B26: PIONERO FORTIS | C26: 22 | D26: $ 2.50 | E26: =Tabla1425[[#This Row],[CANT.]]*Tabla1425[[#This Row],[PRECIO UNITARIO]] -> $55.00 | F26: 0 | G26: $ 55.00 | H26: =Tabla1425[[#This Row],[EFECTIVO]]+Tabla1425[[#This Row],[TRANSFERENCIA]] -> $ 55.00 | I26: CANCELADO | J26: =Tabla1425[[#This Row],[VALOR A PAGAR]]-Tabla1425[[#This Row],[VALOR CANCELADO]] -> 0 | K26: =Tabla1425[[#This Row],[VALOR A PAGAR]]*0.5 -> $ 27.50 | L26: =Tabla1425[[#This Row],[VALOR A PAGAR]]-Tabla1425[[#This Row],[COSTO]] -> $ 27.50
A27: 2025-02-10 | B27: L. D. C. MEJÍA | C27: 20 | D27: $ 2.50 | E27: =Tabla1425[[#This Row],[CANT.]]*Tabla1425[[#This Row],[PRECIO UNITARIO]] -> $50.00 | F27: 0 | G27: $ 50.00 | H27: =Tabla1425[[#This Row],[EFECTIVO]]+Tabla1425[[#This Row],[TRANSFERENCIA]] -> $ 50.00 | I27: CANCELADO | J27: =Tabla1425[[#This Row],[VALOR A PAGAR]]-Tabla1425[[#This Row],[VALOR CANCELADO]] -> 0 | K27: =Tabla1425[[#This Row],[VALOR A PAGAR]]*0.5 -> $ 25.00 | L27: =Tabla1425[[#This Row],[VALOR A PAGAR]]-Tabla1425[[#This Row],[COSTO]] -> $ 25.00
A28: 2025-02-10 | B28: HAN KUM DO | C28: 11 | D28: $ 2.50 | E28: =Tabla1425[[#This Row],[CANT.]]*Tabla1425[[#This Row],[PRECIO UNITARIO]] -> $27.50 | F28: 0 | G28: $ 27.50 | H28: =Tabla1425[[#This Row],[EFECTIVO]]+Tabla1425[[#This Row],[TRANSFERENCIA]] -> $ 27.50 | I28: CANCELADO | J28: =Tabla1425[[#This Row],[VALOR A PAGAR]]-Tabla1425[[#This Row],[VALOR CANCELADO]] -> 0 | K28: =Tabla1425[[#This Row],[VALOR A PAGAR]]*0.5 -> $ 13.75 | L28: =Tabla1425[[#This Row],[VALOR A PAGAR]]-Tabla1425[[#This Row],[COSTO]] -> $ 13.75
A29: 2025-02-10 | B29: DOJANG TKD MELO | C29: 15 | D29: $ 2.50 | E29: =Tabla1425[[#This Row],[CANT.]]*Tabla1425[[#This Row],[PRECIO UNITARIO]] -> $37.50 | F29: 0 | G29: $ 37.50 | H29: =Tabla1425[[#This Row],[EFECTIVO]]+Tabla1425[[#This Row],[TRANSFERENCIA]] -> $ 37.50 | I29: CANCELADO | J29: =Tabla1425[[#This Row],[VALOR A PAGAR]]-Tabla1425[[#This Row],[VALOR CANCELADO]] -> 0 | K29: =Tabla1425[[#This Row],[VALOR A PAGAR]]*0.5 -> $ 18.75 | L29: =Tabla1425[[#This Row],[VALOR A PAGAR]]-Tabla1425[[#This Row],[COSTO]] -> $ 18.75
A30: 2025-02-13 | B30: FURIA NEGRA | C30: 7 | D30: $ 2.50 | E30: =Tabla1425[[#This Row],[CANT.]]*Tabla1425[[#This Row],[PRECIO UNITARIO]] -> $17.50 | F30: 0 | G30: $ 17.50 | H30: =Tabla1425[[#This Row],[EFECTIVO]]+Tabla1425[[#This Row],[TRANSFERENCIA]] -> $ 17.50 | I30: CANCELADO | J30: =Tabla1425[[#This Row],[VALOR A PAGAR]]-Tabla1425[[#This Row],[VALOR CANCELADO]] -> 0 | K30: =Tabla1425[[#This Row],[VALOR A PAGAR]]*0.5 -> $ 8.75 | L30: =Tabla1425[[#This Row],[VALOR A PAGAR]]-Tabla1425[[#This Row],[COSTO]] -> $ 8.75
A31: 2025-02-13 | B31: KYORUGUI GYM | C31: 20 | D31: $ 2.50 | E31: =Tabla1425[[#This Row],[CANT.]]*Tabla1425[[#This Row],[PRECIO UNITARIO]] -> $50.00 | F31: 0 | G31: $ 50.00 | H31: =Tabla1425[[#This Row],[EFECTIVO]]+Tabla1425[[#This Row],[TRANSFERENCIA]] -> $ 50.00 | I31: CANCELADO | J31: =Tabla1425[[#This Row],[VALOR A PAGAR]]-Tabla1425[[#This Row],[VALOR CANCELADO]] -> 0 | K31: =Tabla1425[[#This Row],[VALOR A PAGAR]]*0.5 -> $ 25.00 | L31: =Tabla1425[[#This Row],[VALOR A PAGAR]]-Tabla1425[[#This Row],[COSTO]] -> $ 25.00
A32: 2025-02-17 | B32: KYORUGUI GYM | C32: 1 | D32: $ 2.50 | E32: =Tabla1425[[#This Row],[CANT.]]*Tabla1425[[#This Row],[PRECIO UNITARIO]] -> $2.50 | F32: 0 | G32: $ 2.50 | H32: =Tabla1425[[#This Row],[EFECTIVO]]+Tabla1425[[#This Row],[TRANSFERENCIA]] -> $ 2.50 | I32: CANCELADO | J32: =Tabla1425[[#This Row],[VALOR A PAGAR]]-Tabla1425[[#This Row],[VALOR CANCELADO]] -> 0 | K32: =Tabla1425[[#This Row],[VALOR A PAGAR]]*0.5 -> $ 1.25 | L32: =Tabla1425[[#This Row],[VALOR A PAGAR]]-Tabla1425[[#This Row],[COSTO]] -> $ 1.25
A33: 2025-02-18 | B33: RYONG TAE | C33: 1 | D33: $ 2.50 | E33: =Tabla1425[[#This Row],[CANT.]]*Tabla1425[[#This Row],[PRECIO UNITARIO]] -> $2.50 | F33: 0 | G33: $ 2.50 | H33: =Tabla1425[[#This Row],[EFECTIVO]]+Tabla1425[[#This Row],[TRANSFERENCIA]] -> $ 2.50 | I33: CANCELADO | J33: =Tabla1425[[#This Row],[VALOR A PAGAR]]-Tabla1425[[#This Row],[VALOR CANCELADO]] -> 0 | K33: =Tabla1425[[#This Row],[VALOR A PAGAR]]*0.5 -> $ 1.25 | L33: =Tabla1425[[#This Row],[VALOR A PAGAR]]-Tabla1425[[#This Row],[COSTO]] -> $ 1.25 | M33: PASO CON SALDO A FAVOR (USA $2,50 PARA CERTIFICADO DE ASCENSO QUEDA A FAVOR 1,50)
A34: 2025-02-18 | B34: PIONERO | C34: 1 | D34: $ 2.50 | E34: =Tabla1425[[#This Row],[CANT.]]*Tabla1425[[#This Row],[PRECIO UNITARIO]] -> $2.50 | F34: 0 | G34: $ 2.50 | H34: =Tabla1425[[#This Row],[EFECTIVO]]+Tabla1425[[#This Row],[TRANSFERENCIA]] -> $ 2.50 | I34: CANCELADO | J34: =Tabla1425[[#This Row],[VALOR A PAGAR]]-Tabla1425[[#This Row],[VALOR CANCELADO]] -> 0 | K34: =Tabla1425[[#This Row],[VALOR A PAGAR]]*0.5 -> $ 1.25 | L34: =Tabla1425[[#This Row],[VALOR A PAGAR]]-Tabla1425[[#This Row],[COSTO]] -> $ 1.25
A35: 2025-02-18 | B35: HIMCHARI | C35: 47 | D35: $ 2.50 | E35: =Tabla1425[[#This Row],[CANT.]]*Tabla1425[[#This Row],[PRECIO UNITARIO]] -> $117.50 | F35: 0 | G35: $ 117.50 | H35: =Tabla1425[[#This Row],[EFECTIVO]]+Tabla1425[[#This Row],[TRANSFERENCIA]] -> $ 117.50 | I35: CANCELADO | J35: =Tabla1425[[#This Row],[VALOR A PAGAR]]-Tabla1425[[#This Row],[VALOR CANCELADO]] -> 0 | K35: =Tabla1425[[#This Row],[VALOR A PAGAR]]*0.5 -> $ 58.75 | L35: =Tabla1425[[#This Row],[VALOR A PAGAR]]-Tabla1425[[#This Row],[COSTO]] -> $ 58.75
A36: 2025-02-21 | B36: MICHAY DO | C36: 1 | D36: $ 2.50 | E36: =Tabla1425[[#This Row],[CANT.]]*Tabla1425[[#This Row],[PRECIO UNITARIO]] -> $2.50 | F36: 0 | G36: $ 2.50 | H36: =Tabla1425[[#This Row],[EFECTIVO]]+Tabla1425[[#This Row],[TRANSFERENCIA]] -> $ 2.50 | I36: CANCELADO | J36: =Tabla1425[[#This Row],[VALOR A PAGAR]]-Tabla1425[[#This Row],[VALOR CANCELADO]] -> 0 | K36: =Tabla1425[[#This Row],[VALOR A PAGAR]]*0.5 -> $ 1.25 | L36: =Tabla1425[[#This Row],[VALOR A PAGAR]]-Tabla1425[[#This Row],[COSTO]] -> $ 1.25
A37: 2025-02-24 | B37: KYORUGUI GYM | C37: 3 | D37: $ 2.50 | E37: =Tabla1425[[#This Row],[CANT.]]*Tabla1425[[#This Row],[PRECIO UNITARIO]] -> $7.50 | F37: 0 | G37: $ 7.50 | H37: =Tabla1425[[#This Row],[EFECTIVO]]+Tabla1425[[#This Row],[TRANSFERENCIA]] -> $ 7.50 | I37: CANCELADO | J37: =Tabla1425[[#This Row],[VALOR A PAGAR]]-Tabla1425[[#This Row],[VALOR CANCELADO]] -> 0 | K37: =Tabla1425[[#This Row],[VALOR A PAGAR]]*0.5 -> $ 3.75 | L37: =Tabla1425[[#This Row],[VALOR A PAGAR]]-Tabla1425[[#This Row],[COSTO]] -> $ 3.75
A38: 2025-02-24 | B38: BORJA'S LIONS | C38: 26 | D38: $ 2.50 | E38: =Tabla1425[[#This Row],[CANT.]]*Tabla1425[[#This Row],[PRECIO UNITARIO]] -> $65.00 | F38: 0 | G38: $ 65.00 | H38: =Tabla1425[[#This Row],[EFECTIVO]]+Tabla1425[[#This Row],[TRANSFERENCIA]] -> $ 65.00 | I38: CANCELADO | J38: =Tabla1425[[#This Row],[VALOR A PAGAR]]-Tabla1425[[#This Row],[VALOR CANCELADO]] -> 0 | K38: =Tabla1425[[#This Row],[VALOR A PAGAR]]*0.5 -> $ 32.50 | L38: =Tabla1425[[#This Row],[VALOR A PAGAR]]-Tabla1425[[#This Row],[COSTO]] -> $ 32.50
A39: 2025-02-24 | B39: SAN SEBASTIÁN | C39: 2 | D39: $ 2.50 | E39: =Tabla1425[[#This Row],[CANT.]]*Tabla1425[[#This Row],[PRECIO UNITARIO]] -> $5.00 | F39: 0 | G39: $ 5.00 | H39: =Tabla1425[[#This Row],[EFECTIVO]]+Tabla1425[[#This Row],[TRANSFERENCIA]] -> $ 5.00 | I39: CANCELADO | J39: =Tabla1425[[#This Row],[VALOR A PAGAR]]-Tabla1425[[#This Row],[VALOR CANCELADO]] -> 0 | K39: =Tabla1425[[#This Row],[VALOR A PAGAR]]*0.5 -> $ 2.50 | L39: =Tabla1425[[#This Row],[VALOR A PAGAR]]-Tabla1425[[#This Row],[COSTO]] -> $ 2.50
A40: 2025-02-25 | B40: JIDOKWAN | C40: 1 | D40: $ 2.50 | E40: =Tabla1425[[#This Row],[CANT.]]*Tabla1425[[#This Row],[PRECIO UNITARIO]] -> $2.50 | F40: 0 | G40: $ 2.50 | H40: =Tabla1425[[#This Row],[EFECTIVO]]+Tabla1425[[#This Row],[TRANSFERENCIA]] -> $ 2.50 | I40: CANCELADO | J40: =Tabla1425[[#This Row],[VALOR A PAGAR]]-Tabla1425[[#This Row],[VALOR CANCELADO]] -> 0 | K40: =Tabla1425[[#This Row],[VALOR A PAGAR]]*0.5 -> $ 1.25 | L40: =Tabla1425[[#This Row],[VALOR A PAGAR]]-Tabla1425[[#This Row],[COSTO]] -> $ 1.25
A41: 2025-02-26 | B41: ASOTKD - VICENTINA | C41: 19 | D41: $ 2.50 | E41: =Tabla1425[[#This Row],[CANT.]]*Tabla1425[[#This Row],[PRECIO UNITARIO]] -> $47.50 | F41: $ 47.50 | G41: 0 | H41: =Tabla1425[[#This Row],[EFECTIVO]]+Tabla1425[[#This Row],[TRANSFERENCIA]] -> $ 47.50 | I41: CANCELADO | J41: =Tabla1425[[#This Row],[VALOR A PAGAR]]-Tabla1425[[#This Row],[VALOR CANCELADO]] -> 0 | K41: =Tabla1425[[#This Row],[VALOR A PAGAR]]*0.5 -> $ 23.75 | L41: =Tabla1425[[#This Row],[VALOR A PAGAR]]-Tabla1425[[#This Row],[COSTO]] -> $ 23.75
A42: 2025-02-26 | B42: JR SPORT | C42: 1 | D42: $ 2.50 | E42: =Tabla1425[[#This Row],[CANT.]]*Tabla1425[[#This Row],[PRECIO UNITARIO]] -> $2.50 | F42: $ 2.50 | G42: 0 | H42: =Tabla1425[[#This Row],[EFECTIVO]]+Tabla1425[[#This Row],[TRANSFERENCIA]] -> $ 2.50 | I42: CANCELADO | J42: =Tabla1425[[#This Row],[VALOR A PAGAR]]-Tabla1425[[#This Row],[VALOR CANCELADO]] -> 0 | K42: =Tabla1425[[#This Row],[VALOR A PAGAR]]*0.5 -> $ 1.25 | L42: =Tabla1425[[#This Row],[VALOR A PAGAR]]-Tabla1425[[#This Row],[COSTO]] -> $ 1.25
A43: 2025-02-28 | B43: UNIVERSAL | C43: 5 | D43: $ 2.50 | E43: =Tabla1425[[#This Row],[CANT.]]*Tabla1425[[#This Row],[PRECIO UNITARIO]] -> $12.50 | F43: 0 | G43: $ 12.50 | H43: =Tabla1425[[#This Row],[EFECTIVO]]+Tabla1425[[#This Row],[TRANSFERENCIA]] -> $ 12.50 | I43: CANCELADO | J43: =Tabla1425[[#This Row],[VALOR A PAGAR]]-Tabla1425[[#This Row],[VALOR CANCELADO]] -> 0 | K43: =Tabla1425[[#This Row],[VALOR A PAGAR]]*0.5 -> $ 6.25 | L43: =Tabla1425[[#This Row],[VALOR A PAGAR]]-Tabla1425[[#This Row],[COSTO]] -> $ 6.25 | M43: PAGO EN DOS PARTES
A44: 2025-02-28 | B44: KORYO | C44: 2 | D44: $ 2.50 | E44: =Tabla1425[[#This Row],[CANT.]]*Tabla1425[[#This Row],[PRECIO UNITARIO]] -> $5.00 | F44: 0 | G44: $ 5.00 | H44: =Tabla1425[[#This Row],[EFECTIVO]]+Tabla1425[[#This Row],[TRANSFERENCIA]] -> $ 5.00 | I44: CANCELADO | J44: =Tabla1425[[#This Row],[VALOR A PAGAR]]-Tabla1425[[#This Row],[VALOR CANCELADO]] -> 0 | K44: =Tabla1425[[#This Row],[VALOR A PAGAR]]*0.5 -> $ 2.50 | L44: =Tabla1425[[#This Row],[VALOR A PAGAR]]-Tabla1425[[#This Row],[COSTO]] -> $ 2.50
A45: 2025-03-11 | B45: ASOTKD - P CHIMBACALLE | C45: 1 | D45: $ 2.50 | E45: =Tabla1425[[#This Row],[CANT.]]*Tabla1425[[#This Row],[PRECIO UNITARIO]] -> $2.50 | F45: 0 | G45: $ 2.50 | H45: =Tabla1425[[#This Row],[EFECTIVO]]+Tabla1425[[#This Row],[TRANSFERENCIA]] -> $ 2.50 | I45: CANCELADO | J45: =Tabla1425[[#This Row],[VALOR A PAGAR]]-Tabla1425[[#This Row],[VALOR CANCELADO]] -> 0 | K45: =Tabla1425[[#This Row],[VALOR A PAGAR]]*0.5 -> $ 1.25 | L45: =Tabla1425[[#This Row],[VALOR A PAGAR]]-Tabla1425[[#This Row],[COSTO]] -> $ 1.25
A46: 2025-03-13 | B46: JR SPORT | C46: 2 | D46: $ 2.50 | E46: =Tabla1425[[#This Row],[CANT.]]*Tabla1425[[#This Row],[PRECIO UNITARIO]] -> $5.00 | F46: $ 5.00 | G46: 0 | H46: =Tabla1425[[#This Row],[EFECTIVO]]+Tabla1425[[#This Row],[TRANSFERENCIA]] -> $ 5.00 | I46: CANCELADO | J46: =Tabla1425[[#This Row],[VALOR A PAGAR]]-Tabla1425[[#This Row],[VALOR CANCELADO]] -> 0 | K46: =Tabla1425[[#This Row],[VALOR A PAGAR]]*0.5 -> $ 2.50 | L46: =Tabla1425[[#This Row],[VALOR A PAGAR]]-Tabla1425[[#This Row],[COSTO]] -> $ 2.50
A47: TOTAL | C47: =SUM(C4:C46) -> 501 | E47: =SUM(Tabla1425[VALOR A PAGAR]) -> $1,230.50 | F47: =SUM(F4:F46) -> $65.50 | G47: =SUM(G4:G46) -> $1,165.00 | H47: =SUM(H4:H46) -> $1,230.50 | K47: =SUM(K4:K46) -> $615.25 | L47: =SUM(L4:L46) -> $615.25
C48: DIPLOMAS ELABORADOS | E48: A RECAUDARSE | F48: RECAUDADO EN EFECTIVO | G48: RECAUDADO EN TRANSFERENCIA
B51: RECAUDADO | C51: MONTO
B52: EFECTIVO | C52: =F47 -> $65.50
B53: TRANSFERENCIA | C53: =G47 -> $1,165.00
B54: TOTAL | C54: =SUM(C52:C53) -> $1,230.50
B57: POR COBRAR | C57: MONTO
B59: TOTAL | C59: =SUM(C58:C58) -> $0.00
B62: DEVOLVER O HACER PASO | C62: MONTO
B64: TOTAL | C64: =SUM(C63:C63) -> $0.00

Sheet III OPEN 2024
A1: ASOCIACIÓN DE TAEKWONDO DE PICHINCHA
A2: TERCER OPEN TODAS LAS CATEGORIAS POOMSAE Y COMBATE
A3: 16 - 17 DE NOVIEMBRE -2024 COLISEO RUMIÑAHUI
A5: N° | B5: CLUBES PARTICIPANTES | C5: SIGLAS | D5: Nº DE PARTICIPANTES | E5: EFECTIVO | F5: TRANSFERENCIA | G5: INSCRIP. TARDÍA | H5: CAMBIO | I5: ESTADO
A6: 1 | B6: APOLO | C6: APO | D6: 30 | E6: 0 | F6: $420.00 | G6: - | H6: - | I6: PAGADO
A7: 2 | B7: ARES | C7: ARE | D7: 24 | E7: $280.00 | F7: $56.00 | G7: - | H7: - | I7: PAGADO
A8: 3 | B8: ASOCIACION DE TKDP | C8: ASO | D8: 2 | E8: 0 | F8: $20.00 | G8: 1 | H8: - | I8: 14
A9: 4 | B9: BAEKJUL TAEKWONDO | C9: BKJ | D9: 55 | E9: $770.00 | F9: 0 | G9: - | H9: - | I9: PAGADO
A10: 5 | B10: BAS PANTHERS | C10: BSP | D10: 12 | E10: 0 | F10: $161.00 | G10: 2 | H10: - | I10: PAGADO
A11: 6 | B11: BLUE DRAGONS | C11: BDR | D11: 21 | E11: 0 | F11: $294.00 | G11: - | H11: - | I11: PAGADO
A12: 7 | B12: BORJA’S LIONS | C12: BLS | D12: 76 | E12: $30.00 | F12: $835.00 | G12: 1 | H12: 1 | I12: PAGADO
A13: 8 | B13: CHAMPIONS FOR LIFE | C13: CFL | D13: 12 | E13: $160.00 | F13: 0 | G13: - | H13: - | I13: PAGADO
A14: 9 | B14: CIUDAD DE QUITO | C14: CDQ | D14: 2 | E14: $20.00 | F14: $8.00 | G14: - | H14: - | I14: PAGADO
A15: 10 | B15: DEBAK TKD | C15: DBK | D15: 115 | E15: $274.00 | F15: $1,000.00 | G15: - | H15: - | I15: PAGADO
A16: 11 | B16: DOJANG TKD MELO | C16: DTM | D16: 12 | E16: 0 | F16: $168.00 | G16: - | H16: - | I16: PAGADO
A17: 12 | B17: DRACO | C17: DRA | D17: 3 | E17: 0 | F17: $47.00 | G17: - | H17: 1 | I17: PAGADO
A18: 13 | B18: ECUADCUBA | C18: ECB | D18: 42 | E18: $588.00 | F18: 0 | G18: - | H18: - | I18: PAGADO
A19: 14 | B19: ECUADOR (2 rep) | C19: ECU | D19: 12 | E19: 0 | F19: $152.00 | G19: - | H19: - | I19: PAGADO
A20: 15 | B20: EQUILIBRIO | C20: EQU | D20: 3 | E20: 0 | F20: $42.00 | G20: - | H20: - | I20: PAGADO
A21: 16 | B21: ESPE Saldo a favor 348 | C21: ESP | D21: 10 | E21: 0 | F21: 0 | G21: 3 | H21: - | I21: 152 PASO
A22: 17 | B22: FITT KWONDO MEJIA | C22: FIT | D22: 1 | E22: 0 | F22: $15.00 | G22: - | H22: - | I22: PAGADO
A23: 18 | B23: FURIA NEGRA | C23: CFN | D23: 8 | E23: $80.00 | F23: $32.00 | G23: - | H23: - | I23: PAGADO
A24: 19 | B24: HIMCHARI DOJANG | C24: HIM | D24: 34 | E24: 0 | F24: $481.00 | G24: - | H24: 1 | I24: PAGADO
A25: 20 | B25: ILYO M.P | C25: ILY | D25: 20 | E25: $293.00 | F25: 0 | G25: 2 | H25: 1 | I25: PAGADO
A26: 21 | B26: JIDOKWAN DC | C26: JDK | D26: 2 | E26: $28.00 | F26: 0 | G26: - | H26: - | I26: PAGADO
A27: 22 | B27: JOSEON LEGACY | C27: JOL | D27: 12 | E27: $40.00 | F27: $128.00 | G27: - | H27: - | I27: PAGADO
A28: 23 | B28: JUVENTUS | C28: JUV | D28: 1 | E28: $14.00 | F28: 0 | G28: - | H28: - | I28: PAGADO
A29: 24 | B29: KOREAN DRAGON | C29: KDR | D29: 6 | E29: 0 | F29: $84.00 | G29: - | H29: - | I29: PAGADO
A30: 25 | B30: KUKKIWON | C30: KUK | D30: 8 | E30: $121.00 | F30: 0 | G30: 1 | H30: 1 | I30: PAGADO
A31: 26 | B31: KUMGANG DUL | C31: KGD | D31: 17 | E31: $58.00 | F31: $200.00 | G31: 5 | H31: - | I31: PAGADO
A32: 27 | B32: KYORUGUI GYM | C32: KRG | D32: 7 | E32: $98.00 | F32: 0 | G32: - | H32: - | I32: PAGADO
A33: 28 | B33: LDCM | C33: LCM | D33: 10 | E33: 0 | F33: $140.00 | G33: - | H33: - | I33: PAGADO
A34: 29 | B34: LEON | C34: LEO | D34: 21 | E34: $190.00 | F34: $110.00 | G34: 4 | H34: - | I34: PAGADO
A35: 30 | B35: LOS PUMAS | C35: PUM | D35: 11 | E35: 0 | F35: $163.00 | G35: 1 | H35: 1 | I35: PAGADO
A36: 31 | B36: MARCIAL CLU GRANDA | C36: MCG | D36: 24 | E36: 0 | F36: $356.00 | G36: - | H36: - | I36: PAGADO
A37: 32 | B37: MASTER HOME | C37: MAH | D37: 2 | E37: $28.00 | F37: 0 | G37: - | H37: - | I37: PAGADO
A38: 33 | B38: MERCENARIOS | C38: MER | D38: 14 | E38: 0 | F38: $140.00 | G38: - | H38: - | I38: PAGADO
A39: 34 | B39: MICHAYDO | C39: MCD | D39: 3 | E39: 0 | F39: $42.00 | G39: - | H39: - | I39: PAGADO
A40: 35 | B40: PYONGYANG | C40: PYO | D40: 10 | E40: 0 | F40: $140.00 | G40: - | H40: - | I40: PAGADO
A41: 36 | B41: ROJAS IAN IRON FIST | C41: PVM | D41: 6 | E41: $84.00 | F41: 0 | G41: - | H41: - | I41: PAGADO
A42: 37 | B42: RYONG TAE | C42: RYT | D42: 1 | E42: $14.00 | F42: 0 | G42: - | H42: - | I42: PAGADO
A43: 38 | B43: SAN FRANC TIGRE 1 pa | C43: SFT | D43: 14 | E43: $174.00 | F43: 0 | G43: - | H43: - | I43: PAGADO
A44: 39 | B44: SAN SEBASTIAN | C44: SSB | D44: 23 | E44: 0 | F44: $320.00 | G44: 3 | H44: - | I44: PAGADO
A45: 40 | B45: SEUL 1 para | C45: SEU | D45: 65 | E45: $10.00 | F45: $886.00 | G45: - | H45: 1 | I45: PAGADO
A46: 41 | B46: SHOGUN | C46: SHO | D46: 7 | E46: $98.00 | F46: 0 | G46: - | H46: - | I46: PAGADO
A47: 42 | B47: S.D. CENTRAL 1 FEST | C47: SDC | D47: 30 | E47: $75.00 | F47: $385.00 | G47: 9 | H47: - | I47: PAGADO
A48: 43 | B48: SURYUN | C48: SRY | D48: 47 | E48: $316.00 | F48: $210.00 | G48: 4 | H48: - | I48: PAGADO
A49: 44 | B49: TAE BAEK JUNIOR | C49: TBK | D49: 1 | E49: 0 | F49: $14.00 | G49: - | H49: - | I49: PAGADO
A50: 45 | B50: TAE DO ACADEMY | C50: TDO | D50: 4 | E50: 0 | F50: $56.00 | G50: - | H50: - | I50: PAGADO
A51: 46 | B51: TAE SHO KU | C51: TSK | D51: 5 | E51: 0 | F51: $100.00 | G51: - | H51: - | I51: PAGADO
A52: 47 | B52: TAE WOONG | C52: TWG | D52: 1 | E52: 0 | F52: $14.00 | G52: - | H52: - | I52: PAGADO
A53: 48 | B53: TAEGUK JUCARO | C53: TJD | D53: 17 | E53: $180.00 | F53: $58.00 | G53: - | H53: - | I53: PAGADO
A54: 49 | B54: TOTAL KOMBAT 1 para | C54: TKT | D54: 46 | E54: $322.00 | F54: $326.00 | G54: 1 | H54: - | I54: PAGADO
A55: 50 | B55: TRAINING CENTER | C55: TTC | D55: 39 | E55: 0 | F55: $598.00 | G55: 2 | H55: 1 | I55: PAGADO
A56: 51 | B56: USFQ | C56: USF | D56: 5 | E56: $28.00 | F56: $42.00 | G56: - | H56: - | I56: PAGADO
A57: 52 | B57: UNIVERSIDAD UTE 1 | C57: UTE | D57: 1 | E57: 0 | F57: $14.00 | G57: - | H57: - | I57: PAGADO
A58: TOTAL | D58: =SUM(D6:D57) -> 954 | E58: =SUM(E6:E57) -> $4,373.00 | F58: =SUM(F6:F57) -> $8,257.00 | G58: =SUM(G6:G57) -> 39 | H58: =SUM(H6:H57) -> 8
B61: INGRESOS
B62: INSCRIPCIONES EFECTIVO | C62: =E58 -> $ 4,373.00
B63: INSCRIPCIONES TRANSFERENCIA | C63: =F58 -> $ 8,257.00
B64: TAQUILLA | C64: $ 1,389.00
B65: TOTAL | C65: =SUM(C62:C64) -> $ 14,019.00
B68: EGRESOS
B69: DEVOLUCIÓN TAESHOKU | C69: $ 30.00
B70: 4 COMUNICADORES (WOKI TOKI) FERNANDO MOYA | C70: $ 60.00
B71: TRANSPORTE TROFEOS MEDALLAS | C71: $ 10.00
B72: PAGO ARBITRAJE | C72: $ 1,780.00
B73: PAGO SERVICIO DE SEGURIDAD (3 GUARDIAS) | C73: $ 90.00
B74: ORGANIZACIÓN FESTIVAL MATEO PAZMIÑO | C74: $ 20.00
B75: MEDICINAS | C75: $ 19.82
B76: FUNDAS DE BASURA | C76: $ 5.00
B77: STAFF (PERSONAL APOYO 3 DÍAS) | C77: $ 1,240.00
B78: STIKER PARA MEDALLAS | C78: $ 125.00
B79: AGUAS | C79: $ 55.50
B80: AMPLIFICACIÓN Y SONIDO | C80: $ 250.00
B81: PAGO FERNANDO MOYA | C81: $ 285.00
B82: ALQUILER 3 SISTEMAS 2 DÍAS | C82: $ 300.00
B83: PAGO DIRECCIÓN CONGRESILLO | C83: $ 20.00
B84: ALQUILER SISTEMA VIDEO REPLAY | C84: $ 40.00
B85: SISTEMA DE LLAVEAJE CÉSAR TAYO | C85: $ 998.60
B86: MEDALLAS - TROFEOS | C86: $ 670.00
B87: TOTAL | C87: =SUM(C69:C86) -> $ 5,998.92
B90: INGRESOS | C90: =C65 -> $ 14,019.00
B91: EGRESOS | C91: =-C87 -> $ (5,998.92)
B92: SALDO | C92: =C90+C91 -> $ 8,020.08

Sheet CHEQUEO TÉCNICO EDADES 2025
A1: ASOCIACIÓN DE TAEKWONDO DE PICHINCHA
A2: CHEQUEO TÉCNICO EDADES 2025
A3: LABORATORIO DE VOLEIBOL 8-12-2024
A5: N° | B5: CLUBES PARTICIPANTES | C5: SIGLAS | D5: Nº DE PARTICIPANTES | E5: INSCRIP. TARDÍA | F5: CAMBIO | G5: EFECTIVO | H5: TRANSFERENCIA | I5: ESTADO
A6: 1 | B6: ARES | C6: ARE | D6: 2 | E6: 0 | F6: 1 | G6: $15.00 | H6: 0 | I6: PAGADO
A7: 2 | B7: ASOTKDP | C7: ASO | D7: 2 | E7: 0 | F7: 0 | G7: $10.00 | H7: 0 | I7: PAGADO
A8: 3 | B8: BAEKJUL TKD | C8: BKJ | D8: 13 | E8: 0 | F8: 0 | G8: $65.00 | H8: 0 | I8: PAGADO
A9: 4 | B9: BAS PANTHERS | C9: BSP | D9: 4 | E9: 0 | F9: 0 | G9: $20.00 | H9: 0 | I9: PAGADO
A10: 5 | B10: BORJA’S LIONS - 3 | C10: BLS | D10: 21 | E10: 0 | F10: 1 | G10: 0 | H10: $95.00 | I10: PAGADO
A11: 6 | B11: CHAMPIONS FOR LIFE | C11: CFL | D11: 2 | E11: 0 | F11: 0 | G11: 0 | H11: $10.00 | I11: PAGADO
A12: 7 | B12: CIUDAD DE QUITO | C12: CDQ | D12: 2 | E12: 0 | F12: 0 | G12: 0 | H12: $10.00 | I12: PAGADO
A13: 8 | B13: CLUB MERCENARIOS -2 | C13: MER | D13: 26 | E13: 0 | F13: 0 | G13: 0 | H13: $24.00 | I13: PAGADO
A14: 9 | B14: CLUB DECIAP | C14: DEC | D14: 12 | E14: 0 | F14: 0 | G14: $60.00 | H14: 0 | I14: PAGADO
A15: 10 | B15: CLUB TAE WOONG | C15: TWG | D15: 6 | E15: 0 | F15: 0 | G15: 0 | H15: $30.00 | I15: PAGADO
A16: 11 | B16: DRACO | C16: DRA | D16: 14 | E16: 0 | F16: 1 | G16: 0 | H16: $75.00 | I16: PAGADO
A17: 12 | B17: ECUADCUBA | C17: ECB | D17: 5 | E17: 0 | F17: 1 | G17: $30.00 | H17: 0 | I17: PAGADO
A18: 13 | B18: FIRST CLASS CALDERON | C18: FCE | D18: 2 | E18: 0 | F18: 0 | G18: 0 | H18: $10.00 | I18: PAGADO
A19: 14 | B19: FURIA NEGRA | C19: CFN | D19: 3 | E19: 1 | F19: 0 | G19: 0 | H19: $20.00 | I19: PAGADO
A20: 15 | B20: HANSU CAYAMBE | C20: CAY | D20: 1 | E20: 0 | F20: 0 | G20: $5.00 | H20: 0 | I20: PAGADO
A21: 16 | B21: HUANG TOP GYM | C21: HTG | D21: 2 | E21: 0 | F21: 0 | G21: 0 | H21: $10.00 | I21: PAGADO
A22: 17 | B22: ILYO M.P | C22: ILY | D22: 1 | E22: 0 | F22: 0 | G22: 0 | H22: 0 | I22: NO ASISTE
A23: 18 | B23: JIDOKWAN DC | C23: JDK | D23: 2 | E23: 0 | F23: 0 | G23: $10.00 | H23: 0 | I23: PAGADO
A24: 19 | B24: JR SPORT | C24: JRS | D24: 1 | E24: 0 | F24: 0 | G24: $5.00 | H24: 0 | I24: PAGADO
A25: 20 | B25: KO AMERICA | C25: KOA | D25: 3 | E25: 0 | F25: 0 | G25: $15.00 | H25: 0 | I25: PAGADO
A26: 21 | B26: KORYO | C26: KOR | D26: 3 | E26: 3 | F26: 0 | G26: $30.00 | H26: 0 | I26: PAGADO
A27: 22 | B27: KUMGANG DUL | C27: KGD | D27: 3 | E27: 0 | F27: 1 | G27: $20.00 | H27: 0 | I27: PAGADO
A28: 23 | B28: KYORUGUI GYM | C28: KRG | D28: 5 | E28: 0 | F28: 0 | G28: $25.00 | H28: 0 | I28: PAGADO
A29: 24 | B29: ROJAS IAN IRON FIST | C29: PVM | D29: 5 | E29: 0 | F29: 0 | G29: $25.00 | H29: 0 | I29: PAGADO
A30: 25 | B30: SAN SEBASTIAN | C30: SSB | D30: 5 | E30: 0 | F30: 0 | G30: $10.00 | H30: $15.00 | I30: PAGADO
A31: 26 | B31: SEUL | C31: SEU | D31: 22 | E31: 0 | F31: 1 | G31: $105.00 | H31: $10.00 | I31: PAGADO
A32: 27 | B32: SHOGUN | C32: OHS | D32: 1 | E32: 0 | F32: 0 | G32: $5.00 | H32: 0 | I32: PAGADO
A33: 28 | B33: SIMJANG TEAM | C33: SIM | D33: 2 | E33: 0 | F33: 0 | G33: $10.00 | H33: 0 | I33: PAGADO
A34: 29 | B34: SDCENTRAL | C34: SDC | D34: 28 | E34: 1 | F34: 0 | G34: $145.00 | H34: 0 | I34: PAGADO
A35: 30 | B35: TAE BAEK | C35: TBK | D35: 1 | E35: 0 | F35: 0 | G35: $5.00 | H35: 0 | I35: PAGADO
A36: 31 | B36: TAE BAEK JUNIOR | C36: TBK | D36: 12 | E36: 0 | F36: 2 | G36: 0 | H36: $70.00 | I36: PAGADO
A37: 32 | B37: TAE DO ACADEMY | C37: TDO | D37: 1 | E37: 0 | F37: 0 | G37: 0 | H37: $5.00 | I37: PAGADO
A38: 33 | B38: TAE SHO KU | C38: TSK | D38: 5 | E38: 0 | F38: 0 | G38: 0 | H38: $25.00 | I38: PAGADO
A39: 34 | B39: USFQ | C39: USF | D39: 3 | E39: 0 | F39: 0 | G39: 0 | H39: $15.00 | I39: PAGADO
A40: 35 | B40: YONG TIGER -1 | C40: YON | D40: 10 | E40: 0 | F40: 0 | G40: $30.00 | H40: $17.00 | I40: PAGADO
A41: TOTAL | D41: =SUM(D6:D40) -> 230 | E41: =SUM(E6:E40) -> 5 | F41: =SUM(F6:F40) -> 8 | G41: =SUM(G6:G40) -> $645.00 | H41: =SUM(H6:H40) -> $441.00
B44: INGRESOS
B45: INSCRIPCIONES EFECTIVO | C45: =G41 -> $ 645.00
B46: INSCRIPCIONES TRANSFERENCIA | C46: =H41 -> $ 441.00
B47: TAQUILLA | C47: $ 404.00
B48: TOTAL | C48: =SUM(C45:C47) -> $ 1,490.00
B51: EGRESOS
B52: ESFÉROS | C52: $ 4.00
B53: PRODUCTOS DE LIMPIEZA (PAPEL HIGIÉNICO Y FUNDAS) | C53: $ 7.00
B54: HIDRATANTES, REFRIGERIO ÁRBITROS Y COMOPRA DE FOCO | C54: $ 28.00
B55: DESAYUNOS STAFF Y ÁRBITROS | C55: $ 195.00
B56: PAGO ARBITRAJE, TABLETS VIDEO REPLAY Y OTROS | C56: $ 590.00
B57: STAFF VIDEO REPLAY | C57: $ 60.00
B58: PAGO CONGRESILLO | C58: $ 20.00
B59: ARREGLO DE LLAVES Y DÍA DE TRABAJO COMPETENCIA | C59: $ 80.00
B60: MÉDICO | C60: $ 50.00
B61: STAFF(PERSONAL DE APOYO) | C61: $ 380.00
B62: COMPUTADORAS PARA USO DE SISTEMA ELECTRÓNICO | C62: $ 40.00
B63: TOTAL | C63: =SUM(C52:C62) -> $ 1,454.00
B66: INGRESOS | C66: =C48 -> $ 1,490.00
B67: EGRESOS | C67: =-C63 -> $ (1,454.00)
B68: SALDO | C68: =C66+C67 -> $ 36.00

Sheet CURSO ARBITRAJE 12-14 DIC 2024
A1: CURSO DE ACREDITACIÓN ÁRBITROS 2025
A3: NRO. | B3: IDENTIFICACIÓN - NOMBRE | C3: CAMISETA TALLA | D3: CLUB | E3: CASILLERO | F3: P.EFECTIVO | G3: P.TRANSFERENCIA | H3: FOTO | I3: COMPROBANTE
A4: 1 | B4: 1755150578 - DEFAS ARCOS YADIRA JACQUELINE | D4: LDC RUMIÑAHUI | E4: ARBITRO | F4: 0 | G4: $ 40.00 | I4: PAGA ELISO MORILLO DE 3 PARTICIPANTES
A5: 2 | B5: 1755150628 - DEFAS ARCOS GISSELA NICOL | D5: LDC RUMIÑAHUI | E5: ASPIRANTE | F5: 0 | G5: $ 40.00
A6: 3 | B6: 1722665930 - TAPIA PALOMEQUE KARENT NICOLE | C6: 36 | D6: ARES | E6: ARBITRO | F6: $ 40.00 | G6: 0 | I6: 2024-12-12
A7: 4 | B7: 1717275315 - PALMA AYALA JOSÉ DAVID | C7: 38 | D7: ARES | E7: ARBITRO | F7: 0 | G7: 0 | I7: 2025-01-14
A8: 5 | B8: 1717825960 - ARAUJO LLIVISACA ALEJANDRO WLADIMIR | C8: M | D8: ARES | E8: ASPIRANTE | F8: $ 40.00 | G8: 0 | I8: 2024-12-12
A9: 6 | B9: 1724911860 - MESIAS CHANATASI ALISON MONSERRATH | D9: ATLAS | E9: ARBITRO | F9: 0 | G9: $ 40.00
A10: 7 | B10: 1721226452 - CHICAIZA RAMOS JONATHAN DAVID | D10: ATLAS | E10: ARBITRO | F10: $ 40.00 | G10: 0 | I10: 2024-12-12
A11: 8 | B11: 1311953044 - ZAMBRANO GOMEZ VERÓNICA ELIZABETH | D11: BAEKJUL TAEKWONDO | E11: OYENTE | F11: 0 | G11: $ 20.00
A12: 9 | B12: 1719346676 - PROAÑO PAREDES ERICK DANILO | C12: 44 | D12: BAEKJUL TAEKWONDO | E12: OYENTE | F12: 0 | G12: $ 20.00
A13: 10 | B13: 1721834958 - PROAÑO PAREDES JOHANN NATANIEL | C13: 44 | D13: BAEKJUL TAEKWONDO | E13: OYENTE | F13: 0 | G13: $ 20.00
A14: 11 | B14: 1712968914 - AYALA MOYA DANIEL ENRIQUE | C14: 42 | D14: BAEKJUL TAEKWONDO | E14: OYENTE | F14: 0 | G14: $ 20.00
A15: 12 | B15: 1754170643 - OSCULLO MARCILLO PAULETTE JUSTINE | D15: BAS PANTHERS | E15: OYENTE | F15: 0 | G15: $ 20.00
A16: 13 | B16: 1754174587 - OSCULLO MARCILLO ZULAY ANAHÍ | D16: BAS PANTHERS | E16: OYENTE | F16: 0 | G16: $ 20.00 | I16: UN SOLO PAGO
A17: 14 | B17: 1755810940 - CHAVARRIA GONZA JENIFER ELISABETH | D17: BAS PANTHERS | E17: OYENTE | F17: 0 | G17: $ 20.00
A18: 15 | B18: 0802811380 - PORTOCARRERO LASTRA GABRIELA JOCELYN | D18: BAS PANTHERS | E18: OYENTE | F18: 0 | G18: $ 20.00
A19: 16 | B19: 1727294389 - BASTIDAS PORTOCARRERO BETTY JAMILETH | D19: BAS PANTHERS | E19: OYENTE | F19: 0 | G19: $ 20.00
A20: 17 | B20: 1753219359 - NAVARRETE AYALA SAMANTHA PAOLA | D20: BAS PANTHERS | E20: OYENTE | F20: 0 | G20: $ 20.00
A21: 18 | B21: 1727869446 - BASTIDAS PORTOCARRERO LARISSA GABRIELA | D21: BAS PANTHERS | E21: OYENTE | F21: 0 | G21: $ 20.00
A22: 19 | B22: 1727869461 - BASTIDAS PORTOCARRERO DARLING ALEXANDRA | D22: BAS PANTHERS | E22: OYENTE | F22: 0 | G22: $ 20.00
A23: 20 | B23: 1709834079 - BASTIDAS BETAUNCOURT JONATAN ALEXANDER | D23: BAS PANTHERS | E23: OYENTE | F23: 0 | G23: $ 20.00
A24: 21 | B24: 1723045470 - LAZO QUIÑA DANIEL FERNANDO | D24: CHAMPIONS FOR LIFE | E24: ARBITRO | F24: 0 | G24: $ 40.00
A25: 22 | B25: 1717472847 - MOROCHO ACHIG CARLOS ANDRES | C25: 38 | D25: CHUNG SONG | E25: ARBITRO | F25: 0 | G25: $ 40.00
A26: 23 | B26: 1850271485 - MANZANO CARDENAS SCARLET BELEN | C26: 36 | D26: CHUNG SONG | E26: ARBITRO | F26: 0 | G26: $ 40.00
A27: 24 | B27: 1706324082 - ALVEAR GRANDA SANDRA LUCÍA | D27: DOJANG TKD MELO | E27: OYENTE | F27: 0 | G27: $ 20.00
A28: 25 | B28: 1707456081 - MELO CARRERA BOLIVAR VINICIO | C28: 40 | D28: DOJANG TKD MELO | E28: OYENTE | F28: 0 | G28: $ 20.00
A29: 26 | B29: 1750122440 - BASTIDAS ULCUANGO GILARY BRIGITTE | D29: ECUADCUBA | E29: ARBITRO | F29: $ 20.00 | G29: 0 | I29: 2024-12-12
A30: 27 | B30: 1726007618 - BASTIDAS ALMACHI DANIEL LEONARDO | D30: ECUADCUBA | E30: ARBITRO | F30: $ 20.00 | G30: 0 | I30: 2024-12-12
A31: 28 | B31: 1725453318 - ROSERO ALBAN CHRISTIAN MARTIN | C31: XL | D31: EQUILIBRIO | E31: ARBITRO | F31: 0 | G31: $ 40.00
A32: 29 | B32: 1726565151 - ANRANGO CUSICAGUA KEVIN DAVID | C32: M | D32: EQUILIBRIO | E32: OYENTE | F32: 0 | G32: $ 20.00
A33: 30 | B33: 1715861652 - ROJAS PORTERO JOSUE MESIAS | D33: ESPE | E33: ARBITRO | F33: 0 | G33: $ 40.00
A34: 31 | B34: 1712828738 - DELCASTILLO MURGUEITIO DAVID . | C34: 40 | D34: JIDOKWAN DC | E34: ARBITRO | F34: 0 | G34: $ 40.00
A35: 32 | B35: 1718423450 - VIANA TIMBIANO VLADIMIR FERNANDO | C35: 38 | D35: JOSEON LEGACY | E35: ARBITRO | F35: 0 | G35: $ 40.00
A36: 33 | B36: 1719515676 - CUJILEMA YAUCAN LUIS GEOVANY | D36: JOSEON LEGACY | E36: ARBITRO | F36: 0 | G36: $ 40.00
A37: 34 | B37: 1751948587 - FREIRE LUJE ELLIOTH ISRAEL | D37: JOSEON LEGACY | E37: ARBITRO | F37: 0 | G37: $ 40.00
A38: 35 | B38: 0401586615 - NARVAEZ REINA JOSE DAVID | D38: JOSEON LEGACY | E38: ARBITRO | F38: 0 | G38: $ 40.00
A39: 36 | B39: 1724606817 - ACOSTA CANDO DANNA PRISCILA | D39: JOSEON LEGACY | E39: ASPIRANTE | F39: $ 40.00 | G39: 0 | I39: 2024-12-12
A40: 37 | B40: 1751161488 - CASTRO MANTILLA ANTHONY JOSUE | D40: JOSEON LEGACY | E40: ASPIRANTE | F40: $ 40.00 | G40: 0 | I40: 2024-12-12
A41: 38 | B41: 1712539954 - NICOLALDE DE LA TORRE JAIME ANDRES | D41: JR SPORT | E41: OYENTE | F41: 0 | G41: $ 20.00 | I41: 2025-01-15
A42: 39 | B42: 1721620027 - ARMIJOS ARMIJOS RAQUEL ANDREA | D42: JR SPORT | E42: ARBITRO | F42: 0 | G42: 0 | I42: BECADA POR STAFF
A43: 40 | B43: 1712324928 - PAVÓN FLORES JHONNY FRANKLIN | D43: JUVENTUS | E43: ARBITRO | F43: EXONERADO | G43: 0 | I43: EXPOSITOR
A44: 41 | B44: 1726859059 - MORILLO JIMENEZ DIEGO ELISEO | D44: JUVENTUS | E44: ARBITRO | F44: 0 | G44: $ 40.00
A45: 42 | B45: 1708640097 - HERRERA SIMBAÑA MIRIAN ALEXANDRA | D45: JUVENTUS | E45: ARBITRO | F45: EXONERADO | G45: 0
A46: 43 | B46: 1712695723 - ROMAN TARAGUAY FABIAN ERNESTO | D46: JUVENTUS | E46: ARBITRO | F46: 0 | G46: $ 40.00
A47: 44 | B47: 0603601964 - PARRA BERRONES NOE SAUL | D47: JUVENTUS | E47: ARBITRO | F47: 0 | G47: $ 40.00
A48: 45 | B48: 1757867831 - DUAN . YUXI . | D48: JUVENTUS | E48: ASPIRANTE | F48: 0 | G48: $ 40.00
A49: 46 | B49: 1714865613 - CORDERO A ANGELO G | D49: KO AMERICA | E49: ARBITRO | F49: 0 | G49: $ 40.00
A50: 47 | B50: 1723793129 - MOSQUERA FUENTES ERIKA DAYANA | D50: KORYO | E50: ARBITRO | F50: $ 40.00 | G50: 0 | I50: 2024-12-13
A51: 48 | B51: 1714141916 - LUNA ARELLANO JENNY JANINA | C51: M | D51: LEON | E51: ARBITRO | F51: 0 | G51: $ 40.00
A52: 49 | B52: 1727363986 - GAVILANEZ PAUCAR JOE ALEXANDER | D52: LOS PUMAS | E52: ARBITRO | F52: 0 | G52: $ 40.00
A53: 50 | B53: 1710530914 - RIVERA PAREDES MARCO VINICIO | D53: SEUL | E53: ARBITRO | F53: $ 40.00 | G53: 0
A54: 51 | B54: 1753402948 - ALMEIDA INTRIAGO MATIAS PEDRO | D54: SEUL | E54: ARBITRO | F54: 0 | G54: $ 40.00
A55: 52 | B55: 1729194090 - MAYORGA RAMIREZ ARELIZ GISELLE | D55: SEUL | E55: ARBITRO | F55: 0 | G55: $ 40.00
A56: 53 | B56: 1712405800 - GARZON IBARRA GALO PATRICIO | D56: SEUL | E56: OYENTE | F56: 0 | G56: $ 20.00
A57: 54 | B57: 1725768483 - ROJAS PIZARRO DEMITER RAUL | D57: SEUL | E57: OYENTE | F57: 0 | G57: $ 20.00
A58: 55 | B58: 1727666180 - PEREZ CAMPAÑA JHOSET JAVIER | D58: SOCIEDAD DEPORTIVA CENTRAL | E58: ARBITRO | F58: 0 | G58: $ 40.00 | I58: 2024-12-16
A59: 56 | B59: 2350041410 - TULCÁN CEDEÑO MATHEU FELIPE | D59: SOCIEDAD DEPORTIVA CENTRAL | E59: ARBITRO | F59: $ 40.00 | G59: 0 | I59: 2024-12-12
A60: 57 | B60: 1713277570 - MORAN VASQUEZ JOSE GUILLERMO | C60: 40 | D60: SOCIEDAD DEPORTIVA CENTRAL | E60: ARBITRO | F60: $ 40.00 | G60: 0 | I60: 2024-12-12
A61: 58 | B61: 1709686107 - ASTUDILLO SALINAS JORGE EDUARDO | D61: TAE KINGS | E61: ARBITRO | F61: $ 20.00 | G61: 0 | I61: SALDO $20 | J61: NO SE ACREDITA
A62: 59 | B62: 2200513063 - ESTRELLA ESCOBAR GISSELL DOMENICA | D62: TAE SHO KU | E62: ARBITRO | F62: 0 | G62: 0 | I62: PAGA EN ENERO | J62: NO SE ACREDITA
A63: 60 | B63: 1721340535 - SIGCHA CRUZ SHIRLEY ODALIS | D63: TAE SHO KU | E63: ARBITRO | F63: 0 | G63: $ 40.00
A64: 61 | B64: 1726311416 - GRANDE VELÁSQUEZ JULISA LIZBETH | C64: 40 | D64: TIGRE G | E64: ASPIRANTE | F64: 0 | G64: 0 | I64: NO ASISTE | J64: NO SE ACREDITA
A65: 62 | B65: 1723254858 - GUERRA VELASQUEZ SIMON BOLIVAR | D65: TIGRE G | E65: ASPIRANTE | F65: 0 | G65: 0 | I65: NO ASISTE | J65: NO SE ACREDITA
A66: 63 | B66: MARY MANZANO | D66: JUVENTUS | E66: ARBITRO | F66: 0 | G66: $ 40.00 | J66: SIN REGISTRO EN PÁGINA
A67: 64 | B67: HUGO SIGCHOS | D67: PYONGYANG | E67: ARBITRO | F67: $ 40.00 | G67: 0 | J67: SIN REGISTRO EN PÁGINA
A68: 65 | B68: DYLAN SALAZAR | D68: DRACO | E68: ARBITRO | F68: 0 | G68: 0 | I68: PAGO PENDIENTE | J68: NO SE ACREDITA
A69: 66 | B69: PEDRO OÑA | D69: SAN SEBASTIAN | E69: ARBITRO | F69: $ 25.00 | G69: 0 | I69: SALDO $15 | J69: NO SE ACREDITA
E70: TOTAL: | F70: =SUM(F4:F69) -> $ 485.00 | G70: =SUM(G4:G69) -> $ 1,380.00
B75: INGRESOS
B76: INSCRIPCIONES EFECTIVO | C76: =F70 -> $ 485.00
B77: INSCRIPCIONES TRANSFERENCIA | C77: =G70 -> $ 1,380.00
B78: TOTAL | C78: =SUM(C76:C77) -> $ 1,865.00
B81: EGRESOS
B82: CAFETERÍA PRIMER DÍA | C82: $ 7.00
B83: HIDRATACIÓN EXPOSITORES Y CAFETERÍA SEGUNDO DÍA | C83: $ 20.00
B84: PAGO NOV - DIC RUTH GUANO | C84: $ 325.00
B85: IMPRESIÓN DIPLOMAS MEJORES DEPORTISTAS 2024 (13-12-2024) | C85: $ 130.00
B86: TAXI SALÓN DE LA CIUDAD PREMIACIÓN MEJORES DEPORTISTAS 2024 (16-12-2024) | C86: $ 3.00
B87: PAGO EXPOSITORES | C87: $ 600.00 | D87: CHEQUE EMITIDO EN ENERO
B88: TOTAL | C88: =SUM(C82:C87) -> $ 1,085.00
B91: INGRESOS | C91: =C78 -> $ 1,865.00
B92: EGRESOS | C92: =-C88 -> $ (1,085.00)
B93: SALDO | C93: =C91+C92 -> $ 780.00
B96: POR COBRAR
B97: CLUB | C97: VALOR
B98: TAE KING'S (JORGE ASTUDILLO) | C98: $ 20.00 | D98: SE DESCUENTA DE EVENTOS DONDE ARBITREN
B99: TAE SHO KU (ESTRELLA GISSELL) | C99: $ 40.00 | D99: SE DESCUENTA DE EVENTOS DONDE ARBITREN
B100: SAN SEBASTIÁN (PEDRO OÑA) | C100: $ 15.00 | D100: SE DESCUENTA DE EVENTOS DONDE ARBITREN
B101: DRACO (DILAN SALAZAR) | C101: $ 40.00 | D101: SE DESCUENTA DE EVENTOS DONDE ARBITREN
B102: TOTAL | C102: =SUBTOTAL(9,C98:C101) -> $ 115.00

Sheet ACREDITACIÓN ENTRENADORES 2025
A1: ASOCIACIÓN DE TAEKWONDO DE PICHINCHA
A2: CURSO DE ACREDITACIÓN DE ENTRENADORES 2025
A3: DE 15 AL 19 DE ENERO
A5: N° | B5: IDENTIFICACIÓN - NOMBRE | C5: CLUB | D5: SE ACREDITA COMO | E5: EFECTIVO | F5: TRANSFERENCIA | G5: ESTADO
A6: 1 | B6: 1710105667 - PINTO CAMPOVERDE MARIO XAVIER | C6: APOLO | D6: DIRECTOR CLUB FILIAL | E6: $30.00 | F6: 0 | G6: PAGADO
A7: 2 | B7: 1726834607 - GUALOTO SIMBAÑA JONATHAN SMITLD | C7: APOLO | D7: MONITOR CLUB FILIAL | E7: $30.00 | F7: 0 | G7: DEBE 10
A8: 3 | B8: 1725995474 - MALLA GARCIA JONATHAN ANDRES | C8: APOLO | D8: MONITOR CLUB FILIAL | E8: $20.00 | F8: 0 | G8: DEBE 20
A9: 4 | B9: 1714194832 - VASCONEZ PUMAYO EDGAR EDUARDO | C9: APOLO | D9: MONITOR CLUB FILIAL | E9: 0 | F9: $40.00 | G9: PAGADO
A10: 5 | B10: 1707656862 - LLANQUI FLORES CARMEN ROSARIO | C10: APOLO | D10: MONITOR CLUB FILIAL | E10: $20.00 | F10: 0 | G10: DEBE 20
A11: 6 | B11: 1711040947 - QUISHPE OÑA JOSE GUSTAVO | C11: APOLO | D11: ENTRENADOR CLUB FILIAL | E11: $20.00 | F11: 0 | G11: DEBE 20
A12: 7 | B12: 1720161031 - GUALLICHICO COLLAGUAZO EDISON XAVIER | C12: APOLO | D12: ENTRENADOR CLUB FILIAL | E12: $20.00 | F12: 0 | G12: DEBE 20
A13: 8 | B13: 1720705209 - TATIANA VANESSA SUAREZ FLORES | C13: APOLO | D13: ENTRENADOR CLUB FILIAL | E13: $20.00 | F13: 0 | G13: DEBE 20
A14: 9 | B14: 1711459816 - JEREZ MERINO RICARDO NICOLAS | C14: APOLO | D14: ENTRENADOR CLUB FILIAL | E14: $20.00 | F14: 0 | G14: DEBE 20
A15: 10 | B15: 1725489999 - ALVARADO ANDY ELY JAVIANA | C15: APOLO | D15: ENTRENADOR CLUB FILIAL | E15: $20.00 | F15: 0 | G15: DEBE 20
A16: 11 | B16: 1716600273 - MANOSALVAS MANOSALVAS WILSON FERNANDO | C16: ARES | D16: DIRECTOR CLUB FILIAL | E16: 0 | F16: $30.00 | G16: PAGADO
A17: 12 | B17: 1751796283 - TORRES JUMBO GEOVANNA LIZBETH | C17: ARES | D17: MONITOR CLUB FILIAL | E17: $40.00 | F17: 0 | G17: PAGADO
A18: 13 | B18: 1751935493 - MANOSALVAS FARINANGO ZAID RICARDO | C18: ARES | D18: MONITOR CLUB FILIAL | E18: $40.00 | F18: 0 | G18: PAGADO
A19: 14 | B19: 1750847582 - MALITAXI RAMIREZ ALEXANDER DANIEL | C19: ARES | D19: MONITOR CLUB FILIAL | E19: $40.00 | F19: 0 | G19: PAGADO
A20: 15 | B20: 1751159094 - MOSCOSO LARCO DIEGO ALEXANDER | C20: ARES | D20: MONITOR CLUB FILIAL | E20: $40.00 | F20: 0 | G20: PAGADO
A21: 16 | B21: 1724383680 - MOLINA VELASQUEZ KEVIN RAUL | C21: ARES | D21: ENTRENADOR CLUB FILIAL | E21: $40.00 | F21: 0 | G21: PAGADO
A22: 17 | B22: 1726222308 - PEDRAZA PILATAXI DILAN JOSUE | C22: ARES | D22: ENTRENADOR CLUB FILIAL | E22: $40.00 | F22: 0 | G22: PAGADO
A23: 18 | B23: 1723201586 - NEPAS MANOSALVAS JOSÉ PATRICIO | C23: ARES | D23: ENTRENADOR CLUB FILIAL | E23: $40.00 | F23: 0 | G23: PAGADO
A24: 19 | B24: 1717825960 - ARAUJO LLIVISACA ALEJANDRO WLADIMIR | C24: ARES | D24: ENTRENADOR CLUB FILIAL | E24: 0 | F24: $40.00 | G24: PAGADO
A25: 20 | B25: 1722199203 - INAQUIZA CAJAMARCA JOSE MARCELO | C25: ARES | D25: ENTRENADOR CLUB FILIAL | E25: 0 | F25: $40.00 | G25: PAGADO
A26: 21 | B26: 1721519450 - FARINANGO PICHUCHO LILIANA ELIZABETH | C26: ARES | D26: ENTRENADOR CLUB FILIAL | E26: 0 | F26: $40.00 | G26: PAGADO
A27: 22 | B27: 1712539954 - NICOLALDE DE LA TORRE JAIME ANDRES | C27: ASOCIACION DE TKDP | D27: DIRECTOR CLUB FILIAL | E27: 0 | F27: $40.00 | G27: PAGADO
A28: 23 | B28: 1804026464 - MAGALLANES VELA CARLOS EFREN | C28: ASOCIACION DE TKDP | D28: ENTRENADOR CLUB FILIAL | E28: 0 | F28: $40.00 | G28: PAGADO
A29: 24 | B29: 1717969594 - VARELA TORRES XAVIER ANDRES | C29: ATLAS | D29: DIRECTOR CLUB FILIAL | E29: 0 | F29: $30.00 | G29: PAGADO
A30: 25 | B30: 1716490493 - CHANATASI VARELA MARIA FERNANDA | C30: ATLAS | D30: ENTRENADOR CLUB FILIAL | E30: 0 | F30: $40.00 | G30: PAGADO
A31: 26 | B31: 1712136520 - PROAÑO CASTRO JORGE WASHINGTON | C31: BAEKJUL TAEKWONDO | D31: DIRECTOR CLUB FILIAL | E31: 0 | F31: $30.00 | G31: PAGADO
A32: 27 | B32: 1311953044 - ZAMBRANO GOMEZ VERÓNICA ELIZABETH | C32: BAEKJUL TAEKWONDO | D32: MONITOR CLUB FILIAL | E32: $40.00 | F32: 0 | G32: PAGADO
A33: 28 | B33: 1713041521 - FERNANDEZ CUERVO FREDDY PAUL | C33: BAEKJUL TAEKWONDO | D33: ENTRENADOR CLUB FILIAL | E33: 0 | F33: $30.00 | G33: PAGADO
A34: 29 | B34: 1719346676 - PROAÑO PAREDES ERICK DANILO | C34: BAEKJUL TAEKWONDO | D34: ENTRENADOR CLUB FILIAL | E34: 0 | F34: $40.00 | G34: PAGADO
A35: 30 | B35: 1750904300 - AYALA ZAMBRANO DANIEL ALEJANDRO | C35: BAEKJUL TAEKWONDO | D35: ENTRENADOR CLUB FILIAL | E35: $40.00 | F35: 0 | G35: PAGADO
A36: 31 | B36: 1721834958 - PROAÑO PAREDES JOHANN NATANIEL | C36: BAEKJUL TAEKWONDO | D36: ENTRENADOR CLUB FILIAL | E36: 0 | F36: $40.00 | G36: PAGADO
A37: 32 | B37: 1802440964 - ALARCON QUIÑONES CARLOS EFRAIN | C37: BAEKJUL TAEKWONDO | D37: ENTRENADOR CLUB FILIAL | E37: 0 | F37: $40.00 | G37: PAGADO
A38: 33 | B38: 1709834079 - BASTIDAS BETAUNCOURT JONATAN ALEXANDER | C38: BAS PANTHERS | D38: DIRECTOR CLUB FILIAL | E38: $30.00 | F38: 0 | G38: PAGADO
A39: 34 | B39: 1307088250 - SUAREZ ORTEGA WILIAN VICENTE | C39: BAS PANTHERS | D39: MONITOR CLUB FILIAL | E39: $40.00 | F39: 0 | G39: PAGADO
A40: 35 | B40: 1754170643 - OSCULLO MARCILLO PAULETTE JUSTINE | C40: BAS PANTHERS | D40: MONITOR CLUB FILIAL | E40: $40.00 | F40: 0 | G40: PAGADO
A41: 36 | B41: 1754174587 - OSCULLO MARCILLO ZULAY ANAHÍ | C41: BAS PANTHERS | D41: MONITOR CLUB FILIAL | E41: $40.00 | F41: 0 | G41: PAGADO
A42: 37 | B42: 1755810940 - CHAVARRIA GONZA JENIFER ELISABETH | C42: BAS PANTHERS | D42: MONITOR CLUB FILIAL | E42: $40.00 | F42: 0 | G42: PAGADO
A43: 38 | B43: 0802811380 - PORTOCARRERO LASTRA GABRIELA JOCELYN | C43: BAS PANTHERS | D43: MONITOR CLUB FILIAL | E43: $40.00 | F43: 0 | G43: PAGADO
A44: 39 | B44: 1727294389 - BASTIDAS PORTOCARRERO BETTY JAMILETH | C44: BAS PANTHERS | D44: ENTRENADOR CLUB FILIAL | E44: $40.00 | F44: 0 | G44: PAGADO
A45: 40 | B45: 1717312068 - SUNTAXI CRISANTO WILLIAM VINICIO | C45: BLUE DRAGONS | D45: DIRECTOR CLUB FILIAL | E45: 0 | F45: $30.00 | G45: PAGADO
A46: 41 | B46: 1750879957 - PANTOJA RIVADENEIRA JULIAN ALESSANDRO | C46: BLUE DRAGONS | D46: MONITOR CLUB FILIAL | E46: 0 | F46: $40.00 | G46: PAGADO
A47: 42 | B47: 1751182658 - PILACUAN ROJAS KENNY ALEJANDRO | C47: BLUE DRAGONS | D47: MONITOR CLUB FILIAL | E47: 0 | F47: $40.00 | G47: PAGADO
A48: 43 | B48: 1752060036 - PALTAN ITURRALDE MARÍA GRACIA GRACIA | C48: BLUE DRAGONS | D48: MONITOR CLUB FILIAL | E48: 0 | F48: $40.00 | G48: PAGADO
A49: 44 | B49: 1750085720 - PALTAN ITURRALDE EMILIA ALEJANDRA | C49: BLUE DRAGONS | D49: MONITOR CLUB FILIAL | E49: 0 | F49: $40.00 | G49: PAGADO
A50: 45 | B50: 1718162850 - MADERO GUERRERO ROBERTO ALEJANDRO | C50: BLUE DRAGONS | D50: ENTRENADOR CLUB FILIAL | E50: 0 | F50: $40.00 | G50: PAGADO
A51: 46 | B51: 1750015388 - TUFIÑO MONTENEGRO NATALIA ISIS | C51: BLUE DRAGONS | D51: ENTRENADOR CLUB FILIAL | E51: 0 | F51: $40.00 | G51: PAGADO
A52: 47 | B52: 1719867929 - SUNTAXI CRISANTO STALIN LUIS FABRIZZIO | C52: BLUE DRAGONS | D52: ENTRENADOR CLUB FILIAL | E52: 0 | F52: $40.00 | G52: PAGADO
A53: 48 | B53: 1713509006 - BORJA MINA EDGAR ANIBAL | C53: BORJA’S LIONS | D53: DIRECTOR CLUB FILIAL | E53: 0 | F53: $30.00 | G53: PAGADO
A54: 49 | B54: 1720600194 - NARANJO HERRERA MARÍA BELÉN | C54: BORJA’S LIONS | D54: MONITOR CLUB FILIAL | E54: 0 | F54: $40.00 | G54: PAGADO
A55: 50 | B55: 0504309881 - ORTEGA RENDON PABLO EMILIO | C55: BORJA’S LIONS | D55: MONITOR CLUB FILIAL | E55: 0 | F55: $40.00 | G55: PAGADO
A56: 51 | B56: L179252 - RODRÍGUEZ RODRÍGUEZ YANICE - | C56: BORJA’S LIONS | D56: ENTRENADOR CLUB FILIAL | E56: 0 | F56: $40.00 | G56: PAGADO
A57: 52 | B57: 0908176662 - ANDRADE LOPEZ HECTOR JAVIER | C57: BORJA’S LIONS | D57: ENTRENADOR CLUB FILIAL | E57: 0 | F57: $40.00 | G57: PAGADO
A58: 53 | B58: 1713817219 - SEGOVIA SANCHEZ ANGELICA ELIZABETH | C58: BORJA’S LIONS | D58: ENTRENADOR CLUB FILIAL | E58: 0 | F58: $40.00 | G58: PAGADO
A59: 54 | B59: 1719310581 - RAMOS SEGOVIA DILAN JOSUE | C59: BORJA’S LIONS | D59: ENTRENADOR CLUB FILIAL | E59: 0 | F59: $40.00 | G59: PAGADO
A60: 55 | B60: 1758378119 - ANDRADE CASTILLON ADRIAN DAVID | C60: BORJA’S LIONS | D60: OYENTE | E60: 0 | F60: $10.00 | G60: PAGADO
A61: 56 | B61: 1725075004 - ROLDAN VINUEZA JORGE DAVID | C61: CAMU | D61: MONITOR CLUB FILIAL | E61: 0 | F61: $40.00 | G61: PAGADO
A62: 57 | B62: 1750045229 - ALCIVAR ANRANGO HECTOR JOEL | C62: CAMU | D62: ENTRENADOR CLUB FILIAL | E62: 0 | F62: $40.00 | G62: PAGADO
A63: 58 | B63: 1718546284 - GUAMANGATE CHICAIZA SOFIA TATIANA | C63: CAMU | D63: ENTRENADOR CLUB FILIAL | E63: 0 | F63: $40.00 | G63: PAGADO
A64: 59 | B64: 1714409230 - MORETA SEVILLANO LUIS WLADIMIR | C64: CAMU | D64: ENTRENADOR CLUB FILIAL | E64: 0 | F64: $40.00 | G64: PAGADO
A65: 60 | B65: 1720525516 - OCAPANA QUISAGUANO ANDERSON JOSUE | C65: CAMU | D65: ENTRENADOR CLUB FILIAL | E65: 0 | F65: $40.00 | G65: PAGADO
A66: 61 | B66: 1717129793 - MUZO MAISINCHO JONATHAN RODRIGO | C66: CAMU | D66: ENTRENADOR CLUB FILIAL | E66: 0 | F66: $40.00 | G66: PAGADO
A67: 62 | B67: 1715270144 - BERRONES QUISHPE BYRON HERNAN | C67: CHAMPIONS FOR LIFE | D67: DIRECTOR CLUB FILIAL | E67: 0 | F67: $30.00 | G67: PAGADO
A68: 63 | B68: 1725351959 - QUEZADA SANCHEZ JOHN ALEJANDRO | C68: CHAMPIONS FOR LIFE | D68: ENTRENADOR CLUB FILIAL | E68: 0 | F68: $40.00 | G68: PAGADO
A69: 64 | B69: 1723045470 - LAZO QUIÑA DANIEL FERNANDO | C69: CHAMPIONS FOR LIFE | D69: ENTRENADOR CLUB FILIAL | E69: 0 | F69: $40.00 | G69: PAGADO
A70: 65 | B70: 1717472847 - MOROCHO ACHIG CARLOS ANDRES | C70: CHUNG SONG | D70: DIRECTOR CLUB FILIAL | E70: 0 | F70: $30.00 | G70: PAGADO
A71: 66 | B71: 1726161704 - MOROCHO ACHIG JOHANNA ESTEFANIA | C71: CHUNG SONG | D71: ENTRENADOR CLUB FILIAL | E71: 0 | F71: $40.00 | G71: PAGADO
A72: 67 | B72: 1717466724 - CALUCHO RODRIGUEZ CARLOS MARCELO | C72: CHUNG SONG | D72: ENTRENADOR CLUB FILIAL | E72: 0 | F72: $40.00 | G72: PAGADO
A73: 68 | B73: 1705525374 - JARAMILLO TRUJILLO FERNANDO CARLOS | C73: CIUDAD DE QUITO | D73: DIRECTOR CLUB FILIAL | E73: 0 | F73: $30.00 | G73: PAGADO
A74: 69 | B74: 1724609217 - OBANDO GODOY ADRIANA PILAR | C74: CIUDAD DE QUITO | D74: ENTRENADORCLUB FILIAL | E74: 0 | F74: $40.00 | G74: PAGADO
A75: 71 | B75: 1754449906 - LARCO FLORES DEREK NOCOLAI | C75: CIUDAD DE QUITO | D75: MONITOR CLUB FILIAL | E75: 0 | F75: $40.00 | G75: PAGADO
A76: 72 | B76: 1716475783 - CANO MEJIA LUIS ANIBAL | C76: CLUB MERCENARIOS | D76: DIRECTOR CLUB FILIAL | E76: 0 | F76: $30.00 | G76: PAGADO
A77: 73 | B77: 1727945303 - MENDEZ MALDONADO ALEXIS JHEIMY | C77: CLUB MERCENARIOS | D77: MONITOR CLUB FILIAL | E77: 0 | F77: $40.00 | G77: PAGADO
A78: 74 | B78: 1114313041 - MEJIA VASQUEZ JHON STEVEN | C78: CLUB MERCENARIOS | D78: MONITOR CLUB FILIAL | E78: 0 | F78: $40.00 | G78: PAGADO
A79: 75 | B79: 1755127345 - TOAPANTA VILLAMARIN DYLAN JAHIR | C79: CLUB MERCENARIOS | D79: MONITOR CLUB FILIAL | E79: 0 | F79: $40.00 | G79: PAGADO
A80: 76 | B80: 1725432585 - CARILLO AIMACAÑA LENIN ANDRES | C80: CLUB MERCENARIOS | D80: MONITOR CLUB FILIAL | E80: 0 | F80: $40.00 | G80: PAGADO
A81: 77 | B81: 1752112951 - LOPEZ ROMERO FERNANDA MISHELL | C81: CLUB MERCENARIOS | D81: MONITOR CLUB FILIAL | E81: 0 | F81: $40.00 | G81: PAGADO
A82: 78 | B82: 1756884000 - MERIZALDE SN EMILY SN | C82: CLUB MERCENARIOS | D82: MONITOR CLUB FILIAL | E82: 0 | F82: $40.00 | G82: PAGADO
A83: 79 | B83: 1726862194 - FELIX VILLEGAS SHANIA FIORELLA | C83: CLUB MERCENARIOS | D83: MONITOR CLUB FILIAL | E83: 0 | F83: $40.00 | G83: PAGADO
A84: 80 | B84: 1752729101 - PILATUÑA LINCANGO SANTIAGO EDY | C84: CLUB MERCENARIOS | D84: MONITOR CLUB FILIAL | E84: $4.00 | F84: $40.00 | G84: PAGADO
A85: 81 | B85: 1726586629 - VEINTIMILLA YANEZ GENESIS ABIGAIL | C85: CLUB MERCENARIOS | D85: ENTRENADOR CLUB FILIAL | E85: 0 | F85: $40.00 | G85: PAGADO
A86: 82 | B86: 1752112720 - CANO CARDONA SEBASTIAN JUAN | C86: CLUB MERCENARIOS | D86: ENTRENADOR CLUB FILIAL | E86: 0 | F86: $40.00 | G86: PAGADO
A87: 83 | B87: 1709735342 - TAYO DUQUE PABLO AURELIO | C87: C. A. R. DECIAP | D87: DIRECTOR CLUB FILIAL | E87: 0 | F87: $30.00 | G87: PAGADO
A88: 84 | B88: 1753716875 - GARCIA ORTUÑO SANTIAGO JAVIER | C88: C. A. R. DECIAP | D88: MONITOR CLUB FILIAL | E88: 0 | F88: $40.00 | G88: PAGADO
A89: 85 | B89: 1715852701 - ACIPUELA LAGLAGUANO ADAN PATRICIO | C89: C. A. R. DECIAP | D89: ENTRENADOR CLUB FILIAL | E89: 0 | F89: $40.00 | G89: PAGADO
A90: 86 | B90: 1718817446 - MOGOLLON MORENO BRYAN JHOEL | C90: C. A. R. DECIAP | D90: ENTRENADOR CLUB FILIAL | E90: 0 | F90: $40.00 | G90: PAGADO
A91: 87 | B91: 1714903851 - BAYAS CAÑAS WAGNER ANTONIO | C91: C. A. R. DECIAP | D91: ENTRENADOR CLUB FILIAL | E91: 0 | F91: $40.00 | G91: PAGADO
A92: 88 | B92: 0550283568 - LOPEZ SILVA WENDY JANETH | C92: C. A. R. DECIAP | D92: ENTRENADOR CLUB FILIAL | E92: 0 | F92: $40.00 | G92: PAGADO
A93: 89 | B93: 1725102451 - PABLO SEBASTIAN TAYO AGUAS | C93: C. A. R. DECIAP | D93: ENTRENADOR CLUB FILIAL | E93: 0 | F93: $40.00 | G93: PAGADO
A94: 90 | B94: 1722665930 - TAPIA PALOMEQUE KARENT NICOLE | C94: CLUB HAN KUM DO | D94: DIRECTOR CLUB FILIAL | E94: 0 | F94: $30.00 | G94: PAGADO
A95: 91 | B95: 1717275315 - PALMA AYALA JOSÉ DAVID | C95: CLUB HAN KUM DO | D95: ENTRENADOR CLUB FILIAL | E95: 0 | F95: $40.00 | G95: PAGADO
A96: 92 | B96: 1717498164 - TUQUERES SALAS PATRICIA MARGOTH | C96: CLUB TAE WOONG | D96: DIRECTOR CLUB FILIAL | E96: 0 | F96: $30.00 | G96: PAGADO
A97: 93 | B97: 1713952859 - TOASA LEMA EDGAR RAMIRO | C97: CLUB TAE WOONG | D97: ENTRENADOR CLUB FILIAL | E97: 0 | F97: $40.00 | G97: PAGADO
A98: 94 | B98: 1717054256 - TUQUERES SALAS SARA ADELA | C98: CLUB TAE WOONG | D98: ENTRENADOR CLUB FILIAL | E98: 0 | F98: $40.00 | G98: PAGADO
A99: 95 | B99: 1712258357 - CARVAJAL NÚÑEZ RICHARD DAVID | C99: CLUB TAE WOONG | D99: ENTRENADOR CLUB FILIAL | E99: 0 | F99: $40.00 | G99: PAGADO
A100: 96 | B100: 1719601047 - FARIAS TORRES EDWIN LEONEL | C100: CONDOR | D100: MONITOR CLUB FILIAL | E100: 0 | F100: $40.00 | G100: PAGADO
A101: 97 | B101: 1716982580 - TORRES BAÑO JAIME EFREN | C101: CONDOR | D101: ENTRENADOR CLUB FILIAL | E101: 0 | F101: $40.00 | G101: PAGADO
A102: 98 | B102: 1716622632 - PÉREZ VILLAFUERTE EDISON PATRICIO | C102: DAIGORO | D102: DIRECTOR CLUB FILIAL | E102: 0 | F102: $30.00 | G102: PAGADO
A103: 99 | B103: 1726599077 - PÉREZ VILLAFUERTE JAIME SEBASTIAN | C103: DAIGORO | D103: ENTRENADOR CLUB FILIAL | E103: 0 | F103: $40.00 | G103: PAGADO
A104: 100 | B104: 1724995558 - PEREZ VILLAFUERTE JAIRO RENE | C104: DAIGORO | D104: ENTRENADOR CLUB FILIAL | E104: 0 | F104: $40.00 | G104: PAGADO
A105: 101 | B105: 1719567453 - BOLAÑOS RUIZ JIMMY EDUARDO | C105: DEBAK TKD | D105: DIRECTOR CLUB FILIAL | E105: 0 | F105: $30.00 | G105: PAGADO
A106: 102 | B106: 1751634336 - IBARRA ROBAYO JULIAN ALEXANDER | C106: DEBAK TKD | D106: MONITOR CLUB FILIAL | E106: 0 | F106: $40.00 | G106: PAGADO
A107: 103 | B107: 3050423825 - MARCANO AFONSO IVAN ANDRES | C107: DEBAK TKD | D107: MONITOR CLUB FILIAL | E107: 0 | F107: $40.00 | G107: PAGADO
A108: 104 | B108: 1750537050 - CELI LAGLA ZOE ZOE | C108: DEBAK TKD | D108: MONITOR CLUB FILIAL | E108: 0 | F108: $40.00 | G108: PAGADO
A109: 105 | B109: 1754408803 - VARGAS VERA JOAQUIN ANDRES | C109: DEBAK TKD | D109: MONITOR CLUB FILIAL | E109: 0 | F109: $40.00 | G109: PAGADO
A110: 106 | B110: 1719567446 - BOLAÑOS RUIZ MARTHA STEPHANIE | C110: DEBAK TKD | D110: ENTRENADOR CLUB FILIAL | E110: 0 | F110: $40.00 | G110: PAGADO
A111: 107 | B111: 1704453198 - PRADO VERDESOTO MARCELO EFREN | C111: DEBAK TKD | D111: ENTRENADOR CLUB FILIAL | E111: 0 | F111: $40.00 | G111: PAGADO
A112: 108 | B112: 1750173724 - LLAGUNO PIARPUSAN SANTIAGO ALEXANDER | C112: DEBAK TKD | D112: ENTRENADOR CLUB FILIAL | E112: 0 | F112: $40.00 | G112: PAGADO
A113: 109 | B113: 1726977539 - BENAVIDES ARAUJO MARTIN JAVIER | C113: DEBAK TKD | D113: ENTRENADOR CLUB FILIAL | E113: 0 | F113: $40.00 | G113: PAGADO
A114: 110 | B114: 1722536966 - LARA ARMENDARIZ ADRIAN NICOLAS | C114: DEBAK TKD | D114: ENTRENADOR CLUB FILIAL | E114: 0 | F114: $40.00 | G114: PAGADO
A115: 111 | B115: 1754638086 - QUISNIA SISALEMA RODNEEY DE JESUS | C115: DEBAK TKD | D115: ENTRENADOR CLUB FILIAL | E115: 0 | F115: $40.00 | G115: PAGADO
A116: 112 | B116: 1757926959 - FLORES KEVIN | C116: DEBAK TKD | D116: ENTRENADOR CLUB FILIAL | E116: 0 | F116: $40.00 | G116: PAGADO
A117: 113 | B117: 1724268212 - VARGAS VERA JARED ESTEBAN | C117: DEBAK TKD | D117: ENTRENADOR CLUB FILIAL | E117: 0 | F117: $40.00 | G117: PAGADO
A118: 114 | B118: 1751614353 - RUIZ SAAVEDRA HECTOR GABRIEL | C118: DEBAK TKD | D118: ENTRENADOR CLUB FILIAL | E118: 0 | F118: $40.00 | G118: PAGADO
A119: 115 | B119: 1753431244 - RIOS GUITARRA AXEL GABRIEL | C119: DEBAK TKD | D119: OYENTE | E119: 0 | F119: $10.00 | G119: PAGADO
A120: 116 | B120: 1707760946 - NARANJO NARANJO DIEGO RAUL | C120: DEBAK TKD | D120: OYENTE | E120: 0 | F120: $10.00 | G120: PAGADO
A121: 117 | B121: 1706324082 - ALVEAR GRANDA SANDRA LUCÍA | C121: DOJANG TKD MELO | D121: ENTRENADORCLUB FILIAL | E121: 0 | F121: $40.00 | G121: PAGADO
A122: 118 | B122: 1707456081 - MELO CARRERA BOLIVAR VINICIO | C122: DOJANG TKD MELO | D122: DIRECTOR CLUB FILIAL | E122: 0 | F122: $30.00 | G122: PAGADO
A123: 119 | B123: 1716531221 - RODRÍGUEZ PISULÍ EDISON GIOVANNY | C123: DRACO | D123: DIRECTOR CLUB FILIAL | E123: 0 | F123: $40.00 | G123: PAGADO
A124: 120 | B124: 1751441591 - PROAÑO OLAYA ETHAN JARED | C124: DRACO | D124: MONITOR CLUB FILIAL | E124: 0 | F124: $40.00 | G124: PAGADO
A125: 121 | B125: 1720747243 - RODRÍGUEZ PISULÍ RICHARD ALEJANDRO | C125: DRACO | D125: ENTRENADOR CLUB FILIAL | E125: 0 | F125: $40.00 | G125: PAGADO
A126: 122 | B126: 1724986375 - VIZUETE LUNA FLAVIO ISMAEL | C126: DRACO | D126: ENTRENADOR CLUB FILIAL | E126: 0 | F126: $40.00 | G126: PAGADO
A127: 123 | B127: 1712951472 - AGUAS LLUMIHUGSI JOSE MIGUEL | C127: DRAGON GYM | D127: DIRECTOR, ENTRENADOR, MONITOR DE CLUB NO FILIAL | E127: 0 | F127: $30.00 | G127: PAGADO
A128: 124 | B128: 1724351646 - AGUAS MOPOSITA JOHANNA VANESSA | C128: DRAGON GYM | D128: ENTRENADOR CLUB FILIAL | E128: 0 | F128: 0 | G128: NO VINO
A129: 125 | B129: 1709717043 - MOPOSITA PILLAJO SILVIA MARIA | C129: DRAGON GYM | D129: ENTRENADOR CLUB FILIAL | E129: 0 | F129: $40.00 | G129: PAGADO
A130: 126 | B130: 0502381510 - LEMA TRAVEZ EDGAR MARCELO | C130: DRAGON LEE GYM | D130: DIRECTOR CLUB FILIAL | E130: 0 | F130: $30.00 | G130: PAGADO
A131: 127 | B131: 1753548054 - CAJIGAL KINDELAN EDDY JULIO | C131: ECUADCUBA | D131: DIRECTOR CLUB FILIAL | E131: 0 | F131: 0 | G131: POR COBRAR
A132: 128 | B132: 1750102640 - GAMBOA HURTADO LUCIANA VALENTINA | C132: ECUADCUBA | D132: MONITOR CLUB FILIAL | E132: 0 | F132: $40.00 | G132: PAGADO
A133: 129 | B133: 1726007618 - BASTIDAS ALMACHI DANIEL LEONARDO | C133: ECUADCUBA | D133: MONITOR CLUB FILIAL | E133: 0 | F133: $40.00 | G133: PAGADO
A134: 130 | B134: 1725212383 - LOPEZ FLORES JHONATAN EDUARDO | C134: ECUADCUBA | D134: ENTRENADOR CLUB FILIAL | E134: 0 | F134: $40.00 | G134: PAGADO
A135: 131 | B135: 0701110348 - ASTUDILLO CHACON JORGE HUMBERTO | C135: ECUADOR | D135: DIRECTOR CLUB FILIAL | E135: 0 | F135: $30.00 | G135: PAGADO
A136: 132 | B136: 1709065088 - PEÑALOZA GARNICA LUIS EDUARDO | C136: ECUADOR | D136: MONITOR CLUB FILIAL | E136: 0 | F136: $40.00 | G136: PAGADO
A137: 133 | B137: 1718265729 - VALDIVIESO TULCAN EDWIN VINICIO | C137: ECUADOR | D137: MONITOR CLUB FILIAL | E137: 0 | F137: $40.00 | G137: PAGADO
A138: 134 | B138: 1752818003 - QUIJIJE AMAGUA MARLON PATRICIO | C138: ECUADOR | D138: MONITOR CLUB FILIAL | E138: 0 | F138: $40.00 | G138: PAGADO
A139: 135 | B139: 1712775780 - LARA PEREZ LUIS GONZALO | C139: ECUADOR | D139: MONITOR CLUB FILIAL | E139: 0 | F139: $40.00 | G139: PAGADO
A140: 136 | B140: 1750108225 - PEÑALOZA CARRION EMILIA IVANOVA | C140: ECUADOR | D140: MONITOR CLUB FILIAL | E140: 0 | F140: $40.00 | G140: PAGADO
A141: 137 | B141: 1724525637 - LARA TACURI LUIS SANTIAGO | C141: ECUADOR | D141: MONITOR CLUB FILIAL | E141: 0 | F141: $40.00 | G141: PAGADO
A142: 138 | B142: 1717368656 - ASTUDILLO AREVALO JORGE LUIS | C142: ECUADOR | D142: ENTRENADOR CLUB FILIAL | E142: 0 | F142: $40.00 | G142: PAGADO
A143: 139 | B143: 1725044471 - PLAZARTE TOPA KATHERINE ANAHI | C143: ECUADOR | D143: OYENTE | E143: 0 | F143: $10.00 | G143: PAGADO
A144: 140 | B144: 1722962857 - ZAPATA BUSTAMANTE DAYANA MICHELLE | C144: ECUADOR | D144: OYENTE | E144: 0 | F144: $10.00 | G144: PAGADO
A145: 141 | B145: 1706748827 - VALENCIA POLANCO JUAN PATRICIO | C145: EQUILIBRIO | D145: DIRECTOR CLUB FILIAL | E145: 0 | F145: $30.00 | G145: PAGADO
A146: 142 | B146: 1725453318 - ROSERO ALBAN CHRISTIAN MARTIN | C146: EQUILIBRIO | D146: MONITOR CLUB FILIAL | E146: 0 | F146: $40.00 | G146: PAGADO
A147: 143 | B147: 1714669791 - VALENCIA REINOSO JUAN CARLOS | C147: EQUILIBRIO | D147: ENTRENADOR CLUB FILIAL | E147: 0 | F147: $40.00 | G147: PAGADO
A148: 144 | B148: 1712348901 - LOACHAMIN ALDAZ EDUARDO MARCELO | C148: ESPE | D148: DIRECTOR CLUB FILIAL | E148: $30.00 | F148: 0 | G148: PAGADO
A149: 145 | B149: 1726535154 - TENORIO TIPAN NATALY YAJAIRA | C149: ESPE | D149: MONITOR CLUB FILIAL | E149: $40.00 | F149: 0 | G149: PAGADO
A150: 146 | B150: 0402191068 - NASAMUES BOLAÑOS ANGELA LISBETH | C150: ESPE | D150: MONITOR CLUB FILIAL | E150: $40.00 | F150: 0 | G150: PAGADO
A151: 147 | B151: 1726589441 - YANCHAPAXI QUILUMBAQUIN JOSELYN ARACELY | C151: ESPE | D151: MONITOR CLUB FILIAL | E151: $40.00 | F151: 0 | G151: PAGADO
A152: 148 | B152: 1724488083 - TIPAN CHILUISA MELISSA JOANA | C152: ESPE | D152: MONITOR CLUB FILIAL | E152: $40.00 | F152: 0 | G152: PAGADO
A153: 149 | B153: 1720535564 - PILLAJO PERALTA MIGUEL ANDRES | C153: ESPE | D153: ENTRENADOR CLUB FILIAL | E153: $40.00 | F153: 0 | G153: PAGADO
A154: 150 | B154: 1715615751 - GUAMBI MONTA HENRY JONATHAN | C154: ESPE | D154: ENTRENADOR CLUB FILIAL | E154: $40.00 | F154: 0 | G154: PAGADO
A155: 151 | B155: 1725854184 - ARRIETA MUQUINCHE JONATHAN STEVEN | C155: ESPE | D155: ENTRENADOR CLUB FILIAL | E155: $40.00 | F155: 0 | G155: PAGADO
A156: 152 | B156: 1727067264 - CASTAÑEDA SAENZ KATHERINE ALEJANDRA | C156: ESPE | D156: OYENTE | E156: $10.00 | F156: 0 | G156: PAGADO
A157: 153 | B157: 1725517112 - RIERA RAMOS ANDRES SEBASTIAN | C157: ESPE | D157: OYENTE | E157: $10.00 | F157: 0 | G157: PAGADO
A158: 154 | B158: 1715861652 - ROJAS PORTERO JOSUE MESIAS | C158: FARANG | D158: DIRECTOR CLUB FILIAL | E158: $30.00 | F158: 0 | G158: PAGADO
A159: 155 | B159: 1727139766 - CALVA JUMA NICOLE ALEJANDRA | C159: FEDEPDAL | D159: DIRECTOR, ENTRENADOR, MONITOR DE CLUB NO FILIAL | E159: 0 | F159: $40.00 | G159: PAGADO
A160: 156 | B160: 1718340431 - TUQUERES SUNTAXI JOHNATTAN ALEXANDER | C160: FEDEPDAL | D160: DIRECTOR, ENTRENADOR, MONITOR DE CLUB NO FILIAL | E160: 0 | F160: $40.00 | G160: PAGADO
A161: 157 | B161: 1727668965 - LASCANO VELASCO JERAI NICOLAI | C161: FIRST CLASS CALDERÓN | D161: MONITOR CLUB FILIAL | E161: 0 | F161: $40.00 | G161: PAGADO
A162: 158 | B162: 1766400999 - PAREJA PISCO MATEO JOSUE | C162: FIRST CLASS CALDERÓN | D162: MONITOR CLUB FILIAL | E162: 0 | F162: $40.00 | G162: PAGADO
A163: 159 | B163: 1719896118 - ALVAREZ BAUTISTA DAVID HENRY | C163: FIRST CLASS CALDERÓN | D163: ENTRENADOR CLUB FILIAL | E163: 0 | F163: $40.00 | G163: PAGADO
A164: 160 | B164: 1724616337 - BAEZ GÓMEZ LENIN STEVEN | C164: FITT KWONDO MEJIA | D164: ENTRENADOR CLUB FILIAL | E164: 0 | F164: $40.00 | G164: PAGADO
A165: 161 | B165: 1713738183 - BEHR CHIRIBOGA ERIKA MARIA | C165: FITT KWONDO MEJIA | D165: OYENTE | E165: 0 | F165: $10.00 | G165: PAGADO
A166: 162 | B166: 1712138757 - CAIZA OÑA FRANKLIN EDISON | C166: FURIA NEGRA | D166: DIRECTOR CLUB FILIAL | E166: 0 | F166: $30.00 | G166: PAGADO
A167: 163 | B167: 1719866061 - PERDOMO FACTOS CRISTIAN DANIEL | C167: FURIA NEGRA | D167: ENTRENADOR CLUB FILIAL | E167: 0 | F167: $40.00 | G167: PAGADO
A168: 164 | B168: 1728576719 - CAIZA CUEVA ESLENDY ALINA | C168: FURIA NEGRA | D168: ENTRENADOR CLUB FILIAL | E168: 0 | F168: $40.00 | G168: PAGADO
A169: 165 | B169: 0604215491 - GUERRERO BAÑO JAIRO ANDRES | C169: GUERREROS SPORT | D169: DIRECTOR, ENTRENADOR, MONITOR DE CLUB NO FILIAL | E169: 0 | F169: 0 | G169: NO VINO
A170: 166 | B170: 1708262520 - VALLADARES VÁSQUEZ GALO MAURICIO | C170: HANSU CAYAMBE | D170: DIRECTOR CLUB FILIAL | E170: $30.00 | F170: 0 | G170: PAGADO
A171: 167 | B171: 1713676201 - VILLAMARIN CHIMARRO PABLO GUSTAVO | C171: HANSU CAYAMBE | D171: MONITOR CLUB FILIAL | E171: $40.00 | F171: 0 | G171: PAGADO
A172: 168 | B172: 1754445904 - MINANGO MINANGO CORALY CORALY | C172: HANSU CAYAMBE | D172: MONITOR CLUB FILIAL | E172: $40.00 | F172: 0 | G172: PAGADO
A173: 169 | B173: 0650316680 - LEMA ANDRADE FRANCISCO ANDRES | C173: HANSU CAYAMBE | D173: MONITOR CLUB FILIAL | E173: $40.00 | F173: 0 | G173: PAGADO
A174: 170 | B174: 1754996351 - CELI VILCACUNDO JUAN JOSE | C174: HANSU CAYAMBE | D174: MONITOR CLUB FILIAL | E174: $40.00 | F174: 0 | G174: PAGADO
A175: 171 | B175: 1751089515 - VALLADARES GUATEMAL DAVID ALEJANDRO | C175: HANSU CAYAMBE | D175: MONITOR CLUB FILIAL | E175: $40.00 | F175: 0 | G175: PAGADO
A176: 172 | B176: 1728018795 - ULCUANGO QUISHPE EMERSON ISAAC | C176: HANSU CAYAMBE | D176: MONITOR CLUB FILIAL | E176: $40.00 | F176: 0 | G176: PAGADO
A177: 173 | B177: 1728212000 - ABRIGO BONE GERSON ROBERTO | C177: HANSU CAYAMBE | D177: MONITOR CLUB FILIAL | E177: $40.00 | F177: 0 | G177: PAGADO
A178: 174 | B178: 1755856935 - REINOSO AGUILAR LADY ALEJANDRA | C178: HANSU CAYAMBE | D178: MONITOR CLUB FILIAL | E178: $40.00 | F178: 0 | G178: PAGADO
A179: 175 | B179: 1716221039 - VALLADARES ESPINOSA SHEILA GEOVANNA | C179: HANSU CAYAMBE | D179: ENTRENADOR CLUB FILIAL | E179: $40.00 | F179: 0 | G179: PAGADO
A180: 176 | B180: 1753424454 - CORREA HERMOSA CHRISTOPHER DAVID | C180: HANSU CAYAMBE | D180: ENTRENADOR CLUB FILIAL | E180: $40.00 | F180: 0 | G180: PAGADO
A181: 177 | B181: 1724676539 - VALLADARES ESPINOSA MARIA AUGUSTA | C181: HANSU CAYAMBE | D181: ENTRENADOR CLUB FILIAL | E181: $40.00 | F181: 0 | G181: PAGADO
A182: 178 | B182: 1003142724 - REYES CHICAIZA FERNANDO HELEODORO | C182: HANSU CAYAMBE | D182: ENTRENADOR CLUB FILIAL | E182: $40.00 | F182: 0 | G182: PAGADO
A183: 179 | B183: 1725791840 - HIDALGO SAAVEDRA STIVEN RAUL | C183: HIMCHARI DOJANG | D183: MONITOR CLUB FILIAL | E183: 0 | F183: $40.00 | G183: PAGADO
A184: 180 | B184: 1725042152 - GARZON SOSA ANDREA ISABEL | C184: HIMCHARI DOJANG | D184: ENTRENADOR CLUB FILIAL | E184: 0 | F184: $40.00 | G184: PAGADO
A185: 181 | B185: 1726690348 - CALVOPIÑA TELLO MARIA GABRIELA | C185: HUANG TOP GYM | D185: MONITOR CLUB FILIAL | E185: 0 | F185: $40.00 | G185: PAGADO
A186: 182 | B186: 1709170870 - MEDINA . CHRISTIAN . | C186: HUANG TOP GYM | D186: MONITOR CLUB FILIAL | E186: 0 | F186: $40.00 | G186: PAGADO
A187: 183 | B187: 1711277093 - MEJIA CORDOVA GUIDO MARIN | C187: HUANG TOP GYM | D187: DIRECTOR, ENTRENADOR, MONITOR DE CLUB NO FILIAL | E187: 0 | F187: $30.00 | G187: PAGADO
A188: 184 | B188: 0604022038 - PARRA YANCHAPAXI MIGUEL ANGUEL | C188: ILYO M.P | D188: DIRECTOR CLUB FILIAL | E188: 0 | F188: $30.00 | G188: PAGADO
A189: 185 | B189: 1754335907 - CAISAGUANO VARGAS DANIEL HUMBERTO | C189: ILYO M.P | D189: MONITOR CLUB FILIAL | E189: 0 | F189: $40.00 | G189: PAGADO
A190: 186 | B190: 1754133948 - PARRA ZAPATA MATEO DANIEL | C190: ILYO M.P | D190: MONITOR CLUB FILIAL | E190: 0 | F190: $40.00 | G190: PAGADO
A191: 187 | B191: 1750925941 - BARBA RODRIGUEZ ALISSON NIKOL | C191: ILYO M.P | D191: MONITOR CLUB FILIAL | E191: 0 | F191: $40.00 | G191: PAGADO
A192: 188 | B192: 1726731639 - PARRA ZAPATA DANIELA MICAELA | C192: ILYO M.P | D192: ENTRENADOR CLUB FILIAL | E192: 0 | F192: $40.00 | G192: PAGADO
A193: 189 | B193: 1717464570 - ALOMOTO CUVI ISAAC SALOMON | C193: ISCTKD | D193: DIRECTOR CLUB NOFILIAL | E193: 0 | F193: $30.00 | G193: PAGADO
A194: 190 | B194: 1718817438 - MOGOLLÓN MORENO LESSLY SAMANTHA | C194: JERATHEL | D194: DIRECTOR CLUB FILIAL | E194: 0 | F194: $30.00 | G194: PAGADO
A195: 191 | B195: 1755986823 - GARZÓN PULLUPAXI ESTEBAN JOEL | C195: JERATHEL | D195: ENTRENADOR CLUB FILIAL | E195: 0 | F195: $40.00 | G195: PAGADO
A196: 192 | B196: 1721813291 - VALENCIA MEDRANDA JONNATHAN ANDRÉS | C196: JERATHEL | D196: ENTRENADOR CLUB FILIAL | E196: 0 | F196: $40.00 | G196: PAGADO
A197: 193 | B197: 1723486179 - MOGOLLÓN MORENO GLYNKA YARICELL | C197: JERATHEL | D197: ENTRENADOR CLUB FILIAL | E197: 0 | F197: $40.00 | G197: PAGADO
A198: 194 | B198: 1752158103 - ROMERO GARCÍA KEVIN JULIAN | C198: JERATHEL | D198: ENTRENADOR CLUB FILIAL | E198: 0 | F198: $40.00 | G198: PAGADO
A199: 195 | B199: 1712828738 - DELCASTILLO MURGUEITIO DAVID . | C199: JIDOKWAN DC | D199: DIRECTOR CLUB FILIAL | E199: $30.00 | F199: 0 | G199: PAGADO
A200: 196 | B200: 0401586615 - NARVAEZ REINA JOSE DAVID | C200: JOSEON LEGACY | D200: MONITOR CLUB FILIAL | E200: 0 | F200: $40.00 | G200: PAGADO
A201: 197 | B201: 1719515676 - CUJILEMA YAUCAN LUIS GEOVANY | C201: JOSEON LEGACY | D201: ENTRENADOR CLUB FILIAL | E201: 0 | F201: $40.00 | G201: PAGADO
... 284 more rows

Sheet I SELECTIVO CAD, JUN Y JUV
A1: ASOCIACIÓN DE TAEKWONDO DE PICHINCHA
A2: I SELECTIVO CADETES, JUNIOR Y JUVENIL 2025
A3: COLISEO DE SANGOLQUÍ 16-02-2025
A5: N° | B5: CLUBES PARTICIPANTES | C5: SIGLAS | D5: DEPORTISTAS | E5: ENTRENADORES | F5: TARDÍA/CAMBIO | G5: EFECTIVO | H5: TRANSFERENCIA | I5: ESTADO
A6: 1 | B6: ARES | C6: ARE | D6: 3 | E6: 2 | F6: 1 TARDÍA | G6: $20.00 | H6: 0 | I6: PAGADO
A7: 2 | B7: BAEKJUL TAEKWONDO | C7: BKJ | D7: 7 | E7: 3 | G7: $35.00 | H7: 0 | I7: PAGADO
A8: 3 | B8: BAS PANTHERS | C8: BSP | D8: 3 | E8: 1 | G8: $15.00 | H8: 0 | I8: PAGADO
A9: 4 | B9: BLUE DRAGONS | C9: BDR | D9: 4 | E9: 2 | G9: 0 | H9: $20.00 | I9: PAGADO
A10: 5 | B10: BORJA’S LIONS | C10: BLS | D10: 12 | E10: 5 | F10: 3 CAMBIOS | G10: 0 | H10: $80.00 | I10: PAGADO
A11: 7 | B11: CIUDAD DE QUITO | C11: CDQ | D11: 1 | E11: 1 | G11: 0 | H11: $5.00 | I11: PAGADO
A12: 8 | B12: CLUB TAE WOONG | C12: TWG | D12: 2 | E12: 1 | F12: 1 TARDÍA | G12: 0 | H12: $20.00 | I12: PAGADO
A13: 9 | B13: DEBAK TKD | C13: DBK | D13: 4 | E13: 2 | H13: $12.00 | I13: PAGADO
A14: 10 | B14: DECIAP | C14: DEC | D14: 5 | E14: 4 | G14: 0 | H14: 0 | I14: PASO CURSO
A15: 11.27777778 | B15: DRACO | C15: DRA | D15: 5 | E15: 1 | F15: 2 CAMBIOS | G15: 0 | H15: $35.00 | I15: PAGADO
A16: 12.44444444 | B16: ECUADCUBA | C16: ECB | D16: 2 | E16: 1 | G16: $10.00 | H16: 0 | I16: PAGADO
A17: 13.61111111 | B17: EQUILIBRIO | C17: EQU | D17: 1 | E17: 1 | G17: $5.00 | H17: 0 | I17: PAGADO
A18: 14.77777778 | B18: FARANG | C18: FRG | D18: 1 | E18: 1 | G18: $5.00 | H18: 0 | I18: PAGADO
A19: 15.94444444 | B19: FIRST CLASS CALDERÓN | C19: FCE | D19: 4 | E19: 1 | F19: 4 TARDÍAS | G19: 0 | H19: $22.00 | I19: PAGADO
A20: 17.11111111 | B20: FURIA NEGRA | C20: CFN | D20: 4 | E20: 2 | F20: 2 TARDÍAS | G20: $30.00 | H20: 0 | I20: PAGADO
A21: 18.27777778 | B21: HANSU CAYAMBE | C21: CAY | D21: 10 | E21: 2 | G21: $50.00 | H21: 0 | I21: PAGADO
A22: 19.44444444 | B22: HUANG TOP GYM | C22: HTG | D22: 1 | E22: 1 | G22: 0 | H22: $5.00 | I22: PAGADO
A23: 20.61111111 | B23: JERATHEL | C23: JER | D23: 1 | E23: 1 | G23: $5.00 | H23: $5.00 | I23: PAGADO
A24: 21.77777778 | B24: KO AMERICA | C24: KOA | D24: 5 | E24: 1 | F24: 1 TARDÍA 2 CAMBIOS | G24: 0 | H24: $40.00 | I24: PAGADO
A25: 22.94444444 | B25: KORYO | C25: KOR | D25: 1 | E25: 0 | F25: 1 TARDÍA | G25: $10.00 | H25: 0 | I25: PAGADO
A26: 24.11111111 | B26: KUMGANG DUL | C26: KGD | D26: 3 | E26: 2 | F26: 1 TARDÍA | G26: 0 | H26: $20.00 | I26: PAGADO
A27: 25.27777778 | B27: KYORUGUI GYM | C27: KRG | D27: 3 | E27: 2 | G27: $15.00 | H27: 0 | I27: PAGADO
A28: 26.44444444 | B28: LIGA CANTONAL MEJÍA | C28: LCM | D28: 3 | E28: 2 | G28: $15.00 | H28: 0 | I28: PAGADO
A29: 27.61111111 | B29: LOS PUMAS | C29: PUM | D29: 5 | E29: 1 | G29: 0 | H29: $15.00 | I29: PAGADO
A30: 28.77777778 | B30: MERCENARIOS | C30: MER | D30: 7 | E30: 2 | G30: 0 | H30: $35.00 | I30: PAGADO
A31: 29.94444444 | B31: MOODUKKWAN TRAINING C | C31: TTC | D31: 3 | E31: 1 | F31: 3 TARDÍAS | G31: 0 | H31: $20.00 | I31: PAGADO
A32: 31.11111111 | B32: ROJAS IAN IRON FIST | C32: PVM | D32: 3 | E32: 1 | G32: 0 | H32: $15.00 | I32: PAGADO
A33: 32.27777778 | B33: SAN SEBASTIAN | C33: SSB | D33: 1 | E33: 1 | G33: $5.00 | H33: 0 | I33: PAGADO
A34: 33.44444444 | B34: SEUL | C34: SEU | D34: 12 | E34: 4 | F34: 1 CAMBIO | G34: $65.00 | H34: 0 | I34: PAGADO
A35: 34.61111111 | B35: SIMJANG TEAM | C35: SIM | D35: 1 | E35: 2 | F35: 2 CAMBIO | G35: $10.00 | H35: 0 | I35: PAGADO
A36: 35.77777778 | B36: S. D. CENTRAL | C36: SDC | D36: 13 | E36: 5 | F36: 2 TARDÍAS | G36: $75.00 | H36: 0 | I36: PAGADO
A37: 36.94444444 | B37: TAE BAEK | C37: TBK | D37: 1 | E37: 4 | G37: 0 | H37: $5.00 | I37: PAGADO
A38: 38.11111111 | B38: TAE BAEK JUNIOR | C38: TBK | D38: 4 | E38: 2 | F38: 2 CAMBIOS | G38: 0 | H38: $30.00 | I38: PAGADO
A39: 39.27777778 | B39: TAE DO ACADEMY | C39: TDO | D39: 1 | E39: 1 | G39: $5.00 | H39: 0 | I39: PAGADO
A40: 40.44444444 | B40: TAE SHO KU | C40: TSK | D40: 4 | E40: 3 | G40: 0 | H40: $20.00 | I40: PAGADO
A41: 41.61111111 | B41: YONG TIGER | C41: YON | D41: 3 | E41: 2 | G41: $15.00 | H41: 0 | I41: PAGADO
A42: TOTAL INSCRITOS | D42: =SUM(D6:D41) -> 143 | E42: =SUM(E6:E41) -> 68 | G42: =SUM(G6:G41) -> $390.00 | H42: =SUM(H6:H41) -> $404.00
B44: INGRESOS
B45: INSCRIPCIONES EFECTIVO | C45: =G42 -> $ 390.00
B46: INSCRIPCIONES TRANSFERENCIA | C46: =H42 -> $ 404.00
B47: TAQUILLA | C47: $ 355.00
B48: FONDOS CDP PARA ARBITRAJE | C48: $ 400.00
B49: TOTAL | C49: =SUM(C45:C48) -> $ 1,549.00
B52: EGRESOS
B53: HIDRATACIÓN STAFF | C53: $ 16.00
B54: PRODUCTOS DE LIMPIEZA (PAPEL HIGIÉNICO Y FUNDAS) | C54: $ 20.00
B55: MASKING PARA LIMITAR CANCHAS | C55: $ 15.00
B56: DESAYUNOS Y ALMUERZOS STAFF | C56: $ 165.00
B57: TRANSPORTE | C57: $ 5.00
B58: AMBULANCIA Y PARAMÉDICOS | C58: $ 165.00
B59: ALQUILER SISTEMA Y COMPUTADOR | C59: $ 50.00
B60: CONGRESILLO | C60: $ 20.00
B61: ELABORACIÓN DE LLAVES DÍAS DE TRABAJO | C61: $ 60.00
B62: PAGO ARBITRAJE | C62: $ 600.00
B63: LIMPIEZA DE BAÑOS | C63: $ 30.00
B64: LIMPIEZA DE COLISEO | C64: $ 50.00
B65: PAGO STAFF (PERSONAL DE APOYO) | C65: $ 420.00
B66: DEVOLUCIÓN BORJA'S LIONS | C66: $ 5.00
B67: GRAPADORA PEQUEÑA | C67: $ 3.00
B68: TOTAL | C68: =SUM(C53:C67) -> $ 1,624.00
B71: INGRESOS | C71: =C49 -> $ 1,549.00
B72: EGRESOS | C72: =-C68 -> $ (1,624.00)
B73: SALDO | C73: =C71+C72 -> $ (75.00)

Sheet I OPEN ASOTKD 2025 Y SELECTIVO
A1: ASOCIACIÓN DE TAEKWONDO DE PICHINCHA
A2: I OPEN ASOTKD 2025, I SELECTIVO POOMSAE Y II SELECTIVO CADETES Y JUNIOR, I SELECTIVO INFANTIL A, B Y SUB 21
A3: COLISEO GENERAL RUMIÑAHUI 01 Y 02 DE MARZO
A5: N° | B5: CLUBES PARTICIPANTES | C5: SIGLAS | D5: OPEN COMBATE - POOMSAE | E5: SELECTIVO COMBATE | F5: SELECTIVO POOMSAE | G5: TARDÍA / CAMBIO | H5: EFECTIVO | I5: TRANSFERENCIA | J5: ESTADO
A6: 1 | B6: APOLO | C6: APO | D6: 33 | E6: 0 | F6: 2 | G6: 0 | H6: $134.00 | I6: $404.00 | J6: PAGADO
A7: 2 | B7: ARES | C7: ARE | D7: 17 | E7: 1 | F7: 1 | G7: 0 | H7: $275.00 | I7: $7.00 | J7: PAGADO
A8: 3 | B8: ASOCIACION TKDP | C8: ASO | D8: 1 | E8: 0 | F8: 0 | G8: 0 | H8: $16.00 | I8: 0 | J8: PAGADO
A9: 4 | B9: ATLAS 1 PARATKD | C9: ATL | D9: 9 | E9: 0 | F9: 0 | G9: 0 | H9: $80.00 | I9: $48.00 | J9: PAGADO
A10: 5 | B10: BAEKJUL TAEKWONDO | C10: BKJ | D10: 12 | E10: 11 | F10: 0 | G10: 1 | H10: $252.00 | I10: 0 | J10: PAGADO
A11: 6 | B11: BAEKJUL TAEKWONDO | C11: BKJ | D11: 17 | E11: 0 | F11: 0 | G11: 1 | H11: 0 | I11: $277.00 | J11: PAGADO
A12: 7 | B12: BAEKJUL TAEKWONDO | C12: BKJ | D12: 2 | E12: 0 | F12: 0 | G12: 1 | H12: 0 | I12: $32.00 | J12: PAGADO
A13: 8 | B13: BAS PANTHERS | C13: BSP | D13: 12 | E13: 4 | F13: 1 | G13: 1 | H13: 0 | I13: $222.00 | J13: PAGADO
A14: 9 | B14: BLUE DRAGONS | C14: BDR | D14: 17 | E14: 1 | F14: 0 | G14: 0 | H14: 0 | I14: $277.00 | J14: PAGADO
A15: 10 | B15: CHAMPIONS FOR LIFE | C15: CFL | D15: 8 | E15: 1 | F15: 0 | G15: 0 | H15: 0 | I15: $133.00 | J15: PAGADO
A16: 11 | B16: CHUNG SONG | C16: CHS | D16: 35 | E16: 0 | F16: 0 | G16: 2 | H16: $224.00 | I16: $346.00 | J16: PAGADO
A17: 12 | B17: CIUDAD DE QUITO | C17: CDQ | D17: 2 | E17: 3 | F17: 1 | G17: 0 | H17: 0 | I17: $52.00 | J17: PAGADO
A18: 13 | B18: CLUB HAN KUM DO | C18: HKD | D18: 20 | E18: 0 | F18: 0 | G18: 0 | H18: 0 | I18: $320.00 | J18: PAGADO
A19: 14 | B19: CLUB TAE WOONG | C19: TWG | D19: 5 | E19: 3 | F19: 0 | G19: 0 | H19: 0 | I19: $100.00 | J19: PAGADO
A20: 15 | B20: DEBAK TKD | C20: DBK | D20: 61 | E20: 10 | F20: 14 | G20: 2 | H20: $100.00 | I20: $1,000.00 | J20: PAGADO
A21: 16 | B21: DOJANG TKD MELO | C21: DTM | D21: 11 | E21: 0 | F21: 1 | G21: 0 | H21: 0 | I21: $181.00 | J21: PAGADO
A22: 17 | B22: DRAGON GYM | C22: DRG | D22: 5 | E22: 0 | F22: 0 | G22: 0 | H22: 0 | I22: $80.00 | J22: PAGADO
A23: 18 | B23: EQUILIBRIO | C23: EQU | D23: 5 | E23: 0 | F23: 0 | G23: 0 | H23: $80.00 | I23: 0 | J23: PAGADO
A24: 19 | B24: ESPE | C24: ESP | D24: 11 | E24: 0 | F24: 0 | G24: 0 | H24: $181.00 | I24: 0 | J24: PAGADO
A25: 20 | B25: JERATHEL | C25: JER | D25: 13 | E25: 4 | F25: 0 | G25: 2 | H25: $238.00 | I25: 0 | J25: PAGADO
A26: 21 | B26: JOSEON LEGACY | C26: JOL | D26: 29 | E26: 0 | F26: 0 | G26: 0 | H26: 0 | I26: $464.00 | J26: PAGADO
A27: 22 | B27: JR SPORT | C27: JRS | D27: 1 | E27: 1 | F27: 1 | G27: 0 | H27: $5.00 | I27: $10.00 | J27: PAGADO
A28: 23 | B28: KO AMERICA | C28: KOA | D28: 29 | E28: 3 | F28: 0 | G28: 5 | H28: 0 | I28: $504.00 | J28: PAGADO
A29: 24 | B29: KOREAN DRAGON | C29: KDR | D29: 3 | E29: 0 | F29: 0 | G29: 0 | H29: 0 | I29: $48.00 | J29: PAGADO
A30: 25 | B30: KUKKIWON | C30: KUK | D30: 9 | E30: 0 | F30: 0 | G30: 0 | H30: $144.00 | I30: 0 | J30: PAGADO
A31: 26 | B31: KUMGANG DUL | C31: KGD | D31: 4 | E31: 3 | F31: 0 | G31: 1 | H31: 0 | I31: $84.00 | J31: PAGADO
A32: 27 | B32: KYORUGUI GYM | C32: KRG | D32: 24 | E32: 6 | F32: 1 | G32: 1 | H32: $434.00 | I32: 0 | J32: PAGADO
A33: 28 | B33: LEON | C33: LEO | D33: 21 | E33: 2 | F33: 0 | G33: 2 | H33: $106.00 | I33: $250.00 | J33: PAGADO
A34: 29 | B34: LIGA CANTONAL DE MEJÍA | C34: LCM | D34: 13 | E34: 0 | F34: 0 | G34: 0 | H34: $208.00 | I34: 0 | J34: PAGADO
A35: 30 | B35: LOS PUMAS | C35: PUM | D35: 14 | E35: 8 | F35: 0 | G35: 0 | H35: $100.00 | I35: $164.00 | J35: PAGADO
A36: 31 | B36: MARCIAL CLUB GRANDA | C36: MCG | D36: 13 | E36: 0 | F36: 0 | G36: 1 | H36: 0 | I36: $213.00 | J36: PAGADO
A37: 32 | B37: MERCENARIOS - 2 | C37: MER | D37: 14 | E37: 15 | F37: 0 | G37: 0 | H37: $40.00 | I37: $231.00 | J37: PAGADO
A38: 33 | B38: MICHAYDO | C38: MCD | D38: 1 | E38: 1 | F38: 0 | G38: 0 | H38: 0 | I38: $32.00 | J38: PAGADO
A39: 34 | B39: MINOTAUROS ECU | C39: MIN | D39: 8 | E39: 0 | F39: 0 | G39: 2 | H39: $10.00 | I39: $128.00 | J39: PAGADO
A40: 35 | B40: MOODUKKWAN TRAINING C | C40: TTC | D40: 20 | E40: 0 | F40: 13 | G40: 20 | H40: $30.00 | I40: $455.00 | J40: PAGADO
A41: 36 | B41: PYONGYANG | C41: PYO | D41: 11 | E41: 0 | F41: 0 | G41: 0 | H41: 0 | I41: $176.00 | J41: PAGADO
A42: 37 | B42: SAN FRANCISCO TIGRES 1P | C42: SFT | D42: 10 | E42: 0 | F42: 2 | G42: 0 | H42: $154.00 | I42: 0 | J42: PAGADO
A43: 38 | B43: SAN SEBASTIAN | C43: SSB | D43: 1 | E43: 2 | F43: 4 | G43: 0 | H43: 0 | I43: $45.00 | J43: PAGADO
A44: 39 | B44: SEUL 2 SISTE REPETIDO | C44: SEU | D44: 11 | E44: 12 | F44: 12 | G44: 0 | H44: $5.00 | I44: $291.00 | J44: PAGADO
A45: 40 | B45: SHOGUN MENOS 1 2 SISTEM | C45: OHS | D45: 12 | E45: 1 | F45: 0 | G45: 0 | H45: 0 | I45: $183.00 | J45: PAGADO
A46: 41 | B46: SIMJANG TEAM | C46: SIM | D46: 11 | E46: 6 | F46: 0 | G46: 4 | H46: $226.00 | I46: 0 | J46: PAGADO
A47: 42 | B47: S.D.CENTRAL | C47: SDC | D47: 19 | E47: 22 | F47: 0 | G47: 0 | H47: 0 | I47: $441.00 | J47: PAGADO
A48: 43 | B48: TAE BAEK JUNIOR | C48: TBK | D48: 12 | E48: 3 | F48: 0 | G48: 1 | H48: 0 | I48: $212.00 | J48: PAGADO
A49: 44 | B49: TAE DO ACADEMY | C49: TDO | D49: 11 | E49: 2 | F49: 6 | G49: 2 | H49: $22.00 | I49: $204.00 | J49: PAGADO
A50: 45 | B50: TAEGUK JUCARO | C50: TJD | D50: 5 | E50: 0 | F50: 1 | G50: 2 | H50: 0 | I50: $95.00 | J50: PAGADO
A51: 46 | B51: TOTAL KOMBAT 1 PARATKD | C51: TKT | D51: 22 | E51: 0 | F51: 0 | G51: 1 | H51: $154.00 | I51: $187.00 | J51: PAGADO
A52: 47 | B52: UNIVERSIDAD UTE | C52: UTE | D52: 5 | E52: 0 | F52: 0 | G52: 1 | H52: 0 | I52: $85.00 | J52: PAGADO
A53: 48 | B53: BORJA LIONS | C53: BLS | D53: 0 | E53: 16 | F53: 0 | G53: 0 | H53: 0 | I53: $80.00 | J53: PAGADO
A54: 49 | B54: DECIAP | C54: DEC | D54: 0 | E54: 6 | F54: 0 | G54: 0 | H54: $30.00 | I54: 0 | J54: PAGADO
A55: 50 | B55: DRACO | C55: DRA | D55: 0 | E55: 9 | F55: 0 | G55: 0 | H55: 0 | I55: $45.00 | J55: PAGADO
A56: 51 | B56: ECUACUBA | C56: ECB | D56: 0 | E56: 4 | F56: 0 | G56: 0 | H56: $17.00 | I56: 0 | J56: PAGADO
A57: 52 | B57: FIRST CLASS CALDERON | C57: FCE | D57: 0 | E57: 4 | F57: 0 | G57: 0 | H57: 0 | I57: $20.00 | J57: PAGADO
A58: 53 | B58: FURIA NEGRA | C58: CFN | D58: 0 | E58: 4 | F58: 0 | G58: 0 | H58: $20.00 | I58: 0 | J58: PAGADO
A59: 54 | B59: HANSU CAYAMBE 2POR 3 SIS | C59: CAY | D59: 0 | E59: 20 | F59: 4 | G59: 0 | H59: $110.00 | I59: 0 | J59: PAGADO
A60: 55 | B60: HUANG TOP GYM | C60: HTG | D60: 0 | E60: 1 | F60: 0 | G60: 0 | H60: 0 | I60: $5.00 | J60: PAGADO
A61: 56 | B61: IL YO MP | C61: ILY | D61: 0 | E61: 1 | F61: 0 | G61: 0 | H61: 0 | I61: $5.00 | J61: PAGADO
A62: 57 | B62: JIDOKWAN DC | C62: JDK | D62: 0 | E62: 1 | F62: 0 | G62: 0 | H62: $5.00 | I62: 0 | J62: PAGADO
A63: 58 | B63: KORYO | C63: KOR | D63: 0 | E63: 3 | F63: 0 | G63: 0 | H63: $15.00 | I63: 0 | J63: PAGADO
A64: 59 | B64: ROJAS IAN IRON FIST | C64: PVM | D64: 0 | E64: 5 | F64: 0 | G64: 0 | H64: $25.00 | I64: 0 | J64: PAGADO
A65: 60 | B65: TAE BAEK | C65: TBK | D65: 0 | E65: 3 | F65: 1 | G65: 0 | H65: 0 | I65: $20.00 | J65: PAGADO
A66: 61 | B66: YONG TIGER | C66: YON | D66: 0 | E66: 6 | F66: 2 | G66: 0 | H66: $25.00 | I66: $15.00 | J66: PAGADO
A67: 62 | B67: FARANG | C67: FRG | D67: 0 | E67: 1 | F67: 0 | G67: 0 | H67: $5.00 | I67: 0 | J67: PAGADO
A68: 63 | B68: MIT - TKD | C68: MIT | D68: 0 | E68: 0 | F68: 1 | G68: 0 | H68: 0 | I68: $5.00 | J68: PAGADO
A69: 64 | B69: RYONG TAE | C69: RYT | D69: 0 | E69: 0 | F69: 1 | G69: 0 | H69: $5.00 | I69: 0 | J69: PAGADO
A70: 65 | B70: SURYUN | C70: SRY | D70: 0 | E70: 0 | F70: 1 | G70: 0 | H70: $5.00 | I70: 0 | J70: PAGADO
A71: 66 | B71: TAE SHO KU | C71: TSK | D71: 0 | E71: 6 | F71: 4 | G71: 0 | H71: 0 | I71: $50.00 | J71: PAGADO
A72: TOTAL | D72: =SUM(D6:D71) -> 629 | E72: 215 | F72: 74 | G72: 53 | H72: $3,480.00 | I72: $8,226.00
B75: INGRESOS
B76: INSCRIPCIONES EFECTIVO | C76: =H72 -> $ 3,480.00
B77: INSCRIPCIONES TRANSFERENCIA | C77: =I72 -> $ 8,226.00
B78: TAQUILLA | C78: $ 1,097.00
B79: TOTAL | C79: =SUM(C76:C78) -> $ 12,803.00
B82: EGRESOS
B83: DEVOLUCIÓN MARCO MOGOLLÓN TRÁMITES | C83: $ 52.00
B84: PASO POR TRÁMITE SRI EDUARDO LOACHAMIN 348-181.SALDO 167 | C84: $ 181.00
B85: PRODUCTOS DE LIMPIEZA (PAPEL HIGIÉNICO Y FUNDAS) | C85: $ 12.00
B86: HIDRATANTES Y REFRIGERIO ÁRBITROS Y STAFF JORNADA I | C86: $ 157.00
B87: PAGO ARBITRAJE JORNADA 1 DE MARZO DE 2025 | C87: $ 410.00
B88: PAGO SERVICIO DE SEGURIDAD EN EVENTO (4 GUARDIAS) | C88: $ 120.00
B89: PAGO STAFF JORNADA 1 DE MARZO DE 2025 | C89: $ 205.00
B90: DEVOLUCIÓN MARIO PINTO TRÁMITES | C90: $ 134.00
B91: DESAYUNOS STAFF Y ÁRBITROS (SÁBADO Y DOMINGO) | C91: $ 275.00
B92: PASO POR PRÉSTAMO DE EQUIPO ELECTRÓNICO PABLO TAYO | C92: $ 30.00
B93: HIDRATANTES Y REFRIGERIO ÁRBITROS Y STAFF JORNADA I | C93: $ 129.00
B94: MÉDICOS Y AMBULACIA (2 DÍAS) | C94: $ 400.00
B95: SONIDO Y APLIFICACIÓN | C95: $ 250.00
B96: PAGO ARBITRAJE JORNADA 2 DE MARZO DE 2025 | C96: $ 1,910.00
B97: MEDALLAS | C97: $ 700.00
B98: COMPRA DE 64 METROS DE TATAMI | C98: $ 960.00
B99: ELABORACIÓN DE LLAVES Y 2 DÍAS DE TRABAJO FERNANDO MOYA | C99: $ 250.00
B100: CONGRESILLO | C100: $ 20.00
B101: DOS SISTEMAS (2 DÍAS) | C101: $ 200.00
B102: SISTEMA DE VIDEO REPLAY | C102: $ 40.00
B103: PAGO POR INSCRIPIONES PÁGINA WEB CÉSAR TAYO | C103: $ 441.70
B104: RUBRO PARA VIAJE A TOPE A PORTOVIEJO | C104: $ 1,560.00
B105: GEOVANNI ESPINOZA REDES Y COBERTURA EVENTOS 2 DÍAS | C105: $ 50.00
B106: SISTEMAS ANGELO- CHINO Y TELAS COBERTORES JHONNY | C106: $ 420.00
B107: ALMUERZOS JORNADA 1 DE MARZO DE 2025 | C107: $ 391.00
B108: PAGO SERVICIO DE SEGURIDAD EN EVENTO (2 GUARDIAS) | C108: $ 60.00
B109: FLETES MENAJE DE COMPETENCIA | C109: $ 60.00
B110: MONTAJE DE ESCENARIO (ARMADO 7 CANCHAS) | C110: $ 175.00
B111: PAGO STAFF Y DIRECCIÓN DE EVENTOS 2 DÍAS 12 PERSONAS | C111: $ 720.00
B112: TOTAL | C112: =SUM(C83:C111) -> $ 10,312.70
B115: INGRESOS | C115: =C79 -> $ 12,803.00
B116: EGRESOS | C116: =-C112 -> $ (10,312.70)
B117: SALDO | C117: =C115+C116 -> $ 2,490.30

Sheet PAGO DERECHO SEGUNDO EXAMEN ACR
A1: NÓMINA DE PAGO DE DERECHO DE SEGUNDO EXÁMEN DE ACREDITACIÓN DE ENTRENADORES
A2: Nº | B2: NOMBRE Y APELLIDO | C2: CLUB | D2: FECHA DE PAGO | E2: VALOR | F2: COMPROBANTE
A3: 1 | B3: AMANDA VALLE | C3: MOODUKKWAN TRAINING CENTER | D3: 2025-01-24 | E3: $5.00 | G3: 24210779
A4: 2 | B4: ZAID MONOSALVAS | C4: ARES | D4: 2025-01-24 | E4: $5.00 | G4: 24468017
A5: 3 | B5: LILIANA FARINANGO | C5: ARES | D5: 2025-04-24 | E5: $5.00
A6: 4 | B6: JOSÉ NEPAS | C6: ARES | D6: 2025-01-24 | E6: $5.00
A7: 5 | B7: FERNANDO MANOSALVAS | C7: ARES | D7: 2025-01-24 | E7: $5.00
A8: 6 | B8: JOSÉ LUIS MALDONADO | C8: MOODUKKWAN TRAINING CENTER | D8: 2025-01-24 | E8: $5.00
A9: 7 | B9: YANICE RODRÍGUEZ | C9: BORJA'S LIONS | D9: 2025-01-24 | E9: $5.00
A10: 8 | B10: MARCO MOGOLLÓN | C10: SIMJANG | D10: 2025-01-24 | E10: $5.00 | G10: 30896816
A11: 9 | B11: MARIUXI NIETO | C11: SIMJANG | D11: 2025-01-24 | E11: $5.00
A12: 10 | B12: KERLY QUINTANA | C12: SIMJANG | D12: 2025-01-24 | E12: $5.00
A13: 11 | B13: HARMÍN MONTENEGRO | C13: SIMJANG | D13: 2025-01-24 | E13: $5.00
A14: 12 | B14: JOHAN VÁSQUEZ | C14: PALADINS MARCIAL CLUB | D14: 2025-01-24 | E14: $5.00 | G14: 38821702
A15: 13 | B15: JEANN PALADINES | C15: PALADINS MARCIAL CLUB | D15: 2025-01-24 | E15: $5.00
A16: 14 | B16: SANDRA ALVEAR | C16: DOJANG TKD MELO | D16: 2025-01-24 | E16: $5.00 | G16: 54767985
A17: 15 | B17: JORGE PROAÑO | C17: BAEKJUL | D17: 2025-01-24 | E17: $5.00 | G17: 28687670
A18: 16 | B18: ERICK PROAÑO | C18: BAEKJUL | D18: 2025-01-24 | E18: $5.00
A19: 17 | B19: JOHANN PROAÑO | C19: BAEKJUL | D19: 2025-01-24 | E19: $5.00
A20: 18 | B20: DIEGO MERINO | C20: MOODUKKWANTRAININGCENTER | D20: 2025-01-24 | E20: $5.00
A21: 19 | B21: EDGAR LEMA | C21: DRAGON LEE GYM | D21: 2025-01-24 | E21: $5.00 | G21: 56027749
A22: 20 | B22: MARLON QUJIJE | C22: ECUADOR | D22: 2025-01-24 | E22: $5.00
A23: 21 | B23: JORGE H. ASTUDILLO C. | C23: ECUADOR | D23: 2025-01-24 | E23: $5.00
A24: 22 | B24: DARIO FLORES | C24: SCORPIUS | D24: 2025-01-25 | E24: $5.00
A25: 23 | B25: FRANCISCO CHICAIZA | C25: KUKKIWON | D25: 2025-01-27 | E25: $5.00
A26: 24 | B26: DAVID CHICAIZA | C26: KUKKIWON | D26: 2025-01-27 | E26: $5.00
A27: 25 | B27: CRISTIÁN CHICAIZA | C27: KUKKIWON | D27: 2025-01-27 | E27: $5.00
A28: 26 | B28: EDISON RODRÍGUEZ | C28: DRACO | D28: 2025-01-27 | E28: $5.00
A29: 27 | B29: JEFFERSON QUICALIQUIN | C29: L. D. C. MEJÍA | D29: 2025-01-27 | E29: CUENTA ASO
A30: 28 | B30: JORGE TOAPANTA | C30: L. D. C. MEJÍA | D30: 2025-01-27 | E30: CUENTA ASO
A31: 29 | B31: VICENTE LASCANO | C31: TAE DO ACADEMY | D31: 2025-01-27 | E31: $5.00
A32: 30 | B32: ALISSON ARMIJOS | C32: TAE DO ACADEMY | D32: 2025-01-27 | E32: $5.00
A33: 31 | B33: MATEO PARRA | C33: ILYO M. P. | D33: 2025-01-27 | E33: $5.00
A34: 32 | B34: MIGUEL PARRA | C34: ILYO M. P. | D34: 2025-01-27 | E34: $5.00
A35: 33 | B35: DARIEL MOSQUERA | C35: SEUL | D35: 2025-01-24 | E35: $5.00 | G35: 50698254
A36: 34 | B36: ESTEBAN TORRES | C36: SEUL | D36: 2025-01-24 | E36: $5.00 | G36: 37091631
A37: 35 | B37: STEVEN LÓPEZ | C37: TEKKEN | D37: 2025-01-24 | E37: $5.00
A38: 36 | B38: GUSTAVO LÓPEZ | C38: TEKKEN | D38: 2025-01-24 | E38: $5.00
A39: 37 | B39: XAVIER MOREIRA | C39: PIONERO FORTIS | D39: 2025-01-24 | E39: $5.00 | G39: 27646026
A40: 38 | B40: MIGUEL AGUAS | C40: DRAGON GYM | D40: 2025-01-27 | E40: $5.00 | G40: 29255640
A41: 39 | B41: SILVIA MOPOSITA | C41: DRAGON GYM | D41: 2025-01-27 | E41: $5.00
A42: 40 | B42: PATRICIA TÚQUERES | C42: TAE WOONG | D42: 2025-01-27 | E42: CUENTA ASO | G42: 5486730
A43: 41 | B43: SARA TÚQUERES | C43: TAE WOONG | D43: 2025-01-27 | E43: $5.00 | G43: 41999270
A44: 42 | B44: EMILY VALERIA PEREZ | C44: TAEGUK JUCARO | D44: 2025-01-25 | E44: $5.00
A45: 43 | B45: ETHAN PROAÑO | C45: DRACO | D45: 2025-01-27 | E45: $5.00
A46: 44 | B46: JENNY BARROS | C46: KUMGANG DUL | D46: 2025-01-27 | E46: $5.00 | G46: 49956677
A47: 45 | B47: CARLOS ALARCÓN | C47: BAEKJUL | D47: 2025-01-27 | E47: $5.00 | G47: 29609189
A48: 46 | B48: GABRIELA CASTILLO | C48: MOODOKKWAN TRAINING CENTER | D48: 2025-01-27 | E48: $5.00 | G48: 33745040
A49: 47 | B49: CARLOS CAIZA | C49: TOTAL KOMBAT | D49: 2025-01-28 | E49: $5.00 | G49: 7213893
A50: 48 | B50: EDWIN ARTEAGA | C50: TAE BAEK ECUADOR | D50: 2025-01-27 | E50: $5.00
A51: 49 | B51: JEAN ARTEAGA | C51: TAE BAEK ECUADOR | D51: 2025-01-27 | E51: $5.00
A52: 50 | B52: VANESSA SIERRA | C52: TAE BAEK ECUADOR | D52: 2025-01-27 | E52: $5.00
A53: 51 | B53: MICHAEL CADENA | C53: TAE BAEK ECUADOR | D53: 2025-01-27 | E53: $5.00
A54: 52 | B54: JONNY DIGUENCIA | C54: TAE BAEK ECUADOR | D54: 2025-01-27 | E54: $5.00
A55: 53 | B55: CHRISTIAN FLORES | C55: LOBOS | D55: 2025-01-27 | E55: $5.00 | G55: 59559706
A56: 54 | B56: ELIANA ANDRADE | C56: TOTAL KOMBAT | D56: 2025-01-27 | E56: $5.00 | G56: 36573069
A57: 55 | C57: KOREAN DRAGON | D57: 2025-01-27 | E57: $5.00 | G57: 40353538
A58: 56 | C58: KOREAN DRAGON | D58: 2025-01-27 | E58: $5.00
A59: 57 | B59: JONATAN BASTIDAS | C59: BAS PANTHERS | D59: 2025-01-25 | E59: CUENTA ASO
A60: 58 | B60: BETTY BASTIDAS | C60: BAS PANTHERS | D60: 2025-01-25 | E60: CUENTA ASO
A61: 59 | B61: ANDRÉS HERRERA | C61: PANDA DEMON | D61: 2025-01-27 | E61: $5.00 | G61: 45959991
A62: 60 | C62: PANDA DEMON | D62: 2025-01-27 | E62: $5.00 | G62: 50567046
A63: 61 | B63: LUIS GRADA | C63: MARCIAL CLUB GRANDA | D63: 2025-01-27 | E63: $5.00 | G63: 37151342
A64: 62 | B64: STEVEN ARRIETA | C64: ESPE | D64: 2025-01-25 | E64: $5.00
A65: 63 | B65: WILLIAM COLA | C65: SOCIEDAD DEPORTIVA CENTAL | D65: 2025-01-27 | E65: $5.00 | G65: 16404059
A66: 64 | B66: JULIO ÁLVAREZ | C66: SOCIEDAD DEPORTIVA CENTAL | D66: 2025-01-25 | E66: $5.00
A67: 65 | B67: HUGO SIGCHOS | C67: PYONGYANG | D67: 2025-01-27 | E67: $5.00 | G67: 5925465
A68: 66 | B68: PAUL S{ANCHEZ | C68: MICHAY DO | D68: 2025-01-27 | E68: $5.00 | G68: 48148784
A69: 67 | C69: FURIA NEGRA | D69: 2025-01-27 | E69: CUENTA ASO
A70: 68 | C70: FURIA NEGRA | D70: 2025-01-27 | E70: CUENTA ASO
A71: 69 | C71: RAIG DE LLUM | D71: 2025-01-27 | E71: $5.00 | G71: 48029958
